{"text_format":"1","workbook":"xlsx","n_sheets":6,"sheets":["Compare JETNET-FAA (2)","Sheet1","Sheet3","Sheet2","Compare JETNET-FAA","JETNET Data"],"not_rendered":{"charts":0,"images":1,"macros":1,"external_links":1,"defined_names":12,"comments":0,"pivot_tables":0},"unopened":[],"bounds":{"document_bytes":16777216,"sheet_cells":100000,"rows_first":2000,"rows_last":500,"rows_between":2000,"halvings":0,"cell_chars":16384,"cell_head_chars":4096},"cells_cut":0,"cells_raw":0,"read":"whole","date_system":"1900"}

{"sheet":"Compare JETNET-FAA (2)","index":0,"n_rows":160,"n_cols":12,"rows_kept":160,"cut":false,"hidden":false,"merged":[[0,0,0,6],[0,7,0,11]]}
["JETNET Data",null,null,null,null,null,null,"FAA Registaration Data (4/7/2022)"]
["REGNBR","RELATIONTOAC","COMPANYNAME","COMPADDRESS1","COMPADDRESS2","COMPCITY","COMPSTATE",null,"NAME","STREET","CITY","STATE"]
["N150GV","Owner","Gulfstream Leasing, LLC","500 Gulfstream Road, Mail B-06",null,"Savannah","GA","N150GV","GULFSTREAM LEASING LLC","500 GULFSTREAM RD","SAVANNAH","GA"]
["N703HA","Owner","Full Send Aviation, LLC","190 Raleigh Street",null,"Wilmington","NC","N703HA","FULL SEND AVIATION LLC","109 RALEIGH ST","WILMINGTON","NC"]
["N530LD","Owner","4 Love of Flight, LLC","16150 Fitzhugh Road",null,"Dripping Springs","TX","N530LD","4 LOVE OF FLIGHT LLC","16150 FITZHUGH RD","DRIPPING SPRINGS","TX"]
["N7476C","Owner","Dodson International Parts, Inc.","2155 Vermont Road",null,"Rantoul","KS","N7476C",{"$error":"#N/A"},{"$error":"#N/A"},{"$error":"#N/A"},{"$error":"#N/A"}]
["N29JW","Operator","Schussboomer Systems, Inc.","P.O. Box 1420","317 Commercial Avenue","Anacortes","WA","N29JW","SCHUSSBOOMER SYSTEMS INC","PO BOX 1420","ANACORTES","WA"]
["N29JW","Owner","Schussboomer Systems, Inc.","P.O. Box 1420","317 Commercial Avenue","Anacortes","WA","N29JW","SCHUSSBOOMER SYSTEMS INC","PO BOX 1420","ANACORTES","WA"]
["N150QA","Operator","North Houston Pole Line","1608 Margaret Street",null,"Houston","TX","N150QA","TVPX AIRCRAFT SOLUTIONS INC TRUSTEE","39 E EAGLE RIDGE DR STE 201","NORTH SALT LAKE","UT"]
["N150QA","Owner","North Houston Pole Line","1608 Margaret Street",null,"Houston","TX","N150QA","TVPX AIRCRAFT SOLUTIONS INC TRUSTEE","39 E EAGLE RIDGE DR STE 201","NORTH SALT LAKE","UT"]
["N531GP","Owner","Blue Flag Two, Ltd.","P.O. Box 3806","110 N Main Street","Dayton","OH","N531GP","BLUE FLAG TWO LTD","PO BOX 3806","DAYTON","OH"]
["N150CT","Lessee","Promerica Financial Corporation","Calle 50 y 53 Este, Area Bancaria",null,"Panama City",null,"N150CT","BANK OF UTAH TRUSTEE","50 S 200 E STE 110","SALT LAKE CITY","UT"]
["N150CT","Owner","Leon Air, LLC","3191 Coral Way. Suite 800",null,"Miami","FL","N150CT","BANK OF UTAH TRUSTEE","50 S 200 E STE 110","SALT LAKE CITY","UT"]
["N209AW","Aircraft Management Company","Pinnacle Aviation, Inc.","14988 North 78th Way, Suite 106","Scottsdale Airport","Scottsdale","AZ","N209AW","BLUE STAR MANAGEMENT LLC","PO BOX 686","CRAIG","AK"]
["N209AW","Owner","Blue Star Management, LLC","P.O. Box 686","11.5 Mile Port St. Nicholas Road","Craig","AK","N209AW","BLUE STAR MANAGEMENT LLC","PO BOX 686","CRAIG","AK"]
["N428JD","Owner","Dewberry Air, LLC","1545 Peachtree Street NE, Ste. 250",null,"Atlanta","GA","N428JD","DEWBERRY AIR LLC","1545 PEACHTREE ST NW STE 250","ATLANTA","GA"]
["N248SL","Co-Owner","Morales, Edgar","Calle Citialtepeti 2711",null,"Col Los Volcanes, Puebla Pue",null,"N248SL","BANK OF UTAH TRUSTEE","50 SOUTH 200 EAST STE 110","SALT LAKE CITY","UT"]
["N248SL","Co-Owner","Rio-Sul SA de CV","Antiguo Camino a la Resurreccion 10610-A","Col. San Rosa","Puebla, Puebla",null,"N248SL","BANK OF UTAH TRUSTEE","50 SOUTH 200 EAST STE 110","SALT LAKE CITY","UT"]
["N248SL","Operator","Willow Fabrics and Consulting, LLC","12A South Walnut Street",null,"Milford","DE","N248SL","BANK OF UTAH TRUSTEE","50 SOUTH 200 EAST STE 110","SALT LAKE CITY","UT"]
["N150JN","Owner","Koselig, LLC","27821 36th Avenue NW",null,"Stanwood","WA","N150JN","KOSELIG LLC","27821 36TH AVE NW","STANWOOD","WA"]
["N5950C","Owner","Bravo Zulu G150, LLC","2186 East Centre Avenue",null,"Portage","MI","N5950C","BRAVO ZULU G150 LLC","2186 E CENTRE AVE","PORTAGE","MI"]
["N777FL","Operator","Warren, James D.","PO Box 620931",null,"Redwood City","CA","N777FL","AGNES LLC","600 BEACH ST","ASHLAND","OR"]
["N777FL","Owner","Agnes, LLC","600 Beach Street",null,"Ashland","OR","N777FL","AGNES LLC","600 BEACH ST","ASHLAND","OR"]
["N247PS","Operator","Gulfstream Aerospace Corporation","P.O. Box 2206 M/S B-04","500 Gulfstream Road","Savannah","GA","N247PS","GULFSTREAM AEROSPACE CORP","500 GULFSTREAM RD","SAVANNAH","GA"]
["N247PS","Owner","Gulfstream Aerospace Corporation","P.O. Box 2206 M/S B-04","500 Gulfstream Road","Savannah","GA","N247PS","GULFSTREAM AEROSPACE CORP","500 GULFSTREAM RD","SAVANNAH","GA"]
["N192SW","Operator","CAF, LLC","3501 Airport Circle",null,"Pittsburg","KS","N192SW","CAF LLC","315 W 3RD ST","PITTSBURG","KS"]
["N192SW","Owner","CAF, LLC","3501 Airport Circle",null,"Pittsburg","KS","N192SW","CAF LLC","315 W 3RD ST","PITTSBURG","KS"]
["N217MS","Owner","GS 150-217, LLC","2571 East, 71st Street",null,"Chicago","IL","N217MS","GS 150-217 LLC","303 W MADISON ST STE 1000","CHICAGO","IL"]
["N1HE","Owner","Conquest Air, LLC","1101 Cradduck Road, Suite B",null,"Ada","OK","N1HE","CONQUEST AIR LLC","1101 CRADDUCK RD STE B","ADA","OK"]
["N150MT","Aircraft Management Company","Bradley Mack Aviation, Inc.","14747 North Northsight Boulevard, Suite 111-433",null,"Scottsdale","AZ","N150MT","GH CONSULTING SERVICES LLC","14747 N NORTHSIGHT BLVD","SCOTTSDALE","AZ"]
["N150MT","Co-Owner","GH Consulting Services, LLC","7377 E. Doubletree Ranch Road","Suite 100","Scottsdale","AZ","N150MT","GH CONSULTING SERVICES LLC","14747 N NORTHSIGHT BLVD","SCOTTSDALE","AZ"]
["N150MT","Co-Owner","Nick Chapman Consulting, LLC","2525 East Camelback Road, Suite 500",null,"Phoenix","AZ","N150MT","GH CONSULTING SERVICES LLC","14747 N NORTHSIGHT BLVD","SCOTTSDALE","AZ"]
["N705AK","Aircraft Management Company","Solairus Aviation","201 First Street, Suite 307",null,"Petaluma","CA","N705AK","FAMILY TREE FARMS AVIATION LLC","PO BOX 396","DINUBA","CA"]
["N705AK","Owner","Family Tree Farms Aviation, LLC","P.O. Box 396",null,"Dinuba","CA","N705AK","FAMILY TREE FARMS AVIATION LLC","PO BOX 396","DINUBA","CA"]
["N611NC","Operator","MHW Group Holdings, LLC","11620 Red Run Boulevard",null,"Reisterstown","MD","N611NC","TRIDENT AIRCRAFT INC","9475 JET LN","EASTON","MD"]
["N611NC","Owner","MHW Group Holdings, LLC","11620 Red Run Boulevard",null,"Reisterstown","MD","N611NC","TRIDENT AIRCRAFT INC","9475 JET LN","EASTON","MD"]
["N224GG","Owner","Gator Tracks, LLC","70 Ready Avenue NW",null,"Ft. Walton Beach","FL","N224GG","GATOR TRACKS LLC","70 READY AVE NW","FORT WALTON BEACH","FL"]
["N365GA","Operator","Gulfstream Aerospace Corporation","P.O. Box 2206 M/S B-04","500 Gulfstream Road","Savannah","GA","N365GA","GULFSTREAM LEASING LLC","500 GULFSTREAM RD M/S B-16","SAVANNAH","GA"]
["N365GA","Owner","Gulfstream Leasing, LLC","500 Gulfstream Road, Mail B-06",null,"Savannah","GA","N365GA","GULFSTREAM LEASING LLC","500 GULFSTREAM RD M/S B-16","SAVANNAH","GA"]
["N8821C","Aircraft Management Company","CSM Aviation","3050 N Winery Avenue","Fresno Yosemite International Airport","Fresno","CA","N8821C","JVWL LLC","9240 EXCELSIOR AVE","HANFORD","CA"]
["N8821C","Owner","JVWL, LLC","9240 Excelsior Avenue",null,"Hanford","CA","N8821C","JVWL LLC","9240 EXCELSIOR AVE","HANFORD","CA"]
["N100SR","Flight Department","Executive Capital Corporation","47 West 210th Route 30",null,"Big Rock","IL","N100SR","RAYMAN STEVEN M TRUSTEE","47W210 RT 30","BIG ROCK","IL"]
["N100SR","Owner","G-150 Trust","47W210 Route 30",null,"Big Rock","IL","N100SR","RAYMAN STEVEN M TRUSTEE","47W210 RT 30","BIG ROCK","IL"]
["N100GX","Aircraft Management Company","Keystone Aviation, LLC","303 North 2370 West","Salt Lake City International Airport","Salt Lake City","UT","N100GX","BRULECREEK AVIATION LLC","7 EAGLE VIEW CT","PARK CITY","UT"]
["N100GX","Owner","Brulecreek Aviation, LLC","7 Eagle View Court",null,"Park City","UT","N100GX","BRULECREEK AVIATION LLC","7 EAGLE VIEW CT","PARK CITY","UT"]
["N518KH","Owner","Golden Eagle Management, LLC","3011 American Way",null,"Missoula","MT","N518KH","GOLDEN EAGLE MANAGEMENT LLC","3011 AMERICAN WAY","MISSOULA","MT"]
["N722SW","Owner","Gator One Air, LLC","618 Gulf Shore Drive",null,"Destin","FL","N722SW","GATOR ONE AIR LLC","4481 LEGENDARY DR UNIT 200","DESTIN","FL"]
["N787BN","Aircraft Management Company","Clay Lacy Aviation, Inc.","7435 Valjean Avenue","Van Nuys Airport","Van Nuys","CA","N787BN","OMNINET CAPITAL LLC","9420 WILSHIRE BLVD STE 400","BEVERLY HILLS","CA"]
["N787BN","Owner","Omninet Capital, LLC","9420 Wilshire Boulevard, 4th Floor",null,"Beverly Hills","CA","N787BN","OMNINET CAPITAL LLC","9420 WILSHIRE BLVD STE 400","BEVERLY HILLS","CA"]
["N928ST","Aircraft Management Company","Keystone Aviation, LLC","303 North 2370 West","Salt Lake City International Airport","Salt Lake City","UT","N928ST","FLYING BAR B LLC","3500 E DEER HOLLOW DR","SANDY","UT"]
["N928ST","Owner","Flying Bar B, LLC","3500 Deer Hollow Drive",null,"Sandy","UT","N928ST","FLYING BAR B LLC","3500 E DEER HOLLOW DR","SANDY","UT"]
["N511CT","Fractional Owner","430 Holdings, Inc.","10014 Chapel Hill Road",null,"Morrisville","NC","N511CT","ATG AVIATION LLC","125 SOUTH ELM STE 300","GREENSBORO","NC"]
["N511CT","Fractional Owner","ATG Aviation, LLC","115 Perry Place",null,"Shoal Creek","AL","N511CT","ATG AVIATION LLC","125 SOUTH ELM STE 300","GREENSBORO","NC"]
["N511CT","Fractional Owner","Corwin Brothers, LLC","P.O. Box 3005","201 40th Street South","Fargo","ND","N511CT","ATG AVIATION LLC","125 SOUTH ELM STE 300","GREENSBORO","NC"]
["N511CT","Fractional Owner","Oosthuizen, Lodewicus Theodorus",null,null,null,null,"N511CT","ATG AVIATION LLC","125 SOUTH ELM STE 300","GREENSBORO","NC"]
["N511CT","Fractional Owner","Sewanee Ventures, LLC","4410 Gerald Place",null,"Nashville","TN","N511CT","ATG AVIATION LLC","125 SOUTH ELM STE 300","GREENSBORO","NC"]
["N511CT","Fractional Owner","Society Street Partners, LLC","3203 Bridle Trail",null,"Greensboro","NC","N511CT","ATG AVIATION LLC","125 SOUTH ELM STE 300","GREENSBORO","NC"]
["N511CT","Fractional Owner","Waldec Foods, LLC","5149 West San Jose Street",null,"Tampa","FL","N511CT","ATG AVIATION LLC","125 SOUTH ELM STE 300","GREENSBORO","NC"]
["N511CT","Operator","Jet It LLC","101 South Elm Street, Suite 75",null,"Greensboro","NC","N511CT","ATG AVIATION LLC","125 SOUTH ELM STE 300","GREENSBORO","NC"]
["N511CT","Program Holder","Jet It LLC","101 South Elm Street, Suite 75",null,"Greensboro","NC","N511CT","ATG AVIATION LLC","125 SOUTH ELM STE 300","GREENSBORO","NC"]
["N77709","Owner","Miller's, Inc.","P.O. Box 777","610 East Jefferson Street","Pittsburg","KS","N77709","MILLER'S INC","610 E JEFFERSON ST","PITTSBURG","KS"]
["N360AV","Charter Company","Jet Aviation Flight Services, Inc.","112 Charles A. Lindbergh Drive","Teterboro Airport","Teterboro","NJ","N360AV","M3 INDUSTRIES LLC","660 S FIGUEROA ST STE 1888","LOS ANGELES","CA"]
["N360AV","Owner","M3 Industries, LLC","660 South Figueroa Street, Suite 1888",null,"Los Angeles","CA","N360AV","M3 INDUSTRIES LLC","660 S FIGUEROA ST STE 1888","LOS ANGELES","CA"]
["N458TB","Owner","M3 Aviation, LLC","7033 East Greenway Parkway, Suite 100",null,"Scottsdale","AZ","N458TB","M3 AVIATION LLC","7033 E GREENWAY PKWY STE 100","SCOTTSDALE","AZ"]
["N553CB","Certificate Holder","M & N Aviation, Inc.","P.O. Box 38098",null,"San Juan",null,"N553CB","N553CB LLC","BO SALDINERA","DORADO","PR"]
["N553CB","Owner","N553CB, LLC","120 Carr. 693",null,"Dorado",null,"N553CB","N553CB LLC","BO SALDINERA","DORADO","PR"]
["N96AD","Owner","Altair Advanced Industries, Inc.","1680 West Bakerfield Road",null,"Bellingham","WA","N96AD","ALTAIR ADVANCED INDUSTRIES INC","1680 W BAKERVIEW RD","BELLINGHAM","WA"]
["N650DH","Operator","Drury Development Corporation","13075 Manchester Road #200",null,"Des Peres","MO","N650DH","DRURY DEVELOPMENT CORP","13075 MANCHESTER RD STE 200","SAINT LOUIS","MO"]
["N650DH","Owner","Drury Development Corporation","13075 Manchester Road #200",null,"Des Peres","MO","N650DH","DRURY DEVELOPMENT CORP","13075 MANCHESTER RD STE 200","SAINT LOUIS","MO"]
["N637SF","Operator","Sanderson Farms, Inc.","P.O. Box 988","127 Flynt Road","Laurel","MS","N637SF","SANDERSON FARMS INC","127 FLYNT RD","LAUREL","MS"]
["N637SF","Owner","Sanderson Farms, Inc.","P.O. Box 988","127 Flynt Road","Laurel","MS","N637SF","SANDERSON FARMS INC","127 FLYNT RD","LAUREL","MS"]
["N67KP","Owner","Marivest Support Services, LLC","1500 East 27th Terrace",null,"Pittsburg","KS","N67KP","MARIVEST SUPPORT SERVICES LLC","1500 E 27TH TER","PITTSBURG","KS"]
["N581SF","Owner","FKM Enterprises, LLC","29 Pine Rd.",null,"St. Paul","MN","N581SF","FKM ENTERPRISES LLC","29 PINE RD","NORTH OAKS","MN"]
["N150GA","Owner","Gulfstream Leasing, LLC","500 Gulfstream Road, Mail B-06",null,"Savannah","GA","N150GA","GULFSTREAM LEASING LLC","M/S B-16","SAVANNAH","GA"]
["N901SS","Additional Company/Contact","Ardenbrook, Inc.","4725 Thornton Avenue",null,"Fremont","CA","N901SS","TWO STAR MARITIME LLC","4725 THORNTON AVE","FREMONT","CA"]
["N901SS","Owner","Two Star Maritime, LLC","4725 Thornton Avenue",null,"Fremont","CA","N901SS","TWO STAR MARITIME LLC","4725 THORNTON AVE","FREMONT","CA"]
["N546MM","Lessee","Excel Group Services, Inc.","8641 United Plaza Boulevard, Suite 102",null,"Baton Rouge","LA","N546MM","IES LEASING LLC","8641 UNITED PLAZA BLVD STE 102","BATON ROUGE","LA"]
["N546MM","Owner","IES Leasing, LLC","8641 United Plaza Boulevard, Suite 102",null,"Baton Rouge","LA","N546MM","IES LEASING LLC","8641 UNITED PLAZA BLVD STE 102","BATON ROUGE","LA"]
["N469DM","Co-Owner","D&I Transportation, LLC","2694 W. Oxford Loop, Suite 150",null,"Oxford","MS","N469DM","D&I TRANSPORTATION LLC","333 W FRANKLIN ST","TUPELO","MS"]
["N469DM","Co-Owner","NAC Flight Service, LLC","P.O. Box 2387",null,"Madison","MS","N469DM","D&I TRANSPORTATION LLC","333 W FRANKLIN ST","TUPELO","MS"]
["N10RZ","Owner","The Peregrine Leasing Trust","7229 South Alton Way",null,"Centennial","CO","N10RZ","PEREGRINE FALCON LLC TRUSTEE","6225 N MEEKER PL STE 100","BOISE","ID"]
["N175MG","Owner","Merlone Geier Management, LLC","425 California Street, 11th Floor",null,"San Francisco","CA","N175MG","MERLONE GEIER MANAGEMENT LLC","425 CALIFORNIA ST FL 11","SAN FRANCISCO","CA"]
["N375AB","Owner","Awaiting Documentation",null,null,null,null,"N375AB","ALPHA BRAVO AVIATION LLC","2895 W CAPOVILLA AVE STE 140","LAS VEGAS","NV"]
["N101RX","Owner","Teall Capital Partners, LLC","1001 West Fourth Street",null,"Winston-Salem","NC","N101RX","TEALL CAPITAL PARTNERS LLC","PO BOX 21528","WINSTON SALEM","NC"]
["N802RR","Owner","Sage Air, LLC","215 South State Street, Suite 1200",null,"Salt Lake City","UT","N802RR","SAGE AIR LLC","215 S STATE ST STE 1200","SALT LAKE CITY","UT"]
["N365SS","Co-Owner","Anderson, Glenn W.",null,null,null,"TX","N365SS","STALLINGS ROBERT W","5242 BUENA VISTA DR","FRISCO","TX"]
["N365SS","Co-Owner","Reis, James R.",null,null,null,"TX","N365SS","STALLINGS ROBERT W","5242 BUENA VISTA DR","FRISCO","TX"]
["N365SS","Co-Owner","Stallings, Robert W.","5242 Buena Vista Drive",null,"Frisco","TX","N365SS","STALLINGS ROBERT W","5242 BUENA VISTA DR","FRISCO","TX"]
["N365SS","Operator","GAINSCO, Inc.","P.O. Box 199023","3333 Lee Parkway, Suite 1200","Dallas","TX","N365SS","STALLINGS ROBERT W","5242 BUENA VISTA DR","FRISCO","TX"]
["N480JJ","Owner","Jimmie Johnson Racing II, Inc.","4325 Papa Joe Hendrick Boulevard",null,"Charlotte","NC","N480JJ","JIMMIE JOHNSON RACING II INC","370 E MAPLE RD FL 4","BIRMINGHAM","MI"]
["N885TC","Operator","TransCanada USA Pipeline Services, LLC","700 Louisiana Street, Suite 700",null,"Houston","TX","N885TC","BANK OF UTAH TRUSTEE","50 S 200 E STE 110","SALT LAKE CITY","UT"]
["N885TC","Owner","TransCanada USA Pipeline Services, LLC","700 Louisiana Street, Suite 700",null,"Houston","TX","N885TC","BANK OF UTAH TRUSTEE","50 S 200 E STE 110","SALT LAKE CITY","UT"]
["N819AM","Aircraft Management Company","Gama Aviation, LLC","Two Corporate Drive, Suite 1050",null,"Shelton","CT","N819AM","N819AM LLC","2600 CAMINO RAMON STE 201","SAN RAMON","CA"]
["N819AM","Owner","N819AM, LLC","P.O. Box 640","2600 Camino Ramon, Suite 201","San Ramon","CA","N819AM","N819AM LLC","2600 CAMINO RAMON STE 201","SAN RAMON","CA"]
["N3FS","Owner","DDMR, LLC","11201 Corporate Circle North, Suite 120",null,"St Petersburg","FL","N3FS","DDMR LLC","11201 CORPORATE CIR N STE 120","SAINT PETERSBURG","FL"]
["N719KX","Co-Owner","GJK, LLC","19054 North 97th Place",null,"Scottsdale","AZ","N719KX","MARTIS HOLDINGS LLC","19054 N 97TH PL","SCOTTSDALE","AZ"]
["N719KX","Co-Owner","Martis Holdings, LLC","19155 North 107th Street",null,"Scottsdale","AZ","N719KX","MARTIS HOLDINGS LLC","19054 N 97TH PL","SCOTTSDALE","AZ"]
["N15PV","Owner","Terrible Herbst, Inc.","5195 Las Vegas Boulevard South",null,"Las Vegas","NV","N15PV","TERRIBLE HERBST INC","5195 LAS VEGAS BLVD S","LAS VEGAS","NV"]
["N636SF","Operator","Sanderson Farms, Inc.","P.O. Box 988","127 Flynt Road","Laurel","MS","N636SF","SANDERSON FARMS INC","127 FLYNT RD","LAUREL","MS"]
["N636SF","Owner","Sanderson Farms, Inc.","P.O. Box 988","127 Flynt Road","Laurel","MS","N636SF","SANDERSON FARMS INC","127 FLYNT RD","LAUREL","MS"]
["N700FA","Flight Department","Frank's Management Company, LLC","6132 Charles Lindberg Drive",null,"Shreveport","LA","N700FA","JET FLIGHT LLC","1312 N HEARNE AVE","SHREVEPORT","LA"]
["N700FA","Owner","Jet Flight, LLC","P.O. Box 7665","1312 North Hearne Avenue","Shreveport","LA","N700FA","JET FLIGHT LLC","1312 N HEARNE AVE","SHREVEPORT","LA"]
["N80WB","Owner","WB ATS LLC","1455 SW Broadway, Suite 1700",null,"Portland","OR","N80WB","WB ATS LLC","1455 SW BROADWAY STE 1700","PORTLAND","OR"]
["N57RG","Operator","Soliq, SA de CV","Paseo De La Reforma 1240, Col. Lomas De Chapultepe",null,"Mexico",null,"N57RG","BANK OF UTAH TRUSTEE","50 SOUTH 200 EAST STE 110","SALT LAKE CITY","UT"]
["N57RG","Owner","Soliq, SA de CV","Paseo De La Reforma 1240, Col. Lomas De Chapultepe",null,"Mexico",null,"N57RG","BANK OF UTAH TRUSTEE","50 SOUTH 200 EAST STE 110","SALT LAKE CITY","UT"]
["N22G","Operator","Goodyear Flight Department","5400 Lauby Road","Akron-Canton Regional Airport","North Canton","OH","N22G","GOODYEAR TIRE & RUBBER CO","200 E INNOVATION WAY","AKRON","OH"]
["N22G","Owner","The Goodyear Tire & Rubber Company","200 Innovation Way",null,"Akron","OH","N22G","GOODYEAR TIRE & RUBBER CO","200 E INNOVATION WAY","AKRON","OH"]
["N285GA","Aircraft Management Company","Northern Jet Management","P.O. Box 888380","5500 44th Street SE, Building 203","Grand Rapids","MI","N285GA","PFC HOLDINGS LLC","16180 HIGHLAND DR","SPRING LAKE","MI"]
["N285GA","Owner","PFC Holdings, LLC","320 Ease Circle Drive",null,"North Muskegon","MI","N285GA","PFC HOLDINGS LLC","16180 HIGHLAND DR","SPRING LAKE","MI"]
["N1924D","Operator","A. Duie Pyle, Inc.","P.O. Box 564","650 Westtown Road","West Chester","PA","N1924D","N995DP LLC","204 QUIGLEY BLVD","NEW CASTLE","DE"]
["N1924D","Owner","N995DP, LLC","204 Quigley Boulevard",null,"New Castle","DE","N1924D","N995DP LLC","204 QUIGLEY BLVD","NEW CASTLE","DE"]
["N318KS","Owner","MMTH Air, LLC","601 East Wyandotte Street",null,"Meriden","KS","N318KS","MMTH AIR LLC","601 E WYANDOTTE ST","MERIDEN","KS"]
["N24G","Operator","Goodyear Flight Department","5400 Lauby Road","Akron-Canton Regional Airport","North Canton","OH","N24G","GOODYEAR TIRE & RUBBER CO","200 INNOVATION WAY","AKRON","OH"]
["N24G","Owner","Goodyear Tire & Rubber Company","200 Innovation Way",null,"Akron","OH","N24G","GOODYEAR TIRE & RUBBER CO","200 INNOVATION WAY","AKRON","OH"]
["N27KB","Owner","3 KB Investments, LLC","P.O. Box 395","730 S. Main","Jacksboro","TX","N27KB","3KB INVESTMENTS LLC","180 W 13TH ST","WILMINGTON","DE"]
["N557GA","Operator","Gestiones Ambair, Ltd.","Av. John F. Kennedy Esq. Av. Abraham Lincoln 1056","Edificio Ambair Piso 6","Santo Domingo",null,"N557GA","BANK OF UTAH TRUSTEE","50 SOUTH 200 EAST STE 110","SALT LAKE CITY","UT"]
["N557GA","Owner","Gestiones Ambair, Ltd.","Av. John F. Kennedy Esq. Av. Abraham Lincoln 1056","Edificio Ambair Piso 6","Santo Domingo",null,"N557GA","BANK OF UTAH TRUSTEE","50 SOUTH 200 EAST STE 110","SALT LAKE CITY","UT"]
["N935GB","Owner","Schneider National, Inc.","3101 South Packerland Drive",null,"Green Bay","WI","N935GB","SCHNEIDER NATIONAL INC","3101 PACKERLAND DR","GREEN BAY","WI"]
["N20TW","Fractional Owner","A4 Air, LLC","15506 Hwy 5, Suite J",null,"Cabot","AR","N20TW","JET IT LLC","125 S ELM STE 300","GREENSBORO","NC"]
["N20TW","Fractional Owner","Franklin Transportation Group, LLC","900 Kriner Road, Suite 1",null,"Chambersburg","PA","N20TW","JET IT LLC","125 S ELM STE 300","GREENSBORO","NC"]
["N20TW","Fractional Owner","GML Development, Inc.","9405 Earpsboro Chamblee Road",null,"Wendell","NC","N20TW","JET IT LLC","125 S ELM STE 300","GREENSBORO","NC"]
["N20TW","Fractional Owner","JS Aviation, LLC","800 North Wisconsin Street",null,"Elkhorn","WI","N20TW","JET IT LLC","125 S ELM STE 300","GREENSBORO","NC"]
["N20TW","Fractional Owner","Knysna Ventures, LLC","2185 Alameda Diablo",null,"Diablo","CA","N20TW","JET IT LLC","125 S ELM STE 300","GREENSBORO","NC"]
["N20TW","Fractional Owner","Lovo Holdings, LLC","712 Fifth Avenue, 14th Floor",null,"New York","NY","N20TW","JET IT LLC","125 S ELM STE 300","GREENSBORO","NC"]
["N20TW","Fractional Owner","SJ Aviation, LLC","2928 Habersham Rd NW",null,"Atlanta","GA","N20TW","JET IT LLC","125 S ELM STE 300","GREENSBORO","NC"]
["N20TW","Fractional Owner","Vanny & RP, LLC","P.O. Box 610",null,"Whitefish","MT","N20TW","JET IT LLC","125 S ELM STE 300","GREENSBORO","NC"]
["N20TW","Operator","Jet It LLC","101 South Elm Street, Suite 75",null,"Greensboro","NC","N20TW","JET IT LLC","125 S ELM STE 300","GREENSBORO","NC"]
["N20TW","Program Holder","Jet It LLC","101 South Elm Street, Suite 75",null,"Greensboro","NC","N20TW","JET IT LLC","125 S ELM STE 300","GREENSBORO","NC"]
["N639SF","Operator","Sanderson Farms, Inc.","P.O. Box 988","127 Flynt Road","Laurel","MS","N639SF","SANDERSON FARMS INC","127 FLYNT RD","LAUREL","MS"]
["N639SF","Owner","Sanderson Farms, Inc.","P.O. Box 988","127 Flynt Road","Laurel","MS","N639SF","SANDERSON FARMS INC","127 FLYNT RD","LAUREL","MS"]
["N876GH","Operator","Continental Baking Company, Ltd.","43 Half Way Tree Rd.",null,"Kingston",null,"N876GH","TVPX ARS INC TRUSTEE","39 E EAGLE RIDGE DR STE 201","NORTH SALT LAKE","UT"]
["N876GH","Owner","Continental Baking Company, Ltd.","43 Half Way Tree Rd.",null,"Kingston",null,"N876GH","TVPX ARS INC TRUSTEE","39 E EAGLE RIDGE DR STE 201","NORTH SALT LAKE","UT"]
["N922LR","Aircraft Management Company","Jet Linx Aviation, LLC","13030 Pierce Street, Suite 100",null,"Omaha","NE","N922LR","CAPITAL HOLDINGS 210 LLC","117 SALEM CHURCH RD","NEWARK","DE"]
["N922LR","Owner","Capital Holdings 210, LLC","900 Circle 75 Parkway, Suite 1660",null,"Atlanta","GA","N922LR","CAPITAL HOLDINGS 210 LLC","117 SALEM CHURCH RD","NEWARK","DE"]
["N730GA","Co-Owner","BTI Aviation, LLC","One South Nevada Avenue, Suite 200",null,"Colorado Springs","CO","N730GA","BTI AVIATION LLC","1 S NEVADA AVE STE 200","COLORADO SPRINGS","CO"]
["N730GA","Co-Owner","Snowy Range Aviation, LLC","One South Nevada Avenue, Suite 200",null,"Colorado Springs","CO","N730GA","BTI AVIATION LLC","1 S NEVADA AVE STE 200","COLORADO SPRINGS","CO"]
["N13WF","Flight Department","Flowers Foods, Inc.","3507 Flowers Hangar Road",null,"Thomasville","GA","N13WF","TRUIST EQUIPMENT FINANCE CORP","245 PEACHTREE CENTER AVE NE","ATLANTA","GA"]
["N13WF","Owner","Truist Equipment Finance Corp.","245 Peachtree Center Avenue NE, Floor 17",null,"Atlanta","GA","N13WF","TRUIST EQUIPMENT FINANCE CORP","245 PEACHTREE CENTER AVE NE","ATLANTA","GA"]
["N390KX","Owner","Knight Air, LLC","20002 North 19th Avenue",null,"Phoenix","AZ","N390KX","KNIGHT AIR LLC","20002 NORTH 19TH AVE","PHOENIX","AZ"]
["N508RP","Operator","Silver Point Capital, LP","2 Greenwich Plaza",null,"Greenwich","CT","N508RP","TVPX AIRCRAFT SOLUTIONS INC TRUSTEE","39 E EAGLE RIDGE DR STE 201","NORTH SALT LAKE","UT"]
["N508RP","Owner","Silver Point Capital, LP","2 Greenwich Plaza",null,"Greenwich","CT","N508RP","TVPX AIRCRAFT SOLUTIONS INC TRUSTEE","39 E EAGLE RIDGE DR STE 201","NORTH SALT LAKE","UT"]
["N503RP","Flight Department","Penske Jet, Inc.","6340 Highland Road",null,"Waterford","MI","N503RP","PTS AS LLC","2675 MORGANTOWN RD","READING","PA"]
["N503RP","Owner","Omicron Transportation, Inc.","P.O. Box 563","2675 Morgantown Raod","Reading","PA","N503RP","PTS AS LLC","2675 MORGANTOWN RD","READING","PA"]
["N501RP","Owner","The Huntington National Bank","106 South Main Street",null,"Akron","OH","N501RP","PTS AS LLC","2675 MORGANTOWN RD","READING","PA"]
["N116NC","Owner","Benson Legacy, LLC","7120 Pointe Inverness Way",null,"Ft. Wayne","IN","N116NC","BENSON LEGACY LLC","7120 POINTE INVERNESS WAY","FORT WAYNE","IN"]
["N151PW","Owner","Talon Tactical Management, LLC","6929 North Hayden Road C4-503",null,"Scottsdale","AZ","N151PW","TALON TACTICAL MANAGEMENT LLC","9 E LOOCKERMAN ST STE 311","DOVER","DE"]
["N963CH","Owner","Golden Gate International Corp., LLC",null,null,"Panama",null,"N963CH","BANK OF UTAH TRUSTEE","50 SOUTH 200 EAST STE 110","SALT LAKE CITY","UT"]
["N622SF","Operator","Sanderson Farms, Inc.","P.O. Box 988","127 Flynt Road","Laurel","MS","N622SF","SANDERSON FARMS INC","127 FLYNT RD","LAUREL","MS"]
["N622SF","Owner","Sanderson Farms, Inc.","P.O. Box 988","127 Flynt Road","Laurel","MS","N622SF","SANDERSON FARMS INC","127 FLYNT RD","LAUREL","MS"]
["N651DH","Operator","Drury Development Corporation","13075 Manchester Road #200",null,"Des Peres","MO","N651DH","DRURY DEVELOPMENT CORP","721 EMERSON RD STE 200","SAINT LOUIS","MO"]
["N651DH","Owner","Drury Development Corporation","13075 Manchester Road #200",null,"Des Peres","MO","N651DH","DRURY DEVELOPMENT CORP","721 EMERSON RD STE 200","SAINT LOUIS","MO"]
["N23EW","Owner","Encore Wire Corporation","P.0. 1149","1329 Millwood Road","McKinney","TX","N23EW","ENCORE WIRE CORP","1329 MILLWOOD RD","MCKINNEY","TX"]
["N123QU","Operator","Dorado Aviation, LLC","100 Carretera 165, Suite 508",null,"Guaynabo",null,"N123QU","DORADO AVIATION LLC","100 CAR 165 STE 508 CENTRO INTL","GUAYNABO","PR"]
["N123QU","Owner","Dorado Aviation, LLC","100 Carretera 165, Suite 508",null,"Guaynabo",null,"N123QU","DORADO AVIATION LLC","100 CAR 165 STE 508 CENTRO INTL","GUAYNABO","PR"]
["N6950C","Aircraft Management Company","Keystone Aviation, LLC","303 North 2370 West","Salt Lake City International Airport","Salt Lake City","UT","N6950C","MILLOAKS LLC","1978 S WEST TEMPLE","SALT LAKE CITY","UT"]
["N6950C","Owner","Milloaks, LLC","1978 South West Temple",null,"Salt Lake City","UT","N6950C","MILLOAKS LLC","1978 S WEST TEMPLE","SALT LAKE CITY","UT"]
["N12WF","Flight Department","Flowers Foods, Inc.","3507 Flowers Hangar Road",null,"Thomasville","GA","N12WF","PNC EQUIPMENT FINANCE LLC","4355 W EMERALD ST STE 100","BOISE","ID"]
["N12WF","Owner","PNC Equipment Finance, LLC","4355 Emerald Street, Suite 100",null,"Boise","ID","N12WF","PNC EQUIPMENT FINANCE LLC","4355 W EMERALD ST STE 100","BOISE","ID"]
["N1ED","Flight Department","DeBartolo Corporation","1453 Youngstown Kingsville Road NE, Hgr.2 North","Youngstown Municipal Airport","Vienna","OH","N1ED","DBCT LLC","7620 MARKET ST","YOUNGSTOWN","OH"]
["N1ED","Owner","DBCT, LLC","7620 Market Street",null,"Youngstown","OH","N1ED","DBCT LLC","7620 MARKET ST","YOUNGSTOWN","OH"]

{"sheet":"Sheet1","index":1,"n_rows":1485,"n_cols":7,"rows_kept":1485,"cut":false,"hidden":false,"merged":[]}
[]
[]
[]
[]
[]
[]
[]
[]
[]
[]
[]
["N100PB (1978 PIPER AEROSTAR 601P)"]
["N100WE (RAYTHEON AIRCRAFT COMPANY 390)"]
["N101DG (1986 BELL 206B)"]
["N101RE (2017 BOMBARDIER INC CL-600-2B16(CL-604))"]
["N102ES (2000 LEARJET INC 45)"]
["N102GS (2019 TEXTRON AVIATION INC C90GTI)"]
["N102XX (1992 AERO L-39 ALBATROS)"]
["N103ZZ (2008 BOMBARDIER INC BD-700-1A11)"]
["N104BY (2010 HAWKER BEECHCRAFT CORP B200GT)"]
["N104LN (2006 EUROCOPTER AS 350 B3)"]
["N105XX (1992 AERO VODOCHODY L-39MS)"]
["N106PA (2007 HAWKER BEECHCRAFT CORP B200GT)"]
["N106XX (1992 AERO VODOCHODY L-39MS)"]
["N1073W (1976 BELL 214B)"]
["N107RG (2008 DASSAULT AVIATION FALCON 2000EX)"]
["N109QS (2013 BOMBARDIER INC BD-700-1A11)"]
["N10GF (2009 HAWKER BEECHCRAFT CORP C90GTI)"]
["N10TF (2012 AIR TRACTOR INC AT-602)"]
["N10XG (2008 GULFSTREAM AEROSPACE GV-SP (G550))"]
["N110GD (2005 RAYTHEON AIRCRAFT COMPANY HAWKER 800XP)"]
["N110HA (2001 ISRAEL AIRCRAFT INDUSTRIES GULFSTREAM 200)"]
["N110TP (2006 CESSNA 550)"]
["N112US (1999 AIRBUS INDUSTRIE A320-214)"]
["N1130T (CESSNA 172S)"]
["N114W (2007 CESSNA 525A)"]
["N115AJ (1981 DORNIER GMBH ALPHA-JET)"]
["N115LA (2004 AIR TRACTOR INC AT-402B)"]
["N115U (1944 DOUGLAS DC3C)"]
["N116FE (2008 ISRAEL AEROSPACE INDUSTRIESLTD G200)"]
["N117PC (BELL HELICOPTER TEXTRON CANADA 407)"]
["N119AA (2006 AGUSTA SPA A119)"]
["N11WK (2014 CIRRUS DESIGN CORP SR22T)"]
["N1213B (TEXTRON AVIATION INC B300)"]
["N1219D (2007 CESSNA 172S)"]
["N121AP (1994 GULFSTREAM AEROSPACE G-IV)"]
["N121LJ (1996 LEARJET INC 31A)"]
["N124MR (2017 CIRRUS DESIGN CORP SF50)"]
["N125JF (2008 ISRAEL AIRCRAFT INDUSTRIES GULFSTREAM 200)"]
["N1265E (2006 CESSNA 172S)"]
["N127EC (EMBRAER EMB-145LR)"]
["N127GG (1997 GULFSTREAM AEROSPACE G-V)"]
["N127RG (2000 CESSNA 550)"]
["N130GM (2009 EUROCOPTER EC 130 B4)"]
["N130GV (2001 GULFSTREAM AEROSPACE G-V)"]
["N131LK (2010 GULFSTREAM AEROSPACE GV-SP (G550))"]
["N132LJ (1977 GATES LEAR JET 36A)"]
["N135MW (2009 EUROCOPTER DEUTSCHLAND GMBH EC 135 P2+)"]
["N136DU (2007 EUROCOPTER DEUTSCHLAND GMBH EC 135 T2+)"]
["N1375F (2018 AIR TRACTOR INC AT-402)"]
["N139CH (2006 AGUSTA SPA AW139)"]
["N139EX (2019 LEONARDO SPA AW139)"]
["N139HC (2014 AGUSTAWESTLAND SPA AW139)"]
["N139LR (1997 LEARJET INC 31A)"]
["N13MX (2012 BELL HELICOPTER TEXTRON CANADA 407)"]
["N14004 (1984 AEROFAB INC LAKE LA-4-250)"]
["N1412R (PIPER AIRCRAFT INC PA46-500TP)"]
["N14163 (1934 STINSON SR-5A)"]
["N141NB (1988 CANADAIR LTD CL-600-2B16)"]
["N142GZ (2015 EMBRAER SA EMB-550)"]
["N143LJ (GATES LEARJET CORP 55C)"]
["N144HA (1976 HILLER UH-12E)"]
["N144SL (GRUMMAN G-44)"]
["N1454H (2014 GULFSTREAM AEROSPACE GVI (G650ER))"]
["N145HM (2017 AIRBUS HELICOPTERS DEUTSCHLAND MBB-BK 117 D-2)"]
["N145LL (2012 EUROCOPTER DEUTSCHLAND GMBH MBB-BK 117 C-2)"]
["N145SR (2010 EUROCOPTER DEUTSCHLAND GMBH MBB-BK 117 C-2)"]
["N147BJ (1997 RAYTHEON AIRCRAFT COMPANY 400A)"]
["N147QS (2014 BOMBARDIER INC BD-700-1A10)"]
["N148FJ (1994 DASSAULT AVIATION MYSTERE FALCON 900)"]
["N1508K (2010 CIRRUS DESIGN CORP SR22T)"]
["N150CT (2006 ISRAEL AIRCRAFT INDUSTRIES GULFSTREAM G150)",{"$f":"TRIM(LEFT(A82,SEARCH(\" \",A82)))","v":"N150CT"},{"$f":"MATCH(B82,'[1]JETNET Data'!$D:$D,0)","v":11}]
["N150GF (2006 RAYTHEON AIRCRAFT COMPANY HAWKER 850XP)"]
["N153QS (2013 VIKING AIR LIMITED DHC-6-400)"]
["N1540C (2005 CIRRUS DESIGN CORP SR22)"]
["N155LJ (2004 EUROCOPTER EC 155 B1)"]
["N155MW (1993 BOMBARDIER INC CL-600-2B19)"]
["N157HC (2012 HAWKER BEECHCRAFT CORP B200GT)"]
["N159CS (2009 CIRRUS DESIGN CORP SR22)"]
["N15MX (2012 BELL HELICOPTER TEXTRON CANADA 407)"]
["N15TF (2015 CESSNA 680)"]
["N162KQ (2015 QUEST AIRCRAFT COMPANY LLC KODIAK 100)"]
["N162MW (2000 EUROCOPTER DEUTSCHLAND GMBH EC135P1)"]
["N163ET (1981 CANADAIR LTD CL-600 CHALLENGER)"]
["N163RL (BELL 407)"]
["N164RL (1997 BELL 407)"]
["N164TS (BOEING 727-227)"]
["N164WS (RAYTHEON AIRCRAFT COMPANY C90A)"]
["N165TG (1997 RAYTHEON AIRCRAFT COMPANY B300)"]
["N165TS (BOEING 727-223)"]
["N167AD (2010 GULFSTREAM AEROSPACE GIV-X (G450))"]
["N167B (1944 DOUGLAS A-26B)"]
["N167RL (1997 BELL 407)"]
["N169SD (2013 GULFSTREAM AEROSPACE GV-SP (G550))"]
["N16AQ (BOEING 737-476)"]
["N16SA (2018 GULFSTREAM AEROSPACE GVI (G650ER))"]
["N16SM (2007 HAWKER BEECHCRAFT CORP HAWKER 900XP)"]
["N16ZM (2016 GULFSTREAM AEROSPACE CORP GVI (G650))"]
["N1705C (2018 TEXTRON AVIATION INC 680A)"]
["N1715L (2007 CESSNA T206H)"]
["N1723L (2007 CESSNA 172S)"]
["N176AL (1995 BELL 206-L4)"]
["N176HS (2018 BOMBARDIER INC BD-700-1A10)"]
["N176TG (LEARJET INC 45)"]
["N176TL (1990 BRITISH AEROSPACE BAE 125-800A)"]
["N179AL (2018 PILATUS AIRCRAFT LTD PC-12/47E)"]
["N179KC (2017 BOMBARDIER INC BD-100-1A10)"]
["N179MS (2008 PIAGGIO AERO INDUSTRIES SPA P180)"]
["N179RR (2012 ROBINSON HELICOPTER CO R66)"]
["N179WC (2005 CESSNA 525B)"]
["N17TV (2003 RAYTHEON AIRCRAFT COMPANY HAWKER 800XP)"]
["N180VG (2001 DASSAULT AVIATION FALCON 2000)"]
["N180XR (1954 CESSNA 180)"]
["N1818C (2009 GULFSTREAM AEROSPACE GIV-X (G450))"]
["N181KQ (2016 QUEST AIRCRAFT COMPANY LLC KODIAK 100)"]
["N181PC (2010 CESSNA T206H)"]
["N1821U (2001 BOMBARDIER INC CL-600-2B16(CL-604))"]
["N183CW (2019 TEXTRON AVIATION INC 525C)"]
["N186NX (2009 PILATUS AIRCRAFT LTD PC-12/47E)"]
["N1872 (2017 GULFSTREAM AEROSPACE GVI (G650ER))"]
["N1878C (2015 LEARJET INC 45)"]
["N187AJ (2016 CIRRUS DESIGN CORP SR22)"]
["N188HT (1979 CESSNA T188C)"]
["N188TL (2008 CESSNA 680)"]
["N188W (2017 GULFSTREAM AEROSPACE CORP GVI (G650))"]
["N18B (2019 GULFSTREAM AEROSPACE CORP GVII-G500)"]
["N18CZ (2016 BOMBARDIER INC BD-700-1A10)"]
["N18UD (2015 DASSAULT FALCON 900 EX)"]
["N1900A (ISRAEL AIRCRAFT INDUSTRIES 1125 WESTWIND ASTRA)"]
["N191AQ (BOEING 737-322)"]
["N191GH (1996 RAYTHEON CORPORATE JETS INC HAWKER 800XP)"]
["N191MJ (1990 SAAB-SCANIA SAAB 340B)"]
["N191ST (2006 DASSAULT AVIATION FALCON 7X)"]
["N191WS (2019 HONDA AIRCRAFT CO LLC HA-420)"]
["N192WS (2019 HONDA AIRCRAFT CO LLC HA-420)"]
["N193AM (2010 BELL HELICOPTER TEXTRON CANADA 407)"]
["N193DP (1942 DOUGLAS DC3C)"]
["N193WS (2019 HONDA AIRCRAFT CO LLC HA-420)"]
["N194CJ (SAAB-SCANIA SAAB 340B)"]
["N194W (2013 DASSAULT AVIATION FALCON 7X)"]
["N1955M (2014 BOMBARDIER INC BD-700-1A10)"]
["N195SV (2017 DASSAULT AVIATION FALCON 900EX)"]
["N1967M (2017 GULFSTREAM AEROSPACE GV-SP (G550))"]
["N1969M (2012 BOMBARDIER INC CL-600-2B16)"]
["N196SL (2011 PIAGGIO AERO INDUSTRIES SPA P180)"]
["N199GD (BOMBARDIER INC CL-600-2B16)"]
["N19SG (2011 EMBRAER SA EMB-500)"]
["N1NE (2006 BOMBARDIER INC BD-700-1A10)"]
["N1RP (2013 GULFSTREAM AEROSPACE GV-SP (G550))"]
["N1SG (2001 GULFSTREAM AEROSPACE G-V)"]
["N200LH (1992 CESSNA 650)"]
["N200LX (2018 DASSAULT AVIATION FALCON 2000EX)"]
["N200MC (1973 CESSNA 414)"]
["N2017F (2011 AIR TRACTOR INC AT-602)"]
["N201PA (1992 BELL 206L-3)"]
["N202SR (SAAB-SCANIA SAAB 340B)"]
["N2033 (BRITISH AEROSPACE BAE 125 SERIES 800A)"]
["N203NC (1990 DASSAULT AVIATION MYSTERE-FALCON 50)"]
["N203PA (1991 BELL 206L-3)"]
["N204CJ (SAAB-SCANIA SAAB 340B)"]
["N204RH (BOEING 737-84P)"]
["N206GK (1981 CESSNA U206G)"]
["N206PW (1972 GARLICK HELICOPTERS INC OH-58A+)"]
["N208KA (2013 CESSNA 208B)"]
["N2106A (BOEING 737-55S)"]
["N210CJ (1990 SAAB-SCANIA SAAB 340B)"]
["N210FR (2011 AIRBUS A320-214)"]
["N2112F (PIPER PA-44-180)"]
["N211FR (2011 AIRBUS A320-214)"]
["N21221 (1976 BELL 212)"]
["N21225 (1981 BELL 212)"]
["N21240 (1976 BELL 212)"]
["N212VZ (2014 GULFSTREAM AEROSPACE GIV-X (G450))"]
["N213FR (2011 AIRBUS A320-214)"]
["N213PC (2011 HAWKER BEECHCRAFT CORP 390)"]
["N213TG (2011 GULFSTREAM AEROSPACE GIV-X (G450))"]
["N214LJ (BELL 214B-1)"]
["N216FR (2011 AIRBUS A320-214)"]
["N216PJ (1981 BELL 214B)"]
["N216VV (2016 IAI LTD GULFSTREAM G280)"]
["N217AG (2001 BOMBARDIER INC CL-600-2C10)"]
["N217PJ (1979 BELL 214B)"]
["N218RH (BOEING 737-84P)"]
["N21UM (1982 AEROSPATIALE AS350BA)"]
["N2208A (1978 PIPER PA-32RT-300)"]
["N220FR (2013 AIRBUS A320-214)"]
["N220GM (2007 PIPER AIRCRAFT INC PA-34-220T)"]
["N223AG (2001 BOMBARDIER INC CL-600-2C10)"]
["N22465 (2007 CESSNA 172S)"]
["N224AG (2001 BOMBARDIER INC CL-600-2C10)"]
["N224BH (2011 GULFSTREAM AEROSPACE GIV-X (G450))"]
["N225FD (2006 GULFSTREAM AEROSPACE GIV-X (G450))"]
["N225TJ (2015 CESSNA 525B)"]
["N227GV (2008 EMBRAER EMPRESA BRASILEIRA DE ERJ 190-100 ECJ)"]
["N2297W (1960 HILLER UH-12D)"]
["N229BP (2018 BOMBARDIER INC BD-100-1A10)"]
["N230SM (2001 CESSNA 750)"]
["N232G (2018 GULFSTREAM AEROSPACE GVI (G650ER))"]
["N232MC (2013 BOMBARDIER INC CL-600-2B16(CL-604))"]
["N234CZ (2007 CIRRUS DESIGN CORP SR22)"]
["N234JV (2010 AIRBUS HELICOPTERS AS 350B3)"]
["N234PH (1977 BELL 214B-1)"]
["N235QS (2018 BOMBARDIER INC CL-600-2B16)"]
["N236MJ (2005 GULFSTREAM AEROSPACE GV-SP (G550))"]
["N237BG (2017 TEXTRON AVIATION INC 680)"]
["N237VP (1993 CESSNA 560)"]
["N238SY (2018 CIRRUS DESIGN CORP SR22T)"]
["N240AT (BOEING 737-500)"]
["N2426 (LEARJET INC 45)"]
["N242KV (2008 CESSNA 525B)"]
["N243LR (2006 BOMBARDIER INC CL-600-2D24)"]
["N243PC (2015 GULFSTREAM AEROSPACE GIV-X (G450))"]
["N244BC (2007 BOMBARDIER INC BD-700-1A11)"]
["N2451V (1980 PIPER PA-36-375)"]
["N245PA (1998 EUROCOPTER DEUTSCHLAND GMBH EC135P1)"]
["N247MB (2012 BOMBARDIER INC CL-600-2B16)"]
["N248AC (BRITISH AEROSPACE AVRO 146-RJ85A)"]
["N248SL (2006 ISRAEL AIRCRAFT INDUSTRIES GULFSTREAM G150)",{"$f":"TRIM(LEFT(A228,SEARCH(\" \",A228)))","v":"N248SL"},{"$f":"MATCH(B228,'[1]JETNET Data'!$D:$D,0)","v":16}]
["N249LA (2016 AIR TRACTOR INC AT-502A)"]
["N24AC (2018 BOMBARDIER INC BD-100-1A10)"]
["N24EA (2002 BOMBARDIER INC CL-600-2C10)"]
["N250AF (2012 GULFSTREAM AEROSPACE GIV-X (G450))"]
["N251JX (2000 EMBRAER EMB-135LR)"]
["N2521B (2019 TEXTRON AVIATION INC G58)"]
["N252JX (2000 EMBRAER EMB-135LR)"]
["N253AE (SAAB-SCANIA SAAB 340B)"]
["N253AM (2008 EUROCOPTER DEUTSCHLAND GMBH EC 135 P2+)"]
["N253JX (2000 EMBRAER EMB-135LR)"]
["N253LF (2011 AMERICAN EUROCOPTER CORP AS350B3)"]
["N254JX (2000 EMBRAER EMB-135LR)"]
["N254SM (1981 BELL 214B-1)"]
["N255CC (1995 CANADAIR LTD CL-600-2B16)"]
["N255SC (2005 ROBINSON HELICOPTER R22 BETA)"]
["N256JX (2000 EMBRAER EMB-135LR)"]
["N257AM (2011 AMERICAN EUROCOPTER CORP AS350B3)"]
["N2582E (SIKORSKY S-76C)"]
["N2588T (2006 CESSNA T206H)"]
["N258AW (1996 RAYTHEON AIRCRAFT COMPANY 1900D)"]
["N258NV (2009 AIRBUS A320-214)"]
["N258TX (2005 RAYTHEON AIRCRAFT COMPANY 400A)"]
["N2598N (1984 PIPER PA 31P 350)"]
["N259FG (2012 IAI LTD GULFSTREAM G280)"]
["N259NV (2009 AIRBUS A320-214)"]
["N259RH (2001 RAYTHEON AIRCRAFT COMPANY HAWKER 800XP)"]
["N25HB (1996 RAYTHEON AIRCRAFT COMPANY C90A)"]
["N25MB (2015 TEXTRON AVIATION INC 525C)"]
["N260NV (2009 AIRBUS A320-214)"]
["N261NV (2009 AIRBUS A320-214)"]
["N262NV (2009 AIRBUS A320-214)"]
["N263PC (2018 TEXTRON AVIATION INC 680A)"]
["N264AC (1984 SHORT BROS. & HARLAND SD3-30)"]
["N265BR (BOEING 747-412F)"]
["N266AE (SAAB-SCANIA SAAB 340B)"]
["N266AV (BOMBARDIER INC CL-600-2B19)"]
["N266BC (2013 HAWKER BEECHCRAFT CORP C90GTI)"]
["N267RC (EUROCOPTER EC 130 B4)"]
["N268BC (2013 HAWKER BEECHCRAFT CORP C90GTI)"]
["N26NZ (2003 CESSNA T206H)"]
["N2708E (2012 BOEING 737-7LT)"]
["N270MF (1987 DASSAULT-BREGUET MYSTERE FALCON 200)"]
["N271LA (2012 AIR TRACTOR INC AT-802A)"]
["N2723C (EUROCOPTER EC 225 LP)"]
["N272HT (2002 CESSNA 525A)"]
["N272MH (2005 CESSNA 680)"]
["N27329 (1977 PIPER PA-31-350)"]
["N275DJ (1991 GULFSTREAM AEROSPACE G-IV)"]
["N276AL (BELL 206-L4)"]
["N276HS (2016 AGUSTAWESTLAND PHILADELPHIA AW139)"]
["N276MA (1998 CESSNA 208)"]
["N277MJ (SAAB-SCANIA SAAB 340B)"]
["N2785B (EUROCOPTER EC 225 LP)"]
["N278SB (2008 MOONEY AIRPLANE CO INC M20TN)"]
["N2790F (EUROCOPTER EC 225 LP)"]
["N279ME (2000 CESSNA 172S)"]
["N27AY (2007 BOMBARDIER INC CL-600-2B16)"]
["N27VQ (2005 CESSNA 525A)"]
["N280BA (2018 IAI LTD GULFSTREAM G280)"]
["N280GF (2015 IAI LTD GULFSTREAM G280)"]
["N280GR (2019 IAI LTD GULFSTREAM G280)"]
["N280KR (2014 IAI LTD GULFSTREAM G280)"]
["N281EB (2019 PILATUS AIRCRAFT LTD PC-24)"]
["N281EC (EMBRAER EMB-135LR)"]
["N281JL (1978 BELL 214B-1)"]
["N282GS (2011 EMBRAER S A EMB-505)"]
["N283AE (1992 SAAB-SCANIA SAAB 340B)"]
["N283DM (2008 BOMBARDIER INC BD-700-1A10)"]
["N283SK (2001 EMBRAER EMB-145LR)"]
["N285AC (BRITISH AEROSPACE AVRO 146-RJ85A)"]
["N285NG (2011 PILATUS AIRCRAFT LTD PC-12/47E)"]
["N285TT (1971 BELL 47G-4A)"]
["N286AE (SAAB-SCANIA SAAB 340B)"]
["N286RW (2014 IAI LTD GULFSTREAM G280)"]
["N287PC (1999 PILATUS PC-12/45)"]
["N28BC (2018 HONDA AIRCRAFT CO LLC HA-420)"]
["N28ZD (2006 BOMBARDIER INC BD-700-1A10)"]
["N290GS (2005 LEARJET INC 45)"]
["N292G (2001 PIPER PA-34-220T)"]
["N292NV (AIRBUS A320-214)"]
["N293NV (AIRBUS A320-214)"]
["N293PC (2014 BEECHCRAFT CORP G36)"]
["N293RC (2006 CESSNA 206H)"]
["N294NV (AIRBUS A320-214)"]
["N295NV (AIRBUS A320-214)"]
["N298AE (SAAB-SCANIA SAAB 340B)"]
["N298AL (2018 GULFSTREAM AEROSPACE GVI (G650ER))"]
["N298J (1978 BELLANCA 7GCAA)"]
["N298WA (2010 HAWKER BEECHCRAFT CORP G58)"]
["N29GP (2012 HAWKER BEECHCRAFT CORP HAWKER 900XP)"]
["N29GZ (1997 RAYTHEON AIRCRAFT COMPANY HAWKER 800XP)"]
["N2AA (2009 STEINER RUSSELL C LANCAIR LEGACY)"]
["N2N (2017 GULFSTREAM AEROSPACE CORP GVI (G650))"]
["N2QE (2014 BOMBARDIER INC BD-700-1A11)"]
["N300FB (2015 FRANALV S A DE C V EPIC LT)"]
["N301SE (2004 NEW PIPER AIRCRAFT INC PA-34-220T)"]
["N301SR (2011 BOEING 737-7JV)"]
["N302PE (2007 BOMBARDIER INC BD-100-1A10)"]
["N302SA (2019 BOEING 737-8)"]
["N304AE (1992 SAAB-SCANIA SAAB 340B)"]
["N304EE (2019 EMBRAER EXECUTIVE AIRCRAFT INC EMB-505)"]
["N305KN (2015 GULFSTREAM AEROSPACE GVI (G650ER))"]
["N305SH (2008 HAWKER BEECHCRAFT CORP 400A)"]
["N3063H (2013 AIR TRACTOR INC AT-502B)"]
["N3066L (2014 AIR TRACTOR INC AT-802A)"]
["N306EE (2019 EMBRAER EXECUTIVE AIRCRAFT INC EMB-505)"]
["N306LG (2015 AGUSTAWESTLAND PHILADELPHIA CO AW119MKII)"]
["N307AE (SAAB-SCANIA SAAB 340B)"]
["N30832 (2015 AIR TRACTOR INC AT-502B)"]
["N308KB (2015 IAI LTD GULFSTREAM G280)"]
["N308KG (2006 GULFSTREAM AEROSPACE GV-SP (G550))"]
["N3099 (2010 CESSNA 680)"]
["N309RL (1996 BELL 407)"]
["N30GD (1993 GULFSTREAM AEROSPACE G-IV)"]
["N311CG (2014 GULFSTREAM AEROSPACE CORP GVI (G650))"]
["N312AF (2013 BOMBARDIER INC BD-700-1A10)"]
["N312AT (2011 GULFSTREAM AEROSPACE GVI (G650ER))"]
["N312JC (2016 GULFSTREAM AEROSPACE GIV-X (G450))"]
["N312ZC (2018 SIKORSKY AIRCRAFT CORP S-92A)"]
["N312ZW (2017 GULFSTREAM AEROSPACE GVI (G650ER))"]
["N3133L (2008 HAWKER BEECHCRAFT CORP C90GTI)"]
["N313AE (SAAB-SCANIA SAAB 340B)"]
["N313AG (2019 GULFSTREAM AEROSPACE GVI (G650ER))"]
["N313SB (2019 BOEING 737-8)"]
["N315SA (2017 HONDA AIRCRAFT CO LLC HA-420)"]
["N317AE (SAAB-SCANIA SAAB 340B)"]
["N317M (2002 DASSAULT AVIATION FALCON 2000)"]
["N318LS (2016 GULFSTREAM AEROSPACE GVI (G650ER))"]
["N319PP (2015 GULFSTREAM AEROSPACE GV-SP (G550))"]
["N320AE (SAAB-SCANIA SAAB 340B)"]
["N320GX (2002 BOMBARDIER INC BD-700-1A10)"]
["N320LV (2001 ISRAEL AIRCRAFT INDUSTRIES GULFSTREAM 200)"]
["N323AE (SAAB-SCANIA SAAB 340B)"]
["N325AC (BRITISH AEROSPACE AVRO 146-RJ85A)"]
["N325LT (2014 TORRANCE AIRCRAFT MAINTENANCE EPIC LT)"]
["N326AZ (2005 GULFSTREAM AEROSPACE GIV-X (G450))"]
["N328MP (BOEING 767-31A)"]
["N329AE (SAAB-SCANIA SAAB 340B)"]
["N32PM (2015 CESSNA 525C)"]
["N32SG (RAYTHEON AIRCRAFT COMPANY 390)"]
["N3300 (2012 EMBRAER S A EMB-505)"]
["N332BA (2018 BOMBARDIER INC CL-600-2B16(CL-604))"]
["N3338 (2013 BOMBARDIER INC BD-700-1A11)"]
["N333GW (2014 GULFSTREAM AEROSPACE GVI (G650ER))"]
["N333WW (2005 RAYTHEON AIRCRAFT COMPANY C90A)"]
["N334CJ (SAAB-SCANIA SAAB 340B)"]
["N335DN (2018 AIRBUS A321-211)"]
["N336SA (1993 SAAB AIRCRAFT AB SAAB 340B)"]
["N337CM (2011 CESSNA 510)"]
["N338TM (2007 CESSNA 680)"]
["N339TA (2015 CESSNA 208B)"]
["N33BW (2001 CESSNA 525A)"]
["N341AM (2011 EUROCOPTER EC 130 B4)"]
["N341CJ (SAAB-SCANIA SAAB 340B)"]
["N342HP (2001 PIPER PA-34-220T)"]
["N342RX (2019 BOEING 737-8)"]
["N343DF (2015 BOMBARDIER INC BD-700-1A10)"]
["N343DN (2018 AIRBUS A321-211)"]
["N343RY (2019 BOEING 737-8)"]
["N346DN (2018 AIRBUS A321-211)"]
["N349AJ (2010 HAWKER BEECHCRAFT CORP 4000)"]
["N349AS (2015 AIR TRACTOR INC AT-802A)"]
["N349PA (1995 EUROCOPTER AS 350 B2)"]
["N34ZX (1997 PIPER AIRCRAFT INC PA-34-220T)"]
["N350CJ (SAAB-SCANIA SAAB 340B)"]
["N350DN (2018 AIRBUS A321-211)"]
["N350TN (BOMBARDIER INC BD-100-1A10)"]
["N350WH (2004 RAYTHEON AIRCRAFT COMPANY B300)"]
["N351SL (2018 SCALED COMPOSITES LLC 351)"]
["N351VJ (2015 BOMBARDIER INC BD-100-1A10)"]
["N3528D (2001 CESSNA 182T)"]
["N352VJ (2015 BOMBARDIER INC BD-100-1A10)"]
["N353SA (1993 SAAB AIRCRAFT AB SAAB 340B)"]
["N353VJ (2016 BOMBARDIER INC BD-100-1A10)"]
["N353WC (2002 CESSNA 750)"]
["N354VJ (2016 BOMBARDIER INC BD-100-1A10)"]
["N354WC (2002 CESSNA 750)"]
["N35572 (CESSNA 172R)"]
["N3558U (CESSNA 172R)"]
["N355EE (2019 EMBRAER EXECUTIVE AIRCRAFT INC EMB-505)"]
["N355VJ (2016 BOMBARDIER INC BD-100-1A10)"]
["N356VJ (2015 BOMBARDIER INC BD-100-1A10)"]
["N356WA (2013 CESSNA 680)"]
["N357VJ (2015 BOMBARDIER INC BD-100-1A10)"]
["N358AS (2015 AIR TRACTOR INC AT-802A)"]
["N358LM (2015 EMBRAER SA EMB-500)"]
["N359DN (2018 AIRBUS A321-211)"]
["N360CM (1992 BOEING 767-323)"]
["N360FR (2019 AIRBUS A320-251N)"]
["N361CL (1994 SAAB SAAB 340B)"]
["N361FR (2019 AIRBUS A320-251N)"]
["N362FR (2019 AIRBUS A320-251N)"]
["N362PX (1991 SAAB-SCANIA SAAB 340B)"]
["N363FR (2019 AIRBUS A320-251N)"]
["N364FR (2019 AIRBUS A320-251N)"]
["N3650Y (AIR TRACTOR INC AT-301)"]
["N365FR (2019 AIRBUS A320-251N)"]
["N365JA (2000 EUROCOPTER AS365N3)"]
["N365JL (1992 AEROSPATIALE AS 365 N2 DAUPHIN)"]
["N365SC (2019 IAI LTD GULFSTREAM G280)"]
["N366AC (1996 BRITISH AEROSPACE AVRO 146-RJ85A)"]
["N366AP (2009 BELL HELICOPTER TEXTRON CANADA 407)"]
["N366FR (2020 AIRBUS A320-251N)"]
["N366SR (1991 AEROSPATIALE AS 365 N2)"]
["N367FR (2020 AIRBUS A320-251N)"]
["N368JM (2014 BOMBARDIER INC BD-100-1A10)"]
["N36971 (RAYTHEON AIRCRAFT COMPANY G36)"]
["N36GV (2002 GULFSTREAM AEROSPACE G-V)"]
["N371BC (2002 BOEING 737-8EF)"]
["N371FP (1999 GULFSTREAM AEROSPACE G-IV)"]
["N3726 (1997 CANADAIR LTD CL-600-2B16)"]
["N372DN (2019 AIRBUS A321-211)"]
["N372SC (LEARJET INC 60)"]
["N373CH (2017 TEXTRON AVIATION INC 525B)"]
["N373DX (2019 AIRBUS A321-211)"]
["N373RL (1999 BELL 407)"]
["N3742B (2018 TEXTRON AVIATION INC B300)"]
["N374DX (2019 AIRBUS A321-211)"]
["N375AH (2018 AIRBUS HELICOPTERS DEUTSCHLAND MBB-BK 117 D-2)"]
["N375BC (2007 HAWKER BEECHCRAFT CORP HAWKER 850XP)"]
["N376AH (2018 AIRBUS HELICOPTERS DEUTSCHLAND MBB-BK 117 D-2)"]
["N376AS (2015 AIR TRACTOR INC AT-802A)"]
["N376PA (1978 BELL 212)"]
["N377AH (2019 AIRBUS HELICOPTERS DEUTSCHLAND MBB-BK 117 D-2)"]
["N377JM (1976 CESSNA 421C)"]
["N378AH (2019 AIRBUS HELICOPTERS DEUTSCHLAND MBB-BK 117 D-2)"]
["N378CL (SAAB AIRCRAFT AB SAAB 340B)"]
["N379AH (2019 AIRBUS HELICOPTERS DEUTSCHLAND MBB-BK 117 D-2)"]
["N379AS (2015 AIR TRACTOR INC AT-802A)"]
["N379DN (2019 AIRBUS A321-211)"]
["N379LG (2015 EMBRAER SA EMB-550)"]
["N380BJ (2009 BOEING 737-7JZ)"]
["N381CM (BOEING 737-85P)"]
["N381DZ (2019 AIRBUS A321-211)"]
["N383TA (2017 TEXTRON AVIATION INC 208B)"]
["N386RW (2012 GULFSTREAM AEROSPACE GV-SP (G550))"]
["N3888F (1976 PIPER PA-28-181)"]
["N388JL (2000 DASSAULT MYSTERE FALCON 50EX)"]
["N388TA (2014 CESSNA 208B)"]
["N389DN (AIRBUS A321-211)"]
["N38MD (1989 EUROCOPTER AS365N3)"]
["N38VC (2010 EMBRAER S A EMB-505)"]
["N38W (1960 BEECH H-18)"]
["N390AM (2011 EUROCOPTER EC 130 B4)"]
["N390RJ (2007 HAWKER BEECHCRAFT CORP 390)"]
["N3917G (1974 BELL 206B)"]
["N3918Y (2008 GULFSTREAM AEROSPACE GIV-X (G450))"]
["N391AL (BELL 214ST)"]
["N395LJ (1994 LEARJET INC 31A)"]
["N397AL (1990 BELL 412)"]
["N397MG (1999 RAYTHEON AIRCRAFT COMPANY 400A)"]
["N397RL (1980 BELL HELICOPTER TEXTRON 206L-1)"]
["N398AS (2014 AIR TRACTOR INC AT-802A)"]
["N399AB (2018 TEXTRON AVIATION INC 525)"]
["N399WN (1995 BOEING 737-3H4)"]
["N39GX (1982 AERO VODOCHODY L-39)"]
["N3EK (2010 SOCATA TBM 700)"]
["N4004K (1978 AYRES CORPORATION S2R-600)"]
["N400AN (2019 AIRBUS A321-253NX)"]
["N401AN (2019 AIRBUS A321-253NX)"]
["N402AN (2019 AIRBUS A321-253NX)"]
["N4032Y (1981 HILLER UH-12E)"]
["N40376 (1973 PIPER PA-23-250)"]
["N403AC (BRITISH AEROSPACE AVRO 146-RJ85A)"]
["N403AN (2019 AIRBUS A321-253NX)"]
["N404AN (2019 AIRBUS A321-253NX)"]
["N404BC (1993 DASSAULT-BREGUET MYSTERE FALCON 900)"]
["N404SA (2011 HAWKER BEECHCRAFT CORP B300)"]
["N405AN (2019 AIRBUS A321-253NX)"]
["N405DX (AIRBUS A330-941)"]
["N405MN (2001 PILATUS PC-12/45)"]
["N405YK (BOEING 737-436)"]
["N406AN (2019 AIRBUS A321-253NX)"]
["N406PW (1980 BELL HELICOPTER TEXTRON 206L-1)"]
["N407AN (2019 AIRBUS A321-253NX)"]
["N407DH (2007 BELL 407)"]
["N407GK (2005 GULFSTREAM AEROSPACE GV-SP (G550))"]
["N407GS (2010 BELL HELICOPTER TEXTRON CANADA 407)"]
["N407MS (2013 BELL HELICOPTER TEXTRON CANADA 407)"]
["N407RX (2014 BELL HELICOPTER TEXTRON CANADA 407)"]
["N407TR (2012 GULFSTREAM AEROSPACE GV-SP (G550))"]
["N408H (2009 ISRAEL AEROSPACE IND LTD GULFSTREAM 200)"]
["N408MC (1998 BOEING 747-47UF)"]
["N409AA (2019 AIRBUS A321-253NX)"]
["N409BM (2002 ISRAEL AIRCRAFT INDUSTRIES GULFSTREAM 200)"]
["N40RQ (2010 HAWKER BEECHCRAFT CORP 4000)"]
["N40XJ (2001 RAYTHEON AIRCRAFT COMPANY C90A)"]
["N410AN (2019 AIRBUS A321-253NX)"]
["N410EE (2018 EMBRAER EXECUTIVE AIRCRAFT INC EMB-500)"]
["N411AN (AIRBUS A321-253NX)"]
["N411FX (2017 EMBRAER S A EMB-545)"]
["N412EC (2004 DASSAULT FALCON 900 EX)"]
["N412XJ (SAAB-SCANIA SAAB 340B)"]
["N413FX (2017 EMBRAER S A EMB-545)"]
["N415NP (LEARJET INC 60)"]
["N415PR (2000 ISRAEL AIRCRAFT INDUSTRIES GALAXY)"]
["N415SG (2005 LEARJET INC 60)"]
["N417AN (AIRBUS A321-253NX)"]
["N417NL (BOMBARDIER INC CL-600-2B19)"]
["N419AV (BOMBARDIER INC CL-600-2B19)"]
["N419CL (1997 SAAB SAAB 340B)"]
["N41WT (1982 CESSNA 421C)"]
["N420ME (2018 HONDA AIRCRAFT CO LLC HA-420)"]
["N420MP (2013 BOMBARDIER INC BD-100-1A10)"]
["N421SX (2014 CESSNA 208B)"]
["N422MP (2013 BOMBARDIER INC BD-100-1A10)"]
["N4239X (1974 ROCKWELL INTERNATIONAL S-2R)"]
["N423RC (2019 TEXTRON AVIATION INC T206H)"]
["N424FJ (2001 FAIRCHILD DORNIER DORNIER 328-300)"]
["N424MP (2015 BOMBARDIER INC BD-100-1A10)"]
["N425CC (1982 CESSNA 425)"]
["N425HB (1981 CESSNA 425)"]
["N42GR (EXTRA FLUGZEUGPRODUKTIONS-UND EA 300/LT)"]
["N42NA (1982 DASSAULT-BREGUET FALCON 50)"]
["N42TJ (2017 CIRRUS DESIGN CORP SR22)"]
["N42TX (2012 CIRRUS DESIGN CORP SR22T)"]
["N430AC (BRITISH AEROSPACE AVRO 146-RJ85A)"]
["N430BC (2006 COMYN ROBERT C LANCAIR IV-P)"]
["N431AE (2012 BELL HELICOPTER TEXTRON CANADA 206L-4)"]
["N431JA (2007 DASSAULT AVIATION FALCON 2000EX)"]
["N433DD (1978 LEARJET INC 35A)"]
["N434TA (1954 DOUGLAS DC-6B)"]
["N435HH (2007 LEARJET INC 45)"]
["N436QS (2019 EMBRAER EXECUTIVE AIRCRAFT INC EMB-505)"]
["N440CC (BOEING 737-83N)"]
["N4423F (2014 PIPER AIRCRAFT INC PA 46-350P)"]
["N442KM (1985 CESSNA S550)"]
["N443CB (1960 DEHAVILLAND DHC-3)"]
["N443CP (2008 CIRRUS DESIGN CORP SR22)"]
["N444SC (2000 GULFSTREAM AEROSPACE G-V)"]
["N444WC (2000 ISRAEL AIRCRAFT INDUSTRIES ASTRA SPX)"]
["N445CC (BOEING 737-83N)"]
["N445TG (2007 LEARJET INC 45)"]
["N4478W (2012 ROBINSON HELICOPTER CO R66)"]
["N447CC (BOEING 737-86N)"]
["N447TR (2013 GULFSTREAM AEROSPACE GV-SP (G550))"]
["N448AC (BRITISH AEROSPACE AVRO-146RJ100A)"]
["N448CC (BOEING 737-84P)"]
["N449AE (2001 EUROCOPTER EC120B)"]
["N450FC (2011 LEARJET INC 45)"]
["N450FJ (2017 GULFSTREAM AEROSPACE GIV-X (G450))"]
["N450FX (2015 GULFSTREAM AEROSPACE GIV-X (G450))"]
["N450T (2007 GULFSTREAM AEROSPACE GIV-X (G450))"]
["N451CC (BOEING 737-84P)"]
["N451GV (2013 GULFSTREAM AEROSPACE GV-SP (G550))"]
["N451NS (2007 GULFSTREAM AEROSPACE GIV-X (G450))"]
["N452FX (2015 GULFSTREAM AEROSPACE GIV-X (G450))"]
["N454PY (2005 CESSNA 172S)"]
["N456JA (2014 IAI LTD GULFSTREAM G280)"]
["N456LL (2008 CIRRUS DESIGN CORP SR22)"]
["N457CP (2008 HAWKER BEECHCRAFT CORP 400A)"]
["N457J (1987 BRITISH AEROSPACE BAE 125-800A)"]
["N458BJ (BOEING 747-8JA)"]
["N458EE (2019 EMBRAER S A EMB-545)"]
["N458TP (2011 QUEST AIRCRAFT COMPANY LLC KODIAK 100)"]
["N459CL (SAAB AIRCRAFT AB SAAB 340B)"]
["N4625Q (1971 CESSNA 210L)"]
["N465SM (2002 BOMBARDIER INC CL-600-2B19)"]
["N467AM (1984 GULFSTREAM AEROSPACE G-1159A)"]
["N468AB (2014 RULAT DEVELOPMENT INC MOSQUITO XET)"]
["N468AX (2002 BOEING 767-36N)"]
["N468VL (MMB SERVICES LLC EPIC - LT)"]
["N469DM (2008 ISRAEL AEROSPACE INDUSTRIESLTD GULFSTREAM G150)",{"$f":"TRIM(LEFT(A591,SEARCH(\" \",A591)))","v":"N469DM"},{"$f":"MATCH(B591,'[1]JETNET Data'!$D:$D,0)","v":100}]
["N471CA (2002 BOMBARDIER INC CL-600-2B19)"]
["N472CA (2002 BOMBARDIER INC CL-600-2B19)"]
["N473FX (2015 LEARJET INC 45)"]
["N474FX (2015 LEARJET INC 45)"]
["N476SS (2006 PILATUS AIRCRAFT LTD PC-12/47)"]
["N477VX (BOEING 737-46Q)"]
["N479CA (2002 BOMBARDIER INC CL-600-2B19)"]
["N47EL (2011 GULFSTREAM AEROSPACE GIV-X (G450))"]
["N47PR (2019 L-BIRD LLC CCX-2000)"]
["N47TR (2014 GULFSTREAM AEROSPACE CORP GVI (G650))"]
["N480MH (2009 ENSTROM HELICOPTER CORP 480B)"]
["N481EB (2016 PILATUS AIRCRAFT LTD PC-12/47E)"]
["N484BQ (1990 BEECH B200)"]
["N486RW (2014 GULFSTREAM AEROSPACE GV-SP (G550))"]
["N488RC (2009 ISRAEL AEROSPACE IND LTD GULFSTREAM 200)"]
["N489MC (1995 BOEING 747-412F)"]
["N48CT (1973 GATES LEAR JET 24D)"]
["N494CA (2003 BOMBARDIER INC CL-600-2B19)"]
["N495KB (2011 GA8 AIRVAN (PTY) LTD GA8-TC320)"]
["N496CA (2003 BOMBARDIER INC CL-600-2B19)"]
["N49732 (1976 BELL 214B-1)"]
["N498AA (1989 MCDONNELL DOUGLAS DC-9-82(MD-82))"]
["N498CA (2003 BOMBARDIER INC CL-600-2B19)"]
["N49HT (2009 DASSAULT AVIATION FALCON 2000EX)"]
["N49MJ (2014 BEECHCRAFT CORP C90GTI)"]
["N50075 (1998 AIR TRACTOR INC AT-502B)"]
["N500AD (2010 EMBRAER-EMPRESA BRASILEIRA DE EMB-505)"]
["N500DW (2017 PILATUS AIRCRAFT LTD PC-12/47E)"]
["N500GX (2015 EMBRAER SA EMB-550)"]
["N500RL (2009 GULFSTREAM AEROSPACE GIV-X (G450))"]
["N500VJ (2013 BOMBARDIER INC BD-700-1A11)"]
["N501AF (1979 CESSNA 501)"]
["N501GM (2017 GULFSTREAM AEROSPACE GV-SP (G550))"]
["N501MW (2020 AIR TRACTOR INC AT-502A)"]
["N501NZ (1981 CESSNA 501)"]
["N501UW (1985 BOEING 737-301)"]
["N501VJ (2013 BOMBARDIER INC BD-700-1A11)"]
["N502GJ (2001 BOMBARDIER INC CL-600-2C11)"]
["N502GM (2005 GULFSTREAM AEROSPACE G-IV (G350))"]
["N502SM (2019 AIR TRACTOR INC AT-502A)"]
["N502VJ (2014 BOMBARDIER INC BD-700-1A11)"]
["N502WF (AIR TRACTOR INC AT-502B)"]
["N503SV (2014 CESSNA 680)"]
["N503VJ (2013 BOMBARDIER INC BD-700-1A11)"]
["N504JN (2000 SCHWEIZER 269C-1)"]
["N504VJ (2013 BOMBARDIER INC BD-700-1A11)"]
["N505DK (2013 BEECHCRAFT CORP C90GTI)"]
["N505R (2016 BOMBARDIER INC CL-600-2B16)"]
["N505VJ (2013 BOMBARDIER INC BD-700-1A11)"]
["N506CA (2003 BOMBARDIER INC CL-600-2B19)"]
["N506GJ (2002 BOMBARDIER INC CL-600-2C11)"]
["N506JA (AIRBUS HELICOPTERS AS 350B3)"]
["N506LF (2010 EUROCOPTER EC 130 B4)"]
["N507BJ (2015 BOEING 787-8)"]
["N508GJ (2002 BOMBARDIER INC CL-600-2C11)"]
["N508XJ (2003 BOMBARDIER INC BD-100-1A10)"]
["N510MD (2009 CESSNA 510)"]
["N510MW (2008 CESSNA 510)"]
["N510NT (2008 CESSNA 510)"]
["N5113A (2002 BOEING 737-83N)"]
["N511AS (1974 SMITH AEROSTAR 600)"]
["N512JT (2010 GULFSTREAM AEROSPACE GV-SP (G550))"]
["N5147A (2002 BOEING 737-83N)"]
["N514ES (2007 PIPER PA-34-220T)"]
["N5153A (2002 BOEING 737-83N)"]
["N5167A (2004 BOEING 737-83N)"]
["N516LF (2012 AGUSTAWESTLAND PHILADELPHIA CO AW119MKII)"]
["N516QS (2018 TEXTRON AVIATION INC 680A)"]
["N5179A (2002 BOEING 737-83N)"]
["N517VJ (2011 AIR TRACTOR INC AT-502B)"]
["N5185K (1998 AIR TRACTOR INC AT-602)"]
["N518RC (2003 CESSNA 525)"]
["N5191B (1999 AIR TRACTOR INC AT-402A)"]
["N519EB (2019 CIRRUS DESIGN CORP SF50)"]
["N519GJ (2001 BOMBARDIER INC CL-600-2C11)"]
["N519VL (2013 AIRBUS A320-233)"]
["N51BK (2012 PIPER PA 46-350P)"]
["N51EE (2016 IAI LTD GULFSTREAM G280)"]
["N51FT (1982 CESSNA 501)"]
["N520GJ (2002 BOMBARDIER INC CL-600-2C11)"]
["N521AB (2017 IAI LTD GULFSTREAM G280)"]
["N521FP (1997 CESSNA 750)"]
["N521SB (2000 GULFSTREAM AEROSPACE G-IV)"]
["N521VA (2006 AIRBUS A319-112)"]
["N5224G (2002 CESSNA 172S)"]
["N522AT (1999 SOCATA TBM 700)"]
["N522RL (1997 BELL 407)"]
["N522VA (2006 AIRBUS A319-112)"]
["N522VR (GULFSTREAM AEROSPACE G-IV)"]
["N524EA (2012 GULFSTREAM AEROSPACE GVI (G650ER))"]
["N525CD (2000 CESSNA 525)"]
["N525HL (2013 CESSNA 525)"]
["N526LF (2013 AGUSTAWESTLAND PHILADELPHIA CO AW119MKII)"]
["N526QS (2017 TEXTRON AVIATION INC 680A)"]
["N529TP (BOEING 737-4B6)"]
["N52CV (2017 CIRRUS DESIGN CORP SF50)"]
["N531MT (2018 AIRBUS HELICOPTERS DEUTSCHLAND EC135 P3)"]
["N5334V (1959 HILLER UH-12E)"]
["N53447 (2002 PIPER PA-28-181)"]
["N535AT (2018 BELL HELICOPTER TEXTRON CANADA 505)"]
["N535MW (2013 EUROCOPTER DEUTSCHLAND GMBH EC 135 P2+)"]
["N535PC (2008 PILATUS AIRCRAFT LTD PC-12/47E)"]
["N535TB (2014 BELL HELICOPTER TEXTRON CANADA 429)"]
["N536LF (2013 AGUSTAWESTLAND PHILADELPHIA CO AW119MKII)"]
["N536MR (2007 HAWKER BEECHCRAFT CORP B300)"]
["N536XJ (2004 BOMBARDIER INC BD-100-1A10)"]
["N5374V (1961 HILLER UH-12E)"]
["N537XJ (2008 BOMBARDIER INC BD-100-1A10)"]
["N538XJ (2008 BOMBARDIER INC BD-100-1A10)"]
["N539AM (BOEING 737-3M8)"]
["N539XJ (2008 BOMBARDIER INC BD-100-1A10)"]
["N53EL (2011 GULFSTREAM AEROSPACE GIV-X (G450))"]
["N53KV (1993 CESSNA 525)"]
["N53MW (2011 AVIAT AIRCRAFT INC A-1C-200)"]
["N541CC (BOEING 737-8AS)"]
["N541LR (1993 RAYTHEON CORPORATE JETS INC BAE 125-1000A)"]
["N541XJ (2009 BOMBARDIER INC BD-100-1A10)"]
["N541Z (2015 DASSAULT FALCON 2000EX)"]
["N542RL (2004 BOEING 737-83N)"]
["N543RL (BOEING 737-84P)"]
["N544EE (2019 EMBRAER S A EMB-545)"]
["N544S (2012 DASSAULT AVIATION FALCON 2000EX)"]
["N5459D (2019 TEXTRON AVIATION INC 208B)"]
["N545AT (2019 BELL HELICOPTER TEXTRON CANADA 505)"]
["N545RL (BOEING 737-84P)"]
["N545XJ (2009 BOMBARDIER INC BD-100-1A10)"]
["N546XJ (2009 BOMBARDIER INC BD-100-1A10)"]
["N547CC (BOEING 737-8AS)"]
["N547RL (BOEING 737-83N)"]
["N547XJ (2009 BOMBARDIER INC BD-100-1A10)"]
["N5484C (2019 TEXTRON AVIATION INC 208B)"]
["N548XJ (2010 BOMBARDIER INC BD-100-1A10)"]
["N549QC (2015 BELL HELICOPTER TEXTRON CANADA 412EP)"]
["N549RJ (2008 PIPER AIRCRAFT INC PA46R-350T)"]
["N549RQ (2015 BELL HELICOPTER TEXTRON CANADA 412EP)"]
["N549XJ (2011 BOMBARDIER INC BD-100-1A10)"]
["N54EA (2003 BOMBARDIER INC CL-600-2C10)"]
["N5505T (2001 BOMBARDIER INC CL-600-2B16)"]
["N550AU (2011 GULFSTREAM AEROSPACE GV-SP (G550))"]
["N550NJ (2016 ECLIPSE AEROSPACE INC EA500)"]
["N550XJ (2011 BOMBARDIER INC BD-100-1A10)"]
["N5511X (1973 AERO COMMANDER S2R)"]
["N551GG (2006 GULFSTREAM AEROSPACE GV-SP (G550))"]
["N551JW (2013 CIRRUS DESIGN CORP SR22T)"]
["N551NZ (1988 CESSNA 551)"]
["N551PM (2012 GULFSTREAM AEROSPACE GV-SP (G550))"]
["N551WS (2019 HONDA AIRCRAFT CO LLC HA-420)"]
["N551XJ (2011 BOMBARDIER INC BD-100-1A10)"]
["N552PM (2012 GULFSTREAM AEROSPACE GV-SP (G550))"]
["N552WN (2002 BOEING 737-7BX)"]
["N552XJ (2011 BOMBARDIER INC BD-100-1A10)"]
["N553WN (2002 BOEING 737-7BX)"]
["N556CC (BOEING 737-8AS)"]
["N557GA (2010 IAI LTD GULFSTREAM G150)",{"$f":"TRIM(LEFT(A745,SEARCH(\" \",A745)))","v":"N557GA"},{"$f":"MATCH(B745,'[1]JETNET Data'!$D:$D,0)","v":160}]
["N557MG (2019 EMBRAER SA EMB-550)"]
["N557XJ (2005 BOMBARDIER INC BD-100-1A10)"]
["N5585 (2005 GULFSTREAM AEROSPACE GV-SP (G550))"]
["N558MG (2019 EMBRAER SA EMB-550)"]
["N559DM (1999 RAYTHEON AIRCRAFT COMPANY HAWKER 800XP)"]
["N561AM (2007 EUROCOPTER FRANCE AS350B2)"]
["N561HM (2014 CESSNA 208)"]
["N561MT (1991 CESSNA 560)"]
["N566NS (2015 GULFSTREAM AEROSPACE GVI (G650ER))"]
["N5670J (1969 CESSNA A188A)"]
["N568AM (2008 AMERICAN EUROCOPTER LLC AS350B2)"]
["N568B (CESSNA 560)"]
["N569RP (2004 EMBRAER EMB-145LR)"]
["N576LF (2013 AGUSTAWESTLAND PHILADELPHIA CO AW119MKII)"]
["N577MT (2017 AIRBUS HELICOPTERS DEUTSCHLAND EC135 P3)"]
["N578XJ (2005 BOMBARDIER INC BD-100-1A10)"]
["N579JS (2009 EMBRAER-EMPRESA BRASILEIRA DE EMB-500)"]
["N57RG (2009 ISRAEL AEROSPACE INDUSTRIESLTD GULFSTREAM G150)",{"$f":"TRIM(LEFT(A763,SEARCH(\" \",A763)))","v":"N57RG"},{"$f":"MATCH(B763,'[1]JETNET Data'!$D:$D,0)","v":140}]
["N57SN (2018 DASSAULT AVIATION FALCON 7X)"]
["N57VA (1996 RAYTHEON AIRCRAFT COMPANY B300)"]
["N580ML (2007 EMBRAER EMB-135BJ)"]
["N580RM (CESSNA 510)"]
["N581JS (2010 EMBRAER-EMPRESA BRASILEIRA DE EMB-500)"]
["N582JS (2010 EMBRAER-EMPRESA BRASILEIRA DE EMB-500)"]
["N583JS (2010 EMBRAER-EMPRESA BRASILEIRA DE EMB-500)"]
["N584D (2008 BOMBARDIER INC BD-100-1A10)"]
["N584FX (2017 BOMBARDIER INC BD-100-1A10)"]
["N585AC (EUROCOPTER EC 225 LP)"]
["N586AC (AIRBUS HELICOPTERS EC225 LP)"]
["N586RW (2013 GULFSTREAM AEROSPACE GV-SP (G550))"]
["N587AC (EUROCOPTER EC 225 LP)"]
["N588BF (2012 LEARJET INC 60)"]
["N58BA (1957 HILLER UH-12D)"]
["N58GG (2014 DASSAULT FALCON 2000EX)"]
["N58TT (1978 CESSNA T210N)"]
["N592WP (1975 CESSNA 500)"]
["N59410 (1973 BELL 47G3B2A)"]
["N594MW (2018 THRUSH AIRCRAFT INC S2R-T660)"]
["N595CA (2018 PIPER AIRCRAFT INC PA46-500TP)"]
["N595JS (2017 TEXTRON AVIATION INC G58)"]
["N598KZ (1999 GULFSTREAM AEROSPACE G-V)"]
["N599CH (2012 BOMBARDIER INC BD-700-1A10)"]
["N599XQ (1995 DEHAVILLAND DHC-8-315)"]
["N59RT (1980 CESSNA 441)"]
["N600HZ (2019 EMBRAER SA EMB-550)"]
["N600WN (1995 BOEING 737-3H4)"]
["N601WN (1995 BOEING 737-3H4)"]
["N602AN (1995 BOEING 757-223)"]
["N602EE (2019 EMBRAER SA EMB-550)"]
["N602J (1998 AIR TRACTOR INC AT-602)"]
["N602JR (1970 HAWKER SIDDELEY DH.125-400A)"]
["N602N (1998 AIR TRACTOR INC AT-602)"]
["N602SW (1995 BOEING 737-3H4)"]
["N602TX (2009 AIR TRACTOR INC AT-602)"]
["N603AA (1995 BOEING 757-223)"]
["N603PW (2010 AGUSTA SPA AW139)"]
["N603SW (1995 BOEING 737-3H4)"]
["N604AA (1995 BOEING 757-223)"]
["N604AU (1999 BOMBARDIER INC CL-600-2B16)"]
["N604LP (2003 BOMBARDIER INC CL-600-2B16)"]
["N604QS (2018 TEXTRON AVIATION INC 680A)"]
["N604QX (2001 BOMBARDIER INC CL-600-2C11)"]
["N605AA (1995 BOEING 757-223)"]
["N605AJ (2007 BOMBARDIER INC CL-600-2B16)"]
["N605JA (CANADAIR LTD CL-600-2B16)"]
["N605NS (2009 BOMBARDIER INC CL-600-2B16)"]
["N606 (1987 BRITISH AEROSPACE BAE 125 SERIES 800A)"]
["N60683 (2016 MD HELICOPTERS INC 600N)"]
["N6072Y (1981 AIR TRACTOR INC AT-400)"]
["N607AM (1996 BOEING 757-223)"]
["N60SN (2018 DASSAULT AVIATION FALCON 7X)"]
["N60XC (2013 BOMBARDIER INC BD-700-1A10)"]
["N610AW (2004 BOMBARDIER INC BD-700-1A10)"]
["N612QX (2002 BOMBARDIER INC CL-600-2C10)"]
["N6148V (1998 SCHWEIZER 269C-1)"]
["N614QX (2002 BOMBARDIER INC CL-600-2C10)"]
["N615L (2005 BOMBARDIER INC CL-600-2B16)"]
["N6167V (1977 CONSOLIDATED AERONAUTICS INC. LAKE LA-4-200)"]
["N616DC (2008 BOMBARDIER INC BD-700-1A10)"]
["N616LF (2013 AGUSTAWESTLAND PHILADELPHIA CO AW119MKII)"]
["N616RK (2012 GULFSTREAM AEROSPACE GV-SP (G550))"]
["N617NK (2012 AIRBUS A320-232)"]
["N617QX (2003 BOMBARDIER INC CL-600-2C10)"]
["N617RX (2002 LEARJET INC 45)"]
["N619KS (2006 ISRAEL AIRCRAFT INDUSTRIES GULFSTREAM 200)"]
["N61MD (1993 EUROCOPTER AS 365 N2 DAUPHIN)"]
["N61WC (2016 PIAGGIO AERO INDUSTRIES SPA P180)"]
["N61WS (2013 GULFSTREAM AEROSPACE GIV-X (G450))"]
["N6207G (2014 THRUSH AIRCRAFT INC S2R-G10)"]
["N620JH (2019 GULFSTREAM AEROSPACE CORP GV-SP (G550))"]
["N620LF (2017 PIPER PA-46-600TP)"]
["N620MT (DIAMOND AIRCRAFT IND GMBH DA 62)"]
["N620X (2010 DASSAULT AVIATION FALCON 900EX)"]
["N621AB (2008 ISRAEL AEROSPACE INDUSTRIESLTD G200)"]
["N621PR (2010 CESSNA 525C)"]
["N623HD (1996 DASSAULT AVIATION FALCON 2000)"]
["N62458 (1962 HILLER UH-12E)"]
["N6251G (1970 BELL OH-58A)"]
["N626AK (2016 BOMBARDIER INC BD-700-1A10)"]
["N626EA (2014 CIRRUS DESIGN CORP SR22T)"]
["N626JJ (2009 GULFSTREAM AEROSPACE GIV-X (G450))"]
["N626LF (2013 AGUSTAWESTLAND PHILADELPHIA CO AW119MKII)"]
["N63108 (2015 GULFSTREAM AEROSPACE GV-SP (G550))"]
["N633LG (2018 TEXTRON AVIATION INC 525)"]
["N633SW (1996 BOEING 737-3H4)"]
["N634SW (1996 BOEING 737-3H4)"]
["N636LF (2014 AGUSTAWESTLAND PHILADELPHIA CO AW119MKII)"]
["N637AC (AIRBUS A320-200)"]
["N637SW (1996 BOEING 737-3H4)"]
["N63KK (2015 BOMBARDIER INC BD-700-1A10)"]
["N640SH (2015 DIAMOND AIRCRAFT IND GMBH DA42MNG)"]
["N640SW (1996 BOEING 737-3H4)"]
["N640W (2013 GULFSTREAM AEROSPACE GV-SP (G550))"]
["N644LH (SIKORSKY S-76A)"]
["N645QS (2019 TEXTRON AVIATION INC 680A)"]
["N6462F (1975 CESSNA 182P)"]
["N6462L (1969 PIPER PA-31-310)"]
["N646LF (2014 AGUSTAWESTLAND PHILADELPHIA CO AW119MKII)"]
["N649AW (1998 AIRBUS INDUSTRIE A320-232)"]
["N649DL (1989 BOEING 757-232)"]
["N649JP (2015 LEARJET INC 45)"]
["N64HH (2000 LEARJET INC 45)"]
["N64MD (MITSUBISHI MU-2B-60)"]
["N650DL (1986 BOEING 757-232)"]
["N650EL (2019 BOMBARDIER INC CL-600-2B16(CL-604))"]
["N650GC (1992 CESSNA 650)"]
["N650GY (2015 GULFSTREAM AEROSPACE GVI (G650ER))"]
["N650JR (2016 BOMBARDIER INC CL-600-2B16)"]
["N650MS (2013 GULFSTREAM AEROSPACE CORP GVI (G650))"]
["N650MT (2013 GULFSTREAM AEROSPACE CORP GVI)"]
["N651DL (1989 BOEING 757-232)"]
["N651WE (2015 GULFSTREAM AEROSPACE GVI (G650ER))"]
["N652DL (1989 BOEING 757-232)"]
["N653LH (1995 SIKORSKY S-76C)"]
["N653SW (1997 BOEING 737-3H4)"]
["N654DL (1990 BOEING 757-232)"]
["N655DL (1990 BOEING 757-232)"]
["N655JT (2012 EUROCOPTER DEUTSCHLAND GMBH EC 135 P2+)"]
["N656LF (2014 AGUSTAWESTLAND PHILADELPHIA CO AW119MKII)"]
["N656SW (1997 BOEING 737-3H4)"]
["N656TT (2016 GULFSTREAM AEROSPACE GVI (G650ER))"]
["N65795 (CESSNA 172S)"]
["N65CJ (1999 AGUSTA SPA A109E)"]
["N65MD (EUROCOPTER AS 365 N2 DAUPHIN)"]
["N660AS (2013 CESSNA 560XL)"]
["N660CJ (1998 LEARJET INC 60)"]
["N660RL (1998 BELL HELICOPTER TEXTRON CANADA 407)"]
["N661DN (1990 BOEING 757-232)"]
["N661RL (1998 BELL 407)"]
["N662DN (1991 BOEING 757-232)"]
["N662P (2012 GULFSTREAM AEROSPACE GV-SP (G550))"]
["N662RL (1997 BELL 407)"]
["N663AM (1992 BOEING 757-223)"]
["N663DN (1991 BOEING 757-232)"]
["N663RL (2001 BELL 407)"]
["N664DN (1991 BOEING 757-232)"]
["N664JN (1999 GULFSTREAM AEROSPACE G-IV)"]
["N666DM (2018 EMBRAER SA EMB-550)"]
["N666DN (1991 BOEING 757-232)"]
["N666FS (2008 HAWKER BEECHCRAFT CORP G58)"]
["N666ML (1999 BOEING 737-7BC)"]
["N666YC (2008 HAWKER BEECHCRAFT CORP B200GT)"]
["N66866 (2016 BOMBARDIER INC BD-700-1A10)"]
["N668EM (2013 GULFSTREAM AEROSPACE GIV-X (G450))"]
["N668TH (2008 AIR TRACTOR INC AT-602)"]
["N669AA (1992 BOEING 757-223)"]
["N66PC (2001 CANTRUP P/LORENTZEN S LANCAIR IV-P)"]
["N670AA (1992 BOEING 757-223)"]
["N670EE (2019 EMBRAER SA EMB-550)"]
["N670TC (2012 CESSNA 208B)"]
["N670X (2001 PIPER PA-28R-201)"]
["N671NG (2016 PILATUS AIRCRAFT LTD PC-12/47E)"]
["N673W (2000 CESSNA 560XL)"]
["N674RG (1998 ROBINSON HELICOPTER COMPANY R22)"]
["N676GH (2004 RAYTHEON AIRCRAFT COMPANY HAWKER 800XP)"]
["N676JA (2012 HAWKER BEECHCRAFT CORP C90GTI)"]
["N679LG (2015 TEXTRON AVIATION INC 560XL)"]
["N67FS (1984 CESSNA 650)"]
["N680CF (2007 CESSNA 680)"]
["N680GG (2008 HAWKER BEECHCRAFT CORP B200GT)"]
["N680KG (2014 CESSNA 750)"]
["N681AA (1992 BOEING 757-223)"]
["N681BC (1987 SAAB-SCANIA SF340A)"]
["N684AE (2016 BELL HELICOPTER TEXTRON CANADA 206L-4)"]
["N684TS (1998 BOMBARDIER INC CL-600-2B16)"]
["N685DC (2010 DASSAULT AVIATION FALCON 7X)"]
["N68645 (1963 BELL 47G-3B-1)"]
["N686AA (1992 BOEING 757-223)"]
["N686LF (2015 AGUSTAWESTLAND PHILADELPHIA CO AW119MKII)"]
["N686NG (2017 PILATUS AIRCRAFT LTD PC-12/47E)"]
["N687PA (1995 SAAB 2000)"]
["N688FD (2012 BOEING 737-7EG)"]
["N68989 (2015 GULFSTREAM AEROSPACE GV-SP (G550))"]
["N68EU (2008 CESSNA 680)"]
["N68HQ (2014 CESSNA 680)"]
["N691AS (1990 BEECH C90A)"]
["N692AR (1980 DEHAVILLAND DHC-6-300)"]
["N693BR (2003 BOMBARDIER INC CL-600-2B19)"]
["N694AN (1994 BOEING 757-223)"]
["N695FA (1984 GULFSTREAM AM CORP COMM DIV 695A)"]
["N696AN (1994 BOEING 757-223)"]
["N697AN (1994 BOEING 757-223)"]
["N698V (2013 AGUSTAWESTLAND PHILADELPHIA AW139)"]
["N699AN (1995 BOEING 757-223)"]
["N69BP (PIPER PA-34-220T)"]
["N69D (2018 ROBINSON HELICOPTER CO R66)"]
["N7007R (2019 BELL HELICOPTER TEXTRON CANADA 407)"]
["N700EX (SUMMIT AIRCRAFT LLC LANCAIR EVOLUTION)"]
["N701BR (2000 BOMBARDIER INC CL-600-2B19)"]
["N701CK (2000 BOEING 747-4B5F)"]
["N702AB (2008 CESSNA 680)"]
["N702BR (2000 BOMBARDIER INC CL-600-2B19)"]
["N702CK (2000 BOEING 747-4B5F)"]
["N702TR (2012 GULFSTREAM AEROSPACE GIV-X (G450))"]
["N704PG (1999 EMBRAER EMB-135LR)"]
["N705LA (2010 AIR TRACTOR INC AT-502A)"]
["N705MT (2013 BELL HELICOPTER TEXTRON CANADA 407)"]
["N705UW (AIRBUS INDUSTRIE A319-112)"]
["N706FR (2015 AIRBUS A321-211)"]
["N706MT (2013 BELL HELICOPTER TEXTRON CANADA 407)"]
["N706NG (2017 PILATUS AIRCRAFT LTD PC-12/47E)"]
["N707GY (2020 TEXTRON AVIATION INC 525C)"]
["N708LH (1987 AEROSPATIALE AS332L1)"]
["N709AA (2001 GULFSTREAM AEROSPACE G-V)"]
["N70LF (1996 DASSAULT FALCON 900 EX)"]
["N710AV (BOMBARDIER INC CL-600-2B19)"]
["N710R (2008 LEARJET INC 45)"]
["N710SB (2013 AGUSTAWESTLAND SPA AW109SP)"]
["N711LF (AIRBUS A340-642)"]
["N711UW (1999 AIRBUS INDUSTRIE A319-112)"]
["N711VN (1990 BEECH B300)"]
["N712AE (EMBRAER EMB-135LR)"]
["N713FR (2016 AIRBUS A321-211)"]
["N714JB (DASSAULT AVIATION FALCON 2000)"]
["N715CA (PIPER PA-31T)"]
["N715XJ (2001 CESSNA 750)"]
["N716CG (2014 DASSAULT AVIATION FALCON 7X)"]
["N716LF (2015 AGUSTAWESTLAND PHILADELPHIA CO AW119MKII)"]
["N717BN (2013 BOMBARDIER INC CL-600-2B16)"]
["N717FR (2017 AIRBUS A321-211)"]
["N717UW (1999 AIRBUS INDUSTRIE A319-112)"]
["N717XJ (2003 CESSNA 750)"]
["N719BH (1979 BEECH 200)"]
["N719XJ (2002 CESSNA 750)"]
["N71BD (2000 GULFSTREAM AEROSPACE G-IV)"]
["N71KQ (2012 QUEST AIRCRAFT COMPANY LLC KODIAK 100)"]
["N721BG (2013 SIKORSKY AIRCRAFT CORP S-76D)"]
["N721KJ (2010 GULFSTREAM AEROSPACE GV-SP (G550))"]
["N721UW (1999 AIRBUS INDUSTRIE A319-112)"]
["N722NC (2006 CIRRUS DESIGN CORP SR20)"]
["N722US (1999 AIRBUS INDUSTRIE A319-112)"]
["N723BG (2019 TEXTRON AVIATION INC 525C)"]
["N723GB (EMBRAER-EMPRESA BRASILEIRA DE EMB-500)"]
["N723ST (2006 PILATUS AIRCRAFT LTD PC-12/47)"]
["N726LF (2015 AGUSTAWESTLAND PHILADELPHIA CO AW119MKII)"]
["N726XJ (2004 CESSNA 750)"]
["N7274L (PILATUS AIRCRAFT LTD PC-12/47E)"]
["N7277F (2007 HAWKER BEECHCRAFT CORP C90GT)"]
["N727MU (2005 RAYTHEON AIRCRAFT COMPANY B300)"]
["N72LA (2006 RAYTHEON AIRCRAFT COMPANY HAWKER 850XP)"]
["N72VV (1979 CESSNA P210N)"]
["N731BP (2008 CESSNA 560XL)"]
["N734JU (2019 IAI LTD GULFSTREAM G280)"]
["N737GG (2010 BOEING 737-8KT)"]
["N737LE (1999 BOEING 737-75V)"]
["N7399C (BOEING 737-400)"]
["N740KD (LEARJET INC 45)"]
["N741QS (2017 BOMBARDIER INC BD-100-1A10)"]
["N742AW (2013 CESSNA 680)"]
["N745H (1991 BELL 214ST)"]
["N746H (1991 BELL 214ST)"]
["N7474C (BOEING 747-400)"]
["N7477C (BOEING 747-400)"]
["N747KS (2010 CESSNA 510)"]
["N747XJ (2005 CESSNA 750)"]
["N749AV (BOMBARDIER INC CL-600-2B19)"]
["N749MA (BOEING 737-8HX)"]
["N74JK (2012 DASSAULT AVIATION FALCON 7X)"]
["N750GJ (2004 PACIFIC AEROSPACE CORP LTD 750XL)"]
["N750HM (2009 HAWKER BEECHCRAFT CORP HAWKER 750)"]
["N750ME (2005 CESSNA 750)"]
["N750VL (2012 PACIFIC AEROSPACE CORP LTD 750XL)"]
["N750XJ (2005 CESSNA 750)"]
["N751XJ (2001 CESSNA 750)"]
["N752QS (2018 BOMBARDIER INC BD-100-1A10)"]
["N7531A (1990 MCDONNELL DOUGLAS DC-9-82(MD-82))"]
["N7535A (1990 MCDONNELL DOUGLAS DC-9-82(MD-82))"]
["N753XJ (1998 CESSNA 750)"]
["N756LF (2015 AGUSTAWESTLAND PHILADELPHIA CO AW119MKII)"]
["N757AS (BOEING 757-28A)"]
["N757AV (BOMBARDIER INC CL-600-2B19)"]
["N757CJ (BOEING 757-23A)"]
["N757PL (2019 GULFSTREAM AEROSPACE GVI (G650ER))"]
["N757XJ (2006 CESSNA 750)"]
["N760JR (1999 ISRAEL AIRCRAFT INDUSTRIES ASTRA SPX)"]
["N760XJ (2006 CESSNA 750)"]
["N761AA (SIKORSKY S-76C)"]
["N761LE (2014 GULFSTREAM AEROSPACE CORP GVI (G650))"]
["N761QS (2018 BOMBARDIER INC BD-100-1A10)"]
["N762JP (2007 HAWKER BEECHCRAFT CORP HAWKER 900XP)"]
["N76431 (1958 HILLER UH-12E)"]
["N764XJ (2006 CESSNA 750)"]
["N765CL (2001 LEARJET INC 31A)"]
["N765XJ (2006 CESSNA 750)"]
["N767BZ (BOEING 767-231)"]
["N767CB (1983 GULFSTREAM AEROSPACE G-1159A)"]
["N767CJ (1996 BOEING 767-24Q)"]
["N767CW (1997 GULFSTREAM AEROSPACE G-V)"]
["N767DM (1981 PIPER PA-31T2)"]
["N767PL (2009 GULFSTREAM AEROSPACE GV-SP (G550))"]
["N767XJ (1998 CESSNA 750)"]
["N768JJ (2008 GULFSTREAM AEROSPACE GV-SP (G550))"]
["N769CS (2007 CESSNA 560)"]
["N769XJ (2007 CESSNA 750)"]
["N76AL (1996 BELL 206-L4)"]
["N76QF (2012 BOMBARDIER INC CL-600-2B16)"]
["N770FF (2000 BOMBARDIER INC CL-600-2B16)"]
["N772CS (2007 CESSNA 560)"]
["N772XJ (2007 CESSNA 750)"]
["N774XJ (2007 CESSNA 750)"]
["N775SM (2016 TEXTRON AVIATION INC B300)"]
["N776AS (2016 AIR TRACTOR INC AT-802A)"]
["N776JT (2004 PILATUS PC-12/45)"]
["N7777N (2012 GULFSTREAM AEROSPACE GIV-X (G450))"]
["N777AL (1991 CESSNA 650)"]
["N777AS (2003 BOEING 777-24Q)"]
["N777FF (2000 BOMBARDIER INC CL-600-2B16)"]
["N777HN (2016 TEXTRON AVIATION INC 560XL)"]
["N777UK (2001 BOEING 777-212ER)"]
["N778AV (BOMBARDIER INC CL-600-2B19)"]
["N779AV (2018 AIRBUS A320-251N)"]
["N779LG (2005 BOMBARDIER INC CL-600-2B16)"]
["N780W (1997 GULFSTREAM AEROSPACE G-V)"]
["N780XJ (2007 CESSNA 750)"]
["N782AV (2014 BOEING 787-8)"]
["N782XJ (2008 CESSNA 750)"]
["N783AS (2016 AIR TRACTOR INC AT-802A)"]
["N783AV (2014 BOEING 787-8)"]
["N783XJ (1999 CESSNA 750)"]
["N784AE (AIRBUS A320-200)"]
["N784XA (2009 BOEING 737-752)"]
["N784XJ (1999 CESSNA 750)"]
["N785AE (2016 BELL HELICOPTER TEXTRON CANADA 206L-4)"]
["N785QS (2007 GULFSTREAM AEROSPACE GV-SP (G550))"]
["N785VC (2006 RAYTHEON AIRCRAFT COMPANY HAWKER 850XP)"]
["N7886A (2007 BOEING 737-752)"]
["N7887A (2007 BOEING 737-752)"]
["N7888A (2007 BOEING 737-700)"]
["N788DP (1999 BOEING 737-79U)"]
["N788XA (2004 BOEING 737-752)"]
["N790XJ (1998 CESSNA 750)"]
["N792XJ (2008 CESSNA 750)"]
["N793CP (2014 GULFSTREAM AEROSPACE GV-SP (G550))"]
["N793XJ (1999 CESSNA 750)"]
["N794XJ (2008 CESSNA 750)"]
["N795AB (1998 RAYTHEON AIRCRAFT COMPANY 58)"]
["N795CP (2014 GULFSTREAM AEROSPACE GV-SP (G550))"]
["N795SC (CIRRUS DESIGN CORP SR22T)"]
["N79711 (1999 BOEING 737-7BQ)"]
["N797CP (2014 GULFSTREAM AEROSPACE GV-SP (G550))"]
["N797CS (2008 BOMBARDIER INC BD-100-1A10)"]
["N799RM (2005 RAYTHEON AIRCRAFT COMPANY HAWKER 800XP)"]
["N79EA (1998 BOMBARDIER INC CL-600-2B19)"]
["N79SC (2003 LEARJET INC 60)"]
["N7SD (2019 ROBINSON HELICOPTER CO R66)"]
["N80044 (AIR TRACTOR INC AT-502A)"]
["N80060 (2017 AIR TRACTOR INC AT-402B)"]
["N800KD (LEARJET INC 45)"]
["N800LL (RAYTHEON CORPORATE JETS INC BAE 125-800A)"]
["N800PF (2006 CESSNA 525)"]
["N800QS (TEXTRON AVIATION INC 700)"]
["N800WC (1998 BOMBARDIER INC CL-600-2B16)"]
["N801XT (BOEING 737-800)"]
["N8049A (2019 AIR TRACTOR INC AT-802A)"]
["N804AS (2018 AIR TRACTOR INC AT-802A)"]
["N804NG (2018 PILATUS AIRCRAFT LTD PC-12/47E)"]
["N806JK (2015 IAI LTD GULFSTREAM G280)"]
["N808CH (CANADAIR CL-600-1A11)"]
["N808MA (2013 CESSNA 208B)"]
["N809GC (2019 CIRRUS DESIGN CORP SR22)"]
["N809LT (2015 CIRRUS DESIGN CORP SR22)"]
["N80CK (1982 CANADAIR CL-600-1A11)"]
["N80EJ (EMBRAER-EMPRESA BRASILEIRA DE EMB-500)"]
["N810EX (1991 BOEING OF CANADA/DEHAV DIV DHC-8-102)"]
["N810GB (2006 RAYTHEON AIRCRAFT COMPANY HAWKER 850XP)"]
["N810LF (2010 EUROCOPTER AS 350 B3)"]
["N8130G (1973 CESSNA A188B)"]
["N813PJ (RAYTHEON AIRCRAFT COMPANY A36)"]
["N813QS (2007 GULFSTREAM AEROSPACE GV-SP)"]
["N81437 (2012 HAWKER BEECHCRAFT CORP C90GTI)"]
["N815EX (DEHAVILLAND DHC-8-102)"]
["N816EX (DEHAVILLAND DHC-8-102)"]
["N818AC (2009 BOMBARDIER INC CL-600-2B16)"]
["N818CR (2008 HAWKER BEECHCRAFT CORP 400A)"]
["N818JH (1981 ISRAEL AIRCRAFT INDUSTRIES 1124A)"]
["N818TS (2010 GULFSTREAM AEROSPACE GIV-X (G450))"]
["N820AS (1997 CANADAIR CL-600-2B19)"]
["N82123 (2018 GULFSTREAM AEROSPACE GVI (G650ER))"]
["N821AU (BOEING 737-500)"]
["N823KD (2004 BOMBARDIER INC CL-600-2B16)"]
["N823SY (BOEING 737-800)"]
["N825P (RAYTHEON AIRCRAFT COMPANY C90GT)"]
["N825TT (RAYTHEON AIRCRAFT COMPANY B300)"]
["N8260K (1979 GRUMMAN ACFT ENG COR-SCHWEIZER G-164B)"]
["N828FL (2017 IAI LTD GULFSTREAM G280)"]
["N828NC (2013 HAWKER BEECHCRAFT CORP C90GTI)"]
["N82MD (1998 EUROCOPTER AS365N3)"]
["N832SY (2011 BOEING 737-8KN)"]
["N833SY (2011 BOEING 737-8KN)"]
["N834SY (2011 BOEING 737-8KN)"]
["N835MA (2012 CESSNA 208B)"]
["N837EX (BOEING DHC-8-102)"]
["N837VA (2011 AIRBUS A320-214)"]
["N838C (2014 CESSNA 560XL)"]
["N838SB (2007 ECLIPSE AVIATION CORP EA500)"]
["N838SC (1999 BOMBARDIER INC BD-700-1A10)"]
["N839EX (1990 BOEING DHC-8-102)"]
["N839MA (2013 CESSNA 208B)"]
["N83EA (2001 BOMBARDIER INC CL-600-2C10)"]
["N83GF (1991 MCDONNELL DOUGLAS AIRCRAFT CO MD 83)"]
["N840MA (2013 CESSNA 208B)"]
["N840VA (2011 AIRBUS A320-214)"]
["N841LA (2012 AIR TRACTOR INC AT-502A)"]
["N8423Q (AEROFAB INC LAKE LA-250)"]
["N8426V (1976 ROCKWELL INTERNATIONAL S-2R)"]
["N843M (2015 EMBRAER EXECUTIVE AIRCRAFT INC EMB-505)"]
["N845DA (2010 HAWKER BEECHCRAFT CORP HAWKER 900XP)"]
["N845DM (BOEING 737-86N)"]
["N846AG (BOEING 737-8HX)"]
["N847AG (BOEING 737-8HX)"]
["N847D (1980 BEECH B100)"]
["N847GH (2007 ISRAEL AIRCRAFT INDUSTRIES GULFSTREAM 200)"]
["N848BC (2010 DASSAULT AVIATION FALCON 7X)"]
["N849DM (BOEING 737-86N)"]
["N850AR (2010 KEYSTONE HELICOPTER CORP S-92A)"]
["N850DP (2000 RAYTHEON AIRCRAFT COMPANY HAWKER 800XP)"]
["N850UP (2015 TEXTRON AVIATION INC B300)"]
["N851AR (2010 KEYSTONE HELICOPTER CORP S-92A)"]
["N851VA (2012 AIRBUS A320-214)"]
["N852MA (2013 CESSNA 208B)"]
["N852VA (2012 AIRBUS A320-214)"]
["N853JL (2012 BELL HELICOPTER TEXTRON CANADA 407)"]
["N853UP (2015 TEXTRON AVIATION INC B300)"]
["N8548Z (1990 AEROFAB INC LAKE 250)"]
["N854AN (2007 CESSNA 560XL)"]
["N854UP (2015 TEXTRON AVIATION INC B300)"]
["N854VA (2012 AIRBUS A320-214)"]
["N8555 (1981 PIPER PA-44-180T)"]
["N855AH (2018 AGUSTAWESTLAND PHILADELPHIA AW139)"]
["N855MS (2008 ECLIPSE AVIATION CORP EA500)"]
["N855UP (2015 TEXTRON AVIATION INC B300)"]
["N856AH (2019 AGUSTAWESTLAND PHILADELPHIA AW139)"]
["N856MA (2013 CESSNA 208B)"]
["N856UP (2015 TEXTRON AVIATION INC B300)"]
["N857AH (2019 AGUSTAWESTLAND PHILADELPHIA AW139)"]
["N857MA (2013 CESSNA 208B)"]
["N857UP (TEXTRON AVIATION INC B300)"]
["N858AH (2019 LEONARDO SPA AW139)"]
["N858MY (2016 BOMBARDIER INC CL-600-2B16(CL-604))"]
["N858UP (2016 TEXTRON AVIATION INC B300)"]
["N859AH (2019 AGUSTAWESTLAND PHILADELPHIA AW139)"]
["N859MA (2013 CESSNA 208B)"]
["N859UP (2016 TEXTRON AVIATION INC B300)"]
["N85LG (1997 RAYTHEON AIRCRAFT COMPANY C90A)"]
["N8600F (2012 BOEING 737-8H4)"]
["N8602F (2012 BOEING 737-8H4)"]
["N8604K (2012 BOEING 737-8H4)"]
["N860AH (2019 LEONARDO SPA AW139)"]
["N860PD (1996 LEARJET INC 60)"]
["N860UP (2016 TEXTRON AVIATION INC B300)"]
["N861AH (2019 LEONARDO SPA AW139)"]
["N861MA (2000 CESSNA 208B)"]
["N861NG (2019 PILATUS AIRCRAFT LTD PC-12/47E)"]
["N861UP (2016 TEXTRON AVIATION INC B300)"]
["N862AH (2019 LEONARDO SPA AW139)"]
["N862UP (2016 TEXTRON AVIATION INC B300)"]
["N863AH (2020 LEONARDO SPA AW139)"]
["N863UP (2016 TEXTRON AVIATION INC B300)"]
["N86448 (1975 CESSNA A188B)"]
["N864AH (2020 LEONARDO SPA AW139)"]
["N864UP (2016 TEXTRON AVIATION INC B300)"]
["N865UP (2016 TEXTRON AVIATION INC B300)"]
["N867UP (2017 TEXTRON AVIATION INC B300)"]
["N868BB (2006 GULFSTREAM AEROSPACE GIV-X (G450))"]
["N868LJ (2013 BOMBARDIER INC BD-100-1A10)"]
["N868UP (2017 TEXTRON AVIATION INC B300)"]
["N869UP (2016 TEXTRON AVIATION INC B300)"]
["N86CG (2017 TEXTRON AVIATION INC 525B)"]
["N86CV (1995 CESSNA 560)"]
["N870DA (2011 HAWKER BEECHCRAFT CORP HAWKER 900XP)"]
["N870UP (2016 TEXTRON AVIATION INC B300)"]
["N871UP (2016 TEXTRON AVIATION INC B300)"]
["N872UP (2016 TEXTRON AVIATION INC B300)"]
["N873JD (RAYTHEON AIRCRAFT COMPANY 58)"]
["N873UP (2016 TEXTRON AVIATION INC B300)"]
["N874UP (2017 TEXTRON AVIATION INC B300)"]
["N875HB (2012 HAWKER BEECHCRAFT CORP 4000)"]
["N875RW (2007 EMBRAER ERJ 170-100 LR)"]
["N875UP (2016 TEXTRON AVIATION INC B300)"]
["N8767 (2002 BOEING 737-7EG)"]
["N876CS (2010 BOMBARDIER INC BD-100-1A10)"]
["N876UP (2016 TEXTRON AVIATION INC B300)"]
["N878RW (2007 EMBRAER ERJ 170-100 LR)"]
["N879RW (2008 EMBRAER ERJ 170-100 LR)"]
["N879UP (2016 TEXTRON AVIATION INC B300)"]
["N880RW (EMBRAER ERJ 170-100 LR)"]
["N880SP (2018 IAI LTD GULFSTREAM G280)"]
["N880UP (2018 TEXTRON AVIATION INC B300)"]
["N881CW (2017 TEXTRON AVIATION INC 525C)"]
["N881FS (2013 GULFSTREAM AEROSPACE GV-SP (G550))"]
["N881HM (ISRAEL AEROSPACE IND LTD GULFSTREAM 200)"]
["N881HS (2000 GULFSTREAM AEROSPACE G-V)"]
["N881JC (HAWKER BEECHCRAFT CORP HAWKER 900XP)"]
["N881SE (2018 TEXTRON AVIATION INC 208B)"]
["N881SG (2006 BOEING 737-7EG)"]
["N881ST (2008 ISRAEL AEROSPACE IND LTD GULFSTREAM 200)"]
["N881UP (2017 TEXTRON AVIATION INC B300)"]
["N882RW (2008 EMBRAER ERJ 170-100 LR)"]
["N882UP (2017 TEXTRON AVIATION INC B300)"]
["N883MX (2012 FOUND AIRCRAFT CANADA INC FBA-2C3)"]
["N883SJ (2010 GULFSTREAM AEROSPACE GV-SP (G550))"]
["N883UP (2017 TEXTRON AVIATION INC B300)"]
["N884UP (2017 TEXTRON AVIATION INC B300)"]
["N885TC (2008 ISRAEL AEROSPACE INDUSTRIESLTD GULFSTREAM G150)",{"$f":"TRIM(LEFT(A1269,SEARCH(\" \",A1269)))","v":"N885TC"},{"$f":"MATCH(B1269,'[1]JETNET Data'!$D:$D,0)","v":123}]
["N885UP (2017 TEXTRON AVIATION INC B300)"]
["N886UP (2017 TEXTRON AVIATION INC B300)"]
["N886WM (AGUSTA SPA AW139)"]
["N886YB (AGUSTA SPA AW139)"]
["N887CS (2008 CESSNA 560)"]
["N887GX (2007 BOMBARDIER INC BD-700-1A10)"]
["N887TC (2015 AIRBUS HELICOPTERS INC AS350B2)"]
["N888AY (SWEARINGEN SA227-TT)"]
["N888DC (2012 GULFSTREAM AEROSPACE GIV-X (G450))"]
["N888FC (1997 DASSAULT AVIATION FALCON 2000)"]
["N888HK (2008 GULFSTREAM AEROSPACE GV-SP (G550))"]
["N888LJ (2001 LEARJET INC 60)"]
["N888ML (2004 EMBRAER EMB-135BJ)"]
["N888MX (DASSAULT AVIATION FALCON 2000EX)"]
["N888NS (2012 GULFSTREAM AEROSPACE GV-SP (G550))"]
["N888VS (2011 GULFSTREAM AEROSPACE GV-SP (G550))"]
["N888XS (2011 GULFSTREAM AEROSPACE GV-SP (G550))"]
["N888ZY (2008 ECLIPSE AVIATION CORP EA500)"]
["N88999 (2017 GULFSTREAM AEROSPACE GIV-X (G450))"]
["N889ML (2011 EMBRAER ERJ 190-100 ECJ)"]
["N889ST (2014 BOMBARDIER INC BD-700-1A11)"]
["N889UP (2018 TEXTRON AVIATION INC B300)"]
["N88AY (2011 GULFSTREAM AEROSPACE GV-SP (G550))"]
["N890A (2012 GULFSTREAM AEROSPACE GV-SP (G550))"]
["N890DA (2005 GULFSTREAM AEROSPACE GV-SP (G550))"]
["N890UP (2018 TEXTRON AVIATION INC B300)"]
["N891UP (2018 TEXTRON AVIATION INC B300)"]
["N892GL (AIRBUS A320-200)"]
["N892UP (2018 TEXTRON AVIATION INC B300)"]
["N893CC (2015 BOMBARDIER INC BD-700-1A11)"]
["N893UP (2018 TEXTRON AVIATION INC B300)"]
["N897NH (2018 TEXTRON AVIATION INC 525C)"]
["N89888 (1997 GULFSTREAM AEROSPACE G-IV)"]
["N898AK (2001 BOMBARDIER INC CL-600-2B16)"]
["N898CH (2017 GULFSTREAM AEROSPACE CORP GVI (G650))"]
["N898NC (2015 GULFSTREAM AEROSPACE GVI (G650ER))"]
["N8998K (2013 BOMBARDIER INC BD-700-1A10)"]
["N899FS (2015 GULFSTREAM AEROSPACE GIV-X (G450))"]
["N899KK (2011 BOMBARDIER INC CL-600-2B16)"]
["N899NC (2012 GULFSTREAM AEROSPACE GV-SP (G550))"]
["N899NH (2013 CESSNA 525C)"]
["N899ST (2009 BOMBARDIER INC CL-600-2B16)"]
["N899YF (2015 GULFSTREAM AEROSPACE CORP GVI (G650))"]
["N89NC (2004 GULFSTREAM AEROSPACE GV-SP (G550))"]
["N8AL (2019 GULFSTREAM AEROSPACE GVI (G650ER))"]
["N8RY (1980 PIPER PA-42)"]
["N900EU (2007 DASSAULT AVIATION FALCON 900EX)"]
["N900NC (2018 GULFSTREAM AEROSPACE GVI (G650ER))"]
["N900UC (2001 BOMBARDIER INC CL-600-2B16)"]
["N901BC (1987 SAAB-SCANIA AB SF-340-A)"]
["N901DK (2004 CESSNA 560XL)"]
["N901DN (2018 BOEING 737-900ER)"]
["N901JT (AIRBUS A321-231)"]
["N901RH (1987 CESSNA 650)"]
["N901S (2006 CESSNA 680)"]
["N902DN (2018 BOEING 737-900ER)"]
["N902MY (2014 BOMBARDIER INC BD-700-1A11)"]
["N902SF (1970 BELL OH-58A)"]
["N904AE (SAAB-SCANIA SAAB 340B)"]
["N904AM (2004 BOEING 737-752)"]
["N904CD (2006 CIRRUS DESIGN CORP SR22)"]
["N904G (2006 GULFSTREAM AEROSPACE GV-SP (G550))"]
["N905G (2015 IAI LTD GULFSTREAM G280)"]
["N90603 (MESSERSCHMITT ME 109 C4K)"]
["N90607 (MESSERSCHMITT ME 109 C4K)"]
["N906BP (2011 BOMBARDIER INC BD-100-1A10)"]
["N906FS (2015 GULFSTREAM AEROSPACE GV-SP (G550))"]
["N907AS (1989 BRITISH AEROSPACE BAE 146 SERIES 200A)"]
["N907WC (1989 CANADAIR LTD CL-600-2B16)"]
["N908AS (BRITISH AEROSPACE BAE 146 SERIES 200A)"]
["N908VZ (2015 GULFSTREAM AEROSPACE GIV-X (G450))"]
["N9099H (2013 BOMBARDIER INC BD-700-1A10)"]
["N90FB (2003 RAYTHEON AIRCRAFT COMPANY HAWKER 800XP)"]
["N912AS (BRITISH AEROSPACE BAE 146 SERIES 200)"]
["N914UF (2016 BELL HELICOPTER TEXTRON CANADA 407)"]
["N915JG (2002 BOMBARDIER INC BD-700-1A10)"]
["N915JH (1980 CESSNA T210N)"]
["N916NK (2019 AIRBUS A320-271N)"]
["N917NK (2019 AIRBUS A320-271N)"]
["N918AV (1982 MCDONNELL DOUGLAS DC-9-82(MD-82))"]
["N918HD (GULFSTREAM AEROSPACE G-1159A)"]
["N918RZ (2012 CESSNA 560XL)"]
["N918ST (2008 CESSNA 510)"]
["N919NK (2019 AIRBUS A320-271N)"]
["N919SB (2014 GULFSTREAM AEROSPACE CORP GVI)"]
["N91EA (2002 BOMBARDIER INC CL-600-2B19)"]
["N91KA (BEECH C90)"]
["N920BD (2004 CIRRUS DESIGN CORP SR22)"]
["N920DU (2019 BOEING 737-900ER)"]
["N921BC (1984 SAAB-FAIRCHILD 340A)"]
["N921DU (2019 BOEING 737-900ER)"]
["N921MC (2015 SOCATA TBM 700)"]
["N921NK (2019 AIRBUS A320-271N)"]
["N921VA (2017 AIRBUS A321-253N)"]
["N922DZ (2019 BOEING 737-900ER)"]
["N922NK (2019 AIRBUS A320-271N)"]
["N922VA (2017 AIRBUS A321-253N)"]
["N923EA (2005 DASSAULT FALCON 900 EX)"]
["N923LC (1992 BOEING 737-55S)"]
["N923NK (2019 AIRBUS A320-271N)"]
["N923VA (2017 AIRBUS A321-253N)"]
["N925CA (GATES LEARJET CORP. 35A)"]
["N926VA (2018 AIRBUS A321-253N)"]
["N928AV (MCDONNELL DOUGLAS AIRCRAFT CO MD 83)"]
["N928DZ (SIKORSKY S-76C)"]
["N928PH (2011 SIKORSKY S-92A)"]
["N928VA (2018 AIRBUS A321-253N)"]
["N929VA (2019 AIRBUS A321-253N)"]
["N92EA (2002 BOMBARDIER INC CL-600-2B19)"]
["N92MK (2007 CESSNA 750)"]
["N930EE (2018 COMPAGNIE DAHER TBM 700)"]
["N930JG (1993 DASSAULT AVIATION MYSTERE-FALCON 50)"]
["N930JL (AIRBUS A321-231)"]
["N930PT (RAYTHEON AIRCRAFT COMPANY HAWKER 800XP)"]
["N930TD (2018 COMPAGNIE DAHER TBM 700)"]
["N930VA (2019 AIRBUS A321-253N)"]
["N9311P (2011 CESSNA T206H)"]
["N931DW (2017 CIRRUS DESIGN CORP SR22T)"]
["N931JT (AIRBUS A321-231)"]
["N932EA (BEECH 400A)"]
["N934TQ (2010 BOMBARDIER INC CL-600-2B16)"]
["N935TA (2008 EMBRAER ERJ 190-100 IGW)"]
["N936PH (2012 SIKORSKY S-92A)"]
["N936TA (2008 EMBRAER ERJ 190-100 IGW)"]
["N937DJ (1976 BEECH F33A)"]
["N937TA (2008 EMBRAER ERJ 190-100 IGW)"]
["N938TA (2008 EMBRAER ERJ 190-100 IGW)"]
["N939AP (BOMBARDIER INC BD-700-1A11)"]
["N939GS (2014 BOMBARDIER INC BD-700-1A11)"]
["N939ML (2019 GULFSTREAM AEROSPACE CORP GVII-G500)"]
["N93KQ (2013 QUEST AIRCRAFT COMPANY LLC KODIAK 100)"]
["N93NS (2004 BOMBARDIER INC BD-100-1A10)"]
["N93NX (2013 PILATUS AIRCRAFT LTD PC-12/47E)"]
["N940PH (2013 SIKORSKY S-92A)"]
["N940TT (2008 GULFSTREAM AEROSPACE GV-SP (G550))"]
["N940VA (1998 RAYTHEON AIRCRAFT COMPANY 400A)"]
["N94AD (2018 CIRRUS DESIGN CORP SF50)"]
["N94JL (2010 GULFSTREAM AEROSPACE GIV-X (G450))"]
["N94MD (1989 EUROCOPTER AS365N3)"]
["N950CM (2017 GULFSTREAM AEROSPACE GVI (G650ER))"]
["N953JM (BOEING 747-438)"]
["N954L (2010 BOMBARDIER INC BD-700-1A11)"]
["N954MC (1975 CESSNA 421B)"]
["N957CP (2012 DASSAULT AVIATION FALCON 2000EX)"]
["N957EC (1979 AVION MARCEL DASSAULT BREGUET FALCON 10)"]
["N95JK (1980 ISRAEL AIRCRAFT INDUSTRIES 1124)"]
["N961TC (2013 BOMBARDIER INC CL-600-2B16)"]
["N962SK (2009 SIKORSKY S-92A)"]
["N963CH (2015 IAI LTD GULFSTREAM G150)",{"$f":"TRIM(LEFT(A1418,SEARCH(\" \",A1418)))","v":"N963CH"},{"$f":"MATCH(B1418,'[1]JETNET Data'!$D:$D,0)","v":209}]
["N965HA (DEHAVILLAND DHC-8-202)"]
["N968BX (2015 BOMBARDIER INC BD-700-1A10)"]
["N968P (RAYTHEON AIRCRAFT COMPANY A36)"]
["N968TC (2009 CESSNA 208)"]
["N969GC (2014 EMBRAER S A EMB-505)"]
["N969TC (2011 CESSNA 208)"]
["N969WR (2018 IAI LTD GULFSTREAM G280)"]
["N96PB (2006 CESSNA 525B)"]
["N970NX (2014 BOMBARDIER INC BD-700-1A11)"]
["N973VK (VIKING AIR LIMITED DHC-6-400)"]
["N976JM (BOEING 737-700)"]
["N976TR (2013 SIKORSKY AIRCRAFT CORP S-76D)"]
["N976TW (1999 MCDONNELL DOUGLAS DC-9-83(MD-83))"]
["N977HS (2012 GULFSTREAM AEROSPACE GV-SP (G550))"]
["N977JG (2000 BOEING 737-73Q)"]
["N977JP (1997 LEARJET INC 31A)"]
["N977VH (2008 ECLIPSE AVIATION CORP EA500)"]
["N977XL (1997 PILATUS PC-12/45)"]
["N978B (1961 BEECH D50E)"]
["N978V (2014 AGUSTAWESTLAND PHILADELPHIA AW139)"]
["N97MD (EUROCOPTER AS365N3)"]
["N980VK (VIKING AIR LIMITED DHC-6-400)"]
["N982CA (1986 MCDONNELL DOUGLAS DC-9-83(MD-83))"]
["N988HK (2012 GULFSTREAM AEROSPACE GVI (G650ER))"]
["N988NC (2018 GULFSTREAM AEROSPACE GVI (G650ER))"]
["N989SF (2007 BOMBARDIER INC BD-700-1A10)"]
["N98CP (1985 HUGHES HELICOPTERS INC 369E)"]
["N990HA (2009 DASSAULT AVIATION FALCON 7X)"]
["N991JS (2018 GULFSTREAM AEROSPACE GV-SP (G550))"]
["N991PS (2009 HAWKER BEECHCRAFT CORP HAWKER 900XP)"]
["N992SK (2008 SIKORSKY S-92A)"]
["N992WS (2017 HONDA AIRCRAFT CO LLC HA-420)"]
["N992YC (1971 BELL OH-58A)"]
["N993AM (2012 DASSAULT AVIATION FALCON 900EX)"]
["N994WS (2018 HONDA AIRCRAFT CO LLC HA-420)"]
["N996WS (2018 HONDA AIRCRAFT CO LLC HA-420)"]
["N997AM (BOEING 737-76Q)"]
["N997WA (2008 HAWKER BEECHCRAFT CORP HAWKER 900XP)"]
["N998PB (2014 GULFSTREAM AEROSPACE GVI (G650ER))"]
["N9997X (2008 DASSAULT AVIATION FALCON 7X)"]
["N999DF (2014 GULFSTREAM AEROSPACE GVI (G650ER))"]
["N999GY (1998 CESSNA 750)"]
["N999YV (1987 BOEING 767-241)"]
["N99DM (2009 GULFSTREAM AEROSPACE GV-SP (G550))"]
["N99KZ (2017 GULFSTREAM AEROSPACE GVI (G650ER))"]
["N9CJ (1991 SAAB-SCANIA SAAB 340B)"]
["N9NC (1978 CESSNA 414A)"]
[]
["© 2022, Aircraft Data"]
[]
[]
[]
[]
[]
[]
[]
[]
[]
[]
[]
[null,null,null,null,null,null,"N150CT"]
[null,null,null,null,null,null,"N248SL"]
[null,null,null,null,null,null,"N469DM"]
[null,null,null,null,null,null,"N885TC"]
[null,null,null,null,null,null,"N57RG"]
[null,null,null,null,null,null,"N557GA"]
[null,null,null,null,null,null,"N963CH"]

{"sheet":"Sheet3","index":2,"n_rows":125,"n_cols":15,"rows_kept":125,"cut":false,"hidden":false,"merged":[]}
[null,"REGNBR",null,null,null,null,null,null,null,null,"NAME","STREET","CITY","STATE","ZIP CODE"]
[null,"9H-LAR",null,null,null,null,null,null,{"$f":"\"N\"&J2","v":"N100GX"},"100GX","BRULECREEK AVIATION LLC","7 EAGLE VIEW CT","PARK CITY","UT",840606864]
[null,"CC-AOA",null,null,null,null,null,null,{"$f":"\"N\"&J3","v":"N100SR"},"100SR","RAYMAN STEVEN M TRUSTEE","47W210 RT 30","BIG ROCK","IL",60511]
[null,"CC-CWK",null,null,null,null,null,null,"N101RX","101RX","TEALL CAPITAL PARTNERS LLC","PO BOX 21528","WINSTON SALEM","NC",271201528]
[null,"C-FKAI",null,null,null,null,null,null,"N10RZ","10RZ","PEREGRINE FALCON LLC TRUSTEE","6225 N MEEKER PL STE 100","BOISE","ID",837131579]
[null,"C-FMDN",null,null,null,null,null,null,"N116NC","116NC","BENSON LEGACY LLC","7120 POINTE INVERNESS WAY","FORT WAYNE","IN",468047928]
[null,"C-FREE",null,null,null,null,null,null,"N123QU","123QU","DORADO AVIATION LLC","100 CAR 165 STE 508 CENTRO INTL","GUAYNABO","PR",9688052]
[null,"C-FTXX",null,null,null,null,null,null,"N12WF","12WF","PNC EQUIPMENT FINANCE LLC","4355 W EMERALD ST STE 100","BOISE","ID",837062053]
[null,"C-FWXR",null,null,null,null,null,null,"N13WF","13WF","TRUIST EQUIPMENT FINANCE CORP","245 PEACHTREE CENTER AVE NE","ATLANTA","GA",303031231]
[null,"C-GGGT",null,null,null,null,null,null,"N150CT","150CT","BANK OF UTAH TRUSTEE","50 S 200 E STE 110","SALT LAKE CITY","UT",841111617]
[null,"C-GPRN",null,null,null,null,null,null,"N150GA","150GA","GULFSTREAM LEASING LLC","M/S B-16","SAVANNAH","GA",31407]
[null,"C-GWQM",null,null,null,null,null,null,"N150GV","150GV","GULFSTREAM LEASING LLC","500 GULFSTREAM RD","SAVANNAH","GA",314089643]
[null,"C-GXNW",null,null,null,null,null,null,"N150JN","150JN","KOSELIG LLC","27821 36TH AVE NW","STANWOOD","WA",982929461]
[null,"C-GZCZ",null,null,null,null,null,null,"N150MT","150MT","GH CONSULTING SERVICES LLC","14747 N NORTHSIGHT BLVD","SCOTTSDALE","AZ",85260]
[null,"M-FAST",null,null,null,null,null,null,"N150QA","150QA","TVPX AIRCRAFT SOLUTIONS INC TRUSTEE","39 E EAGLE RIDGE DR STE 201","NORTH SALT LAKE","UT",840542533]
[null,"N100GX",null,null,null,null,null,null,"N151PW","151PW","TALON TACTICAL MANAGEMENT LLC","9 E LOOCKERMAN ST STE 311","DOVER","DE",199018305]
[null,"N100SR",null,null,null,null,null,null,"N15PV","15PV","TERRIBLE HERBST INC","5195 LAS VEGAS BLVD S","LAS VEGAS","NV",891193209]
[null,"N101RX",null,null,null,null,null,null,"N175MG","175MG","MERLONE GEIER MANAGEMENT LLC","425 CALIFORNIA ST FL 11","SAN FRANCISCO","CA",941042113]
[null,"N10RZ",null,null,null,null,null,null,"N1924D","1924D","N995DP LLC","204 QUIGLEY BLVD","NEW CASTLE","DE",197204106]
[null,"N116NC",null,null,null,null,null,null,"N192SW","192SW","CAF LLC","315 W 3RD ST","PITTSBURG","KS",667624706]
[null,"N123QU",null,null,null,null,null,null,"N1ED","1ED","DBCT LLC","7620 MARKET ST","YOUNGSTOWN","OH",445126078]
[null,"N12WF",null,null,null,null,null,null,"N1HE","1HE","CONQUEST AIR LLC","1101 CRADDUCK RD STE B","ADA","OK",748208523]
[null,"N13WF",null,null,null,null,null,null,"N209AW","209AW","BLUE STAR MANAGEMENT LLC","PO BOX 686","CRAIG","AK",999210686]
[null,"N150CT",null,null,null,null,null,null,"N20TW","20TW","JET IT LLC","125 S ELM STE 300","GREENSBORO","NC",27401]
[null,"N150GA",null,null,null,null,null,null,"N217MS","217MS","GS 150-217 LLC","303 W MADISON ST STE 1000","CHICAGO","IL",606063321]
[null,"N150GV",null,null,null,null,null,null,"N224GG","224GG","GATOR TRACKS LLC","70 READY AVE NW","FORT WALTON BEACH","FL",325483857]
[null,"N150JN",null,null,null,null,null,null,"N22G","22G","GOODYEAR TIRE & RUBBER CO","200 E INNOVATION WAY","AKRON","OH",443160001]
[null,"N150MT",null,null,null,null,null,null,"N23EW","23EW","ENCORE WIRE CORP","1329 MILLWOOD RD","MCKINNEY","TX",750697157]
[null,"N150QA",null,null,null,null,null,null,"N247PS","247PS","GULFSTREAM AEROSPACE CORP","500 GULFSTREAM RD","SAVANNAH","GA",31407]
[null,"N151PW",null,null,null,null,null,null,"N248SL","248SL","BANK OF UTAH TRUSTEE","50 SOUTH 200 EAST STE 110","SALT LAKE CITY","UT",84111]
[null,"N15PV",null,null,null,null,null,null,"N24G","24G","GOODYEAR TIRE & RUBBER CO","200 INNOVATION WAY","AKRON","OH",443160001]
[null,"N175MG",null,null,null,null,null,null,"N25HQ","25HQ","JETHQ LLC","15250 N WILDCAT CREEK RD","HAYDEN","ID",838355021]
[null,"N1924D",null,null,null,null,null,null,"N27KB","27KB","3KB INVESTMENTS LLC","180 W 13TH ST","WILMINGTON","DE",19801]
[null,"N192SW",null,null,null,null,null,null,"N285GA","285GA","PFC HOLDINGS LLC","16180 HIGHLAND DR","SPRING LAKE","MI",494562306]
[null,"N1ED",null,null,null,null,null,null,"N29JW","29JW","SCHUSSBOOMER SYSTEMS INC","PO BOX 1420","ANACORTES","WA",982216420]
[null,"N1HE",null,null,null,null,null,null,"N307GP","307GP","AIR CASHMERE LLC","ATTN CLAYTON CHRISTOPHER","AUSTIN","TX",787045505]
[null,"N209AW",null,null,null,null,null,null,"N318KS","318KS","MMTH AIR LLC","601 E WYANDOTTE ST","MERIDEN","KS",665129169]
[null,"N20TW",null,null,null,null,null,null,"N360AV","360AV","M3 INDUSTRIES LLC","660 S FIGUEROA ST STE 1888","LOS ANGELES","CA",900173433]
[null,"N217MS",null,null,null,null,null,null,"N365GA","365GA","GULFSTREAM LEASING LLC","500 GULFSTREAM RD M/S B-16","SAVANNAH","GA",31407]
[null,"N224GG",null,null,null,null,null,null,"N365SS","365SS","STALLINGS ROBERT W","5242 BUENA VISTA DR","FRISCO","TX",750342251]
[null,"N22G",null,null,null,null,null,null,"N375AB","375AB","ALPHA BRAVO AVIATION LLC","2895 W CAPOVILLA AVE STE 140","LAS VEGAS","NV",891194336]
[null,"N23EW",null,null,null,null,null,null,"N390KX","390KX","KNIGHT AIR LLC","20002 NORTH 19TH AVE","PHOENIX","AZ",85027]
[null,"N247PS",null,null,null,null,null,null,"N3FS","3FS","DDMR LLC","11201 CORPORATE CIR N STE 120","SAINT PETERSBURG","FL",337163701]
[null,"N248SL",null,null,null,null,null,null,"N428JD","428JD","DEWBERRY AIR LLC","1545 PEACHTREE ST NW STE 250","ATLANTA","GA",30309]
[null,"N24G",null,null,null,null,null,null,"N458TB","458TB","M3 AVIATION LLC","7033 E GREENWAY PKWY STE 100","SCOTTSDALE","AZ",852542076]
[null,"N27KB",null,null,null,null,null,null,"N469DM","469DM","D&I TRANSPORTATION LLC","333 W FRANKLIN ST","TUPELO","MS",388043933]
[null,"N285GA",null,null,null,null,null,null,"N480JJ","480JJ","JIMMIE JOHNSON RACING II INC","370 E MAPLE RD FL 4","BIRMINGHAM","MI",480096303]
[null,"N29JW",null,null,null,null,null,null,"N501RP","501RP","PTS AS LLC","2675 MORGANTOWN RD","READING","PA",196079676]
[null,"N318KS",null,null,null,null,null,null,"N503RP","503RP","PTS AS LLC","2675 MORGANTOWN RD","READING","PA",196079676]
[null,"N360AV",null,null,null,null,null,null,"N508RP","508RP","TVPX AIRCRAFT SOLUTIONS INC TRUSTEE","39 E EAGLE RIDGE DR STE 201","NORTH SALT LAKE","UT",840542533]
[null,"N365GA",null,null,null,null,null,null,"N511CT","511CT","ATG AVIATION LLC","125 SOUTH ELM STE 300","GREENSBORO","NC",27401]
[null,"N365SS",null,null,null,null,null,null,"N518KH","518KH","GOLDEN EAGLE MANAGEMENT LLC","3011 AMERICAN WAY","MISSOULA","MT",598081921]
[null,"N375AB",null,null,null,null,null,null,"N530LD","530LD","4 LOVE OF FLIGHT LLC","16150 FITZHUGH RD","DRIPPING SPRINGS","TX",786205190]
[null,"N390KX",null,null,null,null,null,null,"N531GP","531GP","BLUE FLAG TWO LTD","PO BOX 3806","DAYTON","OH",454013806]
[null,"N3FS",null,null,null,null,null,null,"N546MM","546MM","IES LEASING LLC","8641 UNITED PLAZA BLVD STE 102","BATON ROUGE","LA",708097033]
[null,"N428JD",null,null,null,null,null,null,"N553CB","553CB","N553CB LLC","BO SALDINERA","DORADO","PR",6462000]
[null,"N458TB",null,null,null,null,null,null,"N557GA","557GA","BANK OF UTAH TRUSTEE","50 SOUTH 200 EAST STE 110","SALT LAKE CITY","UT",84111]
[null,"N469DM",null,null,null,null,null,null,"N57RG","57RG","BANK OF UTAH TRUSTEE","50 SOUTH 200 EAST STE 110","SALT LAKE CITY","UT",84111]
[null,"N480JJ",null,null,null,null,null,null,"N581SF","581SF","FKM ENTERPRISES LLC","29 PINE RD","NORTH OAKS","MN",551276471]
[null,"N501RP",null,null,null,null,null,null,"N5950C","5950C","BRAVO ZULU G150 LLC","2186 E CENTRE AVE","PORTAGE","MI",490024420]
[null,"N503RP",null,null,null,null,null,null,"N611NC","611NC","TRIDENT AIRCRAFT INC","9475 JET LN","EASTON","MD",216017059]
[null,"N508RP",null,null,null,null,null,null,"N622SF","622SF","SANDERSON FARMS INC","127 FLYNT RD","LAUREL","MS",394439062]
[null,"N511CT",null,null,null,null,null,null,"N636SF","636SF","SANDERSON FARMS INC","127 FLYNT RD","LAUREL","MS",394439062]
[null,"N518KH",null,null,null,null,null,null,"N637SF","637SF","SANDERSON FARMS INC","127 FLYNT RD","LAUREL","MS",394439062]
[null,"N530LD",null,null,null,null,null,null,"N639SF","639SF","SANDERSON FARMS INC","127 FLYNT RD","LAUREL","MS",394439062]
[null,"N531GP",null,null,null,null,null,null,"N650DH","650DH","DRURY DEVELOPMENT CORP","13075 MANCHESTER RD STE 200","SAINT LOUIS","MO",631311836]
[null,"N546MM",null,null,null,null,null,null,{"$f":"\"N\"&J67","v":"N651DH"},"651DH","DRURY DEVELOPMENT CORP","721 EMERSON RD STE 200","SAINT LOUIS","MO",631416755]
[null,"N553CB",null,null,null,null,null,null,"N67KP","67KP","MARIVEST SUPPORT SERVICES LLC","1500 E 27TH TER","PITTSBURG","KS",667622757]
[null,"N557GA",null,null,null,null,null,null,"N6950C","6950C","MILLOAKS LLC","1978 S WEST TEMPLE","SALT LAKE CITY","UT",841157103]
[null,"N57RG",null,null,null,null,null,null,"N700FA","700FA","JET FLIGHT LLC","1312 N HEARNE AVE","SHREVEPORT","LA",711076516]
[null,"N581SF",null,null,null,null,null,null,"N703HA","703HA","FULL SEND AVIATION LLC","109 RALEIGH ST","WILMINGTON","NC",28412]
[null,"N5950C",null,null,null,null,null,null,"N705AK","705AK","FAMILY TREE FARMS AVIATION LLC","PO BOX 396","DINUBA","CA",936180396]
[null,"N611NC",null,null,null,null,null,null,"N719KX","719KX","MARTIS HOLDINGS LLC","19054 N 97TH PL","SCOTTSDALE","AZ",852556267]
[null,"N622SF",null,null,null,null,null,null,"N722SW","722SW","GATOR ONE AIR LLC","4481 LEGENDARY DR UNIT 200","DESTIN","FL",32541]
[null,"N636SF",null,null,null,null,null,null,"N730GA","730GA","BTI AVIATION LLC","1 S NEVADA AVE STE 200","COLORADO SPRINGS","CO",809031809]
[null,"N637SF",null,null,null,null,null,null,"N754SC","754SC","SOUTHERN CROSS AIRCRAFT LLC","1120 NW 51ST CT","FORT LAUDERDALE","FL",333093138]
[null,"N639SF",null,null,null,null,null,null,"N77709",77709,"MILLER'S INC","610 E JEFFERSON ST","PITTSBURG","KS",667625913]
[null,"N650DH",null,null,null,null,null,null,"N777FL","777FL","AGNES LLC","600 BEACH ST","ASHLAND","OR",975203215]
[null,"N651DH",null,null,null,null,null,null,"N787BN","787BN","OMNINET CAPITAL LLC","9420 WILSHIRE BLVD STE 400","BEVERLY HILLS","CA",902123151]
[null,"N67KP",null,null,null,null,null,null,"N802RR","802RR","SAGE AIR LLC","215 S STATE ST STE 1200","SALT LAKE CITY","UT",841112334]
[null,"N6950C",null,null,null,null,null,null,"N80WB","80WB","WB ATS LLC","1455 SW BROADWAY STE 1700","PORTLAND","OR",972013412]
[null,"N700FA",null,null,null,null,null,null,"N813HD","813HD","SWCF HOLDINGS LLC","511 W BAY ST STE 400","TAMPA","FL",336062700]
[null,"N703HA",null,null,null,null,null,null,"N819AM","819AM","N819AM LLC","2600 CAMINO RAMON STE 201","SAN RAMON","CA",945835000]
[null,"N705AK",null,null,null,null,null,null,"N876GH","876GH","TVPX ARS INC TRUSTEE","39 E EAGLE RIDGE DR STE 201","NORTH SALT LAKE","UT",840542533]
[null,"N719KX",null,null,null,null,null,null,"N8821C","8821C","JVWL LLC","9240 EXCELSIOR AVE","HANFORD","CA",932309164]
[null,"N722SW",null,null,null,null,null,null,"N885TC","885TC","BANK OF UTAH TRUSTEE","50 S 200 E STE 110","SALT LAKE CITY","UT",841111617]
[null,"N730GA",null,null,null,null,null,null,"N901SS","901SS","TWO STAR MARITIME LLC","4725 THORNTON AVE","FREMONT","CA",945366408]
[null,"N7476C",null,null,null,null,null,null,"N922LR","922LR","CAPITAL HOLDINGS 210 LLC","117 SALEM CHURCH RD","NEWARK","DE",197132940]
[null,"N77709",null,null,null,null,null,null,"N928ST","928ST","FLYING BAR B LLC","3500 E DEER HOLLOW DR","SANDY","UT",84092]
[null,"N777FL",null,null,null,null,null,null,"N935GB","935GB","SCHNEIDER NATIONAL INC","3101 PACKERLAND DR","GREEN BAY","WI",543136187]
[null,"N787BN",null,null,null,null,null,null,"N963CH","963CH","BANK OF UTAH TRUSTEE","50 SOUTH 200 EAST STE 110","SALT LAKE CITY","UT",84111]
[null,"N802RR",null,null,null,null,null,null,"N96AD","96AD","ALTAIR ADVANCED INDUSTRIES INC","1680 W BAKERVIEW RD","BELLINGHAM","WA",982269181]
[null,"N80WB",null,null,null,null,null,null,"N"]
[null,"N819AM"]
[null,"N876GH"]
[null,"N8821C"]
[null,"N885TC"]
[null,"N901SS"]
[null,"N922LR"]
[null,"N928ST"]
[null,"N935GB"]
[null,"N963CH"]
[null,"N96AD"]
[null,"OH-WIL"]
[null,"PP-ESV"]
[null,"PR-CBA"]
[null,"PR-FVJ"]
[null,"PR-SMG"]
[null,"PS-CMP"]
[null,"RP-C5168"]
[null,"RP-C8150"]
[null,"SP-TBF"]
[null,"T7-DSD"]
[null,"TC-AEH"]
[null,"TP-08"]
[null,"VH-OVG"]
[null,"VH-PFV"]
[null,"VH-PFW"]
[null,"VT-GKB"]
[null,"VT-KZN"]
[null,"XA-CHY"]
[null,"XA-CPL"]
[null,"XA-JCZ"]
[null,"XC-LOI"]
[null,"YV3119"]

{"sheet":"Sheet2","index":3,"n_rows":37,"n_cols":4,"rows_kept":37,"cut":false,"hidden":false,"merged":[]}
[]
["N100GX (2007)",{"$f":"geturl(A2)","v":"https://aircraft-data.com/N100GX"},{"$f":"IFERROR(TRIM(LEFT(A2,SEARCH(\" \",A2))),TRIM(A2))","v":"N100GX"},{"$f":"MATCH(C2,'[1]JETNET Data'!$D:$D,0)","v":47}]
["N100SR (2007)",{"$f":"geturl(A3)","v":"https://aircraft-data.com/N100SR"},{"$f":"IFERROR(TRIM(LEFT(A3,SEARCH(\" \",A3))),TRIM(A3))","v":"N100SR"},{"$f":"MATCH(C3,'[1]JETNET Data'!$D:$D,0)","v":45}]
["N120RC (2007)",{"$f":"geturl(A4)","v":"https://aircraft-data.com/N120RC"},"N120RC",{"$f":"MATCH(C4,'[1]JETNET Data'!$D:$D,0)","v":{"$error":"#N/A"}}]
["N150CT (2006)",{"$f":"geturl(A5)","v":"https://aircraft-data.com/N150CT"},"N150CT",{"$f":"MATCH(C5,'[1]JETNET Data'!$D:$D,0)","v":11}]
["N150GV (2007)",{"$f":"geturl(A6)","v":"https://aircraft-data.com/N150GV"},"N150GV",{"$f":"MATCH(C6,'[1]JETNET Data'!$D:$D,0)","v":2}]
["N150KM (2006)",{"$f":"geturl(A7)","v":"https://aircraft-data.com/N150KM"},"N150KM",{"$f":"MATCH(C7,'[1]JETNET Data'!$D:$D,0)","v":{"$error":"#N/A"}}]
["N150MT (2007)",{"$f":"geturl(A8)","v":"https://aircraft-data.com/N150MT"},"N150MT",{"$f":"MATCH(C8,'[1]JETNET Data'!$D:$D,0)","v":31}]
["N192SW (2006)",{"$f":"geturl(A9)","v":"https://aircraft-data.com/N192SW"},"N192SW",{"$f":"MATCH(C9,'[1]JETNET Data'!$D:$D,0)","v":25}]
["N1HE (2007)",{"$f":"geturl(A10)","v":"https://aircraft-data.com/N1HE"},"N1HE",{"$f":"MATCH(C10,'[1]JETNET Data'!$D:$D,0)","v":28}]
["N217MS (2007)",{"$f":"geturl(A11)","v":"https://aircraft-data.com/N217MS"},"N217MS",{"$f":"MATCH(C11,'[1]JETNET Data'!$D:$D,0)","v":27}]
["N222LR (2007)",{"$f":"geturl(A12)","v":"https://aircraft-data.com/N222LR"},"N222LR",{"$f":"MATCH(C12,'[1]JETNET Data'!$D:$D,0)","v":{"$error":"#N/A"}}]
["N224GG",{"$f":"geturl(A13)","v":"https://aircraft-data.com/N224GG"},"N224GG",{"$f":"MATCH(C13,'[1]JETNET Data'!$D:$D,0)","v":40}]
["N247PS (2006)",{"$f":"geturl(A14)","v":"https://aircraft-data.com/N247PS"},"N247PS",{"$f":"MATCH(C14,'[1]JETNET Data'!$D:$D,0)","v":23}]
["N248SL (2006)",{"$f":"geturl(A15)","v":"https://aircraft-data.com/N248SL"},"N248SL",{"$f":"MATCH(C15,'[1]JETNET Data'!$D:$D,0)","v":16}]
["N29JW (2006)",{"$f":"geturl(A16)","v":"https://aircraft-data.com/N29JW"},"N29JW",{"$f":"MATCH(C16,'[1]JETNET Data'!$D:$D,0)","v":6}]
["N360AV (2007)",{"$f":"geturl(A17)","v":"https://aircraft-data.com/N360AV"},"N360AV",{"$f":"MATCH(C17,'[1]JETNET Data'!$D:$D,0)","v":75}]
["N365GA (2007)",{"$f":"geturl(A18)","v":"https://aircraft-data.com/N365GA"},"N365GA",{"$f":"MATCH(C18,'[1]JETNET Data'!$D:$D,0)","v":41}]
["N373ML (2006)",{"$f":"geturl(A19)","v":"https://aircraft-data.com/N373ML"},"N373ML",{"$f":"MATCH(C19,'[1]JETNET Data'!$D:$D,0)","v":{"$error":"#N/A"}}]
["N428JD (2006)",{"$f":"geturl(A20)","v":"https://aircraft-data.com/N428JD"},"N428JD",{"$f":"MATCH(C20,'[1]JETNET Data'!$D:$D,0)","v":15}]
["N458TB (2007)",{"$f":"geturl(A21)","v":"https://aircraft-data.com/N458TB"},"N458TB",{"$f":"MATCH(C21,'[1]JETNET Data'!$D:$D,0)","v":77}]
["N511CT",{"$f":"geturl(A22)","v":"https://aircraft-data.com/N511CT"},"N511CT",{"$f":"MATCH(C22,'[1]JETNET Data'!$D:$D,0)","v":57}]
["N530GP (2006)",{"$f":"geturl(A23)","v":"https://aircraft-data.com/N530GP"},"N530GP",{"$f":"MATCH(C23,'[1]JETNET Data'!$D:$D,0)","v":{"$error":"#N/A"}}]
["N531GP (2006)",{"$f":"geturl(A24)","v":"https://aircraft-data.com/N531GP"},"N531GP",{"$f":"MATCH(C24,'[1]JETNET Data'!$D:$D,0)","v":10}]
["N532GP (2007)",{"$f":"geturl(A25)","v":"https://aircraft-data.com/N532GP"},"N532GP",{"$f":"MATCH(C25,'[1]JETNET Data'!$D:$D,0)","v":{"$error":"#N/A"}}]
["N5950C (2006)",{"$f":"geturl(A26)","v":"https://aircraft-data.com/N5950C"},"N5950C",{"$f":"MATCH(C26,'[1]JETNET Data'!$D:$D,0)","v":20}]
["N611NC (2007)",{"$f":"geturl(A27)","v":"https://aircraft-data.com/N611NC"},"N611NC",{"$f":"MATCH(C27,'[1]JETNET Data'!$D:$D,0)","v":38}]
["N614TP (2006)",{"$f":"geturl(A28)","v":"https://aircraft-data.com/N614TP"},"N614TP",{"$f":"MATCH(C28,'[1]JETNET Data'!$D:$D,0)","v":{"$error":"#N/A"}}]
["N703HA (2005)",{"$f":"geturl(A29)","v":"https://aircraft-data.com/N703HA"},"N703HA",{"$f":"MATCH(C29,'[1]JETNET Data'!$D:$D,0)","v":3}]
["N722SW (2007)",{"$f":"geturl(A30)","v":"https://aircraft-data.com/N722SW"},"N722SW",{"$f":"MATCH(C30,'[1]JETNET Data'!$D:$D,0)","v":50}]
["N77709 (2007)",{"$f":"geturl(A31)","v":"https://aircraft-data.com/N77709"},"N77709",{"$f":"MATCH(C31,'[1]JETNET Data'!$D:$D,0)","v":68}]
["N777FL (2006)",{"$f":"geturl(A32)","v":"https://aircraft-data.com/N777FL"},"N777FL",{"$f":"MATCH(C32,'[1]JETNET Data'!$D:$D,0)","v":21}]
["N787BN (2007)",{"$f":"geturl(A33)","v":"https://aircraft-data.com/N787BN"},"N787BN",{"$f":"MATCH(C33,'[1]JETNET Data'!$D:$D,0)","v":51}]
["N8821C (2007)",{"$f":"geturl(A34)","v":"https://aircraft-data.com/N8821C"},"N8821C",{"$f":"MATCH(C34,'[1]JETNET Data'!$D:$D,0)","v":43}]
["N8841C (2007)",{"$f":"geturl(A35)","v":"https://aircraft-data.com/N8841C"},"N8841C",{"$f":"MATCH(C35,'[1]JETNET Data'!$D:$D,0)","v":{"$error":"#N/A"}}]
["N928ST (2007)",{"$f":"geturl(A36)","v":"https://aircraft-data.com/N928ST"},"N928ST",{"$f":"MATCH(C36,'[1]JETNET Data'!$D:$D,0)","v":53}]
["N92AJ (2006)",{"$f":"geturl(A37)","v":"https://aircraft-data.com/N92AJ"},"N92AJ",{"$f":"MATCH(C37,'[1]JETNET Data'!$D:$D,0)","v":{"$error":"#N/A"}}]

{"sheet":"Compare JETNET-FAA","index":4,"n_rows":160,"n_cols":12,"rows_kept":160,"cut":false,"hidden":false,"merged":[[0,0,0,6],[0,7,0,11]]}
["JETNET Data",null,null,null,null,null,null,"FAA Registaration Data (4/7/2022)"]
["REGNBR","RELATIONTOAC","COMPANYNAME","COMPADDRESS1","COMPADDRESS2","COMPCITY","COMPSTATE",null,"NAME","STREET","CITY","STATE"]
["N150GV","Owner","Gulfstream Leasing, LLC","500 Gulfstream Road, Mail B-06",null,"Savannah","GA",{"$f":"A3","v":"N150GV"},{"$f":"INDEX(Sheet3!$I$1:$O$92,MATCH($A3,Sheet3!$I$1:$I$92,0),MATCH(I$2,Sheet3!$I$1:$O$1,0))","v":"GULFSTREAM LEASING LLC"},{"$f":"INDEX(Sheet3!$I$1:$O$92,MATCH($A3,Sheet3!$I$1:$I$92,0),MATCH(J$2,Sheet3!$I$1:$O$1,0))","v":"500 GULFSTREAM RD"},{"$f":"INDEX(Sheet3!$I$1:$O$92,MATCH($A3,Sheet3!$I$1:$I$92,0),MATCH(K$2,Sheet3!$I$1:$O$1,0))","v":"SAVANNAH"},{"$f":"INDEX(Sheet3!$I$1:$O$92,MATCH($A3,Sheet3!$I$1:$I$92,0),MATCH(L$2,Sheet3!$I$1:$O$1,0))","v":"GA"}]
["N703HA","Owner","Full Send Aviation, LLC","190 Raleigh Street",null,"Wilmington","NC",{"$f":"A4","v":"N703HA"},{"$f":"INDEX(Sheet3!$I$1:$O$92,MATCH($A4,Sheet3!$I$1:$I$92,0),MATCH(I$2,Sheet3!$I$1:$O$1,0))","v":"FULL SEND AVIATION LLC"},{"$f":"INDEX(Sheet3!$I$1:$O$92,MATCH($A4,Sheet3!$I$1:$I$92,0),MATCH(J$2,Sheet3!$I$1:$O$1,0))","v":"109 RALEIGH ST"},{"$f":"INDEX(Sheet3!$I$1:$O$92,MATCH($A4,Sheet3!$I$1:$I$92,0),MATCH(K$2,Sheet3!$I$1:$O$1,0))","v":"WILMINGTON"},{"$f":"INDEX(Sheet3!$I$1:$O$92,MATCH($A4,Sheet3!$I$1:$I$92,0),MATCH(L$2,Sheet3!$I$1:$O$1,0))","v":"NC"}]
["N530LD","Owner","4 Love of Flight, LLC","16150 Fitzhugh Road",null,"Dripping Springs","TX","N530LD",{"$f":"INDEX(Sheet3!$I$1:$O$92,MATCH($A5,Sheet3!$I$1:$I$92,0),MATCH(I$2,Sheet3!$I$1:$O$1,0))","v":"4 LOVE OF FLIGHT LLC"},{"$f":"INDEX(Sheet3!$I$1:$O$92,MATCH($A5,Sheet3!$I$1:$I$92,0),MATCH(J$2,Sheet3!$I$1:$O$1,0))","v":"16150 FITZHUGH RD"},{"$f":"INDEX(Sheet3!$I$1:$O$92,MATCH($A5,Sheet3!$I$1:$I$92,0),MATCH(K$2,Sheet3!$I$1:$O$1,0))","v":"DRIPPING SPRINGS"},{"$f":"INDEX(Sheet3!$I$1:$O$92,MATCH($A5,Sheet3!$I$1:$I$92,0),MATCH(L$2,Sheet3!$I$1:$O$1,0))","v":"TX"}]
["N7476C","Owner","Dodson International Parts, Inc.","2155 Vermont Road",null,"Rantoul","KS","N7476C",{"$f":"INDEX(Sheet3!$I$1:$O$92,MATCH($A6,Sheet3!$I$1:$I$92,0),MATCH(I$2,Sheet3!$I$1:$O$1,0))","v":{"$error":"#N/A"}},{"$f":"INDEX(Sheet3!$I$1:$O$92,MATCH($A6,Sheet3!$I$1:$I$92,0),MATCH(J$2,Sheet3!$I$1:$O$1,0))","v":{"$error":"#N/A"}},{"$f":"INDEX(Sheet3!$I$1:$O$92,MATCH($A6,Sheet3!$I$1:$I$92,0),MATCH(K$2,Sheet3!$I$1:$O$1,0))","v":{"$error":"#N/A"}},{"$f":"INDEX(Sheet3!$I$1:$O$92,MATCH($A6,Sheet3!$I$1:$I$92,0),MATCH(L$2,Sheet3!$I$1:$O$1,0))","v":{"$error":"#N/A"}}]
["N29JW","Operator","Schussboomer Systems, Inc.","P.O. Box 1420","317 Commercial Avenue","Anacortes","WA","N29JW",{"$f":"INDEX(Sheet3!$I$1:$O$92,MATCH($A7,Sheet3!$I$1:$I$92,0),MATCH(I$2,Sheet3!$I$1:$O$1,0))","v":"SCHUSSBOOMER SYSTEMS INC"},{"$f":"INDEX(Sheet3!$I$1:$O$92,MATCH($A7,Sheet3!$I$1:$I$92,0),MATCH(J$2,Sheet3!$I$1:$O$1,0))","v":"PO BOX 1420"},{"$f":"INDEX(Sheet3!$I$1:$O$92,MATCH($A7,Sheet3!$I$1:$I$92,0),MATCH(K$2,Sheet3!$I$1:$O$1,0))","v":"ANACORTES"},{"$f":"INDEX(Sheet3!$I$1:$O$92,MATCH($A7,Sheet3!$I$1:$I$92,0),MATCH(L$2,Sheet3!$I$1:$O$1,0))","v":"WA"}]
["N29JW","Owner","Schussboomer Systems, Inc.","P.O. Box 1420","317 Commercial Avenue","Anacortes","WA","N29JW",{"$f":"INDEX(Sheet3!$I$1:$O$92,MATCH($A8,Sheet3!$I$1:$I$92,0),MATCH(I$2,Sheet3!$I$1:$O$1,0))","v":"SCHUSSBOOMER SYSTEMS INC"},{"$f":"INDEX(Sheet3!$I$1:$O$92,MATCH($A8,Sheet3!$I$1:$I$92,0),MATCH(J$2,Sheet3!$I$1:$O$1,0))","v":"PO BOX 1420"},{"$f":"INDEX(Sheet3!$I$1:$O$92,MATCH($A8,Sheet3!$I$1:$I$92,0),MATCH(K$2,Sheet3!$I$1:$O$1,0))","v":"ANACORTES"},{"$f":"INDEX(Sheet3!$I$1:$O$92,MATCH($A8,Sheet3!$I$1:$I$92,0),MATCH(L$2,Sheet3!$I$1:$O$1,0))","v":"WA"}]
["N150QA","Operator","North Houston Pole Line","1608 Margaret Street",null,"Houston","TX","N150QA",{"$f":"INDEX(Sheet3!$I$1:$O$92,MATCH($A9,Sheet3!$I$1:$I$92,0),MATCH(I$2,Sheet3!$I$1:$O$1,0))","v":"TVPX AIRCRAFT SOLUTIONS INC TRUSTEE"},{"$f":"INDEX(Sheet3!$I$1:$O$92,MATCH($A9,Sheet3!$I$1:$I$92,0),MATCH(J$2,Sheet3!$I$1:$O$1,0))","v":"39 E EAGLE RIDGE DR STE 201"},{"$f":"INDEX(Sheet3!$I$1:$O$92,MATCH($A9,Sheet3!$I$1:$I$92,0),MATCH(K$2,Sheet3!$I$1:$O$1,0))","v":"NORTH SALT LAKE"},{"$f":"INDEX(Sheet3!$I$1:$O$92,MATCH($A9,Sheet3!$I$1:$I$92,0),MATCH(L$2,Sheet3!$I$1:$O$1,0))","v":"UT"}]
["N150QA","Owner","North Houston Pole Line","1608 Margaret Street",null,"Houston","TX","N150QA",{"$f":"INDEX(Sheet3!$I$1:$O$92,MATCH($A10,Sheet3!$I$1:$I$92,0),MATCH(I$2,Sheet3!$I$1:$O$1,0))","v":"TVPX AIRCRAFT SOLUTIONS INC TRUSTEE"},{"$f":"INDEX(Sheet3!$I$1:$O$92,MATCH($A10,Sheet3!$I$1:$I$92,0),MATCH(J$2,Sheet3!$I$1:$O$1,0))","v":"39 E EAGLE RIDGE DR STE 201"},{"$f":"INDEX(Sheet3!$I$1:$O$92,MATCH($A10,Sheet3!$I$1:$I$92,0),MATCH(K$2,Sheet3!$I$1:$O$1,0))","v":"NORTH SALT LAKE"},{"$f":"INDEX(Sheet3!$I$1:$O$92,MATCH($A10,Sheet3!$I$1:$I$92,0),MATCH(L$2,Sheet3!$I$1:$O$1,0))","v":"UT"}]
["N531GP","Owner","Blue Flag Two, Ltd.","P.O. Box 3806","110 N Main Street","Dayton","OH","N531GP",{"$f":"INDEX(Sheet3!$I$1:$O$92,MATCH($A11,Sheet3!$I$1:$I$92,0),MATCH(I$2,Sheet3!$I$1:$O$1,0))","v":"BLUE FLAG TWO LTD"},{"$f":"INDEX(Sheet3!$I$1:$O$92,MATCH($A11,Sheet3!$I$1:$I$92,0),MATCH(J$2,Sheet3!$I$1:$O$1,0))","v":"PO BOX 3806"},{"$f":"INDEX(Sheet3!$I$1:$O$92,MATCH($A11,Sheet3!$I$1:$I$92,0),MATCH(K$2,Sheet3!$I$1:$O$1,0))","v":"DAYTON"},{"$f":"INDEX(Sheet3!$I$1:$O$92,MATCH($A11,Sheet3!$I$1:$I$92,0),MATCH(L$2,Sheet3!$I$1:$O$1,0))","v":"OH"}]
["N150CT","Lessee","Promerica Financial Corporation","Calle 50 y 53 Este, Area Bancaria",null,"Panama City",null,"N150CT",{"$f":"INDEX(Sheet3!$I$1:$O$92,MATCH($A12,Sheet3!$I$1:$I$92,0),MATCH(I$2,Sheet3!$I$1:$O$1,0))","v":"BANK OF UTAH TRUSTEE"},{"$f":"INDEX(Sheet3!$I$1:$O$92,MATCH($A12,Sheet3!$I$1:$I$92,0),MATCH(J$2,Sheet3!$I$1:$O$1,0))","v":"50 S 200 E STE 110"},{"$f":"INDEX(Sheet3!$I$1:$O$92,MATCH($A12,Sheet3!$I$1:$I$92,0),MATCH(K$2,Sheet3!$I$1:$O$1,0))","v":"SALT LAKE CITY"},{"$f":"INDEX(Sheet3!$I$1:$O$92,MATCH($A12,Sheet3!$I$1:$I$92,0),MATCH(L$2,Sheet3!$I$1:$O$1,0))","v":"UT"}]
["N150CT","Owner","Leon Air, LLC","3191 Coral Way. Suite 800",null,"Miami","FL","N150CT",{"$f":"INDEX(Sheet3!$I$1:$O$92,MATCH($A13,Sheet3!$I$1:$I$92,0),MATCH(I$2,Sheet3!$I$1:$O$1,0))","v":"BANK OF UTAH TRUSTEE"},{"$f":"INDEX(Sheet3!$I$1:$O$92,MATCH($A13,Sheet3!$I$1:$I$92,0),MATCH(J$2,Sheet3!$I$1:$O$1,0))","v":"50 S 200 E STE 110"},{"$f":"INDEX(Sheet3!$I$1:$O$92,MATCH($A13,Sheet3!$I$1:$I$92,0),MATCH(K$2,Sheet3!$I$1:$O$1,0))","v":"SALT LAKE CITY"},{"$f":"INDEX(Sheet3!$I$1:$O$92,MATCH($A13,Sheet3!$I$1:$I$92,0),MATCH(L$2,Sheet3!$I$1:$O$1,0))","v":"UT"}]
["N209AW","Aircraft Management Company","Pinnacle Aviation, Inc.","14988 North 78th Way, Suite 106","Scottsdale Airport","Scottsdale","AZ","N209AW",{"$f":"INDEX(Sheet3!$I$1:$O$92,MATCH($A14,Sheet3!$I$1:$I$92,0),MATCH(I$2,Sheet3!$I$1:$O$1,0))","v":"BLUE STAR MANAGEMENT LLC"},{"$f":"INDEX(Sheet3!$I$1:$O$92,MATCH($A14,Sheet3!$I$1:$I$92,0),MATCH(J$2,Sheet3!$I$1:$O$1,0))","v":"PO BOX 686"},{"$f":"INDEX(Sheet3!$I$1:$O$92,MATCH($A14,Sheet3!$I$1:$I$92,0),MATCH(K$2,Sheet3!$I$1:$O$1,0))","v":"CRAIG"},{"$f":"INDEX(Sheet3!$I$1:$O$92,MATCH($A14,Sheet3!$I$1:$I$92,0),MATCH(L$2,Sheet3!$I$1:$O$1,0))","v":"AK"}]
["N209AW","Owner","Blue Star Management, LLC","P.O. Box 686","11.5 Mile Port St. Nicholas Road","Craig","AK","N209AW",{"$f":"INDEX(Sheet3!$I$1:$O$92,MATCH($A15,Sheet3!$I$1:$I$92,0),MATCH(I$2,Sheet3!$I$1:$O$1,0))","v":"BLUE STAR MANAGEMENT LLC"},{"$f":"INDEX(Sheet3!$I$1:$O$92,MATCH($A15,Sheet3!$I$1:$I$92,0),MATCH(J$2,Sheet3!$I$1:$O$1,0))","v":"PO BOX 686"},{"$f":"INDEX(Sheet3!$I$1:$O$92,MATCH($A15,Sheet3!$I$1:$I$92,0),MATCH(K$2,Sheet3!$I$1:$O$1,0))","v":"CRAIG"},{"$f":"INDEX(Sheet3!$I$1:$O$92,MATCH($A15,Sheet3!$I$1:$I$92,0),MATCH(L$2,Sheet3!$I$1:$O$1,0))","v":"AK"}]
["N428JD","Owner","Dewberry Air, LLC","1545 Peachtree Street NE, Ste. 250",null,"Atlanta","GA","N428JD",{"$f":"INDEX(Sheet3!$I$1:$O$92,MATCH($A16,Sheet3!$I$1:$I$92,0),MATCH(I$2,Sheet3!$I$1:$O$1,0))","v":"DEWBERRY AIR LLC"},{"$f":"INDEX(Sheet3!$I$1:$O$92,MATCH($A16,Sheet3!$I$1:$I$92,0),MATCH(J$2,Sheet3!$I$1:$O$1,0))","v":"1545 PEACHTREE ST NW STE 250"},{"$f":"INDEX(Sheet3!$I$1:$O$92,MATCH($A16,Sheet3!$I$1:$I$92,0),MATCH(K$2,Sheet3!$I$1:$O$1,0))","v":"ATLANTA"},{"$f":"INDEX(Sheet3!$I$1:$O$92,MATCH($A16,Sheet3!$I$1:$I$92,0),MATCH(L$2,Sheet3!$I$1:$O$1,0))","v":"GA"}]
["N248SL","Co-Owner","Morales, Edgar","Calle Citialtepeti 2711",null,"Col Los Volcanes, Puebla Pue",null,"N248SL",{"$f":"INDEX(Sheet3!$I$1:$O$92,MATCH($A17,Sheet3!$I$1:$I$92,0),MATCH(I$2,Sheet3!$I$1:$O$1,0))","v":"BANK OF UTAH TRUSTEE"},{"$f":"INDEX(Sheet3!$I$1:$O$92,MATCH($A17,Sheet3!$I$1:$I$92,0),MATCH(J$2,Sheet3!$I$1:$O$1,0))","v":"50 SOUTH 200 EAST STE 110"},{"$f":"INDEX(Sheet3!$I$1:$O$92,MATCH($A17,Sheet3!$I$1:$I$92,0),MATCH(K$2,Sheet3!$I$1:$O$1,0))","v":"SALT LAKE CITY"},{"$f":"INDEX(Sheet3!$I$1:$O$92,MATCH($A17,Sheet3!$I$1:$I$92,0),MATCH(L$2,Sheet3!$I$1:$O$1,0))","v":"UT"}]
["N248SL","Co-Owner","Rio-Sul SA de CV","Antiguo Camino a la Resurreccion 10610-A","Col. San Rosa","Puebla, Puebla",null,"N248SL",{"$f":"INDEX(Sheet3!$I$1:$O$92,MATCH($A18,Sheet3!$I$1:$I$92,0),MATCH(I$2,Sheet3!$I$1:$O$1,0))","v":"BANK OF UTAH TRUSTEE"},{"$f":"INDEX(Sheet3!$I$1:$O$92,MATCH($A18,Sheet3!$I$1:$I$92,0),MATCH(J$2,Sheet3!$I$1:$O$1,0))","v":"50 SOUTH 200 EAST STE 110"},{"$f":"INDEX(Sheet3!$I$1:$O$92,MATCH($A18,Sheet3!$I$1:$I$92,0),MATCH(K$2,Sheet3!$I$1:$O$1,0))","v":"SALT LAKE CITY"},{"$f":"INDEX(Sheet3!$I$1:$O$92,MATCH($A18,Sheet3!$I$1:$I$92,0),MATCH(L$2,Sheet3!$I$1:$O$1,0))","v":"UT"}]
["N248SL","Operator","Willow Fabrics and Consulting, LLC","12A South Walnut Street",null,"Milford","DE","N248SL",{"$f":"INDEX(Sheet3!$I$1:$O$92,MATCH($A19,Sheet3!$I$1:$I$92,0),MATCH(I$2,Sheet3!$I$1:$O$1,0))","v":"BANK OF UTAH TRUSTEE"},{"$f":"INDEX(Sheet3!$I$1:$O$92,MATCH($A19,Sheet3!$I$1:$I$92,0),MATCH(J$2,Sheet3!$I$1:$O$1,0))","v":"50 SOUTH 200 EAST STE 110"},{"$f":"INDEX(Sheet3!$I$1:$O$92,MATCH($A19,Sheet3!$I$1:$I$92,0),MATCH(K$2,Sheet3!$I$1:$O$1,0))","v":"SALT LAKE CITY"},{"$f":"INDEX(Sheet3!$I$1:$O$92,MATCH($A19,Sheet3!$I$1:$I$92,0),MATCH(L$2,Sheet3!$I$1:$O$1,0))","v":"UT"}]
["N150JN","Owner","Koselig, LLC","27821 36th Avenue NW",null,"Stanwood","WA","N150JN",{"$f":"INDEX(Sheet3!$I$1:$O$92,MATCH($A20,Sheet3!$I$1:$I$92,0),MATCH(I$2,Sheet3!$I$1:$O$1,0))","v":"KOSELIG LLC"},{"$f":"INDEX(Sheet3!$I$1:$O$92,MATCH($A20,Sheet3!$I$1:$I$92,0),MATCH(J$2,Sheet3!$I$1:$O$1,0))","v":"27821 36TH AVE NW"},{"$f":"INDEX(Sheet3!$I$1:$O$92,MATCH($A20,Sheet3!$I$1:$I$92,0),MATCH(K$2,Sheet3!$I$1:$O$1,0))","v":"STANWOOD"},{"$f":"INDEX(Sheet3!$I$1:$O$92,MATCH($A20,Sheet3!$I$1:$I$92,0),MATCH(L$2,Sheet3!$I$1:$O$1,0))","v":"WA"}]
["N5950C","Owner","Bravo Zulu G150, LLC","2186 East Centre Avenue",null,"Portage","MI","N5950C",{"$f":"INDEX(Sheet3!$I$1:$O$92,MATCH($A21,Sheet3!$I$1:$I$92,0),MATCH(I$2,Sheet3!$I$1:$O$1,0))","v":"BRAVO ZULU G150 LLC"},{"$f":"INDEX(Sheet3!$I$1:$O$92,MATCH($A21,Sheet3!$I$1:$I$92,0),MATCH(J$2,Sheet3!$I$1:$O$1,0))","v":"2186 E CENTRE AVE"},{"$f":"INDEX(Sheet3!$I$1:$O$92,MATCH($A21,Sheet3!$I$1:$I$92,0),MATCH(K$2,Sheet3!$I$1:$O$1,0))","v":"PORTAGE"},{"$f":"INDEX(Sheet3!$I$1:$O$92,MATCH($A21,Sheet3!$I$1:$I$92,0),MATCH(L$2,Sheet3!$I$1:$O$1,0))","v":"MI"}]
["N777FL","Operator","Warren, James D.","PO Box 620931",null,"Redwood City","CA","N777FL",{"$f":"INDEX(Sheet3!$I$1:$O$92,MATCH($A22,Sheet3!$I$1:$I$92,0),MATCH(I$2,Sheet3!$I$1:$O$1,0))","v":"AGNES LLC"},{"$f":"INDEX(Sheet3!$I$1:$O$92,MATCH($A22,Sheet3!$I$1:$I$92,0),MATCH(J$2,Sheet3!$I$1:$O$1,0))","v":"600 BEACH ST"},{"$f":"INDEX(Sheet3!$I$1:$O$92,MATCH($A22,Sheet3!$I$1:$I$92,0),MATCH(K$2,Sheet3!$I$1:$O$1,0))","v":"ASHLAND"},{"$f":"INDEX(Sheet3!$I$1:$O$92,MATCH($A22,Sheet3!$I$1:$I$92,0),MATCH(L$2,Sheet3!$I$1:$O$1,0))","v":"OR"}]
["N777FL","Owner","Agnes, LLC","600 Beach Street",null,"Ashland","OR","N777FL",{"$f":"INDEX(Sheet3!$I$1:$O$92,MATCH($A23,Sheet3!$I$1:$I$92,0),MATCH(I$2,Sheet3!$I$1:$O$1,0))","v":"AGNES LLC"},{"$f":"INDEX(Sheet3!$I$1:$O$92,MATCH($A23,Sheet3!$I$1:$I$92,0),MATCH(J$2,Sheet3!$I$1:$O$1,0))","v":"600 BEACH ST"},{"$f":"INDEX(Sheet3!$I$1:$O$92,MATCH($A23,Sheet3!$I$1:$I$92,0),MATCH(K$2,Sheet3!$I$1:$O$1,0))","v":"ASHLAND"},{"$f":"INDEX(Sheet3!$I$1:$O$92,MATCH($A23,Sheet3!$I$1:$I$92,0),MATCH(L$2,Sheet3!$I$1:$O$1,0))","v":"OR"}]
["N247PS","Operator","Gulfstream Aerospace Corporation","P.O. Box 2206 M/S B-04","500 Gulfstream Road","Savannah","GA","N247PS",{"$f":"INDEX(Sheet3!$I$1:$O$92,MATCH($A24,Sheet3!$I$1:$I$92,0),MATCH(I$2,Sheet3!$I$1:$O$1,0))","v":"GULFSTREAM AEROSPACE CORP"},{"$f":"INDEX(Sheet3!$I$1:$O$92,MATCH($A24,Sheet3!$I$1:$I$92,0),MATCH(J$2,Sheet3!$I$1:$O$1,0))","v":"500 GULFSTREAM RD"},{"$f":"INDEX(Sheet3!$I$1:$O$92,MATCH($A24,Sheet3!$I$1:$I$92,0),MATCH(K$2,Sheet3!$I$1:$O$1,0))","v":"SAVANNAH"},{"$f":"INDEX(Sheet3!$I$1:$O$92,MATCH($A24,Sheet3!$I$1:$I$92,0),MATCH(L$2,Sheet3!$I$1:$O$1,0))","v":"GA"}]
["N247PS","Owner","Gulfstream Aerospace Corporation","P.O. Box 2206 M/S B-04","500 Gulfstream Road","Savannah","GA","N247PS",{"$f":"INDEX(Sheet3!$I$1:$O$92,MATCH($A25,Sheet3!$I$1:$I$92,0),MATCH(I$2,Sheet3!$I$1:$O$1,0))","v":"GULFSTREAM AEROSPACE CORP"},{"$f":"INDEX(Sheet3!$I$1:$O$92,MATCH($A25,Sheet3!$I$1:$I$92,0),MATCH(J$2,Sheet3!$I$1:$O$1,0))","v":"500 GULFSTREAM RD"},{"$f":"INDEX(Sheet3!$I$1:$O$92,MATCH($A25,Sheet3!$I$1:$I$92,0),MATCH(K$2,Sheet3!$I$1:$O$1,0))","v":"SAVANNAH"},{"$f":"INDEX(Sheet3!$I$1:$O$92,MATCH($A25,Sheet3!$I$1:$I$92,0),MATCH(L$2,Sheet3!$I$1:$O$1,0))","v":"GA"}]
["N192SW","Operator","CAF, LLC","3501 Airport Circle",null,"Pittsburg","KS","N192SW",{"$f":"INDEX(Sheet3!$I$1:$O$92,MATCH($A26,Sheet3!$I$1:$I$92,0),MATCH(I$2,Sheet3!$I$1:$O$1,0))","v":"CAF LLC"},{"$f":"INDEX(Sheet3!$I$1:$O$92,MATCH($A26,Sheet3!$I$1:$I$92,0),MATCH(J$2,Sheet3!$I$1:$O$1,0))","v":"315 W 3RD ST"},{"$f":"INDEX(Sheet3!$I$1:$O$92,MATCH($A26,Sheet3!$I$1:$I$92,0),MATCH(K$2,Sheet3!$I$1:$O$1,0))","v":"PITTSBURG"},{"$f":"INDEX(Sheet3!$I$1:$O$92,MATCH($A26,Sheet3!$I$1:$I$92,0),MATCH(L$2,Sheet3!$I$1:$O$1,0))","v":"KS"}]
["N192SW","Owner","CAF, LLC","3501 Airport Circle",null,"Pittsburg","KS","N192SW",{"$f":"INDEX(Sheet3!$I$1:$O$92,MATCH($A27,Sheet3!$I$1:$I$92,0),MATCH(I$2,Sheet3!$I$1:$O$1,0))","v":"CAF LLC"},{"$f":"INDEX(Sheet3!$I$1:$O$92,MATCH($A27,Sheet3!$I$1:$I$92,0),MATCH(J$2,Sheet3!$I$1:$O$1,0))","v":"315 W 3RD ST"},{"$f":"INDEX(Sheet3!$I$1:$O$92,MATCH($A27,Sheet3!$I$1:$I$92,0),MATCH(K$2,Sheet3!$I$1:$O$1,0))","v":"PITTSBURG"},{"$f":"INDEX(Sheet3!$I$1:$O$92,MATCH($A27,Sheet3!$I$1:$I$92,0),MATCH(L$2,Sheet3!$I$1:$O$1,0))","v":"KS"}]
["N217MS","Owner","GS 150-217, LLC","2571 East, 71st Street",null,"Chicago","IL","N217MS",{"$f":"INDEX(Sheet3!$I$1:$O$92,MATCH($A28,Sheet3!$I$1:$I$92,0),MATCH(I$2,Sheet3!$I$1:$O$1,0))","v":"GS 150-217 LLC"},{"$f":"INDEX(Sheet3!$I$1:$O$92,MATCH($A28,Sheet3!$I$1:$I$92,0),MATCH(J$2,Sheet3!$I$1:$O$1,0))","v":"303 W MADISON ST STE 1000"},{"$f":"INDEX(Sheet3!$I$1:$O$92,MATCH($A28,Sheet3!$I$1:$I$92,0),MATCH(K$2,Sheet3!$I$1:$O$1,0))","v":"CHICAGO"},{"$f":"INDEX(Sheet3!$I$1:$O$92,MATCH($A28,Sheet3!$I$1:$I$92,0),MATCH(L$2,Sheet3!$I$1:$O$1,0))","v":"IL"}]
["N1HE","Owner","Conquest Air, LLC","1101 Cradduck Road, Suite B",null,"Ada","OK","N1HE",{"$f":"INDEX(Sheet3!$I$1:$O$92,MATCH($A29,Sheet3!$I$1:$I$92,0),MATCH(I$2,Sheet3!$I$1:$O$1,0))","v":"CONQUEST AIR LLC"},{"$f":"INDEX(Sheet3!$I$1:$O$92,MATCH($A29,Sheet3!$I$1:$I$92,0),MATCH(J$2,Sheet3!$I$1:$O$1,0))","v":"1101 CRADDUCK RD STE B"},{"$f":"INDEX(Sheet3!$I$1:$O$92,MATCH($A29,Sheet3!$I$1:$I$92,0),MATCH(K$2,Sheet3!$I$1:$O$1,0))","v":"ADA"},{"$f":"INDEX(Sheet3!$I$1:$O$92,MATCH($A29,Sheet3!$I$1:$I$92,0),MATCH(L$2,Sheet3!$I$1:$O$1,0))","v":"OK"}]
["N150MT","Aircraft Management Company","Bradley Mack Aviation, Inc.","14747 North Northsight Boulevard, Suite 111-433",null,"Scottsdale","AZ","N150MT",{"$f":"INDEX(Sheet3!$I$1:$O$92,MATCH($A30,Sheet3!$I$1:$I$92,0),MATCH(I$2,Sheet3!$I$1:$O$1,0))","v":"GH CONSULTING SERVICES LLC"},{"$f":"INDEX(Sheet3!$I$1:$O$92,MATCH($A30,Sheet3!$I$1:$I$92,0),MATCH(J$2,Sheet3!$I$1:$O$1,0))","v":"14747 N NORTHSIGHT BLVD"},{"$f":"INDEX(Sheet3!$I$1:$O$92,MATCH($A30,Sheet3!$I$1:$I$92,0),MATCH(K$2,Sheet3!$I$1:$O$1,0))","v":"SCOTTSDALE"},{"$f":"INDEX(Sheet3!$I$1:$O$92,MATCH($A30,Sheet3!$I$1:$I$92,0),MATCH(L$2,Sheet3!$I$1:$O$1,0))","v":"AZ"}]
["N150MT","Co-Owner","GH Consulting Services, LLC","7377 E. Doubletree Ranch Road","Suite 100","Scottsdale","AZ","N150MT",{"$f":"INDEX(Sheet3!$I$1:$O$92,MATCH($A31,Sheet3!$I$1:$I$92,0),MATCH(I$2,Sheet3!$I$1:$O$1,0))","v":"GH CONSULTING SERVICES LLC"},{"$f":"INDEX(Sheet3!$I$1:$O$92,MATCH($A31,Sheet3!$I$1:$I$92,0),MATCH(J$2,Sheet3!$I$1:$O$1,0))","v":"14747 N NORTHSIGHT BLVD"},{"$f":"INDEX(Sheet3!$I$1:$O$92,MATCH($A31,Sheet3!$I$1:$I$92,0),MATCH(K$2,Sheet3!$I$1:$O$1,0))","v":"SCOTTSDALE"},{"$f":"INDEX(Sheet3!$I$1:$O$92,MATCH($A31,Sheet3!$I$1:$I$92,0),MATCH(L$2,Sheet3!$I$1:$O$1,0))","v":"AZ"}]
["N150MT","Co-Owner","Nick Chapman Consulting, LLC","2525 East Camelback Road, Suite 500",null,"Phoenix","AZ","N150MT",{"$f":"INDEX(Sheet3!$I$1:$O$92,MATCH($A32,Sheet3!$I$1:$I$92,0),MATCH(I$2,Sheet3!$I$1:$O$1,0))","v":"GH CONSULTING SERVICES LLC"},{"$f":"INDEX(Sheet3!$I$1:$O$92,MATCH($A32,Sheet3!$I$1:$I$92,0),MATCH(J$2,Sheet3!$I$1:$O$1,0))","v":"14747 N NORTHSIGHT BLVD"},{"$f":"INDEX(Sheet3!$I$1:$O$92,MATCH($A32,Sheet3!$I$1:$I$92,0),MATCH(K$2,Sheet3!$I$1:$O$1,0))","v":"SCOTTSDALE"},{"$f":"INDEX(Sheet3!$I$1:$O$92,MATCH($A32,Sheet3!$I$1:$I$92,0),MATCH(L$2,Sheet3!$I$1:$O$1,0))","v":"AZ"}]
["N705AK","Aircraft Management Company","Solairus Aviation","201 First Street, Suite 307",null,"Petaluma","CA","N705AK",{"$f":"INDEX(Sheet3!$I$1:$O$92,MATCH($A33,Sheet3!$I$1:$I$92,0),MATCH(I$2,Sheet3!$I$1:$O$1,0))","v":"FAMILY TREE FARMS AVIATION LLC"},{"$f":"INDEX(Sheet3!$I$1:$O$92,MATCH($A33,Sheet3!$I$1:$I$92,0),MATCH(J$2,Sheet3!$I$1:$O$1,0))","v":"PO BOX 396"},{"$f":"INDEX(Sheet3!$I$1:$O$92,MATCH($A33,Sheet3!$I$1:$I$92,0),MATCH(K$2,Sheet3!$I$1:$O$1,0))","v":"DINUBA"},{"$f":"INDEX(Sheet3!$I$1:$O$92,MATCH($A33,Sheet3!$I$1:$I$92,0),MATCH(L$2,Sheet3!$I$1:$O$1,0))","v":"CA"}]
["N705AK","Owner","Family Tree Farms Aviation, LLC","P.O. Box 396",null,"Dinuba","CA","N705AK",{"$f":"INDEX(Sheet3!$I$1:$O$92,MATCH($A34,Sheet3!$I$1:$I$92,0),MATCH(I$2,Sheet3!$I$1:$O$1,0))","v":"FAMILY TREE FARMS AVIATION LLC"},{"$f":"INDEX(Sheet3!$I$1:$O$92,MATCH($A34,Sheet3!$I$1:$I$92,0),MATCH(J$2,Sheet3!$I$1:$O$1,0))","v":"PO BOX 396"},{"$f":"INDEX(Sheet3!$I$1:$O$92,MATCH($A34,Sheet3!$I$1:$I$92,0),MATCH(K$2,Sheet3!$I$1:$O$1,0))","v":"DINUBA"},{"$f":"INDEX(Sheet3!$I$1:$O$92,MATCH($A34,Sheet3!$I$1:$I$92,0),MATCH(L$2,Sheet3!$I$1:$O$1,0))","v":"CA"}]
["N611NC","Operator","MHW Group Holdings, LLC","11620 Red Run Boulevard",null,"Reisterstown","MD","N611NC",{"$f":"INDEX(Sheet3!$I$1:$O$92,MATCH($A35,Sheet3!$I$1:$I$92,0),MATCH(I$2,Sheet3!$I$1:$O$1,0))","v":"TRIDENT AIRCRAFT INC"},{"$f":"INDEX(Sheet3!$I$1:$O$92,MATCH($A35,Sheet3!$I$1:$I$92,0),MATCH(J$2,Sheet3!$I$1:$O$1,0))","v":"9475 JET LN"},{"$f":"INDEX(Sheet3!$I$1:$O$92,MATCH($A35,Sheet3!$I$1:$I$92,0),MATCH(K$2,Sheet3!$I$1:$O$1,0))","v":"EASTON"},{"$f":"INDEX(Sheet3!$I$1:$O$92,MATCH($A35,Sheet3!$I$1:$I$92,0),MATCH(L$2,Sheet3!$I$1:$O$1,0))","v":"MD"}]
["N611NC","Owner","MHW Group Holdings, LLC","11620 Red Run Boulevard",null,"Reisterstown","MD","N611NC",{"$f":"INDEX(Sheet3!$I$1:$O$92,MATCH($A36,Sheet3!$I$1:$I$92,0),MATCH(I$2,Sheet3!$I$1:$O$1,0))","v":"TRIDENT AIRCRAFT INC"},{"$f":"INDEX(Sheet3!$I$1:$O$92,MATCH($A36,Sheet3!$I$1:$I$92,0),MATCH(J$2,Sheet3!$I$1:$O$1,0))","v":"9475 JET LN"},{"$f":"INDEX(Sheet3!$I$1:$O$92,MATCH($A36,Sheet3!$I$1:$I$92,0),MATCH(K$2,Sheet3!$I$1:$O$1,0))","v":"EASTON"},{"$f":"INDEX(Sheet3!$I$1:$O$92,MATCH($A36,Sheet3!$I$1:$I$92,0),MATCH(L$2,Sheet3!$I$1:$O$1,0))","v":"MD"}]
["N224GG","Owner","Gator Tracks, LLC","70 Ready Avenue NW",null,"Ft. Walton Beach","FL","N224GG",{"$f":"INDEX(Sheet3!$I$1:$O$92,MATCH($A37,Sheet3!$I$1:$I$92,0),MATCH(I$2,Sheet3!$I$1:$O$1,0))","v":"GATOR TRACKS LLC"},{"$f":"INDEX(Sheet3!$I$1:$O$92,MATCH($A37,Sheet3!$I$1:$I$92,0),MATCH(J$2,Sheet3!$I$1:$O$1,0))","v":"70 READY AVE NW"},{"$f":"INDEX(Sheet3!$I$1:$O$92,MATCH($A37,Sheet3!$I$1:$I$92,0),MATCH(K$2,Sheet3!$I$1:$O$1,0))","v":"FORT WALTON BEACH"},{"$f":"INDEX(Sheet3!$I$1:$O$92,MATCH($A37,Sheet3!$I$1:$I$92,0),MATCH(L$2,Sheet3!$I$1:$O$1,0))","v":"FL"}]
["N365GA","Operator","Gulfstream Aerospace Corporation","P.O. Box 2206 M/S B-04","500 Gulfstream Road","Savannah","GA","N365GA",{"$f":"INDEX(Sheet3!$I$1:$O$92,MATCH($A38,Sheet3!$I$1:$I$92,0),MATCH(I$2,Sheet3!$I$1:$O$1,0))","v":"GULFSTREAM LEASING LLC"},{"$f":"INDEX(Sheet3!$I$1:$O$92,MATCH($A38,Sheet3!$I$1:$I$92,0),MATCH(J$2,Sheet3!$I$1:$O$1,0))","v":"500 GULFSTREAM RD M/S B-16"},{"$f":"INDEX(Sheet3!$I$1:$O$92,MATCH($A38,Sheet3!$I$1:$I$92,0),MATCH(K$2,Sheet3!$I$1:$O$1,0))","v":"SAVANNAH"},{"$f":"INDEX(Sheet3!$I$1:$O$92,MATCH($A38,Sheet3!$I$1:$I$92,0),MATCH(L$2,Sheet3!$I$1:$O$1,0))","v":"GA"}]
["N365GA","Owner","Gulfstream Leasing, LLC","500 Gulfstream Road, Mail B-06",null,"Savannah","GA","N365GA",{"$f":"INDEX(Sheet3!$I$1:$O$92,MATCH($A39,Sheet3!$I$1:$I$92,0),MATCH(I$2,Sheet3!$I$1:$O$1,0))","v":"GULFSTREAM LEASING LLC"},{"$f":"INDEX(Sheet3!$I$1:$O$92,MATCH($A39,Sheet3!$I$1:$I$92,0),MATCH(J$2,Sheet3!$I$1:$O$1,0))","v":"500 GULFSTREAM RD M/S B-16"},{"$f":"INDEX(Sheet3!$I$1:$O$92,MATCH($A39,Sheet3!$I$1:$I$92,0),MATCH(K$2,Sheet3!$I$1:$O$1,0))","v":"SAVANNAH"},{"$f":"INDEX(Sheet3!$I$1:$O$92,MATCH($A39,Sheet3!$I$1:$I$92,0),MATCH(L$2,Sheet3!$I$1:$O$1,0))","v":"GA"}]
["N8821C","Aircraft Management Company","CSM Aviation","3050 N Winery Avenue","Fresno Yosemite International Airport","Fresno","CA","N8821C",{"$f":"INDEX(Sheet3!$I$1:$O$92,MATCH($A40,Sheet3!$I$1:$I$92,0),MATCH(I$2,Sheet3!$I$1:$O$1,0))","v":"JVWL LLC"},{"$f":"INDEX(Sheet3!$I$1:$O$92,MATCH($A40,Sheet3!$I$1:$I$92,0),MATCH(J$2,Sheet3!$I$1:$O$1,0))","v":"9240 EXCELSIOR AVE"},{"$f":"INDEX(Sheet3!$I$1:$O$92,MATCH($A40,Sheet3!$I$1:$I$92,0),MATCH(K$2,Sheet3!$I$1:$O$1,0))","v":"HANFORD"},{"$f":"INDEX(Sheet3!$I$1:$O$92,MATCH($A40,Sheet3!$I$1:$I$92,0),MATCH(L$2,Sheet3!$I$1:$O$1,0))","v":"CA"}]
["N8821C","Owner","JVWL, LLC","9240 Excelsior Avenue",null,"Hanford","CA","N8821C",{"$f":"INDEX(Sheet3!$I$1:$O$92,MATCH($A41,Sheet3!$I$1:$I$92,0),MATCH(I$2,Sheet3!$I$1:$O$1,0))","v":"JVWL LLC"},{"$f":"INDEX(Sheet3!$I$1:$O$92,MATCH($A41,Sheet3!$I$1:$I$92,0),MATCH(J$2,Sheet3!$I$1:$O$1,0))","v":"9240 EXCELSIOR AVE"},{"$f":"INDEX(Sheet3!$I$1:$O$92,MATCH($A41,Sheet3!$I$1:$I$92,0),MATCH(K$2,Sheet3!$I$1:$O$1,0))","v":"HANFORD"},{"$f":"INDEX(Sheet3!$I$1:$O$92,MATCH($A41,Sheet3!$I$1:$I$92,0),MATCH(L$2,Sheet3!$I$1:$O$1,0))","v":"CA"}]
["N100SR","Flight Department","Executive Capital Corporation","47 West 210th Route 30",null,"Big Rock","IL","N100SR",{"$f":"INDEX(Sheet3!$I$1:$O$92,MATCH($A42,Sheet3!$I$1:$I$92,0),MATCH(I$2,Sheet3!$I$1:$O$1,0))","v":"RAYMAN STEVEN M TRUSTEE"},{"$f":"INDEX(Sheet3!$I$1:$O$92,MATCH($A42,Sheet3!$I$1:$I$92,0),MATCH(J$2,Sheet3!$I$1:$O$1,0))","v":"47W210 RT 30"},{"$f":"INDEX(Sheet3!$I$1:$O$92,MATCH($A42,Sheet3!$I$1:$I$92,0),MATCH(K$2,Sheet3!$I$1:$O$1,0))","v":"BIG ROCK"},{"$f":"INDEX(Sheet3!$I$1:$O$92,MATCH($A42,Sheet3!$I$1:$I$92,0),MATCH(L$2,Sheet3!$I$1:$O$1,0))","v":"IL"}]
["N100SR","Owner","G-150 Trust","47W210 Route 30",null,"Big Rock","IL","N100SR",{"$f":"INDEX(Sheet3!$I$1:$O$92,MATCH($A43,Sheet3!$I$1:$I$92,0),MATCH(I$2,Sheet3!$I$1:$O$1,0))","v":"RAYMAN STEVEN M TRUSTEE"},{"$f":"INDEX(Sheet3!$I$1:$O$92,MATCH($A43,Sheet3!$I$1:$I$92,0),MATCH(J$2,Sheet3!$I$1:$O$1,0))","v":"47W210 RT 30"},{"$f":"INDEX(Sheet3!$I$1:$O$92,MATCH($A43,Sheet3!$I$1:$I$92,0),MATCH(K$2,Sheet3!$I$1:$O$1,0))","v":"BIG ROCK"},{"$f":"INDEX(Sheet3!$I$1:$O$92,MATCH($A43,Sheet3!$I$1:$I$92,0),MATCH(L$2,Sheet3!$I$1:$O$1,0))","v":"IL"}]
["N100GX","Aircraft Management Company","Keystone Aviation, LLC","303 North 2370 West","Salt Lake City International Airport","Salt Lake City","UT","N100GX",{"$f":"INDEX(Sheet3!$I$1:$O$92,MATCH($A44,Sheet3!$I$1:$I$92,0),MATCH(I$2,Sheet3!$I$1:$O$1,0))","v":"BRULECREEK AVIATION LLC"},{"$f":"INDEX(Sheet3!$I$1:$O$92,MATCH($A44,Sheet3!$I$1:$I$92,0),MATCH(J$2,Sheet3!$I$1:$O$1,0))","v":"7 EAGLE VIEW CT"},{"$f":"INDEX(Sheet3!$I$1:$O$92,MATCH($A44,Sheet3!$I$1:$I$92,0),MATCH(K$2,Sheet3!$I$1:$O$1,0))","v":"PARK CITY"},{"$f":"INDEX(Sheet3!$I$1:$O$92,MATCH($A44,Sheet3!$I$1:$I$92,0),MATCH(L$2,Sheet3!$I$1:$O$1,0))","v":"UT"}]
["N100GX","Owner","Brulecreek Aviation, LLC","7 Eagle View Court",null,"Park City","UT","N100GX",{"$f":"INDEX(Sheet3!$I$1:$O$92,MATCH($A45,Sheet3!$I$1:$I$92,0),MATCH(I$2,Sheet3!$I$1:$O$1,0))","v":"BRULECREEK AVIATION LLC"},{"$f":"INDEX(Sheet3!$I$1:$O$92,MATCH($A45,Sheet3!$I$1:$I$92,0),MATCH(J$2,Sheet3!$I$1:$O$1,0))","v":"7 EAGLE VIEW CT"},{"$f":"INDEX(Sheet3!$I$1:$O$92,MATCH($A45,Sheet3!$I$1:$I$92,0),MATCH(K$2,Sheet3!$I$1:$O$1,0))","v":"PARK CITY"},{"$f":"INDEX(Sheet3!$I$1:$O$92,MATCH($A45,Sheet3!$I$1:$I$92,0),MATCH(L$2,Sheet3!$I$1:$O$1,0))","v":"UT"}]
["N518KH","Owner","Golden Eagle Management, LLC","3011 American Way",null,"Missoula","MT","N518KH",{"$f":"INDEX(Sheet3!$I$1:$O$92,MATCH($A46,Sheet3!$I$1:$I$92,0),MATCH(I$2,Sheet3!$I$1:$O$1,0))","v":"GOLDEN EAGLE MANAGEMENT LLC"},{"$f":"INDEX(Sheet3!$I$1:$O$92,MATCH($A46,Sheet3!$I$1:$I$92,0),MATCH(J$2,Sheet3!$I$1:$O$1,0))","v":"3011 AMERICAN WAY"},{"$f":"INDEX(Sheet3!$I$1:$O$92,MATCH($A46,Sheet3!$I$1:$I$92,0),MATCH(K$2,Sheet3!$I$1:$O$1,0))","v":"MISSOULA"},{"$f":"INDEX(Sheet3!$I$1:$O$92,MATCH($A46,Sheet3!$I$1:$I$92,0),MATCH(L$2,Sheet3!$I$1:$O$1,0))","v":"MT"}]
["N722SW","Owner","Gator One Air, LLC","618 Gulf Shore Drive",null,"Destin","FL","N722SW",{"$f":"INDEX(Sheet3!$I$1:$O$92,MATCH($A47,Sheet3!$I$1:$I$92,0),MATCH(I$2,Sheet3!$I$1:$O$1,0))","v":"GATOR ONE AIR LLC"},{"$f":"INDEX(Sheet3!$I$1:$O$92,MATCH($A47,Sheet3!$I$1:$I$92,0),MATCH(J$2,Sheet3!$I$1:$O$1,0))","v":"4481 LEGENDARY DR UNIT 200"},{"$f":"INDEX(Sheet3!$I$1:$O$92,MATCH($A47,Sheet3!$I$1:$I$92,0),MATCH(K$2,Sheet3!$I$1:$O$1,0))","v":"DESTIN"},{"$f":"INDEX(Sheet3!$I$1:$O$92,MATCH($A47,Sheet3!$I$1:$I$92,0),MATCH(L$2,Sheet3!$I$1:$O$1,0))","v":"FL"}]
["N787BN","Aircraft Management Company","Clay Lacy Aviation, Inc.","7435 Valjean Avenue","Van Nuys Airport","Van Nuys","CA","N787BN",{"$f":"INDEX(Sheet3!$I$1:$O$92,MATCH($A48,Sheet3!$I$1:$I$92,0),MATCH(I$2,Sheet3!$I$1:$O$1,0))","v":"OMNINET CAPITAL LLC"},{"$f":"INDEX(Sheet3!$I$1:$O$92,MATCH($A48,Sheet3!$I$1:$I$92,0),MATCH(J$2,Sheet3!$I$1:$O$1,0))","v":"9420 WILSHIRE BLVD STE 400"},{"$f":"INDEX(Sheet3!$I$1:$O$92,MATCH($A48,Sheet3!$I$1:$I$92,0),MATCH(K$2,Sheet3!$I$1:$O$1,0))","v":"BEVERLY HILLS"},{"$f":"INDEX(Sheet3!$I$1:$O$92,MATCH($A48,Sheet3!$I$1:$I$92,0),MATCH(L$2,Sheet3!$I$1:$O$1,0))","v":"CA"}]
["N787BN","Owner","Omninet Capital, LLC","9420 Wilshire Boulevard, 4th Floor",null,"Beverly Hills","CA","N787BN",{"$f":"INDEX(Sheet3!$I$1:$O$92,MATCH($A49,Sheet3!$I$1:$I$92,0),MATCH(I$2,Sheet3!$I$1:$O$1,0))","v":"OMNINET CAPITAL LLC"},{"$f":"INDEX(Sheet3!$I$1:$O$92,MATCH($A49,Sheet3!$I$1:$I$92,0),MATCH(J$2,Sheet3!$I$1:$O$1,0))","v":"9420 WILSHIRE BLVD STE 400"},{"$f":"INDEX(Sheet3!$I$1:$O$92,MATCH($A49,Sheet3!$I$1:$I$92,0),MATCH(K$2,Sheet3!$I$1:$O$1,0))","v":"BEVERLY HILLS"},{"$f":"INDEX(Sheet3!$I$1:$O$92,MATCH($A49,Sheet3!$I$1:$I$92,0),MATCH(L$2,Sheet3!$I$1:$O$1,0))","v":"CA"}]
["N928ST","Aircraft Management Company","Keystone Aviation, LLC","303 North 2370 West","Salt Lake City International Airport","Salt Lake City","UT","N928ST",{"$f":"INDEX(Sheet3!$I$1:$O$92,MATCH($A50,Sheet3!$I$1:$I$92,0),MATCH(I$2,Sheet3!$I$1:$O$1,0))","v":"FLYING BAR B LLC"},{"$f":"INDEX(Sheet3!$I$1:$O$92,MATCH($A50,Sheet3!$I$1:$I$92,0),MATCH(J$2,Sheet3!$I$1:$O$1,0))","v":"3500 E DEER HOLLOW DR"},{"$f":"INDEX(Sheet3!$I$1:$O$92,MATCH($A50,Sheet3!$I$1:$I$92,0),MATCH(K$2,Sheet3!$I$1:$O$1,0))","v":"SANDY"},{"$f":"INDEX(Sheet3!$I$1:$O$92,MATCH($A50,Sheet3!$I$1:$I$92,0),MATCH(L$2,Sheet3!$I$1:$O$1,0))","v":"UT"}]
["N928ST","Owner","Flying Bar B, LLC","3500 Deer Hollow Drive",null,"Sandy","UT","N928ST",{"$f":"INDEX(Sheet3!$I$1:$O$92,MATCH($A51,Sheet3!$I$1:$I$92,0),MATCH(I$2,Sheet3!$I$1:$O$1,0))","v":"FLYING BAR B LLC"},{"$f":"INDEX(Sheet3!$I$1:$O$92,MATCH($A51,Sheet3!$I$1:$I$92,0),MATCH(J$2,Sheet3!$I$1:$O$1,0))","v":"3500 E DEER HOLLOW DR"},{"$f":"INDEX(Sheet3!$I$1:$O$92,MATCH($A51,Sheet3!$I$1:$I$92,0),MATCH(K$2,Sheet3!$I$1:$O$1,0))","v":"SANDY"},{"$f":"INDEX(Sheet3!$I$1:$O$92,MATCH($A51,Sheet3!$I$1:$I$92,0),MATCH(L$2,Sheet3!$I$1:$O$1,0))","v":"UT"}]
["N511CT","Fractional Owner","430 Holdings, Inc.","10014 Chapel Hill Road",null,"Morrisville","NC","N511CT",{"$f":"INDEX(Sheet3!$I$1:$O$92,MATCH($A52,Sheet3!$I$1:$I$92,0),MATCH(I$2,Sheet3!$I$1:$O$1,0))","v":"ATG AVIATION LLC"},{"$f":"INDEX(Sheet3!$I$1:$O$92,MATCH($A52,Sheet3!$I$1:$I$92,0),MATCH(J$2,Sheet3!$I$1:$O$1,0))","v":"125 SOUTH ELM STE 300"},{"$f":"INDEX(Sheet3!$I$1:$O$92,MATCH($A52,Sheet3!$I$1:$I$92,0),MATCH(K$2,Sheet3!$I$1:$O$1,0))","v":"GREENSBORO"},{"$f":"INDEX(Sheet3!$I$1:$O$92,MATCH($A52,Sheet3!$I$1:$I$92,0),MATCH(L$2,Sheet3!$I$1:$O$1,0))","v":"NC"}]
["N511CT","Fractional Owner","ATG Aviation, LLC","115 Perry Place",null,"Shoal Creek","AL","N511CT",{"$f":"INDEX(Sheet3!$I$1:$O$92,MATCH($A53,Sheet3!$I$1:$I$92,0),MATCH(I$2,Sheet3!$I$1:$O$1,0))","v":"ATG AVIATION LLC"},{"$f":"INDEX(Sheet3!$I$1:$O$92,MATCH($A53,Sheet3!$I$1:$I$92,0),MATCH(J$2,Sheet3!$I$1:$O$1,0))","v":"125 SOUTH ELM STE 300"},{"$f":"INDEX(Sheet3!$I$1:$O$92,MATCH($A53,Sheet3!$I$1:$I$92,0),MATCH(K$2,Sheet3!$I$1:$O$1,0))","v":"GREENSBORO"},{"$f":"INDEX(Sheet3!$I$1:$O$92,MATCH($A53,Sheet3!$I$1:$I$92,0),MATCH(L$2,Sheet3!$I$1:$O$1,0))","v":"NC"}]
["N511CT","Fractional Owner","Corwin Brothers, LLC","P.O. Box 3005","201 40th Street South","Fargo","ND","N511CT",{"$f":"INDEX(Sheet3!$I$1:$O$92,MATCH($A54,Sheet3!$I$1:$I$92,0),MATCH(I$2,Sheet3!$I$1:$O$1,0))","v":"ATG AVIATION LLC"},{"$f":"INDEX(Sheet3!$I$1:$O$92,MATCH($A54,Sheet3!$I$1:$I$92,0),MATCH(J$2,Sheet3!$I$1:$O$1,0))","v":"125 SOUTH ELM STE 300"},{"$f":"INDEX(Sheet3!$I$1:$O$92,MATCH($A54,Sheet3!$I$1:$I$92,0),MATCH(K$2,Sheet3!$I$1:$O$1,0))","v":"GREENSBORO"},{"$f":"INDEX(Sheet3!$I$1:$O$92,MATCH($A54,Sheet3!$I$1:$I$92,0),MATCH(L$2,Sheet3!$I$1:$O$1,0))","v":"NC"}]
["N511CT","Fractional Owner","Oosthuizen, Lodewicus Theodorus",null,null,null,null,"N511CT",{"$f":"INDEX(Sheet3!$I$1:$O$92,MATCH($A55,Sheet3!$I$1:$I$92,0),MATCH(I$2,Sheet3!$I$1:$O$1,0))","v":"ATG AVIATION LLC"},{"$f":"INDEX(Sheet3!$I$1:$O$92,MATCH($A55,Sheet3!$I$1:$I$92,0),MATCH(J$2,Sheet3!$I$1:$O$1,0))","v":"125 SOUTH ELM STE 300"},{"$f":"INDEX(Sheet3!$I$1:$O$92,MATCH($A55,Sheet3!$I$1:$I$92,0),MATCH(K$2,Sheet3!$I$1:$O$1,0))","v":"GREENSBORO"},{"$f":"INDEX(Sheet3!$I$1:$O$92,MATCH($A55,Sheet3!$I$1:$I$92,0),MATCH(L$2,Sheet3!$I$1:$O$1,0))","v":"NC"}]
["N511CT","Fractional Owner","Sewanee Ventures, LLC","4410 Gerald Place",null,"Nashville","TN","N511CT",{"$f":"INDEX(Sheet3!$I$1:$O$92,MATCH($A56,Sheet3!$I$1:$I$92,0),MATCH(I$2,Sheet3!$I$1:$O$1,0))","v":"ATG AVIATION LLC"},{"$f":"INDEX(Sheet3!$I$1:$O$92,MATCH($A56,Sheet3!$I$1:$I$92,0),MATCH(J$2,Sheet3!$I$1:$O$1,0))","v":"125 SOUTH ELM STE 300"},{"$f":"INDEX(Sheet3!$I$1:$O$92,MATCH($A56,Sheet3!$I$1:$I$92,0),MATCH(K$2,Sheet3!$I$1:$O$1,0))","v":"GREENSBORO"},{"$f":"INDEX(Sheet3!$I$1:$O$92,MATCH($A56,Sheet3!$I$1:$I$92,0),MATCH(L$2,Sheet3!$I$1:$O$1,0))","v":"NC"}]
["N511CT","Fractional Owner","Society Street Partners, LLC","3203 Bridle Trail",null,"Greensboro","NC","N511CT",{"$f":"INDEX(Sheet3!$I$1:$O$92,MATCH($A57,Sheet3!$I$1:$I$92,0),MATCH(I$2,Sheet3!$I$1:$O$1,0))","v":"ATG AVIATION LLC"},{"$f":"INDEX(Sheet3!$I$1:$O$92,MATCH($A57,Sheet3!$I$1:$I$92,0),MATCH(J$2,Sheet3!$I$1:$O$1,0))","v":"125 SOUTH ELM STE 300"},{"$f":"INDEX(Sheet3!$I$1:$O$92,MATCH($A57,Sheet3!$I$1:$I$92,0),MATCH(K$2,Sheet3!$I$1:$O$1,0))","v":"GREENSBORO"},{"$f":"INDEX(Sheet3!$I$1:$O$92,MATCH($A57,Sheet3!$I$1:$I$92,0),MATCH(L$2,Sheet3!$I$1:$O$1,0))","v":"NC"}]
["N511CT","Fractional Owner","Waldec Foods, LLC","5149 West San Jose Street",null,"Tampa","FL","N511CT",{"$f":"INDEX(Sheet3!$I$1:$O$92,MATCH($A58,Sheet3!$I$1:$I$92,0),MATCH(I$2,Sheet3!$I$1:$O$1,0))","v":"ATG AVIATION LLC"},{"$f":"INDEX(Sheet3!$I$1:$O$92,MATCH($A58,Sheet3!$I$1:$I$92,0),MATCH(J$2,Sheet3!$I$1:$O$1,0))","v":"125 SOUTH ELM STE 300"},{"$f":"INDEX(Sheet3!$I$1:$O$92,MATCH($A58,Sheet3!$I$1:$I$92,0),MATCH(K$2,Sheet3!$I$1:$O$1,0))","v":"GREENSBORO"},{"$f":"INDEX(Sheet3!$I$1:$O$92,MATCH($A58,Sheet3!$I$1:$I$92,0),MATCH(L$2,Sheet3!$I$1:$O$1,0))","v":"NC"}]
["N511CT","Operator","Jet It LLC","101 South Elm Street, Suite 75",null,"Greensboro","NC","N511CT",{"$f":"INDEX(Sheet3!$I$1:$O$92,MATCH($A59,Sheet3!$I$1:$I$92,0),MATCH(I$2,Sheet3!$I$1:$O$1,0))","v":"ATG AVIATION LLC"},{"$f":"INDEX(Sheet3!$I$1:$O$92,MATCH($A59,Sheet3!$I$1:$I$92,0),MATCH(J$2,Sheet3!$I$1:$O$1,0))","v":"125 SOUTH ELM STE 300"},{"$f":"INDEX(Sheet3!$I$1:$O$92,MATCH($A59,Sheet3!$I$1:$I$92,0),MATCH(K$2,Sheet3!$I$1:$O$1,0))","v":"GREENSBORO"},{"$f":"INDEX(Sheet3!$I$1:$O$92,MATCH($A59,Sheet3!$I$1:$I$92,0),MATCH(L$2,Sheet3!$I$1:$O$1,0))","v":"NC"}]
["N511CT","Program Holder","Jet It LLC","101 South Elm Street, Suite 75",null,"Greensboro","NC","N511CT",{"$f":"INDEX(Sheet3!$I$1:$O$92,MATCH($A60,Sheet3!$I$1:$I$92,0),MATCH(I$2,Sheet3!$I$1:$O$1,0))","v":"ATG AVIATION LLC"},{"$f":"INDEX(Sheet3!$I$1:$O$92,MATCH($A60,Sheet3!$I$1:$I$92,0),MATCH(J$2,Sheet3!$I$1:$O$1,0))","v":"125 SOUTH ELM STE 300"},{"$f":"INDEX(Sheet3!$I$1:$O$92,MATCH($A60,Sheet3!$I$1:$I$92,0),MATCH(K$2,Sheet3!$I$1:$O$1,0))","v":"GREENSBORO"},{"$f":"INDEX(Sheet3!$I$1:$O$92,MATCH($A60,Sheet3!$I$1:$I$92,0),MATCH(L$2,Sheet3!$I$1:$O$1,0))","v":"NC"}]
["N77709","Owner","Miller's, Inc.","P.O. Box 777","610 East Jefferson Street","Pittsburg","KS","N77709",{"$f":"INDEX(Sheet3!$I$1:$O$92,MATCH($A61,Sheet3!$I$1:$I$92,0),MATCH(I$2,Sheet3!$I$1:$O$1,0))","v":"MILLER'S INC"},{"$f":"INDEX(Sheet3!$I$1:$O$92,MATCH($A61,Sheet3!$I$1:$I$92,0),MATCH(J$2,Sheet3!$I$1:$O$1,0))","v":"610 E JEFFERSON ST"},{"$f":"INDEX(Sheet3!$I$1:$O$92,MATCH($A61,Sheet3!$I$1:$I$92,0),MATCH(K$2,Sheet3!$I$1:$O$1,0))","v":"PITTSBURG"},{"$f":"INDEX(Sheet3!$I$1:$O$92,MATCH($A61,Sheet3!$I$1:$I$92,0),MATCH(L$2,Sheet3!$I$1:$O$1,0))","v":"KS"}]
["N360AV","Charter Company","Jet Aviation Flight Services, Inc.","112 Charles A. Lindbergh Drive","Teterboro Airport","Teterboro","NJ","N360AV",{"$f":"INDEX(Sheet3!$I$1:$O$92,MATCH($A62,Sheet3!$I$1:$I$92,0),MATCH(I$2,Sheet3!$I$1:$O$1,0))","v":"M3 INDUSTRIES LLC"},{"$f":"INDEX(Sheet3!$I$1:$O$92,MATCH($A62,Sheet3!$I$1:$I$92,0),MATCH(J$2,Sheet3!$I$1:$O$1,0))","v":"660 S FIGUEROA ST STE 1888"},{"$f":"INDEX(Sheet3!$I$1:$O$92,MATCH($A62,Sheet3!$I$1:$I$92,0),MATCH(K$2,Sheet3!$I$1:$O$1,0))","v":"LOS ANGELES"},{"$f":"INDEX(Sheet3!$I$1:$O$92,MATCH($A62,Sheet3!$I$1:$I$92,0),MATCH(L$2,Sheet3!$I$1:$O$1,0))","v":"CA"}]
["N360AV","Owner","M3 Industries, LLC","660 South Figueroa Street, Suite 1888",null,"Los Angeles","CA","N360AV",{"$f":"INDEX(Sheet3!$I$1:$O$92,MATCH($A63,Sheet3!$I$1:$I$92,0),MATCH(I$2,Sheet3!$I$1:$O$1,0))","v":"M3 INDUSTRIES LLC"},{"$f":"INDEX(Sheet3!$I$1:$O$92,MATCH($A63,Sheet3!$I$1:$I$92,0),MATCH(J$2,Sheet3!$I$1:$O$1,0))","v":"660 S FIGUEROA ST STE 1888"},{"$f":"INDEX(Sheet3!$I$1:$O$92,MATCH($A63,Sheet3!$I$1:$I$92,0),MATCH(K$2,Sheet3!$I$1:$O$1,0))","v":"LOS ANGELES"},{"$f":"INDEX(Sheet3!$I$1:$O$92,MATCH($A63,Sheet3!$I$1:$I$92,0),MATCH(L$2,Sheet3!$I$1:$O$1,0))","v":"CA"}]
["N458TB","Owner","M3 Aviation, LLC","7033 East Greenway Parkway, Suite 100",null,"Scottsdale","AZ","N458TB",{"$f":"INDEX(Sheet3!$I$1:$O$92,MATCH($A64,Sheet3!$I$1:$I$92,0),MATCH(I$2,Sheet3!$I$1:$O$1,0))","v":"M3 AVIATION LLC"},{"$f":"INDEX(Sheet3!$I$1:$O$92,MATCH($A64,Sheet3!$I$1:$I$92,0),MATCH(J$2,Sheet3!$I$1:$O$1,0))","v":"7033 E GREENWAY PKWY STE 100"},{"$f":"INDEX(Sheet3!$I$1:$O$92,MATCH($A64,Sheet3!$I$1:$I$92,0),MATCH(K$2,Sheet3!$I$1:$O$1,0))","v":"SCOTTSDALE"},{"$f":"INDEX(Sheet3!$I$1:$O$92,MATCH($A64,Sheet3!$I$1:$I$92,0),MATCH(L$2,Sheet3!$I$1:$O$1,0))","v":"AZ"}]
["N553CB","Certificate Holder","M & N Aviation, Inc.","P.O. Box 38098",null,"San Juan",null,"N553CB",{"$f":"INDEX(Sheet3!$I$1:$O$92,MATCH($A65,Sheet3!$I$1:$I$92,0),MATCH(I$2,Sheet3!$I$1:$O$1,0))","v":"N553CB LLC"},{"$f":"INDEX(Sheet3!$I$1:$O$92,MATCH($A65,Sheet3!$I$1:$I$92,0),MATCH(J$2,Sheet3!$I$1:$O$1,0))","v":"BO SALDINERA"},{"$f":"INDEX(Sheet3!$I$1:$O$92,MATCH($A65,Sheet3!$I$1:$I$92,0),MATCH(K$2,Sheet3!$I$1:$O$1,0))","v":"DORADO"},{"$f":"INDEX(Sheet3!$I$1:$O$92,MATCH($A65,Sheet3!$I$1:$I$92,0),MATCH(L$2,Sheet3!$I$1:$O$1,0))","v":"PR"}]
["N553CB","Owner","N553CB, LLC","120 Carr. 693",null,"Dorado",null,"N553CB",{"$f":"INDEX(Sheet3!$I$1:$O$92,MATCH($A66,Sheet3!$I$1:$I$92,0),MATCH(I$2,Sheet3!$I$1:$O$1,0))","v":"N553CB LLC"},{"$f":"INDEX(Sheet3!$I$1:$O$92,MATCH($A66,Sheet3!$I$1:$I$92,0),MATCH(J$2,Sheet3!$I$1:$O$1,0))","v":"BO SALDINERA"},{"$f":"INDEX(Sheet3!$I$1:$O$92,MATCH($A66,Sheet3!$I$1:$I$92,0),MATCH(K$2,Sheet3!$I$1:$O$1,0))","v":"DORADO"},{"$f":"INDEX(Sheet3!$I$1:$O$92,MATCH($A66,Sheet3!$I$1:$I$92,0),MATCH(L$2,Sheet3!$I$1:$O$1,0))","v":"PR"}]
["N96AD","Owner","Altair Advanced Industries, Inc.","1680 West Bakerfield Road",null,"Bellingham","WA","N96AD",{"$f":"INDEX(Sheet3!$I$1:$O$92,MATCH($A67,Sheet3!$I$1:$I$92,0),MATCH(I$2,Sheet3!$I$1:$O$1,0))","v":"ALTAIR ADVANCED INDUSTRIES INC"},{"$f":"INDEX(Sheet3!$I$1:$O$92,MATCH($A67,Sheet3!$I$1:$I$92,0),MATCH(J$2,Sheet3!$I$1:$O$1,0))","v":"1680 W BAKERVIEW RD"},{"$f":"INDEX(Sheet3!$I$1:$O$92,MATCH($A67,Sheet3!$I$1:$I$92,0),MATCH(K$2,Sheet3!$I$1:$O$1,0))","v":"BELLINGHAM"},{"$f":"INDEX(Sheet3!$I$1:$O$92,MATCH($A67,Sheet3!$I$1:$I$92,0),MATCH(L$2,Sheet3!$I$1:$O$1,0))","v":"WA"}]
["N650DH","Operator","Drury Development Corporation","13075 Manchester Road #200",null,"Des Peres","MO",{"$f":"A68","v":"N650DH"},{"$f":"INDEX(Sheet3!$I$1:$O$92,MATCH($A68,Sheet3!$I$1:$I$92,0),MATCH(I$2,Sheet3!$I$1:$O$1,0))","v":"DRURY DEVELOPMENT CORP"},{"$f":"INDEX(Sheet3!$I$1:$O$92,MATCH($A68,Sheet3!$I$1:$I$92,0),MATCH(J$2,Sheet3!$I$1:$O$1,0))","v":"13075 MANCHESTER RD STE 200"},{"$f":"INDEX(Sheet3!$I$1:$O$92,MATCH($A68,Sheet3!$I$1:$I$92,0),MATCH(K$2,Sheet3!$I$1:$O$1,0))","v":"SAINT LOUIS"},{"$f":"INDEX(Sheet3!$I$1:$O$92,MATCH($A68,Sheet3!$I$1:$I$92,0),MATCH(L$2,Sheet3!$I$1:$O$1,0))","v":"MO"}]
["N650DH","Owner","Drury Development Corporation","13075 Manchester Road #200",null,"Des Peres","MO","N650DH",{"$f":"INDEX(Sheet3!$I$1:$O$92,MATCH($A69,Sheet3!$I$1:$I$92,0),MATCH(I$2,Sheet3!$I$1:$O$1,0))","v":"DRURY DEVELOPMENT CORP"},{"$f":"INDEX(Sheet3!$I$1:$O$92,MATCH($A69,Sheet3!$I$1:$I$92,0),MATCH(J$2,Sheet3!$I$1:$O$1,0))","v":"13075 MANCHESTER RD STE 200"},{"$f":"INDEX(Sheet3!$I$1:$O$92,MATCH($A69,Sheet3!$I$1:$I$92,0),MATCH(K$2,Sheet3!$I$1:$O$1,0))","v":"SAINT LOUIS"},{"$f":"INDEX(Sheet3!$I$1:$O$92,MATCH($A69,Sheet3!$I$1:$I$92,0),MATCH(L$2,Sheet3!$I$1:$O$1,0))","v":"MO"}]
["N637SF","Operator","Sanderson Farms, Inc.","P.O. Box 988","127 Flynt Road","Laurel","MS","N637SF",{"$f":"INDEX(Sheet3!$I$1:$O$92,MATCH($A70,Sheet3!$I$1:$I$92,0),MATCH(I$2,Sheet3!$I$1:$O$1,0))","v":"SANDERSON FARMS INC"},{"$f":"INDEX(Sheet3!$I$1:$O$92,MATCH($A70,Sheet3!$I$1:$I$92,0),MATCH(J$2,Sheet3!$I$1:$O$1,0))","v":"127 FLYNT RD"},{"$f":"INDEX(Sheet3!$I$1:$O$92,MATCH($A70,Sheet3!$I$1:$I$92,0),MATCH(K$2,Sheet3!$I$1:$O$1,0))","v":"LAUREL"},{"$f":"INDEX(Sheet3!$I$1:$O$92,MATCH($A70,Sheet3!$I$1:$I$92,0),MATCH(L$2,Sheet3!$I$1:$O$1,0))","v":"MS"}]
["N637SF","Owner","Sanderson Farms, Inc.","P.O. Box 988","127 Flynt Road","Laurel","MS","N637SF",{"$f":"INDEX(Sheet3!$I$1:$O$92,MATCH($A71,Sheet3!$I$1:$I$92,0),MATCH(I$2,Sheet3!$I$1:$O$1,0))","v":"SANDERSON FARMS INC"},{"$f":"INDEX(Sheet3!$I$1:$O$92,MATCH($A71,Sheet3!$I$1:$I$92,0),MATCH(J$2,Sheet3!$I$1:$O$1,0))","v":"127 FLYNT RD"},{"$f":"INDEX(Sheet3!$I$1:$O$92,MATCH($A71,Sheet3!$I$1:$I$92,0),MATCH(K$2,Sheet3!$I$1:$O$1,0))","v":"LAUREL"},{"$f":"INDEX(Sheet3!$I$1:$O$92,MATCH($A71,Sheet3!$I$1:$I$92,0),MATCH(L$2,Sheet3!$I$1:$O$1,0))","v":"MS"}]
["N67KP","Owner","Marivest Support Services, LLC","1500 East 27th Terrace",null,"Pittsburg","KS","N67KP",{"$f":"INDEX(Sheet3!$I$1:$O$92,MATCH($A72,Sheet3!$I$1:$I$92,0),MATCH(I$2,Sheet3!$I$1:$O$1,0))","v":"MARIVEST SUPPORT SERVICES LLC"},{"$f":"INDEX(Sheet3!$I$1:$O$92,MATCH($A72,Sheet3!$I$1:$I$92,0),MATCH(J$2,Sheet3!$I$1:$O$1,0))","v":"1500 E 27TH TER"},{"$f":"INDEX(Sheet3!$I$1:$O$92,MATCH($A72,Sheet3!$I$1:$I$92,0),MATCH(K$2,Sheet3!$I$1:$O$1,0))","v":"PITTSBURG"},{"$f":"INDEX(Sheet3!$I$1:$O$92,MATCH($A72,Sheet3!$I$1:$I$92,0),MATCH(L$2,Sheet3!$I$1:$O$1,0))","v":"KS"}]
["N581SF","Owner","FKM Enterprises, LLC","29 Pine Rd.",null,"St. Paul","MN","N581SF",{"$f":"INDEX(Sheet3!$I$1:$O$92,MATCH($A73,Sheet3!$I$1:$I$92,0),MATCH(I$2,Sheet3!$I$1:$O$1,0))","v":"FKM ENTERPRISES LLC"},{"$f":"INDEX(Sheet3!$I$1:$O$92,MATCH($A73,Sheet3!$I$1:$I$92,0),MATCH(J$2,Sheet3!$I$1:$O$1,0))","v":"29 PINE RD"},{"$f":"INDEX(Sheet3!$I$1:$O$92,MATCH($A73,Sheet3!$I$1:$I$92,0),MATCH(K$2,Sheet3!$I$1:$O$1,0))","v":"NORTH OAKS"},{"$f":"INDEX(Sheet3!$I$1:$O$92,MATCH($A73,Sheet3!$I$1:$I$92,0),MATCH(L$2,Sheet3!$I$1:$O$1,0))","v":"MN"}]
["N150GA","Owner","Gulfstream Leasing, LLC","500 Gulfstream Road, Mail B-06",null,"Savannah","GA","N150GA",{"$f":"INDEX(Sheet3!$I$1:$O$92,MATCH($A74,Sheet3!$I$1:$I$92,0),MATCH(I$2,Sheet3!$I$1:$O$1,0))","v":"GULFSTREAM LEASING LLC"},{"$f":"INDEX(Sheet3!$I$1:$O$92,MATCH($A74,Sheet3!$I$1:$I$92,0),MATCH(J$2,Sheet3!$I$1:$O$1,0))","v":"M/S B-16"},{"$f":"INDEX(Sheet3!$I$1:$O$92,MATCH($A74,Sheet3!$I$1:$I$92,0),MATCH(K$2,Sheet3!$I$1:$O$1,0))","v":"SAVANNAH"},{"$f":"INDEX(Sheet3!$I$1:$O$92,MATCH($A74,Sheet3!$I$1:$I$92,0),MATCH(L$2,Sheet3!$I$1:$O$1,0))","v":"GA"}]
["N901SS","Additional Company/Contact","Ardenbrook, Inc.","4725 Thornton Avenue",null,"Fremont","CA","N901SS",{"$f":"INDEX(Sheet3!$I$1:$O$92,MATCH($A75,Sheet3!$I$1:$I$92,0),MATCH(I$2,Sheet3!$I$1:$O$1,0))","v":"TWO STAR MARITIME LLC"},{"$f":"INDEX(Sheet3!$I$1:$O$92,MATCH($A75,Sheet3!$I$1:$I$92,0),MATCH(J$2,Sheet3!$I$1:$O$1,0))","v":"4725 THORNTON AVE"},{"$f":"INDEX(Sheet3!$I$1:$O$92,MATCH($A75,Sheet3!$I$1:$I$92,0),MATCH(K$2,Sheet3!$I$1:$O$1,0))","v":"FREMONT"},{"$f":"INDEX(Sheet3!$I$1:$O$92,MATCH($A75,Sheet3!$I$1:$I$92,0),MATCH(L$2,Sheet3!$I$1:$O$1,0))","v":"CA"}]
["N901SS","Owner","Two Star Maritime, LLC","4725 Thornton Avenue",null,"Fremont","CA","N901SS",{"$f":"INDEX(Sheet3!$I$1:$O$92,MATCH($A76,Sheet3!$I$1:$I$92,0),MATCH(I$2,Sheet3!$I$1:$O$1,0))","v":"TWO STAR MARITIME LLC"},{"$f":"INDEX(Sheet3!$I$1:$O$92,MATCH($A76,Sheet3!$I$1:$I$92,0),MATCH(J$2,Sheet3!$I$1:$O$1,0))","v":"4725 THORNTON AVE"},{"$f":"INDEX(Sheet3!$I$1:$O$92,MATCH($A76,Sheet3!$I$1:$I$92,0),MATCH(K$2,Sheet3!$I$1:$O$1,0))","v":"FREMONT"},{"$f":"INDEX(Sheet3!$I$1:$O$92,MATCH($A76,Sheet3!$I$1:$I$92,0),MATCH(L$2,Sheet3!$I$1:$O$1,0))","v":"CA"}]
["N546MM","Lessee","Excel Group Services, Inc.","8641 United Plaza Boulevard, Suite 102",null,"Baton Rouge","LA","N546MM",{"$f":"INDEX(Sheet3!$I$1:$O$92,MATCH($A77,Sheet3!$I$1:$I$92,0),MATCH(I$2,Sheet3!$I$1:$O$1,0))","v":"IES LEASING LLC"},{"$f":"INDEX(Sheet3!$I$1:$O$92,MATCH($A77,Sheet3!$I$1:$I$92,0),MATCH(J$2,Sheet3!$I$1:$O$1,0))","v":"8641 UNITED PLAZA BLVD STE 102"},{"$f":"INDEX(Sheet3!$I$1:$O$92,MATCH($A77,Sheet3!$I$1:$I$92,0),MATCH(K$2,Sheet3!$I$1:$O$1,0))","v":"BATON ROUGE"},{"$f":"INDEX(Sheet3!$I$1:$O$92,MATCH($A77,Sheet3!$I$1:$I$92,0),MATCH(L$2,Sheet3!$I$1:$O$1,0))","v":"LA"}]
["N546MM","Owner","IES Leasing, LLC","8641 United Plaza Boulevard, Suite 102",null,"Baton Rouge","LA","N546MM",{"$f":"INDEX(Sheet3!$I$1:$O$92,MATCH($A78,Sheet3!$I$1:$I$92,0),MATCH(I$2,Sheet3!$I$1:$O$1,0))","v":"IES LEASING LLC"},{"$f":"INDEX(Sheet3!$I$1:$O$92,MATCH($A78,Sheet3!$I$1:$I$92,0),MATCH(J$2,Sheet3!$I$1:$O$1,0))","v":"8641 UNITED PLAZA BLVD STE 102"},{"$f":"INDEX(Sheet3!$I$1:$O$92,MATCH($A78,Sheet3!$I$1:$I$92,0),MATCH(K$2,Sheet3!$I$1:$O$1,0))","v":"BATON ROUGE"},{"$f":"INDEX(Sheet3!$I$1:$O$92,MATCH($A78,Sheet3!$I$1:$I$92,0),MATCH(L$2,Sheet3!$I$1:$O$1,0))","v":"LA"}]
["N469DM","Co-Owner","D&I Transportation, LLC","2694 W. Oxford Loop, Suite 150",null,"Oxford","MS","N469DM",{"$f":"INDEX(Sheet3!$I$1:$O$92,MATCH($A79,Sheet3!$I$1:$I$92,0),MATCH(I$2,Sheet3!$I$1:$O$1,0))","v":"D&I TRANSPORTATION LLC"},{"$f":"INDEX(Sheet3!$I$1:$O$92,MATCH($A79,Sheet3!$I$1:$I$92,0),MATCH(J$2,Sheet3!$I$1:$O$1,0))","v":"333 W FRANKLIN ST"},{"$f":"INDEX(Sheet3!$I$1:$O$92,MATCH($A79,Sheet3!$I$1:$I$92,0),MATCH(K$2,Sheet3!$I$1:$O$1,0))","v":"TUPELO"},{"$f":"INDEX(Sheet3!$I$1:$O$92,MATCH($A79,Sheet3!$I$1:$I$92,0),MATCH(L$2,Sheet3!$I$1:$O$1,0))","v":"MS"}]
["N469DM","Co-Owner","NAC Flight Service, LLC","P.O. Box 2387",null,"Madison","MS","N469DM",{"$f":"INDEX(Sheet3!$I$1:$O$92,MATCH($A80,Sheet3!$I$1:$I$92,0),MATCH(I$2,Sheet3!$I$1:$O$1,0))","v":"D&I TRANSPORTATION LLC"},{"$f":"INDEX(Sheet3!$I$1:$O$92,MATCH($A80,Sheet3!$I$1:$I$92,0),MATCH(J$2,Sheet3!$I$1:$O$1,0))","v":"333 W FRANKLIN ST"},{"$f":"INDEX(Sheet3!$I$1:$O$92,MATCH($A80,Sheet3!$I$1:$I$92,0),MATCH(K$2,Sheet3!$I$1:$O$1,0))","v":"TUPELO"},{"$f":"INDEX(Sheet3!$I$1:$O$92,MATCH($A80,Sheet3!$I$1:$I$92,0),MATCH(L$2,Sheet3!$I$1:$O$1,0))","v":"MS"}]
["N10RZ","Owner","The Peregrine Leasing Trust","7229 South Alton Way",null,"Centennial","CO","N10RZ",{"$f":"INDEX(Sheet3!$I$1:$O$92,MATCH($A81,Sheet3!$I$1:$I$92,0),MATCH(I$2,Sheet3!$I$1:$O$1,0))","v":"PEREGRINE FALCON LLC TRUSTEE"},{"$f":"INDEX(Sheet3!$I$1:$O$92,MATCH($A81,Sheet3!$I$1:$I$92,0),MATCH(J$2,Sheet3!$I$1:$O$1,0))","v":"6225 N MEEKER PL STE 100"},{"$f":"INDEX(Sheet3!$I$1:$O$92,MATCH($A81,Sheet3!$I$1:$I$92,0),MATCH(K$2,Sheet3!$I$1:$O$1,0))","v":"BOISE"},{"$f":"INDEX(Sheet3!$I$1:$O$92,MATCH($A81,Sheet3!$I$1:$I$92,0),MATCH(L$2,Sheet3!$I$1:$O$1,0))","v":"ID"}]
["N175MG","Owner","Merlone Geier Management, LLC","425 California Street, 11th Floor",null,"San Francisco","CA","N175MG",{"$f":"INDEX(Sheet3!$I$1:$O$92,MATCH($A82,Sheet3!$I$1:$I$92,0),MATCH(I$2,Sheet3!$I$1:$O$1,0))","v":"MERLONE GEIER MANAGEMENT LLC"},{"$f":"INDEX(Sheet3!$I$1:$O$92,MATCH($A82,Sheet3!$I$1:$I$92,0),MATCH(J$2,Sheet3!$I$1:$O$1,0))","v":"425 CALIFORNIA ST FL 11"},{"$f":"INDEX(Sheet3!$I$1:$O$92,MATCH($A82,Sheet3!$I$1:$I$92,0),MATCH(K$2,Sheet3!$I$1:$O$1,0))","v":"SAN FRANCISCO"},{"$f":"INDEX(Sheet3!$I$1:$O$92,MATCH($A82,Sheet3!$I$1:$I$92,0),MATCH(L$2,Sheet3!$I$1:$O$1,0))","v":"CA"}]
["N375AB","Owner","Awaiting Documentation",null,null,null,null,"N375AB",{"$f":"INDEX(Sheet3!$I$1:$O$92,MATCH($A83,Sheet3!$I$1:$I$92,0),MATCH(I$2,Sheet3!$I$1:$O$1,0))","v":"ALPHA BRAVO AVIATION LLC"},{"$f":"INDEX(Sheet3!$I$1:$O$92,MATCH($A83,Sheet3!$I$1:$I$92,0),MATCH(J$2,Sheet3!$I$1:$O$1,0))","v":"2895 W CAPOVILLA AVE STE 140"},{"$f":"INDEX(Sheet3!$I$1:$O$92,MATCH($A83,Sheet3!$I$1:$I$92,0),MATCH(K$2,Sheet3!$I$1:$O$1,0))","v":"LAS VEGAS"},{"$f":"INDEX(Sheet3!$I$1:$O$92,MATCH($A83,Sheet3!$I$1:$I$92,0),MATCH(L$2,Sheet3!$I$1:$O$1,0))","v":"NV"}]
["N101RX","Owner","Teall Capital Partners, LLC","1001 West Fourth Street",null,"Winston-Salem","NC","N101RX",{"$f":"INDEX(Sheet3!$I$1:$O$92,MATCH($A84,Sheet3!$I$1:$I$92,0),MATCH(I$2,Sheet3!$I$1:$O$1,0))","v":"TEALL CAPITAL PARTNERS LLC"},{"$f":"INDEX(Sheet3!$I$1:$O$92,MATCH($A84,Sheet3!$I$1:$I$92,0),MATCH(J$2,Sheet3!$I$1:$O$1,0))","v":"PO BOX 21528"},{"$f":"INDEX(Sheet3!$I$1:$O$92,MATCH($A84,Sheet3!$I$1:$I$92,0),MATCH(K$2,Sheet3!$I$1:$O$1,0))","v":"WINSTON SALEM"},{"$f":"INDEX(Sheet3!$I$1:$O$92,MATCH($A84,Sheet3!$I$1:$I$92,0),MATCH(L$2,Sheet3!$I$1:$O$1,0))","v":"NC"}]
["N802RR","Owner","Sage Air, LLC","215 South State Street, Suite 1200",null,"Salt Lake City","UT","N802RR",{"$f":"INDEX(Sheet3!$I$1:$O$92,MATCH($A85,Sheet3!$I$1:$I$92,0),MATCH(I$2,Sheet3!$I$1:$O$1,0))","v":"SAGE AIR LLC"},{"$f":"INDEX(Sheet3!$I$1:$O$92,MATCH($A85,Sheet3!$I$1:$I$92,0),MATCH(J$2,Sheet3!$I$1:$O$1,0))","v":"215 S STATE ST STE 1200"},{"$f":"INDEX(Sheet3!$I$1:$O$92,MATCH($A85,Sheet3!$I$1:$I$92,0),MATCH(K$2,Sheet3!$I$1:$O$1,0))","v":"SALT LAKE CITY"},{"$f":"INDEX(Sheet3!$I$1:$O$92,MATCH($A85,Sheet3!$I$1:$I$92,0),MATCH(L$2,Sheet3!$I$1:$O$1,0))","v":"UT"}]
["N365SS","Co-Owner","Anderson, Glenn W.",null,null,null,"TX","N365SS",{"$f":"INDEX(Sheet3!$I$1:$O$92,MATCH($A86,Sheet3!$I$1:$I$92,0),MATCH(I$2,Sheet3!$I$1:$O$1,0))","v":"STALLINGS ROBERT W"},{"$f":"INDEX(Sheet3!$I$1:$O$92,MATCH($A86,Sheet3!$I$1:$I$92,0),MATCH(J$2,Sheet3!$I$1:$O$1,0))","v":"5242 BUENA VISTA DR"},{"$f":"INDEX(Sheet3!$I$1:$O$92,MATCH($A86,Sheet3!$I$1:$I$92,0),MATCH(K$2,Sheet3!$I$1:$O$1,0))","v":"FRISCO"},{"$f":"INDEX(Sheet3!$I$1:$O$92,MATCH($A86,Sheet3!$I$1:$I$92,0),MATCH(L$2,Sheet3!$I$1:$O$1,0))","v":"TX"}]
["N365SS","Co-Owner","Reis, James R.",null,null,null,"TX","N365SS",{"$f":"INDEX(Sheet3!$I$1:$O$92,MATCH($A87,Sheet3!$I$1:$I$92,0),MATCH(I$2,Sheet3!$I$1:$O$1,0))","v":"STALLINGS ROBERT W"},{"$f":"INDEX(Sheet3!$I$1:$O$92,MATCH($A87,Sheet3!$I$1:$I$92,0),MATCH(J$2,Sheet3!$I$1:$O$1,0))","v":"5242 BUENA VISTA DR"},{"$f":"INDEX(Sheet3!$I$1:$O$92,MATCH($A87,Sheet3!$I$1:$I$92,0),MATCH(K$2,Sheet3!$I$1:$O$1,0))","v":"FRISCO"},{"$f":"INDEX(Sheet3!$I$1:$O$92,MATCH($A87,Sheet3!$I$1:$I$92,0),MATCH(L$2,Sheet3!$I$1:$O$1,0))","v":"TX"}]
["N365SS","Co-Owner","Stallings, Robert W.","5242 Buena Vista Drive",null,"Frisco","TX","N365SS",{"$f":"INDEX(Sheet3!$I$1:$O$92,MATCH($A88,Sheet3!$I$1:$I$92,0),MATCH(I$2,Sheet3!$I$1:$O$1,0))","v":"STALLINGS ROBERT W"},{"$f":"INDEX(Sheet3!$I$1:$O$92,MATCH($A88,Sheet3!$I$1:$I$92,0),MATCH(J$2,Sheet3!$I$1:$O$1,0))","v":"5242 BUENA VISTA DR"},{"$f":"INDEX(Sheet3!$I$1:$O$92,MATCH($A88,Sheet3!$I$1:$I$92,0),MATCH(K$2,Sheet3!$I$1:$O$1,0))","v":"FRISCO"},{"$f":"INDEX(Sheet3!$I$1:$O$92,MATCH($A88,Sheet3!$I$1:$I$92,0),MATCH(L$2,Sheet3!$I$1:$O$1,0))","v":"TX"}]
["N365SS","Operator","GAINSCO, Inc.","P.O. Box 199023","3333 Lee Parkway, Suite 1200","Dallas","TX","N365SS",{"$f":"INDEX(Sheet3!$I$1:$O$92,MATCH($A89,Sheet3!$I$1:$I$92,0),MATCH(I$2,Sheet3!$I$1:$O$1,0))","v":"STALLINGS ROBERT W"},{"$f":"INDEX(Sheet3!$I$1:$O$92,MATCH($A89,Sheet3!$I$1:$I$92,0),MATCH(J$2,Sheet3!$I$1:$O$1,0))","v":"5242 BUENA VISTA DR"},{"$f":"INDEX(Sheet3!$I$1:$O$92,MATCH($A89,Sheet3!$I$1:$I$92,0),MATCH(K$2,Sheet3!$I$1:$O$1,0))","v":"FRISCO"},{"$f":"INDEX(Sheet3!$I$1:$O$92,MATCH($A89,Sheet3!$I$1:$I$92,0),MATCH(L$2,Sheet3!$I$1:$O$1,0))","v":"TX"}]
["N480JJ","Owner","Jimmie Johnson Racing II, Inc.","4325 Papa Joe Hendrick Boulevard",null,"Charlotte","NC","N480JJ",{"$f":"INDEX(Sheet3!$I$1:$O$92,MATCH($A90,Sheet3!$I$1:$I$92,0),MATCH(I$2,Sheet3!$I$1:$O$1,0))","v":"JIMMIE JOHNSON RACING II INC"},{"$f":"INDEX(Sheet3!$I$1:$O$92,MATCH($A90,Sheet3!$I$1:$I$92,0),MATCH(J$2,Sheet3!$I$1:$O$1,0))","v":"370 E MAPLE RD FL 4"},{"$f":"INDEX(Sheet3!$I$1:$O$92,MATCH($A90,Sheet3!$I$1:$I$92,0),MATCH(K$2,Sheet3!$I$1:$O$1,0))","v":"BIRMINGHAM"},{"$f":"INDEX(Sheet3!$I$1:$O$92,MATCH($A90,Sheet3!$I$1:$I$92,0),MATCH(L$2,Sheet3!$I$1:$O$1,0))","v":"MI"}]
["N885TC","Operator","TransCanada USA Pipeline Services, LLC","700 Louisiana Street, Suite 700",null,"Houston","TX","N885TC",{"$f":"INDEX(Sheet3!$I$1:$O$92,MATCH($A91,Sheet3!$I$1:$I$92,0),MATCH(I$2,Sheet3!$I$1:$O$1,0))","v":"BANK OF UTAH TRUSTEE"},{"$f":"INDEX(Sheet3!$I$1:$O$92,MATCH($A91,Sheet3!$I$1:$I$92,0),MATCH(J$2,Sheet3!$I$1:$O$1,0))","v":"50 S 200 E STE 110"},{"$f":"INDEX(Sheet3!$I$1:$O$92,MATCH($A91,Sheet3!$I$1:$I$92,0),MATCH(K$2,Sheet3!$I$1:$O$1,0))","v":"SALT LAKE CITY"},{"$f":"INDEX(Sheet3!$I$1:$O$92,MATCH($A91,Sheet3!$I$1:$I$92,0),MATCH(L$2,Sheet3!$I$1:$O$1,0))","v":"UT"}]
["N885TC","Owner","TransCanada USA Pipeline Services, LLC","700 Louisiana Street, Suite 700",null,"Houston","TX","N885TC",{"$f":"INDEX(Sheet3!$I$1:$O$92,MATCH($A92,Sheet3!$I$1:$I$92,0),MATCH(I$2,Sheet3!$I$1:$O$1,0))","v":"BANK OF UTAH TRUSTEE"},{"$f":"INDEX(Sheet3!$I$1:$O$92,MATCH($A92,Sheet3!$I$1:$I$92,0),MATCH(J$2,Sheet3!$I$1:$O$1,0))","v":"50 S 200 E STE 110"},{"$f":"INDEX(Sheet3!$I$1:$O$92,MATCH($A92,Sheet3!$I$1:$I$92,0),MATCH(K$2,Sheet3!$I$1:$O$1,0))","v":"SALT LAKE CITY"},{"$f":"INDEX(Sheet3!$I$1:$O$92,MATCH($A92,Sheet3!$I$1:$I$92,0),MATCH(L$2,Sheet3!$I$1:$O$1,0))","v":"UT"}]
["N819AM","Aircraft Management Company","Gama Aviation, LLC","Two Corporate Drive, Suite 1050",null,"Shelton","CT","N819AM",{"$f":"INDEX(Sheet3!$I$1:$O$92,MATCH($A93,Sheet3!$I$1:$I$92,0),MATCH(I$2,Sheet3!$I$1:$O$1,0))","v":"N819AM LLC"},{"$f":"INDEX(Sheet3!$I$1:$O$92,MATCH($A93,Sheet3!$I$1:$I$92,0),MATCH(J$2,Sheet3!$I$1:$O$1,0))","v":"2600 CAMINO RAMON STE 201"},{"$f":"INDEX(Sheet3!$I$1:$O$92,MATCH($A93,Sheet3!$I$1:$I$92,0),MATCH(K$2,Sheet3!$I$1:$O$1,0))","v":"SAN RAMON"},{"$f":"INDEX(Sheet3!$I$1:$O$92,MATCH($A93,Sheet3!$I$1:$I$92,0),MATCH(L$2,Sheet3!$I$1:$O$1,0))","v":"CA"}]
["N819AM","Owner","N819AM, LLC","P.O. Box 640","2600 Camino Ramon, Suite 201","San Ramon","CA","N819AM",{"$f":"INDEX(Sheet3!$I$1:$O$92,MATCH($A94,Sheet3!$I$1:$I$92,0),MATCH(I$2,Sheet3!$I$1:$O$1,0))","v":"N819AM LLC"},{"$f":"INDEX(Sheet3!$I$1:$O$92,MATCH($A94,Sheet3!$I$1:$I$92,0),MATCH(J$2,Sheet3!$I$1:$O$1,0))","v":"2600 CAMINO RAMON STE 201"},{"$f":"INDEX(Sheet3!$I$1:$O$92,MATCH($A94,Sheet3!$I$1:$I$92,0),MATCH(K$2,Sheet3!$I$1:$O$1,0))","v":"SAN RAMON"},{"$f":"INDEX(Sheet3!$I$1:$O$92,MATCH($A94,Sheet3!$I$1:$I$92,0),MATCH(L$2,Sheet3!$I$1:$O$1,0))","v":"CA"}]
["N3FS","Owner","DDMR, LLC","11201 Corporate Circle North, Suite 120",null,"St Petersburg","FL","N3FS",{"$f":"INDEX(Sheet3!$I$1:$O$92,MATCH($A95,Sheet3!$I$1:$I$92,0),MATCH(I$2,Sheet3!$I$1:$O$1,0))","v":"DDMR LLC"},{"$f":"INDEX(Sheet3!$I$1:$O$92,MATCH($A95,Sheet3!$I$1:$I$92,0),MATCH(J$2,Sheet3!$I$1:$O$1,0))","v":"11201 CORPORATE CIR N STE 120"},{"$f":"INDEX(Sheet3!$I$1:$O$92,MATCH($A95,Sheet3!$I$1:$I$92,0),MATCH(K$2,Sheet3!$I$1:$O$1,0))","v":"SAINT PETERSBURG"},{"$f":"INDEX(Sheet3!$I$1:$O$92,MATCH($A95,Sheet3!$I$1:$I$92,0),MATCH(L$2,Sheet3!$I$1:$O$1,0))","v":"FL"}]
["N719KX","Co-Owner","GJK, LLC","19054 North 97th Place",null,"Scottsdale","AZ","N719KX",{"$f":"INDEX(Sheet3!$I$1:$O$92,MATCH($A96,Sheet3!$I$1:$I$92,0),MATCH(I$2,Sheet3!$I$1:$O$1,0))","v":"MARTIS HOLDINGS LLC"},{"$f":"INDEX(Sheet3!$I$1:$O$92,MATCH($A96,Sheet3!$I$1:$I$92,0),MATCH(J$2,Sheet3!$I$1:$O$1,0))","v":"19054 N 97TH PL"},{"$f":"INDEX(Sheet3!$I$1:$O$92,MATCH($A96,Sheet3!$I$1:$I$92,0),MATCH(K$2,Sheet3!$I$1:$O$1,0))","v":"SCOTTSDALE"},{"$f":"INDEX(Sheet3!$I$1:$O$92,MATCH($A96,Sheet3!$I$1:$I$92,0),MATCH(L$2,Sheet3!$I$1:$O$1,0))","v":"AZ"}]
["N719KX","Co-Owner","Martis Holdings, LLC","19155 North 107th Street",null,"Scottsdale","AZ","N719KX",{"$f":"INDEX(Sheet3!$I$1:$O$92,MATCH($A97,Sheet3!$I$1:$I$92,0),MATCH(I$2,Sheet3!$I$1:$O$1,0))","v":"MARTIS HOLDINGS LLC"},{"$f":"INDEX(Sheet3!$I$1:$O$92,MATCH($A97,Sheet3!$I$1:$I$92,0),MATCH(J$2,Sheet3!$I$1:$O$1,0))","v":"19054 N 97TH PL"},{"$f":"INDEX(Sheet3!$I$1:$O$92,MATCH($A97,Sheet3!$I$1:$I$92,0),MATCH(K$2,Sheet3!$I$1:$O$1,0))","v":"SCOTTSDALE"},{"$f":"INDEX(Sheet3!$I$1:$O$92,MATCH($A97,Sheet3!$I$1:$I$92,0),MATCH(L$2,Sheet3!$I$1:$O$1,0))","v":"AZ"}]
["N15PV","Owner","Terrible Herbst, Inc.","5195 Las Vegas Boulevard South",null,"Las Vegas","NV","N15PV",{"$f":"INDEX(Sheet3!$I$1:$O$92,MATCH($A98,Sheet3!$I$1:$I$92,0),MATCH(I$2,Sheet3!$I$1:$O$1,0))","v":"TERRIBLE HERBST INC"},{"$f":"INDEX(Sheet3!$I$1:$O$92,MATCH($A98,Sheet3!$I$1:$I$92,0),MATCH(J$2,Sheet3!$I$1:$O$1,0))","v":"5195 LAS VEGAS BLVD S"},{"$f":"INDEX(Sheet3!$I$1:$O$92,MATCH($A98,Sheet3!$I$1:$I$92,0),MATCH(K$2,Sheet3!$I$1:$O$1,0))","v":"LAS VEGAS"},{"$f":"INDEX(Sheet3!$I$1:$O$92,MATCH($A98,Sheet3!$I$1:$I$92,0),MATCH(L$2,Sheet3!$I$1:$O$1,0))","v":"NV"}]
["N636SF","Operator","Sanderson Farms, Inc.","P.O. Box 988","127 Flynt Road","Laurel","MS","N636SF",{"$f":"INDEX(Sheet3!$I$1:$O$92,MATCH($A99,Sheet3!$I$1:$I$92,0),MATCH(I$2,Sheet3!$I$1:$O$1,0))","v":"SANDERSON FARMS INC"},{"$f":"INDEX(Sheet3!$I$1:$O$92,MATCH($A99,Sheet3!$I$1:$I$92,0),MATCH(J$2,Sheet3!$I$1:$O$1,0))","v":"127 FLYNT RD"},{"$f":"INDEX(Sheet3!$I$1:$O$92,MATCH($A99,Sheet3!$I$1:$I$92,0),MATCH(K$2,Sheet3!$I$1:$O$1,0))","v":"LAUREL"},{"$f":"INDEX(Sheet3!$I$1:$O$92,MATCH($A99,Sheet3!$I$1:$I$92,0),MATCH(L$2,Sheet3!$I$1:$O$1,0))","v":"MS"}]
["N636SF","Owner","Sanderson Farms, Inc.","P.O. Box 988","127 Flynt Road","Laurel","MS","N636SF",{"$f":"INDEX(Sheet3!$I$1:$O$92,MATCH($A100,Sheet3!$I$1:$I$92,0),MATCH(I$2,Sheet3!$I$1:$O$1,0))","v":"SANDERSON FARMS INC"},{"$f":"INDEX(Sheet3!$I$1:$O$92,MATCH($A100,Sheet3!$I$1:$I$92,0),MATCH(J$2,Sheet3!$I$1:$O$1,0))","v":"127 FLYNT RD"},{"$f":"INDEX(Sheet3!$I$1:$O$92,MATCH($A100,Sheet3!$I$1:$I$92,0),MATCH(K$2,Sheet3!$I$1:$O$1,0))","v":"LAUREL"},{"$f":"INDEX(Sheet3!$I$1:$O$92,MATCH($A100,Sheet3!$I$1:$I$92,0),MATCH(L$2,Sheet3!$I$1:$O$1,0))","v":"MS"}]
["N700FA","Flight Department","Frank's Management Company, LLC","6132 Charles Lindberg Drive",null,"Shreveport","LA","N700FA",{"$f":"INDEX(Sheet3!$I$1:$O$92,MATCH($A101,Sheet3!$I$1:$I$92,0),MATCH(I$2,Sheet3!$I$1:$O$1,0))","v":"JET FLIGHT LLC"},{"$f":"INDEX(Sheet3!$I$1:$O$92,MATCH($A101,Sheet3!$I$1:$I$92,0),MATCH(J$2,Sheet3!$I$1:$O$1,0))","v":"1312 N HEARNE AVE"},{"$f":"INDEX(Sheet3!$I$1:$O$92,MATCH($A101,Sheet3!$I$1:$I$92,0),MATCH(K$2,Sheet3!$I$1:$O$1,0))","v":"SHREVEPORT"},{"$f":"INDEX(Sheet3!$I$1:$O$92,MATCH($A101,Sheet3!$I$1:$I$92,0),MATCH(L$2,Sheet3!$I$1:$O$1,0))","v":"LA"}]
["N700FA","Owner","Jet Flight, LLC","P.O. Box 7665","1312 North Hearne Avenue","Shreveport","LA","N700FA",{"$f":"INDEX(Sheet3!$I$1:$O$92,MATCH($A102,Sheet3!$I$1:$I$92,0),MATCH(I$2,Sheet3!$I$1:$O$1,0))","v":"JET FLIGHT LLC"},{"$f":"INDEX(Sheet3!$I$1:$O$92,MATCH($A102,Sheet3!$I$1:$I$92,0),MATCH(J$2,Sheet3!$I$1:$O$1,0))","v":"1312 N HEARNE AVE"},{"$f":"INDEX(Sheet3!$I$1:$O$92,MATCH($A102,Sheet3!$I$1:$I$92,0),MATCH(K$2,Sheet3!$I$1:$O$1,0))","v":"SHREVEPORT"},{"$f":"INDEX(Sheet3!$I$1:$O$92,MATCH($A102,Sheet3!$I$1:$I$92,0),MATCH(L$2,Sheet3!$I$1:$O$1,0))","v":"LA"}]
["N80WB","Owner","WB ATS LLC","1455 SW Broadway, Suite 1700",null,"Portland","OR","N80WB",{"$f":"INDEX(Sheet3!$I$1:$O$92,MATCH($A103,Sheet3!$I$1:$I$92,0),MATCH(I$2,Sheet3!$I$1:$O$1,0))","v":"WB ATS LLC"},{"$f":"INDEX(Sheet3!$I$1:$O$92,MATCH($A103,Sheet3!$I$1:$I$92,0),MATCH(J$2,Sheet3!$I$1:$O$1,0))","v":"1455 SW BROADWAY STE 1700"},{"$f":"INDEX(Sheet3!$I$1:$O$92,MATCH($A103,Sheet3!$I$1:$I$92,0),MATCH(K$2,Sheet3!$I$1:$O$1,0))","v":"PORTLAND"},{"$f":"INDEX(Sheet3!$I$1:$O$92,MATCH($A103,Sheet3!$I$1:$I$92,0),MATCH(L$2,Sheet3!$I$1:$O$1,0))","v":"OR"}]
["N57RG","Operator","Soliq, SA de CV","Paseo De La Reforma 1240, Col. Lomas De Chapultepe",null,"Mexico",null,"N57RG",{"$f":"INDEX(Sheet3!$I$1:$O$92,MATCH($A104,Sheet3!$I$1:$I$92,0),MATCH(I$2,Sheet3!$I$1:$O$1,0))","v":"BANK OF UTAH TRUSTEE"},{"$f":"INDEX(Sheet3!$I$1:$O$92,MATCH($A104,Sheet3!$I$1:$I$92,0),MATCH(J$2,Sheet3!$I$1:$O$1,0))","v":"50 SOUTH 200 EAST STE 110"},{"$f":"INDEX(Sheet3!$I$1:$O$92,MATCH($A104,Sheet3!$I$1:$I$92,0),MATCH(K$2,Sheet3!$I$1:$O$1,0))","v":"SALT LAKE CITY"},{"$f":"INDEX(Sheet3!$I$1:$O$92,MATCH($A104,Sheet3!$I$1:$I$92,0),MATCH(L$2,Sheet3!$I$1:$O$1,0))","v":"UT"}]
["N57RG","Owner","Soliq, SA de CV","Paseo De La Reforma 1240, Col. Lomas De Chapultepe",null,"Mexico",null,"N57RG",{"$f":"INDEX(Sheet3!$I$1:$O$92,MATCH($A105,Sheet3!$I$1:$I$92,0),MATCH(I$2,Sheet3!$I$1:$O$1,0))","v":"BANK OF UTAH TRUSTEE"},{"$f":"INDEX(Sheet3!$I$1:$O$92,MATCH($A105,Sheet3!$I$1:$I$92,0),MATCH(J$2,Sheet3!$I$1:$O$1,0))","v":"50 SOUTH 200 EAST STE 110"},{"$f":"INDEX(Sheet3!$I$1:$O$92,MATCH($A105,Sheet3!$I$1:$I$92,0),MATCH(K$2,Sheet3!$I$1:$O$1,0))","v":"SALT LAKE CITY"},{"$f":"INDEX(Sheet3!$I$1:$O$92,MATCH($A105,Sheet3!$I$1:$I$92,0),MATCH(L$2,Sheet3!$I$1:$O$1,0))","v":"UT"}]
["N22G","Operator","Goodyear Flight Department","5400 Lauby Road","Akron-Canton Regional Airport","North Canton","OH","N22G",{"$f":"INDEX(Sheet3!$I$1:$O$92,MATCH($A106,Sheet3!$I$1:$I$92,0),MATCH(I$2,Sheet3!$I$1:$O$1,0))","v":"GOODYEAR TIRE & RUBBER CO"},{"$f":"INDEX(Sheet3!$I$1:$O$92,MATCH($A106,Sheet3!$I$1:$I$92,0),MATCH(J$2,Sheet3!$I$1:$O$1,0))","v":"200 E INNOVATION WAY"},{"$f":"INDEX(Sheet3!$I$1:$O$92,MATCH($A106,Sheet3!$I$1:$I$92,0),MATCH(K$2,Sheet3!$I$1:$O$1,0))","v":"AKRON"},{"$f":"INDEX(Sheet3!$I$1:$O$92,MATCH($A106,Sheet3!$I$1:$I$92,0),MATCH(L$2,Sheet3!$I$1:$O$1,0))","v":"OH"}]
["N22G","Owner","The Goodyear Tire & Rubber Company","200 Innovation Way",null,"Akron","OH","N22G",{"$f":"INDEX(Sheet3!$I$1:$O$92,MATCH($A107,Sheet3!$I$1:$I$92,0),MATCH(I$2,Sheet3!$I$1:$O$1,0))","v":"GOODYEAR TIRE & RUBBER CO"},{"$f":"INDEX(Sheet3!$I$1:$O$92,MATCH($A107,Sheet3!$I$1:$I$92,0),MATCH(J$2,Sheet3!$I$1:$O$1,0))","v":"200 E INNOVATION WAY"},{"$f":"INDEX(Sheet3!$I$1:$O$92,MATCH($A107,Sheet3!$I$1:$I$92,0),MATCH(K$2,Sheet3!$I$1:$O$1,0))","v":"AKRON"},{"$f":"INDEX(Sheet3!$I$1:$O$92,MATCH($A107,Sheet3!$I$1:$I$92,0),MATCH(L$2,Sheet3!$I$1:$O$1,0))","v":"OH"}]
["N285GA","Aircraft Management Company","Northern Jet Management","P.O. Box 888380","5500 44th Street SE, Building 203","Grand Rapids","MI","N285GA",{"$f":"INDEX(Sheet3!$I$1:$O$92,MATCH($A108,Sheet3!$I$1:$I$92,0),MATCH(I$2,Sheet3!$I$1:$O$1,0))","v":"PFC HOLDINGS LLC"},{"$f":"INDEX(Sheet3!$I$1:$O$92,MATCH($A108,Sheet3!$I$1:$I$92,0),MATCH(J$2,Sheet3!$I$1:$O$1,0))","v":"16180 HIGHLAND DR"},{"$f":"INDEX(Sheet3!$I$1:$O$92,MATCH($A108,Sheet3!$I$1:$I$92,0),MATCH(K$2,Sheet3!$I$1:$O$1,0))","v":"SPRING LAKE"},{"$f":"INDEX(Sheet3!$I$1:$O$92,MATCH($A108,Sheet3!$I$1:$I$92,0),MATCH(L$2,Sheet3!$I$1:$O$1,0))","v":"MI"}]
["N285GA","Owner","PFC Holdings, LLC","320 Ease Circle Drive",null,"North Muskegon","MI","N285GA",{"$f":"INDEX(Sheet3!$I$1:$O$92,MATCH($A109,Sheet3!$I$1:$I$92,0),MATCH(I$2,Sheet3!$I$1:$O$1,0))","v":"PFC HOLDINGS LLC"},{"$f":"INDEX(Sheet3!$I$1:$O$92,MATCH($A109,Sheet3!$I$1:$I$92,0),MATCH(J$2,Sheet3!$I$1:$O$1,0))","v":"16180 HIGHLAND DR"},{"$f":"INDEX(Sheet3!$I$1:$O$92,MATCH($A109,Sheet3!$I$1:$I$92,0),MATCH(K$2,Sheet3!$I$1:$O$1,0))","v":"SPRING LAKE"},{"$f":"INDEX(Sheet3!$I$1:$O$92,MATCH($A109,Sheet3!$I$1:$I$92,0),MATCH(L$2,Sheet3!$I$1:$O$1,0))","v":"MI"}]
["N1924D","Operator","A. Duie Pyle, Inc.","P.O. Box 564","650 Westtown Road","West Chester","PA","N1924D",{"$f":"INDEX(Sheet3!$I$1:$O$92,MATCH($A110,Sheet3!$I$1:$I$92,0),MATCH(I$2,Sheet3!$I$1:$O$1,0))","v":"N995DP LLC"},{"$f":"INDEX(Sheet3!$I$1:$O$92,MATCH($A110,Sheet3!$I$1:$I$92,0),MATCH(J$2,Sheet3!$I$1:$O$1,0))","v":"204 QUIGLEY BLVD"},{"$f":"INDEX(Sheet3!$I$1:$O$92,MATCH($A110,Sheet3!$I$1:$I$92,0),MATCH(K$2,Sheet3!$I$1:$O$1,0))","v":"NEW CASTLE"},{"$f":"INDEX(Sheet3!$I$1:$O$92,MATCH($A110,Sheet3!$I$1:$I$92,0),MATCH(L$2,Sheet3!$I$1:$O$1,0))","v":"DE"}]
["N1924D","Owner","N995DP, LLC","204 Quigley Boulevard",null,"New Castle","DE","N1924D",{"$f":"INDEX(Sheet3!$I$1:$O$92,MATCH($A111,Sheet3!$I$1:$I$92,0),MATCH(I$2,Sheet3!$I$1:$O$1,0))","v":"N995DP LLC"},{"$f":"INDEX(Sheet3!$I$1:$O$92,MATCH($A111,Sheet3!$I$1:$I$92,0),MATCH(J$2,Sheet3!$I$1:$O$1,0))","v":"204 QUIGLEY BLVD"},{"$f":"INDEX(Sheet3!$I$1:$O$92,MATCH($A111,Sheet3!$I$1:$I$92,0),MATCH(K$2,Sheet3!$I$1:$O$1,0))","v":"NEW CASTLE"},{"$f":"INDEX(Sheet3!$I$1:$O$92,MATCH($A111,Sheet3!$I$1:$I$92,0),MATCH(L$2,Sheet3!$I$1:$O$1,0))","v":"DE"}]
["N318KS","Owner","MMTH Air, LLC","601 East Wyandotte Street",null,"Meriden","KS","N318KS",{"$f":"INDEX(Sheet3!$I$1:$O$92,MATCH($A112,Sheet3!$I$1:$I$92,0),MATCH(I$2,Sheet3!$I$1:$O$1,0))","v":"MMTH AIR LLC"},{"$f":"INDEX(Sheet3!$I$1:$O$92,MATCH($A112,Sheet3!$I$1:$I$92,0),MATCH(J$2,Sheet3!$I$1:$O$1,0))","v":"601 E WYANDOTTE ST"},{"$f":"INDEX(Sheet3!$I$1:$O$92,MATCH($A112,Sheet3!$I$1:$I$92,0),MATCH(K$2,Sheet3!$I$1:$O$1,0))","v":"MERIDEN"},{"$f":"INDEX(Sheet3!$I$1:$O$92,MATCH($A112,Sheet3!$I$1:$I$92,0),MATCH(L$2,Sheet3!$I$1:$O$1,0))","v":"KS"}]
["N24G","Operator","Goodyear Flight Department","5400 Lauby Road","Akron-Canton Regional Airport","North Canton","OH","N24G",{"$f":"INDEX(Sheet3!$I$1:$O$92,MATCH($A113,Sheet3!$I$1:$I$92,0),MATCH(I$2,Sheet3!$I$1:$O$1,0))","v":"GOODYEAR TIRE & RUBBER CO"},{"$f":"INDEX(Sheet3!$I$1:$O$92,MATCH($A113,Sheet3!$I$1:$I$92,0),MATCH(J$2,Sheet3!$I$1:$O$1,0))","v":"200 INNOVATION WAY"},{"$f":"INDEX(Sheet3!$I$1:$O$92,MATCH($A113,Sheet3!$I$1:$I$92,0),MATCH(K$2,Sheet3!$I$1:$O$1,0))","v":"AKRON"},{"$f":"INDEX(Sheet3!$I$1:$O$92,MATCH($A113,Sheet3!$I$1:$I$92,0),MATCH(L$2,Sheet3!$I$1:$O$1,0))","v":"OH"}]
["N24G","Owner","Goodyear Tire & Rubber Company","200 Innovation Way",null,"Akron","OH","N24G",{"$f":"INDEX(Sheet3!$I$1:$O$92,MATCH($A114,Sheet3!$I$1:$I$92,0),MATCH(I$2,Sheet3!$I$1:$O$1,0))","v":"GOODYEAR TIRE & RUBBER CO"},{"$f":"INDEX(Sheet3!$I$1:$O$92,MATCH($A114,Sheet3!$I$1:$I$92,0),MATCH(J$2,Sheet3!$I$1:$O$1,0))","v":"200 INNOVATION WAY"},{"$f":"INDEX(Sheet3!$I$1:$O$92,MATCH($A114,Sheet3!$I$1:$I$92,0),MATCH(K$2,Sheet3!$I$1:$O$1,0))","v":"AKRON"},{"$f":"INDEX(Sheet3!$I$1:$O$92,MATCH($A114,Sheet3!$I$1:$I$92,0),MATCH(L$2,Sheet3!$I$1:$O$1,0))","v":"OH"}]
["N27KB","Owner","3 KB Investments, LLC","P.O. Box 395","730 S. Main","Jacksboro","TX","N27KB",{"$f":"INDEX(Sheet3!$I$1:$O$92,MATCH($A115,Sheet3!$I$1:$I$92,0),MATCH(I$2,Sheet3!$I$1:$O$1,0))","v":"3KB INVESTMENTS LLC"},{"$f":"INDEX(Sheet3!$I$1:$O$92,MATCH($A115,Sheet3!$I$1:$I$92,0),MATCH(J$2,Sheet3!$I$1:$O$1,0))","v":"180 W 13TH ST"},{"$f":"INDEX(Sheet3!$I$1:$O$92,MATCH($A115,Sheet3!$I$1:$I$92,0),MATCH(K$2,Sheet3!$I$1:$O$1,0))","v":"WILMINGTON"},{"$f":"INDEX(Sheet3!$I$1:$O$92,MATCH($A115,Sheet3!$I$1:$I$92,0),MATCH(L$2,Sheet3!$I$1:$O$1,0))","v":"DE"}]
["N557GA","Operator","Gestiones Ambair, Ltd.","Av. John F. Kennedy Esq. Av. Abraham Lincoln 1056","Edificio Ambair Piso 6","Santo Domingo",null,"N557GA",{"$f":"INDEX(Sheet3!$I$1:$O$92,MATCH($A116,Sheet3!$I$1:$I$92,0),MATCH(I$2,Sheet3!$I$1:$O$1,0))","v":"BANK OF UTAH TRUSTEE"},{"$f":"INDEX(Sheet3!$I$1:$O$92,MATCH($A116,Sheet3!$I$1:$I$92,0),MATCH(J$2,Sheet3!$I$1:$O$1,0))","v":"50 SOUTH 200 EAST STE 110"},{"$f":"INDEX(Sheet3!$I$1:$O$92,MATCH($A116,Sheet3!$I$1:$I$92,0),MATCH(K$2,Sheet3!$I$1:$O$1,0))","v":"SALT LAKE CITY"},{"$f":"INDEX(Sheet3!$I$1:$O$92,MATCH($A116,Sheet3!$I$1:$I$92,0),MATCH(L$2,Sheet3!$I$1:$O$1,0))","v":"UT"}]
["N557GA","Owner","Gestiones Ambair, Ltd.","Av. John F. Kennedy Esq. Av. Abraham Lincoln 1056","Edificio Ambair Piso 6","Santo Domingo",null,"N557GA",{"$f":"INDEX(Sheet3!$I$1:$O$92,MATCH($A117,Sheet3!$I$1:$I$92,0),MATCH(I$2,Sheet3!$I$1:$O$1,0))","v":"BANK OF UTAH TRUSTEE"},{"$f":"INDEX(Sheet3!$I$1:$O$92,MATCH($A117,Sheet3!$I$1:$I$92,0),MATCH(J$2,Sheet3!$I$1:$O$1,0))","v":"50 SOUTH 200 EAST STE 110"},{"$f":"INDEX(Sheet3!$I$1:$O$92,MATCH($A117,Sheet3!$I$1:$I$92,0),MATCH(K$2,Sheet3!$I$1:$O$1,0))","v":"SALT LAKE CITY"},{"$f":"INDEX(Sheet3!$I$1:$O$92,MATCH($A117,Sheet3!$I$1:$I$92,0),MATCH(L$2,Sheet3!$I$1:$O$1,0))","v":"UT"}]
["N935GB","Owner","Schneider National, Inc.","3101 South Packerland Drive",null,"Green Bay","WI","N935GB",{"$f":"INDEX(Sheet3!$I$1:$O$92,MATCH($A118,Sheet3!$I$1:$I$92,0),MATCH(I$2,Sheet3!$I$1:$O$1,0))","v":"SCHNEIDER NATIONAL INC"},{"$f":"INDEX(Sheet3!$I$1:$O$92,MATCH($A118,Sheet3!$I$1:$I$92,0),MATCH(J$2,Sheet3!$I$1:$O$1,0))","v":"3101 PACKERLAND DR"},{"$f":"INDEX(Sheet3!$I$1:$O$92,MATCH($A118,Sheet3!$I$1:$I$92,0),MATCH(K$2,Sheet3!$I$1:$O$1,0))","v":"GREEN BAY"},{"$f":"INDEX(Sheet3!$I$1:$O$92,MATCH($A118,Sheet3!$I$1:$I$92,0),MATCH(L$2,Sheet3!$I$1:$O$1,0))","v":"WI"}]
["N20TW","Fractional Owner","A4 Air, LLC","15506 Hwy 5, Suite J",null,"Cabot","AR","N20TW",{"$f":"INDEX(Sheet3!$I$1:$O$92,MATCH($A119,Sheet3!$I$1:$I$92,0),MATCH(I$2,Sheet3!$I$1:$O$1,0))","v":"JET IT LLC"},{"$f":"INDEX(Sheet3!$I$1:$O$92,MATCH($A119,Sheet3!$I$1:$I$92,0),MATCH(J$2,Sheet3!$I$1:$O$1,0))","v":"125 S ELM STE 300"},{"$f":"INDEX(Sheet3!$I$1:$O$92,MATCH($A119,Sheet3!$I$1:$I$92,0),MATCH(K$2,Sheet3!$I$1:$O$1,0))","v":"GREENSBORO"},{"$f":"INDEX(Sheet3!$I$1:$O$92,MATCH($A119,Sheet3!$I$1:$I$92,0),MATCH(L$2,Sheet3!$I$1:$O$1,0))","v":"NC"}]
["N20TW","Fractional Owner","Franklin Transportation Group, LLC","900 Kriner Road, Suite 1",null,"Chambersburg","PA","N20TW",{"$f":"INDEX(Sheet3!$I$1:$O$92,MATCH($A120,Sheet3!$I$1:$I$92,0),MATCH(I$2,Sheet3!$I$1:$O$1,0))","v":"JET IT LLC"},{"$f":"INDEX(Sheet3!$I$1:$O$92,MATCH($A120,Sheet3!$I$1:$I$92,0),MATCH(J$2,Sheet3!$I$1:$O$1,0))","v":"125 S ELM STE 300"},{"$f":"INDEX(Sheet3!$I$1:$O$92,MATCH($A120,Sheet3!$I$1:$I$92,0),MATCH(K$2,Sheet3!$I$1:$O$1,0))","v":"GREENSBORO"},{"$f":"INDEX(Sheet3!$I$1:$O$92,MATCH($A120,Sheet3!$I$1:$I$92,0),MATCH(L$2,Sheet3!$I$1:$O$1,0))","v":"NC"}]
["N20TW","Fractional Owner","GML Development, Inc.","9405 Earpsboro Chamblee Road",null,"Wendell","NC","N20TW",{"$f":"INDEX(Sheet3!$I$1:$O$92,MATCH($A121,Sheet3!$I$1:$I$92,0),MATCH(I$2,Sheet3!$I$1:$O$1,0))","v":"JET IT LLC"},{"$f":"INDEX(Sheet3!$I$1:$O$92,MATCH($A121,Sheet3!$I$1:$I$92,0),MATCH(J$2,Sheet3!$I$1:$O$1,0))","v":"125 S ELM STE 300"},{"$f":"INDEX(Sheet3!$I$1:$O$92,MATCH($A121,Sheet3!$I$1:$I$92,0),MATCH(K$2,Sheet3!$I$1:$O$1,0))","v":"GREENSBORO"},{"$f":"INDEX(Sheet3!$I$1:$O$92,MATCH($A121,Sheet3!$I$1:$I$92,0),MATCH(L$2,Sheet3!$I$1:$O$1,0))","v":"NC"}]
["N20TW","Fractional Owner","JS Aviation, LLC","800 North Wisconsin Street",null,"Elkhorn","WI","N20TW",{"$f":"INDEX(Sheet3!$I$1:$O$92,MATCH($A122,Sheet3!$I$1:$I$92,0),MATCH(I$2,Sheet3!$I$1:$O$1,0))","v":"JET IT LLC"},{"$f":"INDEX(Sheet3!$I$1:$O$92,MATCH($A122,Sheet3!$I$1:$I$92,0),MATCH(J$2,Sheet3!$I$1:$O$1,0))","v":"125 S ELM STE 300"},{"$f":"INDEX(Sheet3!$I$1:$O$92,MATCH($A122,Sheet3!$I$1:$I$92,0),MATCH(K$2,Sheet3!$I$1:$O$1,0))","v":"GREENSBORO"},{"$f":"INDEX(Sheet3!$I$1:$O$92,MATCH($A122,Sheet3!$I$1:$I$92,0),MATCH(L$2,Sheet3!$I$1:$O$1,0))","v":"NC"}]
["N20TW","Fractional Owner","Knysna Ventures, LLC","2185 Alameda Diablo",null,"Diablo","CA","N20TW",{"$f":"INDEX(Sheet3!$I$1:$O$92,MATCH($A123,Sheet3!$I$1:$I$92,0),MATCH(I$2,Sheet3!$I$1:$O$1,0))","v":"JET IT LLC"},{"$f":"INDEX(Sheet3!$I$1:$O$92,MATCH($A123,Sheet3!$I$1:$I$92,0),MATCH(J$2,Sheet3!$I$1:$O$1,0))","v":"125 S ELM STE 300"},{"$f":"INDEX(Sheet3!$I$1:$O$92,MATCH($A123,Sheet3!$I$1:$I$92,0),MATCH(K$2,Sheet3!$I$1:$O$1,0))","v":"GREENSBORO"},{"$f":"INDEX(Sheet3!$I$1:$O$92,MATCH($A123,Sheet3!$I$1:$I$92,0),MATCH(L$2,Sheet3!$I$1:$O$1,0))","v":"NC"}]
["N20TW","Fractional Owner","Lovo Holdings, LLC","712 Fifth Avenue, 14th Floor",null,"New York","NY","N20TW",{"$f":"INDEX(Sheet3!$I$1:$O$92,MATCH($A124,Sheet3!$I$1:$I$92,0),MATCH(I$2,Sheet3!$I$1:$O$1,0))","v":"JET IT LLC"},{"$f":"INDEX(Sheet3!$I$1:$O$92,MATCH($A124,Sheet3!$I$1:$I$92,0),MATCH(J$2,Sheet3!$I$1:$O$1,0))","v":"125 S ELM STE 300"},{"$f":"INDEX(Sheet3!$I$1:$O$92,MATCH($A124,Sheet3!$I$1:$I$92,0),MATCH(K$2,Sheet3!$I$1:$O$1,0))","v":"GREENSBORO"},{"$f":"INDEX(Sheet3!$I$1:$O$92,MATCH($A124,Sheet3!$I$1:$I$92,0),MATCH(L$2,Sheet3!$I$1:$O$1,0))","v":"NC"}]
["N20TW","Fractional Owner","SJ Aviation, LLC","2928 Habersham Rd NW",null,"Atlanta","GA","N20TW",{"$f":"INDEX(Sheet3!$I$1:$O$92,MATCH($A125,Sheet3!$I$1:$I$92,0),MATCH(I$2,Sheet3!$I$1:$O$1,0))","v":"JET IT LLC"},{"$f":"INDEX(Sheet3!$I$1:$O$92,MATCH($A125,Sheet3!$I$1:$I$92,0),MATCH(J$2,Sheet3!$I$1:$O$1,0))","v":"125 S ELM STE 300"},{"$f":"INDEX(Sheet3!$I$1:$O$92,MATCH($A125,Sheet3!$I$1:$I$92,0),MATCH(K$2,Sheet3!$I$1:$O$1,0))","v":"GREENSBORO"},{"$f":"INDEX(Sheet3!$I$1:$O$92,MATCH($A125,Sheet3!$I$1:$I$92,0),MATCH(L$2,Sheet3!$I$1:$O$1,0))","v":"NC"}]
["N20TW","Fractional Owner","Vanny & RP, LLC","P.O. Box 610",null,"Whitefish","MT","N20TW",{"$f":"INDEX(Sheet3!$I$1:$O$92,MATCH($A126,Sheet3!$I$1:$I$92,0),MATCH(I$2,Sheet3!$I$1:$O$1,0))","v":"JET IT LLC"},{"$f":"INDEX(Sheet3!$I$1:$O$92,MATCH($A126,Sheet3!$I$1:$I$92,0),MATCH(J$2,Sheet3!$I$1:$O$1,0))","v":"125 S ELM STE 300"},{"$f":"INDEX(Sheet3!$I$1:$O$92,MATCH($A126,Sheet3!$I$1:$I$92,0),MATCH(K$2,Sheet3!$I$1:$O$1,0))","v":"GREENSBORO"},{"$f":"INDEX(Sheet3!$I$1:$O$92,MATCH($A126,Sheet3!$I$1:$I$92,0),MATCH(L$2,Sheet3!$I$1:$O$1,0))","v":"NC"}]
["N20TW","Operator","Jet It LLC","101 South Elm Street, Suite 75",null,"Greensboro","NC","N20TW",{"$f":"INDEX(Sheet3!$I$1:$O$92,MATCH($A127,Sheet3!$I$1:$I$92,0),MATCH(I$2,Sheet3!$I$1:$O$1,0))","v":"JET IT LLC"},{"$f":"INDEX(Sheet3!$I$1:$O$92,MATCH($A127,Sheet3!$I$1:$I$92,0),MATCH(J$2,Sheet3!$I$1:$O$1,0))","v":"125 S ELM STE 300"},{"$f":"INDEX(Sheet3!$I$1:$O$92,MATCH($A127,Sheet3!$I$1:$I$92,0),MATCH(K$2,Sheet3!$I$1:$O$1,0))","v":"GREENSBORO"},{"$f":"INDEX(Sheet3!$I$1:$O$92,MATCH($A127,Sheet3!$I$1:$I$92,0),MATCH(L$2,Sheet3!$I$1:$O$1,0))","v":"NC"}]
["N20TW","Program Holder","Jet It LLC","101 South Elm Street, Suite 75",null,"Greensboro","NC","N20TW",{"$f":"INDEX(Sheet3!$I$1:$O$92,MATCH($A128,Sheet3!$I$1:$I$92,0),MATCH(I$2,Sheet3!$I$1:$O$1,0))","v":"JET IT LLC"},{"$f":"INDEX(Sheet3!$I$1:$O$92,MATCH($A128,Sheet3!$I$1:$I$92,0),MATCH(J$2,Sheet3!$I$1:$O$1,0))","v":"125 S ELM STE 300"},{"$f":"INDEX(Sheet3!$I$1:$O$92,MATCH($A128,Sheet3!$I$1:$I$92,0),MATCH(K$2,Sheet3!$I$1:$O$1,0))","v":"GREENSBORO"},{"$f":"INDEX(Sheet3!$I$1:$O$92,MATCH($A128,Sheet3!$I$1:$I$92,0),MATCH(L$2,Sheet3!$I$1:$O$1,0))","v":"NC"}]
["N639SF","Operator","Sanderson Farms, Inc.","P.O. Box 988","127 Flynt Road","Laurel","MS","N639SF",{"$f":"INDEX(Sheet3!$I$1:$O$92,MATCH($A129,Sheet3!$I$1:$I$92,0),MATCH(I$2,Sheet3!$I$1:$O$1,0))","v":"SANDERSON FARMS INC"},{"$f":"INDEX(Sheet3!$I$1:$O$92,MATCH($A129,Sheet3!$I$1:$I$92,0),MATCH(J$2,Sheet3!$I$1:$O$1,0))","v":"127 FLYNT RD"},{"$f":"INDEX(Sheet3!$I$1:$O$92,MATCH($A129,Sheet3!$I$1:$I$92,0),MATCH(K$2,Sheet3!$I$1:$O$1,0))","v":"LAUREL"},{"$f":"INDEX(Sheet3!$I$1:$O$92,MATCH($A129,Sheet3!$I$1:$I$92,0),MATCH(L$2,Sheet3!$I$1:$O$1,0))","v":"MS"}]
["N639SF","Owner","Sanderson Farms, Inc.","P.O. Box 988","127 Flynt Road","Laurel","MS","N639SF",{"$f":"INDEX(Sheet3!$I$1:$O$92,MATCH($A130,Sheet3!$I$1:$I$92,0),MATCH(I$2,Sheet3!$I$1:$O$1,0))","v":"SANDERSON FARMS INC"},{"$f":"INDEX(Sheet3!$I$1:$O$92,MATCH($A130,Sheet3!$I$1:$I$92,0),MATCH(J$2,Sheet3!$I$1:$O$1,0))","v":"127 FLYNT RD"},{"$f":"INDEX(Sheet3!$I$1:$O$92,MATCH($A130,Sheet3!$I$1:$I$92,0),MATCH(K$2,Sheet3!$I$1:$O$1,0))","v":"LAUREL"},{"$f":"INDEX(Sheet3!$I$1:$O$92,MATCH($A130,Sheet3!$I$1:$I$92,0),MATCH(L$2,Sheet3!$I$1:$O$1,0))","v":"MS"}]
["N876GH","Operator","Continental Baking Company, Ltd.","43 Half Way Tree Rd.",null,"Kingston",null,"N876GH",{"$f":"INDEX(Sheet3!$I$1:$O$92,MATCH($A131,Sheet3!$I$1:$I$92,0),MATCH(I$2,Sheet3!$I$1:$O$1,0))","v":"TVPX ARS INC TRUSTEE"},{"$f":"INDEX(Sheet3!$I$1:$O$92,MATCH($A131,Sheet3!$I$1:$I$92,0),MATCH(J$2,Sheet3!$I$1:$O$1,0))","v":"39 E EAGLE RIDGE DR STE 201"},{"$f":"INDEX(Sheet3!$I$1:$O$92,MATCH($A131,Sheet3!$I$1:$I$92,0),MATCH(K$2,Sheet3!$I$1:$O$1,0))","v":"NORTH SALT LAKE"},{"$f":"INDEX(Sheet3!$I$1:$O$92,MATCH($A131,Sheet3!$I$1:$I$92,0),MATCH(L$2,Sheet3!$I$1:$O$1,0))","v":"UT"}]
["N876GH","Owner","Continental Baking Company, Ltd.","43 Half Way Tree Rd.",null,"Kingston",null,{"$f":"A132","v":"N876GH"},{"$f":"INDEX(Sheet3!$I$1:$O$92,MATCH($A132,Sheet3!$I$1:$I$92,0),MATCH(I$2,Sheet3!$I$1:$O$1,0))","v":"TVPX ARS INC TRUSTEE"},{"$f":"INDEX(Sheet3!$I$1:$O$92,MATCH($A132,Sheet3!$I$1:$I$92,0),MATCH(J$2,Sheet3!$I$1:$O$1,0))","v":"39 E EAGLE RIDGE DR STE 201"},{"$f":"INDEX(Sheet3!$I$1:$O$92,MATCH($A132,Sheet3!$I$1:$I$92,0),MATCH(K$2,Sheet3!$I$1:$O$1,0))","v":"NORTH SALT LAKE"},{"$f":"INDEX(Sheet3!$I$1:$O$92,MATCH($A132,Sheet3!$I$1:$I$92,0),MATCH(L$2,Sheet3!$I$1:$O$1,0))","v":"UT"}]
["N922LR","Aircraft Management Company","Jet Linx Aviation, LLC","13030 Pierce Street, Suite 100",null,"Omaha","NE","N922LR",{"$f":"INDEX(Sheet3!$I$1:$O$92,MATCH($A133,Sheet3!$I$1:$I$92,0),MATCH(I$2,Sheet3!$I$1:$O$1,0))","v":"CAPITAL HOLDINGS 210 LLC"},{"$f":"INDEX(Sheet3!$I$1:$O$92,MATCH($A133,Sheet3!$I$1:$I$92,0),MATCH(J$2,Sheet3!$I$1:$O$1,0))","v":"117 SALEM CHURCH RD"},{"$f":"INDEX(Sheet3!$I$1:$O$92,MATCH($A133,Sheet3!$I$1:$I$92,0),MATCH(K$2,Sheet3!$I$1:$O$1,0))","v":"NEWARK"},{"$f":"INDEX(Sheet3!$I$1:$O$92,MATCH($A133,Sheet3!$I$1:$I$92,0),MATCH(L$2,Sheet3!$I$1:$O$1,0))","v":"DE"}]
["N922LR","Owner","Capital Holdings 210, LLC","900 Circle 75 Parkway, Suite 1660",null,"Atlanta","GA","N922LR",{"$f":"INDEX(Sheet3!$I$1:$O$92,MATCH($A134,Sheet3!$I$1:$I$92,0),MATCH(I$2,Sheet3!$I$1:$O$1,0))","v":"CAPITAL HOLDINGS 210 LLC"},{"$f":"INDEX(Sheet3!$I$1:$O$92,MATCH($A134,Sheet3!$I$1:$I$92,0),MATCH(J$2,Sheet3!$I$1:$O$1,0))","v":"117 SALEM CHURCH RD"},{"$f":"INDEX(Sheet3!$I$1:$O$92,MATCH($A134,Sheet3!$I$1:$I$92,0),MATCH(K$2,Sheet3!$I$1:$O$1,0))","v":"NEWARK"},{"$f":"INDEX(Sheet3!$I$1:$O$92,MATCH($A134,Sheet3!$I$1:$I$92,0),MATCH(L$2,Sheet3!$I$1:$O$1,0))","v":"DE"}]
["N730GA","Co-Owner","BTI Aviation, LLC","One South Nevada Avenue, Suite 200",null,"Colorado Springs","CO","N730GA",{"$f":"INDEX(Sheet3!$I$1:$O$92,MATCH($A135,Sheet3!$I$1:$I$92,0),MATCH(I$2,Sheet3!$I$1:$O$1,0))","v":"BTI AVIATION LLC"},{"$f":"INDEX(Sheet3!$I$1:$O$92,MATCH($A135,Sheet3!$I$1:$I$92,0),MATCH(J$2,Sheet3!$I$1:$O$1,0))","v":"1 S NEVADA AVE STE 200"},{"$f":"INDEX(Sheet3!$I$1:$O$92,MATCH($A135,Sheet3!$I$1:$I$92,0),MATCH(K$2,Sheet3!$I$1:$O$1,0))","v":"COLORADO SPRINGS"},{"$f":"INDEX(Sheet3!$I$1:$O$92,MATCH($A135,Sheet3!$I$1:$I$92,0),MATCH(L$2,Sheet3!$I$1:$O$1,0))","v":"CO"}]
["N730GA","Co-Owner","Snowy Range Aviation, LLC","One South Nevada Avenue, Suite 200",null,"Colorado Springs","CO","N730GA",{"$f":"INDEX(Sheet3!$I$1:$O$92,MATCH($A136,Sheet3!$I$1:$I$92,0),MATCH(I$2,Sheet3!$I$1:$O$1,0))","v":"BTI AVIATION LLC"},{"$f":"INDEX(Sheet3!$I$1:$O$92,MATCH($A136,Sheet3!$I$1:$I$92,0),MATCH(J$2,Sheet3!$I$1:$O$1,0))","v":"1 S NEVADA AVE STE 200"},{"$f":"INDEX(Sheet3!$I$1:$O$92,MATCH($A136,Sheet3!$I$1:$I$92,0),MATCH(K$2,Sheet3!$I$1:$O$1,0))","v":"COLORADO SPRINGS"},{"$f":"INDEX(Sheet3!$I$1:$O$92,MATCH($A136,Sheet3!$I$1:$I$92,0),MATCH(L$2,Sheet3!$I$1:$O$1,0))","v":"CO"}]
["N13WF","Flight Department","Flowers Foods, Inc.","3507 Flowers Hangar Road",null,"Thomasville","GA","N13WF",{"$f":"INDEX(Sheet3!$I$1:$O$92,MATCH($A137,Sheet3!$I$1:$I$92,0),MATCH(I$2,Sheet3!$I$1:$O$1,0))","v":"TRUIST EQUIPMENT FINANCE CORP"},{"$f":"INDEX(Sheet3!$I$1:$O$92,MATCH($A137,Sheet3!$I$1:$I$92,0),MATCH(J$2,Sheet3!$I$1:$O$1,0))","v":"245 PEACHTREE CENTER AVE NE"},{"$f":"INDEX(Sheet3!$I$1:$O$92,MATCH($A137,Sheet3!$I$1:$I$92,0),MATCH(K$2,Sheet3!$I$1:$O$1,0))","v":"ATLANTA"},{"$f":"INDEX(Sheet3!$I$1:$O$92,MATCH($A137,Sheet3!$I$1:$I$92,0),MATCH(L$2,Sheet3!$I$1:$O$1,0))","v":"GA"}]
["N13WF","Owner","Truist Equipment Finance Corp.","245 Peachtree Center Avenue NE, Floor 17",null,"Atlanta","GA","N13WF",{"$f":"INDEX(Sheet3!$I$1:$O$92,MATCH($A138,Sheet3!$I$1:$I$92,0),MATCH(I$2,Sheet3!$I$1:$O$1,0))","v":"TRUIST EQUIPMENT FINANCE CORP"},{"$f":"INDEX(Sheet3!$I$1:$O$92,MATCH($A138,Sheet3!$I$1:$I$92,0),MATCH(J$2,Sheet3!$I$1:$O$1,0))","v":"245 PEACHTREE CENTER AVE NE"},{"$f":"INDEX(Sheet3!$I$1:$O$92,MATCH($A138,Sheet3!$I$1:$I$92,0),MATCH(K$2,Sheet3!$I$1:$O$1,0))","v":"ATLANTA"},{"$f":"INDEX(Sheet3!$I$1:$O$92,MATCH($A138,Sheet3!$I$1:$I$92,0),MATCH(L$2,Sheet3!$I$1:$O$1,0))","v":"GA"}]
["N390KX","Owner","Knight Air, LLC","20002 North 19th Avenue",null,"Phoenix","AZ","N390KX",{"$f":"INDEX(Sheet3!$I$1:$O$92,MATCH($A139,Sheet3!$I$1:$I$92,0),MATCH(I$2,Sheet3!$I$1:$O$1,0))","v":"KNIGHT AIR LLC"},{"$f":"INDEX(Sheet3!$I$1:$O$92,MATCH($A139,Sheet3!$I$1:$I$92,0),MATCH(J$2,Sheet3!$I$1:$O$1,0))","v":"20002 NORTH 19TH AVE"},{"$f":"INDEX(Sheet3!$I$1:$O$92,MATCH($A139,Sheet3!$I$1:$I$92,0),MATCH(K$2,Sheet3!$I$1:$O$1,0))","v":"PHOENIX"},{"$f":"INDEX(Sheet3!$I$1:$O$92,MATCH($A139,Sheet3!$I$1:$I$92,0),MATCH(L$2,Sheet3!$I$1:$O$1,0))","v":"AZ"}]
["N508RP","Operator","Silver Point Capital, LP","2 Greenwich Plaza",null,"Greenwich","CT","N508RP",{"$f":"INDEX(Sheet3!$I$1:$O$92,MATCH($A140,Sheet3!$I$1:$I$92,0),MATCH(I$2,Sheet3!$I$1:$O$1,0))","v":"TVPX AIRCRAFT SOLUTIONS INC TRUSTEE"},{"$f":"INDEX(Sheet3!$I$1:$O$92,MATCH($A140,Sheet3!$I$1:$I$92,0),MATCH(J$2,Sheet3!$I$1:$O$1,0))","v":"39 E EAGLE RIDGE DR STE 201"},{"$f":"INDEX(Sheet3!$I$1:$O$92,MATCH($A140,Sheet3!$I$1:$I$92,0),MATCH(K$2,Sheet3!$I$1:$O$1,0))","v":"NORTH SALT LAKE"},{"$f":"INDEX(Sheet3!$I$1:$O$92,MATCH($A140,Sheet3!$I$1:$I$92,0),MATCH(L$2,Sheet3!$I$1:$O$1,0))","v":"UT"}]
["N508RP","Owner","Silver Point Capital, LP","2 Greenwich Plaza",null,"Greenwich","CT","N508RP",{"$f":"INDEX(Sheet3!$I$1:$O$92,MATCH($A141,Sheet3!$I$1:$I$92,0),MATCH(I$2,Sheet3!$I$1:$O$1,0))","v":"TVPX AIRCRAFT SOLUTIONS INC TRUSTEE"},{"$f":"INDEX(Sheet3!$I$1:$O$92,MATCH($A141,Sheet3!$I$1:$I$92,0),MATCH(J$2,Sheet3!$I$1:$O$1,0))","v":"39 E EAGLE RIDGE DR STE 201"},{"$f":"INDEX(Sheet3!$I$1:$O$92,MATCH($A141,Sheet3!$I$1:$I$92,0),MATCH(K$2,Sheet3!$I$1:$O$1,0))","v":"NORTH SALT LAKE"},{"$f":"INDEX(Sheet3!$I$1:$O$92,MATCH($A141,Sheet3!$I$1:$I$92,0),MATCH(L$2,Sheet3!$I$1:$O$1,0))","v":"UT"}]
["N503RP","Flight Department","Penske Jet, Inc.","6340 Highland Road",null,"Waterford","MI","N503RP",{"$f":"INDEX(Sheet3!$I$1:$O$92,MATCH($A142,Sheet3!$I$1:$I$92,0),MATCH(I$2,Sheet3!$I$1:$O$1,0))","v":"PTS AS LLC"},{"$f":"INDEX(Sheet3!$I$1:$O$92,MATCH($A142,Sheet3!$I$1:$I$92,0),MATCH(J$2,Sheet3!$I$1:$O$1,0))","v":"2675 MORGANTOWN RD"},{"$f":"INDEX(Sheet3!$I$1:$O$92,MATCH($A142,Sheet3!$I$1:$I$92,0),MATCH(K$2,Sheet3!$I$1:$O$1,0))","v":"READING"},{"$f":"INDEX(Sheet3!$I$1:$O$92,MATCH($A142,Sheet3!$I$1:$I$92,0),MATCH(L$2,Sheet3!$I$1:$O$1,0))","v":"PA"}]
["N503RP","Owner","Omicron Transportation, Inc.","P.O. Box 563","2675 Morgantown Raod","Reading","PA","N503RP",{"$f":"INDEX(Sheet3!$I$1:$O$92,MATCH($A143,Sheet3!$I$1:$I$92,0),MATCH(I$2,Sheet3!$I$1:$O$1,0))","v":"PTS AS LLC"},{"$f":"INDEX(Sheet3!$I$1:$O$92,MATCH($A143,Sheet3!$I$1:$I$92,0),MATCH(J$2,Sheet3!$I$1:$O$1,0))","v":"2675 MORGANTOWN RD"},{"$f":"INDEX(Sheet3!$I$1:$O$92,MATCH($A143,Sheet3!$I$1:$I$92,0),MATCH(K$2,Sheet3!$I$1:$O$1,0))","v":"READING"},{"$f":"INDEX(Sheet3!$I$1:$O$92,MATCH($A143,Sheet3!$I$1:$I$92,0),MATCH(L$2,Sheet3!$I$1:$O$1,0))","v":"PA"}]
["N501RP","Owner","The Huntington National Bank","106 South Main Street",null,"Akron","OH","N501RP",{"$f":"INDEX(Sheet3!$I$1:$O$92,MATCH($A144,Sheet3!$I$1:$I$92,0),MATCH(I$2,Sheet3!$I$1:$O$1,0))","v":"PTS AS LLC"},{"$f":"INDEX(Sheet3!$I$1:$O$92,MATCH($A144,Sheet3!$I$1:$I$92,0),MATCH(J$2,Sheet3!$I$1:$O$1,0))","v":"2675 MORGANTOWN RD"},{"$f":"INDEX(Sheet3!$I$1:$O$92,MATCH($A144,Sheet3!$I$1:$I$92,0),MATCH(K$2,Sheet3!$I$1:$O$1,0))","v":"READING"},{"$f":"INDEX(Sheet3!$I$1:$O$92,MATCH($A144,Sheet3!$I$1:$I$92,0),MATCH(L$2,Sheet3!$I$1:$O$1,0))","v":"PA"}]
["N116NC","Owner","Benson Legacy, LLC","7120 Pointe Inverness Way",null,"Ft. Wayne","IN","N116NC",{"$f":"INDEX(Sheet3!$I$1:$O$92,MATCH($A145,Sheet3!$I$1:$I$92,0),MATCH(I$2,Sheet3!$I$1:$O$1,0))","v":"BENSON LEGACY LLC"},{"$f":"INDEX(Sheet3!$I$1:$O$92,MATCH($A145,Sheet3!$I$1:$I$92,0),MATCH(J$2,Sheet3!$I$1:$O$1,0))","v":"7120 POINTE INVERNESS WAY"},{"$f":"INDEX(Sheet3!$I$1:$O$92,MATCH($A145,Sheet3!$I$1:$I$92,0),MATCH(K$2,Sheet3!$I$1:$O$1,0))","v":"FORT WAYNE"},{"$f":"INDEX(Sheet3!$I$1:$O$92,MATCH($A145,Sheet3!$I$1:$I$92,0),MATCH(L$2,Sheet3!$I$1:$O$1,0))","v":"IN"}]
["N151PW","Owner","Talon Tactical Management, LLC","6929 North Hayden Road C4-503",null,"Scottsdale","AZ","N151PW",{"$f":"INDEX(Sheet3!$I$1:$O$92,MATCH($A146,Sheet3!$I$1:$I$92,0),MATCH(I$2,Sheet3!$I$1:$O$1,0))","v":"TALON TACTICAL MANAGEMENT LLC"},{"$f":"INDEX(Sheet3!$I$1:$O$92,MATCH($A146,Sheet3!$I$1:$I$92,0),MATCH(J$2,Sheet3!$I$1:$O$1,0))","v":"9 E LOOCKERMAN ST STE 311"},{"$f":"INDEX(Sheet3!$I$1:$O$92,MATCH($A146,Sheet3!$I$1:$I$92,0),MATCH(K$2,Sheet3!$I$1:$O$1,0))","v":"DOVER"},{"$f":"INDEX(Sheet3!$I$1:$O$92,MATCH($A146,Sheet3!$I$1:$I$92,0),MATCH(L$2,Sheet3!$I$1:$O$1,0))","v":"DE"}]
["N963CH","Owner","Golden Gate International Corp., LLC",null,null,"Panama",null,"N963CH",{"$f":"INDEX(Sheet3!$I$1:$O$92,MATCH($A147,Sheet3!$I$1:$I$92,0),MATCH(I$2,Sheet3!$I$1:$O$1,0))","v":"BANK OF UTAH TRUSTEE"},{"$f":"INDEX(Sheet3!$I$1:$O$92,MATCH($A147,Sheet3!$I$1:$I$92,0),MATCH(J$2,Sheet3!$I$1:$O$1,0))","v":"50 SOUTH 200 EAST STE 110"},{"$f":"INDEX(Sheet3!$I$1:$O$92,MATCH($A147,Sheet3!$I$1:$I$92,0),MATCH(K$2,Sheet3!$I$1:$O$1,0))","v":"SALT LAKE CITY"},{"$f":"INDEX(Sheet3!$I$1:$O$92,MATCH($A147,Sheet3!$I$1:$I$92,0),MATCH(L$2,Sheet3!$I$1:$O$1,0))","v":"UT"}]
["N622SF","Operator","Sanderson Farms, Inc.","P.O. Box 988","127 Flynt Road","Laurel","MS","N622SF",{"$f":"INDEX(Sheet3!$I$1:$O$92,MATCH($A148,Sheet3!$I$1:$I$92,0),MATCH(I$2,Sheet3!$I$1:$O$1,0))","v":"SANDERSON FARMS INC"},{"$f":"INDEX(Sheet3!$I$1:$O$92,MATCH($A148,Sheet3!$I$1:$I$92,0),MATCH(J$2,Sheet3!$I$1:$O$1,0))","v":"127 FLYNT RD"},{"$f":"INDEX(Sheet3!$I$1:$O$92,MATCH($A148,Sheet3!$I$1:$I$92,0),MATCH(K$2,Sheet3!$I$1:$O$1,0))","v":"LAUREL"},{"$f":"INDEX(Sheet3!$I$1:$O$92,MATCH($A148,Sheet3!$I$1:$I$92,0),MATCH(L$2,Sheet3!$I$1:$O$1,0))","v":"MS"}]
["N622SF","Owner","Sanderson Farms, Inc.","P.O. Box 988","127 Flynt Road","Laurel","MS","N622SF",{"$f":"INDEX(Sheet3!$I$1:$O$92,MATCH($A149,Sheet3!$I$1:$I$92,0),MATCH(I$2,Sheet3!$I$1:$O$1,0))","v":"SANDERSON FARMS INC"},{"$f":"INDEX(Sheet3!$I$1:$O$92,MATCH($A149,Sheet3!$I$1:$I$92,0),MATCH(J$2,Sheet3!$I$1:$O$1,0))","v":"127 FLYNT RD"},{"$f":"INDEX(Sheet3!$I$1:$O$92,MATCH($A149,Sheet3!$I$1:$I$92,0),MATCH(K$2,Sheet3!$I$1:$O$1,0))","v":"LAUREL"},{"$f":"INDEX(Sheet3!$I$1:$O$92,MATCH($A149,Sheet3!$I$1:$I$92,0),MATCH(L$2,Sheet3!$I$1:$O$1,0))","v":"MS"}]
["N651DH","Operator","Drury Development Corporation","13075 Manchester Road #200",null,"Des Peres","MO","N651DH",{"$f":"INDEX(Sheet3!$I$1:$O$92,MATCH($A150,Sheet3!$I$1:$I$92,0),MATCH(I$2,Sheet3!$I$1:$O$1,0))","v":"DRURY DEVELOPMENT CORP"},{"$f":"INDEX(Sheet3!$I$1:$O$92,MATCH($A150,Sheet3!$I$1:$I$92,0),MATCH(J$2,Sheet3!$I$1:$O$1,0))","v":"721 EMERSON RD STE 200"},{"$f":"INDEX(Sheet3!$I$1:$O$92,MATCH($A150,Sheet3!$I$1:$I$92,0),MATCH(K$2,Sheet3!$I$1:$O$1,0))","v":"SAINT LOUIS"},{"$f":"INDEX(Sheet3!$I$1:$O$92,MATCH($A150,Sheet3!$I$1:$I$92,0),MATCH(L$2,Sheet3!$I$1:$O$1,0))","v":"MO"}]
["N651DH","Owner","Drury Development Corporation","13075 Manchester Road #200",null,"Des Peres","MO","N651DH",{"$f":"INDEX(Sheet3!$I$1:$O$92,MATCH($A151,Sheet3!$I$1:$I$92,0),MATCH(I$2,Sheet3!$I$1:$O$1,0))","v":"DRURY DEVELOPMENT CORP"},{"$f":"INDEX(Sheet3!$I$1:$O$92,MATCH($A151,Sheet3!$I$1:$I$92,0),MATCH(J$2,Sheet3!$I$1:$O$1,0))","v":"721 EMERSON RD STE 200"},{"$f":"INDEX(Sheet3!$I$1:$O$92,MATCH($A151,Sheet3!$I$1:$I$92,0),MATCH(K$2,Sheet3!$I$1:$O$1,0))","v":"SAINT LOUIS"},{"$f":"INDEX(Sheet3!$I$1:$O$92,MATCH($A151,Sheet3!$I$1:$I$92,0),MATCH(L$2,Sheet3!$I$1:$O$1,0))","v":"MO"}]
["N23EW","Owner","Encore Wire Corporation","P.0. 1149","1329 Millwood Road","McKinney","TX","N23EW",{"$f":"INDEX(Sheet3!$I$1:$O$92,MATCH($A152,Sheet3!$I$1:$I$92,0),MATCH(I$2,Sheet3!$I$1:$O$1,0))","v":"ENCORE WIRE CORP"},{"$f":"INDEX(Sheet3!$I$1:$O$92,MATCH($A152,Sheet3!$I$1:$I$92,0),MATCH(J$2,Sheet3!$I$1:$O$1,0))","v":"1329 MILLWOOD RD"},{"$f":"INDEX(Sheet3!$I$1:$O$92,MATCH($A152,Sheet3!$I$1:$I$92,0),MATCH(K$2,Sheet3!$I$1:$O$1,0))","v":"MCKINNEY"},{"$f":"INDEX(Sheet3!$I$1:$O$92,MATCH($A152,Sheet3!$I$1:$I$92,0),MATCH(L$2,Sheet3!$I$1:$O$1,0))","v":"TX"}]
["N123QU","Operator","Dorado Aviation, LLC","100 Carretera 165, Suite 508",null,"Guaynabo",null,"N123QU",{"$f":"INDEX(Sheet3!$I$1:$O$92,MATCH($A153,Sheet3!$I$1:$I$92,0),MATCH(I$2,Sheet3!$I$1:$O$1,0))","v":"DORADO AVIATION LLC"},{"$f":"INDEX(Sheet3!$I$1:$O$92,MATCH($A153,Sheet3!$I$1:$I$92,0),MATCH(J$2,Sheet3!$I$1:$O$1,0))","v":"100 CAR 165 STE 508 CENTRO INTL"},{"$f":"INDEX(Sheet3!$I$1:$O$92,MATCH($A153,Sheet3!$I$1:$I$92,0),MATCH(K$2,Sheet3!$I$1:$O$1,0))","v":"GUAYNABO"},{"$f":"INDEX(Sheet3!$I$1:$O$92,MATCH($A153,Sheet3!$I$1:$I$92,0),MATCH(L$2,Sheet3!$I$1:$O$1,0))","v":"PR"}]
["N123QU","Owner","Dorado Aviation, LLC","100 Carretera 165, Suite 508",null,"Guaynabo",null,"N123QU",{"$f":"INDEX(Sheet3!$I$1:$O$92,MATCH($A154,Sheet3!$I$1:$I$92,0),MATCH(I$2,Sheet3!$I$1:$O$1,0))","v":"DORADO AVIATION LLC"},{"$f":"INDEX(Sheet3!$I$1:$O$92,MATCH($A154,Sheet3!$I$1:$I$92,0),MATCH(J$2,Sheet3!$I$1:$O$1,0))","v":"100 CAR 165 STE 508 CENTRO INTL"},{"$f":"INDEX(Sheet3!$I$1:$O$92,MATCH($A154,Sheet3!$I$1:$I$92,0),MATCH(K$2,Sheet3!$I$1:$O$1,0))","v":"GUAYNABO"},{"$f":"INDEX(Sheet3!$I$1:$O$92,MATCH($A154,Sheet3!$I$1:$I$92,0),MATCH(L$2,Sheet3!$I$1:$O$1,0))","v":"PR"}]
["N6950C","Aircraft Management Company","Keystone Aviation, LLC","303 North 2370 West","Salt Lake City International Airport","Salt Lake City","UT","N6950C",{"$f":"INDEX(Sheet3!$I$1:$O$92,MATCH($A155,Sheet3!$I$1:$I$92,0),MATCH(I$2,Sheet3!$I$1:$O$1,0))","v":"MILLOAKS LLC"},{"$f":"INDEX(Sheet3!$I$1:$O$92,MATCH($A155,Sheet3!$I$1:$I$92,0),MATCH(J$2,Sheet3!$I$1:$O$1,0))","v":"1978 S WEST TEMPLE"},{"$f":"INDEX(Sheet3!$I$1:$O$92,MATCH($A155,Sheet3!$I$1:$I$92,0),MATCH(K$2,Sheet3!$I$1:$O$1,0))","v":"SALT LAKE CITY"},{"$f":"INDEX(Sheet3!$I$1:$O$92,MATCH($A155,Sheet3!$I$1:$I$92,0),MATCH(L$2,Sheet3!$I$1:$O$1,0))","v":"UT"}]
["N6950C","Owner","Milloaks, LLC","1978 South West Temple",null,"Salt Lake City","UT","N6950C",{"$f":"INDEX(Sheet3!$I$1:$O$92,MATCH($A156,Sheet3!$I$1:$I$92,0),MATCH(I$2,Sheet3!$I$1:$O$1,0))","v":"MILLOAKS LLC"},{"$f":"INDEX(Sheet3!$I$1:$O$92,MATCH($A156,Sheet3!$I$1:$I$92,0),MATCH(J$2,Sheet3!$I$1:$O$1,0))","v":"1978 S WEST TEMPLE"},{"$f":"INDEX(Sheet3!$I$1:$O$92,MATCH($A156,Sheet3!$I$1:$I$92,0),MATCH(K$2,Sheet3!$I$1:$O$1,0))","v":"SALT LAKE CITY"},{"$f":"INDEX(Sheet3!$I$1:$O$92,MATCH($A156,Sheet3!$I$1:$I$92,0),MATCH(L$2,Sheet3!$I$1:$O$1,0))","v":"UT"}]
["N12WF","Flight Department","Flowers Foods, Inc.","3507 Flowers Hangar Road",null,"Thomasville","GA","N12WF",{"$f":"INDEX(Sheet3!$I$1:$O$92,MATCH($A157,Sheet3!$I$1:$I$92,0),MATCH(I$2,Sheet3!$I$1:$O$1,0))","v":"PNC EQUIPMENT FINANCE LLC"},{"$f":"INDEX(Sheet3!$I$1:$O$92,MATCH($A157,Sheet3!$I$1:$I$92,0),MATCH(J$2,Sheet3!$I$1:$O$1,0))","v":"4355 W EMERALD ST STE 100"},{"$f":"INDEX(Sheet3!$I$1:$O$92,MATCH($A157,Sheet3!$I$1:$I$92,0),MATCH(K$2,Sheet3!$I$1:$O$1,0))","v":"BOISE"},{"$f":"INDEX(Sheet3!$I$1:$O$92,MATCH($A157,Sheet3!$I$1:$I$92,0),MATCH(L$2,Sheet3!$I$1:$O$1,0))","v":"ID"}]
["N12WF","Owner","PNC Equipment Finance, LLC","4355 Emerald Street, Suite 100",null,"Boise","ID","N12WF",{"$f":"INDEX(Sheet3!$I$1:$O$92,MATCH($A158,Sheet3!$I$1:$I$92,0),MATCH(I$2,Sheet3!$I$1:$O$1,0))","v":"PNC EQUIPMENT FINANCE LLC"},{"$f":"INDEX(Sheet3!$I$1:$O$92,MATCH($A158,Sheet3!$I$1:$I$92,0),MATCH(J$2,Sheet3!$I$1:$O$1,0))","v":"4355 W EMERALD ST STE 100"},{"$f":"INDEX(Sheet3!$I$1:$O$92,MATCH($A158,Sheet3!$I$1:$I$92,0),MATCH(K$2,Sheet3!$I$1:$O$1,0))","v":"BOISE"},{"$f":"INDEX(Sheet3!$I$1:$O$92,MATCH($A158,Sheet3!$I$1:$I$92,0),MATCH(L$2,Sheet3!$I$1:$O$1,0))","v":"ID"}]
["N1ED","Flight Department","DeBartolo Corporation","1453 Youngstown Kingsville Road NE, Hgr.2 North","Youngstown Municipal Airport","Vienna","OH","N1ED",{"$f":"INDEX(Sheet3!$I$1:$O$92,MATCH($A159,Sheet3!$I$1:$I$92,0),MATCH(I$2,Sheet3!$I$1:$O$1,0))","v":"DBCT LLC"},{"$f":"INDEX(Sheet3!$I$1:$O$92,MATCH($A159,Sheet3!$I$1:$I$92,0),MATCH(J$2,Sheet3!$I$1:$O$1,0))","v":"7620 MARKET ST"},{"$f":"INDEX(Sheet3!$I$1:$O$92,MATCH($A159,Sheet3!$I$1:$I$92,0),MATCH(K$2,Sheet3!$I$1:$O$1,0))","v":"YOUNGSTOWN"},{"$f":"INDEX(Sheet3!$I$1:$O$92,MATCH($A159,Sheet3!$I$1:$I$92,0),MATCH(L$2,Sheet3!$I$1:$O$1,0))","v":"OH"}]
["N1ED","Owner","DBCT, LLC","7620 Market Street",null,"Youngstown","OH","N1ED",{"$f":"INDEX(Sheet3!$I$1:$O$92,MATCH($A160,Sheet3!$I$1:$I$92,0),MATCH(I$2,Sheet3!$I$1:$O$1,0))","v":"DBCT LLC"},{"$f":"INDEX(Sheet3!$I$1:$O$92,MATCH($A160,Sheet3!$I$1:$I$92,0),MATCH(J$2,Sheet3!$I$1:$O$1,0))","v":"7620 MARKET ST"},{"$f":"INDEX(Sheet3!$I$1:$O$92,MATCH($A160,Sheet3!$I$1:$I$92,0),MATCH(K$2,Sheet3!$I$1:$O$1,0))","v":"YOUNGSTOWN"},{"$f":"INDEX(Sheet3!$I$1:$O$92,MATCH($A160,Sheet3!$I$1:$I$92,0),MATCH(L$2,Sheet3!$I$1:$O$1,0))","v":"OH"}]

{"sheet":"JETNET Data","index":5,"n_rows":228,"n_cols":75,"rows_kept":228,"cut":false,"hidden":false,"merged":[]}
["MAKE","MODEL","SERNBR","REGNBR","Mining Number","ACBASEIATA","ACBASESTATE","ACBASECOUNTRY","RELATIONTOAC","COMPANYNAME","COMPADDRESS1","COMPADDRESS2","COMPCITY","COMPSTATE","COMPZIPCODE","COMPCOUNTRY","COMPPRIMEBUS","COMPEMAILADDRESS","COMPWEBADDRESS","COMPOFFICE","COMPMOBILE","CONTACTFIRSTNAME","CONTACTLASTNAME","CONTACTTITLE","CONTACTEMAIL","CONTACTBESTPHONE","CONTACTOFFICE","CONTACTMOBILE","\"Operator\"","Data","NAME","STREET","CITY","STATE","Column1","OTHER NAMES(1)","OTHER NAMES(2)","Part 135 Certificate Holder Name","Part 135 Dsgn","Column2","DNB Key People","POC","Title","Address","Column3","Phone","Email","Column4","NBAA Name","NBAA Addr1","NBAA Addr2","NBAA City","NBAA State","NBAA Zip","NBAA Phone","NBAA Web","NBAA email","NBAA NBAA Link","Certificate Designator","Company Name","CEO_Name","CEO_Title","CEO_Address1","CEO_Address2","CEO_Address3","CEO_City","CEO_State","CEO_Postal_Code","CEO_Country","CEO_Phone","CEO_Phone_Extension","CEO_Foreign_Phone","Company email Status","Contact email Status","Column5"]
["GULFSTREAM","G150",201,"N150GV","N150GV","SAV","GA","United States","Owner","Gulfstream Leasing, LLC","500 Gulfstream Road, Mail B-06",null,"Savannah","GA",31407,"United States","Aviation Related Business",null,null,"912-965-3293",null,"Richard","Chiariello","Member","Richard.Chiariello@gulfstream.com","912-965-3293",null,null,"Gulfstream Aerospace ",null,null,null,null,null,null,null,null,null,null,null,null,null,null,null,null,null,null,null,null,null,null,null,null,null,null,null,null,null,null,null,null,null,null,null,null,null,null,null,null,null,null,null,"","catch-all"]
["GULFSTREAM","G150",202,"N703HA","N703HA","ILM","NC","United States","Owner","Full Send Aviation, LLC","190 Raleigh Street",null,"Wilmington","NC",28412,"United States","End User",null,null,"910-859-8574",null,"Christopher","Scerri","Manager",null,"910-859-8574","910-859-8574",null,"","Full Send Aviation LLC, Wilmington NC bought 12/15/21","WASHINGTON PENN PLASTIC CO INC","450 RACETRACK RD","WASHINGTON","PA",{"$error":"#N/A"},"","","","",{"$error":"#N/A"},"","","","",{"$error":"#N/A"},"","",{"$error":"#N/A"},"","","","","","","","","","","","","","","","","","","","","","","","","",""]
["GULFSTREAM","G150",203,"N530LD","N530LD","FTY","GA","United States","Owner","4 Love of Flight, LLC","16150 Fitzhugh Road",null,"Dripping Springs","TX",78620,"United States","End User",null,null,null,"325-370-7389","Lou Ann","Davis","Managing Member",null,"325-370-7389",null,"325-370-7389","Jet Linx Aviation Inc. ","4 Love of Flight rrg 9/10/20","4 LOVE OF FLIGHT LLC","16150 FITZHUGH RD","DRIPPING SPRINGS","TX",{"$error":"#N/A"},"","","Jet Linx Aviation, LLC","9JLA",{"$error":"#N/A"},"https://www.corporationwiki.com/p/3459mm/4-love-of-flight-llc","","","",{"$error":"#N/A"},"","",{"$error":"#N/A"},"","","","","","","","","","","9JLA","JET LINX AVIATION LLC","WALKER, JAMIE","PRESIDENT AND CHIEF EXECUTIVE OFFICER","13030 Pierce St","SUITE 100","","OMAHA","NE","68144","US","4029918060","","","",""]
["GULFSTREAM","G150",204,"N7476C","N7476C",null,"KS","United States","Owner","Dodson International Parts, Inc.","2155 Vermont Road",null,"Rantoul","KS","66079-9014","United States","Dealer Broker","sales@dodson.com","www.dodson.com","785-878-4000",null,"Robert","(J.R.) Dodson","President","jr@dodson.com","785-878-8013","785-878-8013",null,"","Compass Aviation, Danbury CT bought 12/5/19","SALE REPORTED","2155 VERMONT RD","RANTOUL","KS",{"$error":"#N/A"},"","","","",{"$error":"#N/A"},"","","","",{"$error":"#N/A"},"","",{"$error":"#N/A"},"","","","","","","","","","","","","","","","","","","","","","","","","do_not_mail","valid"]
["GULFSTREAM","G150",205,"N29JW","N29JW","MVW","WA","United States","Operator","Schussboomer Systems, Inc.","P.O. Box 1420","317 Commercial Avenue","Anacortes","WA",98221,"United States","End User",null,null,null,"360-708-8516","Kevin","Welch","President","kevin@schussboomer.net","360-588-0574","360-588-0574",null,"","Schussboomer Systems Inc. Anacortes WA bought 12/13/18","SCHUSSBOOMER SYSTEMS INC","301 COMMERCIAL AVE","ANACORTES","WA",{"$error":"#N/A"},"","","","",{"$error":"#N/A"},"","","","",{"$error":"#N/A"},"","",{"$error":"#N/A"},"","","","","","","","","","","","","","","","","","","","","","","","","","catch-all"]
["GULFSTREAM","G150",205,"N29JW","N29JW","MVW","WA","United States","Owner","Schussboomer Systems, Inc.","P.O. Box 1420","317 Commercial Avenue","Anacortes","WA",98221,"United States","End User",null,null,null,"360-708-8516","Kevin","Welch","President","kevin@schussboomer.net","360-588-0574","360-588-0574",null,"","Schussboomer Systems Inc. Anacortes WA bought 12/13/18","SCHUSSBOOMER SYSTEMS INC","301 COMMERCIAL AVE","ANACORTES","WA",{"$error":"#N/A"},"","","","",{"$error":"#N/A"},"","","","",{"$error":"#N/A"},"","",{"$error":"#N/A"},"","","","","","","","","","","","","","","","","","","","","","","","","","catch-all"]
["GULFSTREAM","G150",206,"N150QA","N150CH","IAH","TX","United States","Operator","North Houston Pole Line","1608 Margaret Street",null,"Houston","TX",77093,"United States","End User",null,"https://www.nhplc.com","713-691-3616",null,"David","Meisel",null,"dmeisel@quantaservices.com","713-691-3616",null,null,"","North Houston Pole Line bought 4/23/21, rg 06/25/21 TVPX Trustee for Quanta Services","TVPX AIRCRAFT SOLUTIONS INC TRUSTEE","39 E EAGLE RIDGE DR STE 201","NORTH SALT LAKE","UT",{"$error":"#N/A"},"","","","",{"$error":"#N/A"},"","","","",{"$error":"#N/A"},"","",{"$error":"#N/A"},"","","","","","","","","","","","","","","","","","","","","","","","","","valid"]
["GULFSTREAM","G150",206,"N150QA","N150CH","IAH","TX","United States","Owner","North Houston Pole Line","1608 Margaret Street",null,"Houston","TX",77093,"United States","End User",null,"https://www.nhplc.com","713-691-3616",null,"Daren","Austin","President",null,"713-691-3616",null,null,"","North Houston Pole Line bought 4/23/21, rg 06/25/21 TVPX Trustee for Quanta Services","TVPX AIRCRAFT SOLUTIONS INC TRUSTEE","39 E EAGLE RIDGE DR STE 201","NORTH SALT LAKE","UT",{"$error":"#N/A"},"","","","",{"$error":"#N/A"},"","","","",{"$error":"#N/A"},"","",{"$error":"#N/A"},"","","","","","","","","","","","","","","","","","","","","","","","","",""]
["GULFSTREAM","G150",207,"N531GP","N531GP","FTY","GA","United States","Owner","Blue Flag Two, Ltd.","P.O. Box 3806","110 N Main Street","Dayton","OH",45401,"United States","End User",null,null,"937-974-7845",null,"Kenneth","Hemmelgarn","Manager",null,"937-974-7845","937-974-7845",null,"","Blue Flag Two Ltd, Dayton OH bought 9/25/19","BLUE FLAG TWO LTD","PO BOX 3806","DAYTON","OH",{"$error":"#N/A"},"","","","",{"$error":"#N/A"},"","","","",{"$error":"#N/A"},"","",{"$error":"#N/A"},"","","","","","","","","","","","","","","","","","","","","","","","","",""]
["GULFSTREAM","G150",208,"N150CT","N150CT","MIA","FL","United States","Lessee","Promerica Financial Corporation","Calle 50 y 53 Este, Area Bancaria",null,"Panama City",null,null,"Panama","End User",null,"www.grupopromerica.com","507-2642841",null,"Ramiro","Ortiz Mayorga","President",null,"507-2642841","507-2642841",null,"","Leon Air LLC bought 12/20/13","BANK OF UTAH TRUSTEE","50 S 200 E STE 110","SALT LAKE CITY","UT",{"$error":"#N/A"},"","","","",{"$error":"#N/A"},"","","","",{"$error":"#N/A"},"","",{"$error":"#N/A"},"","","","","","","","","","","","","","","","","","","","","","","","","",""]
["GULFSTREAM","G150",208,"N150CT","N150CT","MIA","FL","United States","Owner","Leon Air, LLC","3191 Coral Way. Suite 800",null,"Miami","FL",33145,"United States","End User",null,null,null,null,"Ramiro","Ortiz","President",null,null,null,null,"","Leon Air LLC bought 12/20/13","BANK OF UTAH TRUSTEE","50 S 200 E STE 110","SALT LAKE CITY","UT",{"$error":"#N/A"},"","","","",{"$error":"#N/A"},"","","","",{"$error":"#N/A"},"","",{"$error":"#N/A"},"","","","","","","","","","","","","","","","","","","","","","","","","",""]
["GULFSTREAM","G150",209,"N209AW","N209AW","SCF","AZ","United States","Aircraft Management Company","Pinnacle Aviation, Inc.","14988 North 78th Way, Suite 106","Scottsdale Airport","Scottsdale","AZ",85260,"United States","Dealer Broker","cp@pinnacleaviation.com","www.pinnacleaviation.com","480-998-8989",null,"Curt","Pavlicek","President","cp@pinnacleaviation.com","602-618-6200","480-998-8989","602-618-6200","","Blue Star Management LLC, Craig AK bought 7/27/21","BLUE STAR MANAGEMENT LLC","PO BOX 686","CRAIG","AK",{"$error":"#N/A"},"","","","",{"$error":"#N/A"},"","","","",{"$error":"#N/A"},"","",{"$error":"#N/A"},"","","","","","","","","","","","","","","","","","","","","","","","","catch-all","catch-all"]
["GULFSTREAM","G150",209,"N209AW","N209AW","SCF","AZ","United States","Owner","Blue Star Management, LLC","P.O. Box 686","11.5 Mile Port St. Nicholas Road","Craig","AK",99921,"United States","End User",null,null,"480-579-2424",null,"Kenneth","Palmer","Manager",null,"480-579-2424",null,null,"","Blue Star Management LLC, Craig AK bought 7/27/21","BLUE STAR MANAGEMENT LLC","PO BOX 686","CRAIG","AK",{"$error":"#N/A"},"","","","",{"$error":"#N/A"},"","","","",{"$error":"#N/A"},"","",{"$error":"#N/A"},"","","","","","","","","","","","","","","","","","","","","","","","","",""]
["GULFSTREAM","G150",210,"N428JD","N428JD","PDK","GA","United States","Owner","Dewberry Air, LLC","1545 Peachtree Street NE, Ste. 250",null,"Atlanta","GA",30309,"United States","End User",null,null,"404-888-7990",null,"John","Dewberry","Member","jdewberry@dewberrycapital.com","404-888-7990",null,null,"","Dewberry Air LLC, Atlanta GA bought 8/22/14, rrg 5/8/15","DEWBERRY AIR LLC","1545 PEACHTREE ST NW STE 250","ATLANTA","GA",{"$error":"#N/A"},"","","","",{"$error":"#N/A"},"","","","",{"$error":"#N/A"},"","",{"$error":"#N/A"},"","","","","","","","","","","","","","","","","","","","","","","","","","valid"]
["GULFSTREAM","G150",211,"N248SL","N248SL","PBC",null,"Mexico","Co-Owner","Morales, Edgar","Calle Citialtepeti 2711",null,"Col Los Volcanes, Puebla Pue",null,72410,"Mexico","End User",null,null,"52-222-2370700",null,"Edgar","Morales",null,"ema1044@gmail.com","52-222-2370700",null,null,"","Stim-Air Inc. Portland OR delivered 1/11/07, rrg 5/22/07","BANK OF UTAH TRUSTEE","50 SOUTH 200 EAST STE 110","SALT LAKE CITY","UT",{"$error":"#N/A"},"","","","",{"$error":"#N/A"},"","","","",{"$error":"#N/A"},"","",{"$error":"#N/A"},"","","","","","","","","","","","","","","","","","","","","","","","","","valid","https://www.jetsenseaviation.com/wp-content/uploads/2020/03/G150-SN-211_-JSA-SPEC-1.pdf"]
["GULFSTREAM","G150",211,"N248SL","N248SL","PBC",null,"Mexico","Co-Owner","Rio-Sul SA de CV","Antiguo Camino a la Resurreccion 10610-A","Col. San Rosa","Puebla, Puebla",null,72920,"Mexico","End User","info@riosul.com.mx","www.riosul.com.mx","52-22-28922100",null,"Eduardo","Abraham Kanan","Director","eduardoa@riosul.com.mx","52-22-28922100","52-22-28922100",null,"","Stim-Air Inc. Portland OR delivered 1/11/07, rrg 5/22/07","BANK OF UTAH TRUSTEE","50 SOUTH 200 EAST STE 110","SALT LAKE CITY","UT",{"$error":"#N/A"},"","","","",{"$error":"#N/A"},"","","","",{"$error":"#N/A"},"","",{"$error":"#N/A"},"","","","","","","","","","","","","","","","","","","","","","","","","do_not_mail","valid"]
["GULFSTREAM","G150",211,"N248SL","N248SL","PBC",null,"Mexico","Operator","Willow Fabrics and Consulting, LLC","12A South Walnut Street",null,"Milford","DE",19963,"United States","End User",null,null,"925-930-2880",null,"Jeffry","Wright",null,"jeff@airplan.us","925-930-2880",null,null,"","Stim-Air Inc. Portland OR delivered 1/11/07, rrg 5/22/07","BANK OF UTAH TRUSTEE","50 SOUTH 200 EAST STE 110","SALT LAKE CITY","UT",{"$error":"#N/A"},"","","","",{"$error":"#N/A"},"","","","",{"$error":"#N/A"},"","",{"$error":"#N/A"},"","","","","","","","","","","","","","","","","","","","","","","","","","valid"]
["GULFSTREAM","G150",212,"N150JN","N150JN","MVW","WA","United States","Owner","Koselig, LLC","27821 36th Avenue NW",null,"Stanwood","WA",98292,"United States","End User",null,null,"206-683-2815",null,"Loren","Ness","Manager",null,"206-683-2815",null,null,"","Koselig LLC, Stanwood WA bought 6/17/21","KOSELIG LLC","27821 36TH AVE NW","STANWOOD","WA",{"$error":"#N/A"},"","","","",{"$error":"#N/A"},"","","","",{"$error":"#N/A"},"","",{"$error":"#N/A"},"","","","","","","","","","","","","","","","","","","","","","","","","",""]
["GULFSTREAM","G150",213,"N5950C","N5950C","AZO","MI","United States","Owner","Bravo Zulu G150, LLC","2186 East Centre Avenue",null,"Portage","MI",49002,"United States","End User",null,null,null,"269-547-4799","Scott","Sanderson","Manager",null,"269-547-4799",null,"269-547-4799","45 North Aviation ","Bravo Zulu G150 LLC, Portage MI bought 12/28/20","BRAVO ZULU G150 LLC","2186 E CENTRE AVE","PORTAGE","MI",{"$error":"#N/A"},"","","","",{"$error":"#N/A"},"","","","",{"$error":"#N/A"},"","",{"$error":"#N/A"},"Keystone Aviation ","303 N 2370 W","","Salt Lake City","Utah","84116","+1 801.359.2085","www.keystoneaviation.com","ops@keystoneaviation.com","","","","","","","","","","","","","","","","",""]
["GULFSTREAM","G150",214,"N777FL","N777FL","SJC","CA","United States","Operator","Warren, James D.","PO Box 620931",null,"Redwood City","CA","94062-0931","United States","End User",null,null,"650-529-9591",null,"James","Warren",null,"jwarrenp@yahoo.com","650-529-9591",null,null,"","Agnes LLC, Ashland OR delivered 4/2/07, rrg 4/26/07","AGNES LLC","600 BEACH ST","ASHLAND","OR",{"$error":"#N/A"},"","","","",{"$error":"#N/A"},"","","","",{"$error":"#N/A"},"","",{"$error":"#N/A"},"","","","","","","","","","","","","","","","","","","","","","","","","","abuse"]
["GULFSTREAM","G150",214,"N777FL","N777FL","SJC","CA","United States","Owner","Agnes, LLC","600 Beach Street",null,"Ashland","OR",97520,"United States","End User",null,null,null,null,"James","Warren","Manager","jwarrenp@yahoo.com",null,null,null,"","Agnes LLC, Ashland OR delivered 4/2/07, rrg 4/26/07","AGNES LLC","600 BEACH ST","ASHLAND","OR",{"$error":"#N/A"},"","","","",{"$error":"#N/A"},"","","","",{"$error":"#N/A"},"","",{"$error":"#N/A"},"","","","","","","","","","","","","","","","","","","","","","","","","","abuse"]
["GULFSTREAM","G150",215,"N247PS","N247PS","SAV","GA","United States","Operator","Gulfstream Aerospace Corporation","P.O. Box 2206 M/S B-04","500 Gulfstream Road","Savannah","GA","31402-2206","United States","Manufacturer",null,"www.gulfstream.com/preowned","912-965-3000",null,"Richard","Chiariello","Director of Contracts","richard.chiariello@gulfstream.com","912-965-3000",null,null,"","Gulfstream bought 6/10/14, rrg 4/8/15","GULFSTREAM AEROSPACE CORP","500 GULFSTREAM RD","SAVANNAH","GA",{"$error":"#N/A"},"","","","",{"$error":"#N/A"},"","","","",{"$error":"#N/A"},"","",{"$error":"#N/A"},"","","","","","","","","","","","","","","","","","","","","","","","","","catch-all"]
["GULFSTREAM","G150",215,"N247PS","N247PS","SAV","GA","United States","Owner","Gulfstream Aerospace Corporation","P.O. Box 2206 M/S B-04","500 Gulfstream Road","Savannah","GA","31402-2206","United States","Manufacturer",null,"www.gulfstream.com/preowned","912-965-3000",null,"Richard","Chiariello","Director of Contracts","richard.chiariello@gulfstream.com","912-965-3000",null,null,"","Gulfstream bought 6/10/14, rrg 4/8/15","GULFSTREAM AEROSPACE CORP","500 GULFSTREAM RD","SAVANNAH","GA",{"$error":"#N/A"},"","","","",{"$error":"#N/A"},"","","","",{"$error":"#N/A"},"","",{"$error":"#N/A"},"","","","","","","","","","","","","","","","","","","","","","","","","","catch-all"]
["GULFSTREAM","G150",216,"N192SW","N192SW","PTS","KS","United States","Operator","CAF, LLC","3501 Airport Circle",null,"Pittsburg","KS",66762,"United States","End User",null,null,"620-231-2230",null,"Nathan","Keizer","Chief Pilot","luv2fly1981@aol.com","620-231-2230",null,null,"","CAF LLC Pittsburg KS bought 1/27/15","CAF LLC","315 W 3RD ST","PITTSBURG","KS",{"$error":"#N/A"},"","","","",{"$error":"#N/A"},"","","","",{"$error":"#N/A"},"","",{"$error":"#N/A"},"","","","","","","","","","","","","","","","","","","","","","","","","","valid"]
["GULFSTREAM","G150",216,"N192SW","N192SW","PTS","KS","United States","Owner","CAF, LLC","3501 Airport Circle",null,"Pittsburg","KS",66762,"United States","End User",null,null,"620-231-2230",null,"Nathan","Keizer","Chief Pilot","luv2fly1981@aol.com","620-231-2230",null,null,"","CAF LLC Pittsburg KS bought 1/27/15","CAF LLC","315 W 3RD ST","PITTSBURG","KS",{"$error":"#N/A"},"","","","",{"$error":"#N/A"},"","","","",{"$error":"#N/A"},"","",{"$error":"#N/A"},"","","","","","","","","","","","","","","","","","","","","","","","","","valid"]
["GULFSTREAM","G150",217,"N217MS","N217MS","LOT","IL","United States","Owner","GS 150-217, LLC","2571 East, 71st Street",null,"Chicago","IL",60649,"United States","End User",null,null,null,null,"MarrGwen","Townsend",null,null,"312-953-2722",null,"312-953-2722","","GS 150-217 LLC, Chicago IL bought 6/4/07, rrg 6/13/07","GS 150-217 LLC","303 W MADISON ST STE 1000","CHICAGO","IL",{"$error":"#N/A"},"","","","",{"$error":"#N/A"},"","","","",{"$error":"#N/A"},"","",{"$error":"#N/A"},"Virago Services, LLC ","11242 E. Cimmarron Drive","","Englewood","Colorado","80111","+1 720.717.3004","","","","","","","","","","","","","","","","","","",""]
["GULFSTREAM","G150",218,"N1HE","N1HE","ADT","OK","United States","Owner","Conquest Air, LLC","1101 Cradduck Road, Suite B",null,"Ada","OK",74820,"United States","End User",null,null,null,"580-310-4262","David","Hatton","Manager",null,"580-310-4262",null,"580-310-4262","","Conquest Air LLC, Ada OK bought 4/2/19","CONQUEST AIR LLC","1101 CRADDUCK RD STE B","ADA","OK",{"$error":"#N/A"},"","","","",{"$error":"#N/A"},"","","","",{"$error":"#N/A"},"","",{"$error":"#N/A"},"","","","","","","","","","","","","","","","","","","","","","","","","",""]
["GULFSTREAM","G150",219,"CC-CWK","CC-CWK ","SCL",null,"Chile","Charter Company","Aerocardal, Ltda.","Diego Barroz Ortiz 2065","A/P Int'l Arturo Merino Benitez - Pudahuel","Santiago",null,null,"Chile","Charter Company","ventas@aerocardal.com","www.aerocardal.com","56-2-23777400",null,"Ricardo","Espinosa Urrejola","Operations Manager","ricardo.espinosa@aerocardal.com","56-2-23777400","56-2-23777400",null,"Aerocardal ","rg 5/30/07","CARDAL AKTIENGESELLSCHAFT","","","",{"$error":"#N/A"},"","","","",{"$error":"#N/A"},"","","","",{"$error":"#N/A"},"","",{"$error":"#N/A"},"","","","","","","","","","","","","","","","","","","","","","","","","valid","valid"]
["GULFSTREAM","G150",219,"CC-CWK","CC-CWK ","SCL",null,"Chile","Owner","Cardal AG","P.O. Box 470","Aeulestrasse 5","Vaduz",null,9490,"Liechtenstein","End User",null,null,"423-237-34-34",null,"Guido","Meier","Director","guido.meier@atu.li","423-237-34-34",null,null,"Aerocardal ","rg 5/30/07","CARDAL AKTIENGESELLSCHAFT","","","",{"$error":"#N/A"},"","","","",{"$error":"#N/A"},"","","","",{"$error":"#N/A"},"","",{"$error":"#N/A"},"","","","","","","","","","","","","","","","","","","","","","","","","","catch-all"]
["GULFSTREAM","G150",220,"N150MT","N150MT","PHX","AZ","United States","Aircraft Management Company","Bradley Mack Aviation, Inc.","14747 North Northsight Boulevard, Suite 111-433",null,"Scottsdale","AZ",85260,"United States","Management Company","mary@bradleymackaviation.com",null,"480-393-0770",null,"Mary","Randolph","Owner","mary@bradleymackaviation.com","602-980-7200","480-393-0770","602-980-7200","","GH Consulting Services Scottsdale AZ bought 7/19/19, rrg 9/23/19","GH CONSULTING SERVICES LLC","14747 N NORTHSIGHT BLVD","SCOTTSDALE","AZ",{"$error":"#N/A"},"NICK CHAPMAN CONSULTING LLC","","","",{"$error":"#N/A"},"","","","",{"$error":"#N/A"},"","",{"$error":"#N/A"},"Bradley Mack Aviation ","14747 N. Northsight Boulevard #111-433","","Scottsdale","Arizona","85260","+1 480.393.0770","www.coffmancompanies.com","","","","","","","","","","","","","","","","","valid","valid"]
["GULFSTREAM","G150",220,"N150MT","N150MT","PHX","AZ","United States","Co-Owner","GH Consulting Services, LLC","7377 E. Doubletree Ranch Road","Suite 100","Scottsdale","AZ",85258,"United States","End User",null,"www.grayhawkdevelopment.com","480-998-2661",null,"Gregg","Tryhus","President & Owner",null,"480-998-2661",null,null,"","GH Consulting Services Scottsdale AZ bought 7/19/19, rrg 9/23/19","GH CONSULTING SERVICES LLC","14747 N NORTHSIGHT BLVD","SCOTTSDALE","AZ",{"$error":"#N/A"},"NICK CHAPMAN CONSULTING LLC","","","",{"$error":"#N/A"},"","","","",{"$error":"#N/A"},"","",{"$error":"#N/A"},"Bradley Mack Aviation ","14747 N. Northsight Boulevard #111-433","","Scottsdale","Arizona","85260","+1 480.393.0770","www.coffmancompanies.com","","","","","","","","","","","","","","","","","",""]
["GULFSTREAM","G150",220,"N150MT","N150MT","PHX","AZ","United States","Co-Owner","Nick Chapman Consulting, LLC","2525 East Camelback Road, Suite 500",null,"Phoenix","AZ",85016,"United States","End User",null,null,"214-662-6021",null,"Nicolas","Chapman","Manager",null,"214-662-6021",null,null,"","GH Consulting Services Scottsdale AZ bought 7/19/19, rrg 9/23/19","GH CONSULTING SERVICES LLC","14747 N NORTHSIGHT BLVD","SCOTTSDALE","AZ",{"$error":"#N/A"},"NICK CHAPMAN CONSULTING LLC","","","",{"$error":"#N/A"},"","","","",{"$error":"#N/A"},"","",{"$error":"#N/A"},"Bradley Mack Aviation ","14747 N. Northsight Boulevard #111-433","","Scottsdale","Arizona","85260","+1 480.393.0770","www.coffmancompanies.com","","","","","","","","","","","","","","","","","",""]
["GULFSTREAM","G150",221,"N705AK","N705AK","VIS","CA","United States","Aircraft Management Company","Solairus Aviation","201 First Street, Suite 307",null,"Petaluma","CA",94952,"United States","Dealer Broker","charter@solairus.aero","www.solairus.aero","415-897-4522",null,"Charles","Judge","Charter Sales & Owner Services Executive","cjudge@solairus.aero","516-851-8060",null,"516-851-8060","","Family Tree Farms Aviation LLC, Dinuba CA bought 9/24/20","FAMILY TREE FARMS AVIATION LLC","PO BOX 396","DINUBA","CA",{"$error":"#N/A"},"","","","",{"$error":"#N/A"},"","","","",{"$error":"#N/A"},"","",{"$error":"#N/A"},"FTF Aviation LLC ","9715 Booth Bay Harbour Drive","","Baton Rouge","Bakersfield","Bakersfield California 93314","+1 551.591.8394","","","","","","","","","","","","","","","","","","catch-all","catch-all"]
["GULFSTREAM","G150",221,"N705AK","N705AK","VIS","CA","United States","Owner","Family Tree Farms Aviation, LLC","P.O. Box 396",null,"Dinuba","CA",93618,"United States","End User",null,null,"559-591-8394",null,"Andrew","Muxlow",null,null,"559-591-8394",null,null,"","Family Tree Farms Aviation LLC, Dinuba CA bought 9/24/20","FAMILY TREE FARMS AVIATION LLC","PO BOX 396","DINUBA","CA",{"$error":"#N/A"},"","","","",{"$error":"#N/A"},"","","","",{"$error":"#N/A"},"","",{"$error":"#N/A"},"FTF Aviation LLC ","9715 Booth Bay Harbour Drive","","Baton Rouge","Bakersfield","Bakersfield California 93314","+1 551.591.8394","","","","","","","","","","","","","","","","","","",""]
["GULFSTREAM","G150",222,"C-FTXX","C-FTXX / C-FTXX ","YWG","MB","Canada","Operator","6404805 Manitoba, Ltd.","2595 Inkster Boulevard",null,"Winnipeg","MB","R3C-2E6","Canada","End User","hr@transx.com",null,"204-632-6694",null,"Louie","Tolaini",null,"louie_tolaini@transx.com","204-632-6694",null,null,"","6404805 Manitoba Ltd. Winnipeg MB rg 05/1/12","6404805 Manitoba Ltd.","","Winnipeg","Manitoba",{"$error":"#N/A"},"","","","",{"$error":"#N/A"},"","","","",{"$error":"#N/A"},"","",{"$error":"#N/A"},"","","","","","","","","","","","","","","","","","","","","","","","","do_not_mail","valid"]
["GULFSTREAM","G150",222,"C-FTXX","C-FTXX / C-FTXX ","YWG","MB","Canada","Owner","6404805 Manitoba, Ltd.","2595 Inkster Boulevard",null,"Winnipeg","MB","R3C-2E6","Canada","End User","hr@transx.com",null,"204-632-6694",null,"Louie","Tolaini",null,"louie_tolaini@transx.com","204-632-6694",null,null,"","6404805 Manitoba Ltd. Winnipeg MB rg 05/1/12","6404805 Manitoba Ltd.","","Winnipeg","Manitoba",{"$error":"#N/A"},"","","","",{"$error":"#N/A"},"","","","",{"$error":"#N/A"},"","",{"$error":"#N/A"},"","","","","","","","","","","","","","","","","","","","","","","","","do_not_mail","valid"]
["GULFSTREAM","G150",223,"N611NC","N611NC","MTN","MD","United States","Operator","MHW Group Holdings, LLC","11620 Red Run Boulevard",null,"Reisterstown","MD",21136,"United States","End User",null,"www.mhwgroup.com","410-654-6700",null,"Marvin","Weiner","Chairman & Founder","mhweiner@mhwgroup.com","410-654-6700",null,null,"Executive Flight Solutions ","MHW Group Holdings LLC Reisterstown MD bought 4/14/15. Operated by Executive Flight Solutions until 2020","MHW GROUP HOLDINGS LLC","11620 RED RUN BLVD","REISTERSTOWN","MD",{"$error":"#N/A"},"","","","",{"$error":"#N/A"},"","","","",{"$error":"#N/A"},"","",{"$error":"#N/A"},"","","","","","","","","","","","","","","","","","","","","","","","","","valid"]
["GULFSTREAM","G150",223,"N611NC","N611NC","MTN","MD","United States","Owner","MHW Group Holdings, LLC","11620 Red Run Boulevard",null,"Reisterstown","MD",21136,"United States","End User",null,"www.mhwgroup.com","410-654-6700",null,"Marvin","Weiner","Chairman & Founder","mhweiner@mhwgroup.com","410-654-6700",null,null,"Executive Flight Solutions ","MHW Group Holdings LLC Reisterstown MD bought 4/14/15. Operated by Executive Flight Solutions until 2020","MHW GROUP HOLDINGS LLC","11620 RED RUN BLVD","REISTERSTOWN","MD",{"$error":"#N/A"},"","","","",{"$error":"#N/A"},"","","","",{"$error":"#N/A"},"","",{"$error":"#N/A"},"","","","","","","","","","","","","","","","","","","","","","","","","","valid"]
["GULFSTREAM","G150",224,"N224GG","N224GG","DSI","FL","United States","Owner","Gator Tracks, LLC","70 Ready Avenue NW",null,"Ft. Walton Beach","FL",32548,"United States","End User",null,null,null,null,"Les","Rose","Manager",null,"850-217-6580",null,"850-217-6580","","Gator Tracks LLC, Ft Lauderdale FL bought 12/21/20","GATOR TRACKS LLC","70 READY AVE NW","FORT WALTON BEACH","FL",{"$error":"#N/A"},"","","","",{"$error":"#N/A"},"","","","",{"$error":"#N/A"},"","",{"$error":"#N/A"},"","","","","","","","","","","","","","","","","","","","","","","","","",""]
["GULFSTREAM","G150",225,"N365GA","N365GA","SAV","GA","United States","Operator","Gulfstream Aerospace Corporation","P.O. Box 2206 M/S B-04","500 Gulfstream Road","Savannah","GA","31402-2206","United States","Manufacturer",null,"www.gulfstream.com/preowned","912-965-3000",null,"Richard","Chiariello","Director of Contracts","richard.chiariello@gulfstream.com","912-965-3000",null,null,"Gulfstream Aerospace ","Gulfstream Leasing LLC, Savannah GA bought 2/27/13, rrg 8/8/13","GULFSTREAM LEASING LLC","500 GULFSTREAM RD M/S B-16","SAVANNAH","GA",{"$error":"#N/A"},"","","","",{"$error":"#N/A"},"","","","",{"$error":"#N/A"},"","",{"$error":"#N/A"},"","","","","","","","","","","","","","","","","","","","","","","","","","catch-all"]
["GULFSTREAM","G150",225,"N365GA","N365GA","SAV","GA","United States","Owner","Gulfstream Leasing, LLC","500 Gulfstream Road, Mail B-06",null,"Savannah","GA",31407,"United States","Aviation Related Business",null,null,"912-965-3293",null,"Richard","Chiariello","Member","Richard.Chiariello@gulfstream.com","912-965-3293",null,null,"Gulfstream Aerospace ","Gulfstream Leasing LLC, Savannah GA bought 2/27/13, rrg 8/8/13","GULFSTREAM LEASING LLC","500 GULFSTREAM RD M/S B-16","SAVANNAH","GA",{"$error":"#N/A"},"","","","",{"$error":"#N/A"},"","","","",{"$error":"#N/A"},"","",{"$error":"#N/A"},"","","","","","","","","","","","","","","","","","","","","","","","","","catch-all"]
["GULFSTREAM","G150",226,"N8821C","N8821C","FAT","CA","United States","Aircraft Management Company","CSM Aviation","3050 N Winery Avenue","Fresno Yosemite International Airport","Fresno","CA",93703,"United States","Dealer Broker","jhogan@csmaviation.com","www.CSMAviation.com","559-492-9403",null,"Albert","Buccieri","President","albert@paragonaviationlogistics.com","559-492-9403",null,null,"Paragon Executive Charter ","JVWL LLC Hanford CA bought 12/19/19","JVWL LLC","9240 EXCELSIOR AVE","HANFORD","CA",{"$error":"#N/A"},"","","Paragon Aviation Logistics, INC.","17MA",{"$error":"#N/A"},"","","","",{"$error":"#N/A"},"","",{"$error":"#N/A"},"Chevron U.S.A. Inc. ","1600 Smith Street","","Houston","Texas","77002-7327","+1 713.754.4840","www.chevron.com","","","17MA","PARAGON AVIATION LOGISTICS INC","","","","","","","","","","","","","catch-all","valid"]
["GULFSTREAM","G150",226,"N8821C","N8821C","FAT","CA","United States","Owner","JVWL, LLC","9240 Excelsior Avenue",null,"Hanford","CA",93230,"United States","End User","john@tosfarms.com",null,"559-584-5751",null,"William","Tos","Member","bill@tosfarms.com","559-584-5751",null,null,"Paragon Executive Charter ","JVWL LLC Hanford CA bought 12/19/19","JVWL LLC","9240 EXCELSIOR AVE","HANFORD","CA",{"$error":"#N/A"},"","","Paragon Aviation Logistics, INC.","17MA",{"$error":"#N/A"},"","","","",{"$error":"#N/A"},"","",{"$error":"#N/A"},"Chevron U.S.A. Inc. ","1600 Smith Street","","Houston","Texas","77002-7327","+1 713.754.4840","www.chevron.com","","","17MA","PARAGON AVIATION LOGISTICS INC","","","","","","","","","","","","","catch-all","catch-all"]
["GULFSTREAM","G150",227,"N100SR","N100SR","ARR","IL","United States","Flight Department","Executive Capital Corporation","47 West 210th Route 30",null,"Big Rock","IL",60511,"United States","End User",null,null,null,null,"David","Bohr","Chief Pilot",null,"630-556-3731","630-556-3731",null,"","Steven M Rayman (Trustee) Big Rock I bought 5/3/13, rrg 1/18/14 for XSport Fitness","RAYMAN STEVEN M TRUSTEE","47W210 RT 30","BIG ROCK","IL",{"$error":"#N/A"},"","","","",{"$error":"#N/A"},"","","","",{"$error":"#N/A"},"","",{"$error":"#N/A"},"","","","","","","","","","","","","","","","","","","","","","","","","",""]
["GULFSTREAM","G150",227,"N100SR","N100SR","ARR","IL","United States","Owner","G-150 Trust","47W210 Route 30",null,"Big Rock","IL",60511,"United States","End User",null,null,"630-556-3731",null,"Steven","Rayman","Trustee",null,"630-556-3731",null,null,"","Steven M Rayman (Trustee) Big Rock I bought 5/3/13, rrg 1/18/14 for XSport Fitness","RAYMAN STEVEN M TRUSTEE","47W210 RT 30","BIG ROCK","IL",{"$error":"#N/A"},"","","","",{"$error":"#N/A"},"","","","",{"$error":"#N/A"},"","",{"$error":"#N/A"},"","","","","","","","","","","","","","","","","","","","","","","","","",""]
["GULFSTREAM","G150",228,"N100GX","N100GX","TAC",null,"Philippines","Aircraft Management Company","Keystone Aviation, LLC","303 North 2370 West","Salt Lake City International Airport","Salt Lake City","UT",84116,"United States","Distributor","info@keystoneaviation.com","www.keystoneaviation.com","801-933-7500",null,"Charlie","Chamberlain","Director of Business Development","cchamberlain@keystoneaviation.com","801-502-9499","801-933-7568","801-502-9499","Keystone Aviation ","Brulecreek Aviation Park City UT bought 11/1/18","BRULECREEK AVIATION LLC","7 EAGLE VIEW CT","PARK CITY","UT",{"$error":"#N/A"},"","","Keystone Aviation, LLC","B8MA",{"$error":"#N/A"},"","","","",{"$error":"#N/A"},"","",{"$error":"#N/A"},"Keystone Aviation ","303 N 2370 W","","Salt Lake City","Utah","84116","+1 801.359.2085","www.keystoneaviation.com","ops@keystoneaviation.com","","B8MA","KEYSTONE AVIATION LLC","Fish, Aaron","ACTING, CHIEF EXECUTIVE OFFICER","303 NORTH 2370 WEST","","","SALT LAKE CITY","UT","84116","US","8019106810","","","do_not_mail","valid"]
["GULFSTREAM","G150",228,"N100GX","N100GX","TAC",null,"Philippines","Owner","Brulecreek Aviation, LLC","7 Eagle View Court",null,"Park City","UT",84060,"United States","End User",null,null,"312-543-4695",null,"Peter","Ehrich","Manager",null,"312-543-4695",null,null,"Keystone Aviation ","Brulecreek Aviation Park City UT bought 11/1/18","BRULECREEK AVIATION LLC","7 EAGLE VIEW CT","PARK CITY","UT",{"$error":"#N/A"},"","","Keystone Aviation, LLC","B8MA",{"$error":"#N/A"},"","","","",{"$error":"#N/A"},"","",{"$error":"#N/A"},"Keystone Aviation ","303 N 2370 W","","Salt Lake City","Utah","84116","+1 801.359.2085","www.keystoneaviation.com","ops@keystoneaviation.com","","B8MA","KEYSTONE AVIATION LLC","Fish, Aaron","ACTING, CHIEF EXECUTIVE OFFICER","303 NORTH 2370 WEST","","","SALT LAKE CITY","UT","84116","US","8019106810","","","",""]
["GULFSTREAM","G150",229,"N518KH","N518KH","PVU","UT","United States","Owner","Golden Eagle Management, LLC","3011 American Way",null,"Missoula","MT",59808,"United States","End User",null,null,"559-906-0300",null,"King","Husein","Member",null,"559-906-0300","559-906-0300",null,"","Golden Eagle Management LLC, Missoula MT bought 4/10/20","GOLDEN EAGLE MANAGEMENT LLC","3011 AMERICAN WAY","MISSOULA","MT",{"$error":"#N/A"},"","","","",{"$error":"#N/A"},"","","","",{"$error":"#N/A"},"","",{"$error":"#N/A"},"","","","","","","","","","","","","","","","","","","","","","","","","",""]
["GULFSTREAM","G150",230,"N722SW","N722SW","DSI","FL","United States","Owner","Gator One Air, LLC","618 Gulf Shore Drive",null,"Destin","FL",32541,"United States","End User",null,null,"229-230-1453",null,"David","Penney","Manager",null,"229-230-1453","229-230-1453",null,"","Gator One Air LLC, Dustin FL bought 12/21/20","GATOR ONE AIR LLC","4481 LEGENDARY DR UNIT 200","DESTIN","FL",{"$error":"#N/A"},"","","","",{"$error":"#N/A"},"","","","",{"$error":"#N/A"},"","",{"$error":"#N/A"},"Stedman West Interests ","9000 Randolph St.","","Houston","Texas","77061","+1 832.335.8725","","","","","","","","","","","","","","","","","","",""]
["GULFSTREAM","G150",231,"N787BN","N787BN","VNY","CA","United States","Aircraft Management Company","Clay Lacy Aviation, Inc.","7435 Valjean Avenue","Van Nuys Airport","Van Nuys","CA",91406,"United States","Management Company","VNY@claylacy.com","www.claylacy.com","818-989-2900",null,"Henry","Thomas","Vice President, Aircraft Management","management@claylacy.com","818-989-2900",null,null,"Clay Lacy Aviation ","Omninet Capital Llc Beverly Hills CA bought 9/15/08 rrg 2/10/09 for Omninet Capital","OMNINET CAPITAL LLC","9420 WILSHIRE BLVD STE 400","BEVERLY HILLS","CA",{"$error":"#N/A"},"","","Clay Lacy Aviation, Inc.","BKEA",{"$error":"#N/A"},"","","","",{"$error":"#N/A"},"","",{"$error":"#N/A"},"Clay Lacy Aviation ","7435 Valjean Avenue","","Van Nuys","California","91406-2901","+1 818.989.2900","www.claylacy.com","","","BKEA","CLAY LACY AVIATION INC","KIRKDOFFER, BRIAN","PRESIDENT","7435 VALJEAN AVE","","","VAN NUYS","CA","91406","US","8189892900","","","catch-all","do_not_mail"]
["GULFSTREAM","G150",231,"N787BN","N787BN","VNY","CA","United States","Owner","Omninet Capital, LLC","9420 Wilshire Boulevard, 4th Floor",null,"Beverly Hills","CA",90212,"United States","End User","info@omninet.com","www.omninet.com","310-300-4100",null,"Benjamin","Nazarian","Manager","Ben@Omninet.com","310-300-4100",null,null,"Clay Lacy Aviation ","Omninet Capital Llc Beverly Hills CA bought 9/15/08 rrg 2/10/09 for Omninet Capital","OMNINET CAPITAL LLC","9420 WILSHIRE BLVD STE 400","BEVERLY HILLS","CA",{"$error":"#N/A"},"","","Clay Lacy Aviation, Inc.","BKEA",{"$error":"#N/A"},"","","","",{"$error":"#N/A"},"","",{"$error":"#N/A"},"Clay Lacy Aviation ","7435 Valjean Avenue","","Van Nuys","California","91406-2901","+1 818.989.2900","www.claylacy.com","","","BKEA","CLAY LACY AVIATION INC","KIRKDOFFER, BRIAN","PRESIDENT","7435 VALJEAN AVE","","","VAN NUYS","CA","91406","US","8189892900","","","do_not_mail","catch-all"]
["GULFSTREAM","G150",232,"N928ST","N928ST","SLC","UT","United States","Aircraft Management Company","Keystone Aviation, LLC","303 North 2370 West","Salt Lake City International Airport","Salt Lake City","UT",84116,"United States","Distributor","info@keystoneaviation.com","www.keystoneaviation.com","801-933-7500",null,"Charlie","Chamberlain","Director of Business Development","cchamberlain@keystoneaviation.com","801-502-9499","801-933-7568","801-502-9499","Keystone Aviation ","Flying Bar B LLC Provo UT delivered 10/26/07","FLYING BAR B LLC","3500 E DEER HOLLOW DR","SANDY","UT",{"$error":"#N/A"},"","","Keystone Aviation, LLC","B8MA",{"$error":"#N/A"},"","","","",{"$error":"#N/A"},"","",{"$error":"#N/A"},"Keystone Aviation ","303 N 2370 W","","Salt Lake City","Utah","84116","+1 801.359.2085","www.keystoneaviation.com","ops@keystoneaviation.com","","B8MA","KEYSTONE AVIATION LLC","Fish, Aaron","ACTING, CHIEF EXECUTIVE OFFICER","303 NORTH 2370 WEST","","","SALT LAKE CITY","UT","84116","US","8019106810","","","do_not_mail","valid"]
["GULFSTREAM","G150",232,"N928ST","N928ST","SLC","UT","United States","Owner","Flying Bar B, LLC","3500 Deer Hollow Drive",null,"Sandy","UT",84092,"United States","End User",null,null,"801-943-4163",null,"Sandie","Tillotson","Manager",null,"801-943-4163",null,null,"Keystone Aviation ","Flying Bar B LLC Provo UT delivered 10/26/07","FLYING BAR B LLC","3500 E DEER HOLLOW DR","SANDY","UT",{"$error":"#N/A"},"","","Keystone Aviation, LLC","B8MA",{"$error":"#N/A"},"","","","",{"$error":"#N/A"},"","",{"$error":"#N/A"},"Keystone Aviation ","303 N 2370 W","","Salt Lake City","Utah","84116","+1 801.359.2085","www.keystoneaviation.com","ops@keystoneaviation.com","","B8MA","KEYSTONE AVIATION LLC","Fish, Aaron","ACTING, CHIEF EXECUTIVE OFFICER","303 NORTH 2370 WEST","","","SALT LAKE CITY","UT","84116","US","8019106810","","","",""]
["GULFSTREAM","G150",233,"VH-PFV","VH-PFV ","XSP",null,"Singapore","Operator","Pacific Flight Services, Pty. Ltd.","P.O. Box CP20",null,"Condell Park","NSW",2200,"Australia","Charter Company","enquiries@fly-pfs.com","www.pacificflight.com.au","61-2-9791-0055",null,"Rod","Crane","Managing Director","rodcrane@pacificflight.com.au","61-2-9791-0055","61-2-9791-0055",null,"Pacific Flight Services Ltd ","rg 05/10/13","Pacific Flight Services Pte Ltd","","Singapore","Singapore",{"$error":"#N/A"},"","","","",{"$error":"#N/A"},"","","","",{"$error":"#N/A"},"","",{"$error":"#N/A"},"","","","","","","","","","","","","","","","","","","","","","","","","invalid","catch-all"]
["GULFSTREAM","G150",233,"VH-PFV","VH-PFV ","XSP",null,"Singapore","Owner","ST Aerospace Services Co. Pte. Ltd.","540 Airport Road",null,"Paya Lebar",null,539938,"Singapore","MRO/Maintenance Company",null,"www.staero.aero","65-6287-1111",null,"Serh","Ghee Lim","President","limsg@stengg.com","65-6287-1111",null,null,"Pacific Flight Services Ltd ","rg 05/10/13","Pacific Flight Services Pte Ltd","","Singapore","Singapore",{"$error":"#N/A"},"","","","",{"$error":"#N/A"},"","","","",{"$error":"#N/A"},"","",{"$error":"#N/A"},"","","","","","","","","","","","","","","","","","","","","","","","","","catch-all"]
["GULFSTREAM","G150",234,"N511CT","N511CT",null,null,"United States","Fractional Owner","430 Holdings, Inc.","10014 Chapel Hill Road",null,"Morrisville","NC",27560,"United States","End User",null,null,"919-388-9878",null,"Brian","DuMont","President & CEO","brian@yardnique.com","919-388-9878",null,null,"","Ten to Nine LLC Chattanooga TN bought 6/30/20","TEN TO NINE LLC","400 BIRMINGHAM HWY STE 350","CHATTANOOGA","TN",{"$error":"#N/A"},"","","","",{"$error":"#N/A"},"","","","",{"$error":"#N/A"},"","",{"$error":"#N/A"},"","","","","","","","","","","","","","","","","","","","","","","","","","valid"]
["GULFSTREAM","G150",234,"N511CT","N511CT",null,null,"United States","Fractional Owner","ATG Aviation, LLC","115 Perry Place",null,"Shoal Creek","AL",35242,"United States","End User",null,null,null,null,"Matthew","Hogan","Manager",null,null,null,null,"","Ten to Nine LLC Chattanooga TN bought 6/30/20","TEN TO NINE LLC","400 BIRMINGHAM HWY STE 350","CHATTANOOGA","TN",{"$error":"#N/A"},"","","","",{"$error":"#N/A"},"","","","",{"$error":"#N/A"},"","",{"$error":"#N/A"},"","","","","","","","","","","","","","","","","","","","","","","","","",""]
["GULFSTREAM","G150",234,"N511CT","N511CT",null,null,"United States","Fractional Owner","Corwin Brothers, LLC","P.O. Box 3005","201 40th Street South","Fargo","ND",58108,"United States","End User",null,null,"701-282-8425",null,"Timothy","Corwin","Manager",null,"701-282-8425",null,null,"","Ten to Nine LLC Chattanooga TN bought 6/30/20","TEN TO NINE LLC","400 BIRMINGHAM HWY STE 350","CHATTANOOGA","TN",{"$error":"#N/A"},"","","","",{"$error":"#N/A"},"","","","",{"$error":"#N/A"},"","",{"$error":"#N/A"},"","","","","","","","","","","","","","","","","","","","","","","","","",""]
["GULFSTREAM","G150",234,"N511CT","N511CT",null,null,"United States","Fractional Owner","Oosthuizen, Lodewicus Theodorus",null,null,null,null,null,"United States","End User",null,null,null,null,"Lodewicus","Oosthuizen",null,null,null,null,null,"","Ten to Nine LLC Chattanooga TN bought 6/30/20","TEN TO NINE LLC","400 BIRMINGHAM HWY STE 350","CHATTANOOGA","TN",{"$error":"#N/A"},"","","","",{"$error":"#N/A"},"","","","",{"$error":"#N/A"},"","",{"$error":"#N/A"},"","","","","","","","","","","","","","","","","","","","","","","","","",""]
["GULFSTREAM","G150",234,"N511CT","N511CT",null,null,"United States","Fractional Owner","Sewanee Ventures, LLC","4410 Gerald Place",null,"Nashville","TN",37205,"United States","End User","ortale@comcast.net",null,"615-298-5921",null,"Buford","Ortale","Manager",null,"615-414-7460",null,"615-414-7460","","Ten to Nine LLC Chattanooga TN bought 6/30/20","TEN TO NINE LLC","400 BIRMINGHAM HWY STE 350","CHATTANOOGA","TN",{"$error":"#N/A"},"","","","",{"$error":"#N/A"},"","","","",{"$error":"#N/A"},"","",{"$error":"#N/A"},"","","","","","","","","","","","","","","","","","","","","","","","","valid",""]
["GULFSTREAM","G150",234,"N511CT","N511CT",null,null,"United States","Fractional Owner","Society Street Partners, LLC","3203 Bridle Trail",null,"Greensboro","NC",27407,"United States","End User",null,null,null,null,"Matt","Soule","Manager",null,null,null,null,"","Ten to Nine LLC Chattanooga TN bought 6/30/20","TEN TO NINE LLC","400 BIRMINGHAM HWY STE 350","CHATTANOOGA","TN",{"$error":"#N/A"},"","","","",{"$error":"#N/A"},"","","","",{"$error":"#N/A"},"","",{"$error":"#N/A"},"","","","","","","","","","","","","","","","","","","","","","","","","",""]
["GULFSTREAM","G150",234,"N511CT","N511CT",null,null,"United States","Fractional Owner","Waldec Foods, LLC","5149 West San Jose Street",null,"Tampa","FL",33629,"United States","End User",null,null,null,null,"Thomas","Wallace","Manager",null,null,null,null,"","Ten to Nine LLC Chattanooga TN bought 6/30/20","TEN TO NINE LLC","400 BIRMINGHAM HWY STE 350","CHATTANOOGA","TN",{"$error":"#N/A"},"","","","",{"$error":"#N/A"},"","","","",{"$error":"#N/A"},"","",{"$error":"#N/A"},"","","","","","","","","","","","","","","","","","","","","","","","","",""]
["GULFSTREAM","G150",234,"N511CT","N511CT",null,null,"United States","Operator","Jet It LLC","101 South Elm Street, Suite 75",null,"Greensboro","NC",27401,"United States","Program Holder",null,"www.gojetit.com","914-574-7702",null,"Vishal","Hiremath","Founder & President",null,"914-574-7702","914-574-7702",null,"","Ten to Nine LLC Chattanooga TN bought 6/30/20","TEN TO NINE LLC","400 BIRMINGHAM HWY STE 350","CHATTANOOGA","TN",{"$error":"#N/A"},"","","","",{"$error":"#N/A"},"","","","",{"$error":"#N/A"},"","",{"$error":"#N/A"},"","","","","","","","","","","","","","","","","","","","","","","","","",""]
["GULFSTREAM","G150",234,"N511CT","N511CT",null,null,"United States","Program Holder","Jet It LLC","101 South Elm Street, Suite 75",null,"Greensboro","NC",27401,"United States","Program Holder",null,"www.gojetit.com","914-574-7702",null,"Glenn","Gonzales","Founder & CEO","glenn.gonzales@gojetit.com","914-574-7702","914-574-7702",null,"","Ten to Nine LLC Chattanooga TN bought 6/30/20","TEN TO NINE LLC","400 BIRMINGHAM HWY STE 350","CHATTANOOGA","TN",{"$error":"#N/A"},"","","","",{"$error":"#N/A"},"","","","",{"$error":"#N/A"},"","",{"$error":"#N/A"},"","","","","","","","","","","","","","","","","","","","","","","","","","valid"]
["GULFSTREAM","G150",235,"VH-OVG","VH-OVG ","DRW","NT","Australia","Operator","CareFlight Limited","Locked Bag 2002",null,"Wentworthville","NSW",2145,"Australia","Air Ambulance","info@careflight.org","www.careflight.org","61-2-9843-5100",null,"Jody","Mills","Operations Manager","jody.mills@careflight.org","61-4-2727-5411",null,"61-4-2727-5411","","CAREFLIGHT LIMITED,WENTWORTHVILLE , NSW, Australia.Rgd.,2021/02/10","Careflight","","Wentworthville","NSW",{"$error":"#N/A"},"","","","",{"$error":"#N/A"},"","","","",{"$error":"#N/A"},"","",{"$error":"#N/A"},"","","","","","","","","","","","","","","","","","","","","","","","","do_not_mail","invalid"]
["GULFSTREAM","G150",235,"VH-OVG","VH-OVG ","DRW","NT","Australia","Owner","CareFlight Limited","Locked Bag 2002",null,"Wentworthville","NSW",2145,"Australia","Air Ambulance","info@careflight.org","www.careflight.org","61-2-9843-5100",null,"Andrew","Refshauge","Non-Executive Chairman","andrew.refshauge@careflight.org","61-2-9843-5100","61-2-9843-5100",null,"","CAREFLIGHT LIMITED,WENTWORTHVILLE , NSW, Australia.Rgd.,2021/02/10","Careflight","","Wentworthville","NSW",{"$error":"#N/A"},"","","","",{"$error":"#N/A"},"","","","",{"$error":"#N/A"},"","",{"$error":"#N/A"},"","","","","","","","","","","","","","","","","","","","","","","","","do_not_mail","valid"]
["GULFSTREAM","G150",236,"N77709","N77709","PTS","KS","United States","Owner","Miller's, Inc.","P.O. Box 777","610 East Jefferson Street","Pittsburg","KS",66762,"United States","End User","custserv@millerslab.com",null,"620-231-8050",null,"Richard","Miller",null,null,"620-231-8050","620-231-8050",null,"","Miller's Professional Imaging. Pittsburg KS delivered 12/13/07","MILLER'S INC","610 E JEFFERSON ST","PITTSBURG","KS",{"$error":"#N/A"},"","","","",{"$error":"#N/A"},"","","","",{"$error":"#N/A"},"","",{"$error":"#N/A"},"Miller's Professional Imaging ","610 E. Jefferson Street","","Baton Rouge","Pittsburg","Pittsburg Kansas 66762","+1 417.529.8427","","","","","","","","","","","","","","","","","","valid",""]
["GULFSTREAM","G150",237,"CC-AOA","CC-AOA ","SCL",null,"Chile","Operator","Aerocardal, Ltda.","Diego Barroz Ortiz 2065","A/P Int'l Arturo Merino Benitez - Pudahuel","Santiago",null,null,"Chile","Charter Company","ventas@aerocardal.com","www.aerocardal.com","56-2-23777400",null,"Ricardo","Espinosa Urrejola","Operations Manager","ricardo.espinosa@aerocardal.com","56-2-23777400","56-2-23777400",null,"Aerocardal ","bought 2/15","CARDAL AKTIENGESELLSCHAFT","","","",{"$error":"#N/A"},"","","","",{"$error":"#N/A"},"","","","",{"$error":"#N/A"},"","",{"$error":"#N/A"},"","","","","","","","","","","","","","","","","","","","","","","","","valid","valid"]
["GULFSTREAM","G150",237,"CC-AOA","CC-AOA ","SCL",null,"Chile","Owner","Aerocardal, Ltda.","Diego Barroz Ortiz 2065","A/P Int'l Arturo Merino Benitez - Pudahuel","Santiago",null,null,"Chile","Charter Company","ventas@aerocardal.com","www.aerocardal.com","56-2-23777400",null,"Max","Kaufmann Ritschka","President",null,"56-9-223806","56-2-23777422","56-9-223806","Aerocardal ","bought 2/15","CARDAL AKTIENGESELLSCHAFT","","","",{"$error":"#N/A"},"","","","",{"$error":"#N/A"},"","","","",{"$error":"#N/A"},"","",{"$error":"#N/A"},"","","","","","","","","","","","","","","","","","","","","","","","","valid",""]
["GULFSTREAM","G150",238,"9H-LAR","9H-LAR ","TRN",null,"Italy","Charter Company","LuxWing, Ltd.","12, Abate Rigord Street, Susan Court A",null,"Ta' Xbiex",null,"XBX1127","Malta","Management Company","sales@luxwing.com","www.luxwing.com","356-77-33-4470",null,"Giuseppe","Sapia","Director","g.sapia@luxwing.com","356-79-440-057","356-77-33-4470","356-79-440-057","Luxwing ","Flight Solutions/Sonnig registered 12/20","","","","",{"$error":"#N/A"},"","","","",{"$error":"#N/A"},"","","","",{"$error":"#N/A"},"","",{"$error":"#N/A"},"","","","","","","","","","","","","","","","","","","","","","","","","do_not_mail","catch-all"]
["GULFSTREAM","G150",238,"9H-LAR","9H-LAR ","TRN",null,"Italy","Owner","Flight Solutions Srl","Strada SanMurizio 12","General Aviation Terminal Turin","Caselle Torinse, Torino",null,null,"Italy","Charter Company","info@flightsolutions.it","www.flightsolutions.it","39-011-996-3365",null,"Luciano","De Luca","Managing Director","luciano@flightsolutions.it","39-339-285-3755","39-011-996-3365","39-339-285-3755","Luxwing ","Flight Solutions/Sonnig registered 12/20","","","","",{"$error":"#N/A"},"","","","",{"$error":"#N/A"},"","","","",{"$error":"#N/A"},"","",{"$error":"#N/A"},"","","","","","","","","","","","","","","","","","","","","","","","","do_not_mail","valid"]
["GULFSTREAM","G150",239,"PR-FVJ","PR-FVJ ","POA","RS","Brazil","Operator","Testa Patrimonial Eireli","R. Treze de Maio 2617",null,"Centro, Campo Grande, MS",null,"79002-351","Brazil","End User",null,null,"55-51-39211426",null,"Luis","Leitao","Director of Operations & Chief Pilot","g150.poa@gmail.com","55-51-99934083","55-51-39211426","55-51-99934083","","Testa Patrimonial Eireli bought 9/13/19","TESTA PATRIMONIAL EIRELI","","","",{"$error":"#N/A"},"","","","",{"$error":"#N/A"},"","","","",{"$error":"#N/A"},"","",{"$error":"#N/A"},"","","","","","","","","","","","","","","","","","","","","","","","","","valid"]
["GULFSTREAM","G150",239,"PR-FVJ","PR-FVJ ","POA","RS","Brazil","Owner","Testa Patrimonial Eireli","R. Treze de Maio 2617",null,"Centro, Campo Grande, MS",null,"79002-351","Brazil","End User",null,null,"55-51-39211426",null,"Marciano","Testa","President","testa@agibank.com.br","55-51-995223477",null,"55-51-995223477","","Testa Patrimonial Eireli bought 9/13/19","TESTA PATRIMONIAL EIRELI","","","",{"$error":"#N/A"},"","","","",{"$error":"#N/A"},"","","","",{"$error":"#N/A"},"","",{"$error":"#N/A"},"","","","","","","","","","","","","","","","","","","","","","","","","","valid"]
["GULFSTREAM","G150",240,"N360AV","N360AV","BUR","CA","United States","Charter Company","Jet Aviation Flight Services, Inc.","112 Charles A. Lindbergh Drive","Teterboro Airport","Teterboro","NJ",7608,"United States","Charter Company","management_usa@jetaviation.com","www.jetaviation.com","201-462-4000",null,"Ansh","Singh","Charter Sales Director","ansh.singh@jetaviation.com","516-324-5804","201-462-4000","516-324-5804","Avjet Corp. ","delivered 2/8/08. M3 Industries LLC, Los Angeles CA bought 12/29/20","M3 INDUSTRIES LLC","660 S FIGUEROA ST STE 1888","LOS ANGELES","CA",{"$error":"#N/A"},"","","Avjet Corporation",{"$error":"#N/A"},{"$error":"#N/A"},"","","","",{"$error":"#N/A"},"","",{"$error":"#N/A"},"","","","","","","","","","","","","","","","","","","","","","","","","valid","valid"]
["GULFSTREAM","G150",240,"N360AV","N360AV","BUR","CA","United States","Owner","M3 Industries, LLC","660 South Figueroa Street, Suite 1888",null,"Los Angeles","CA",90017,"United States","End User",null,null,"213-797-4255",null,"Dalia","Wahab","Manager","dwahab@shangrila.us","213-797-4255",null,null,"Avjet Corp. ","delivered 2/8/08. M3 Industries LLC, Los Angeles CA bought 12/29/20","M3 INDUSTRIES LLC","660 S FIGUEROA ST STE 1888","LOS ANGELES","CA",{"$error":"#N/A"},"","","Avjet Corporation",{"$error":"#N/A"},{"$error":"#N/A"},"","","","",{"$error":"#N/A"},"","",{"$error":"#N/A"},"","","","","","","","","","","","","","","","","","","","","","","","","","valid"]
["GULFSTREAM","G150",242,"N458TB","N458TB","SCF","AZ","United States","Owner","M3 Aviation, LLC","7033 East Greenway Parkway, Suite 100",null,"Scottsdale","AZ",85254,"United States","End User",null,null,"602-677-9912",null,"William","Brownlee",null,null,"602-677-9912",null,null,"","500 PK LLC, Santa Barbara CA bought 11/8/18","500 PK LLC","312 N NOPAL ST","SANTA BARBARA","CA",{"$error":"#N/A"},"","","","",{"$error":"#N/A"},"","","","",{"$error":"#N/A"},"","",{"$error":"#N/A"},"","","","","","","","","","","","","","","","","","","","","","","","","",""]
["GULFSTREAM","G150",243,"M-FAST","M-FAST ","JBQ",null,"Dominican Republic","Operator","G-150 Aeronautics, Ltd.","P.O. Box 3163","Chera Chambers, Main Office","Road Town, Tortola",null,null,"Virgin Islands (British)","End User",null,null,null,null,null,null,null,null,null,null,null,"","G-150 Aeronautics Ltd. rg 12/15/17","","","","",{"$error":"#N/A"},"","","","",{"$error":"#N/A"},"","","","",{"$error":"#N/A"},"","",{"$error":"#N/A"},"","","","","","","","","","","","","","","","","","","","","","","","","",""]
["GULFSTREAM","G150",243,"M-FAST","M-FAST ","JBQ",null,"Dominican Republic","Owner","G-150 Aeronautics, Ltd.","P.O. Box 3163","Chera Chambers, Main Office","Road Town, Tortola",null,null,"Virgin Islands (British)","End User",null,null,null,null,null,null,null,null,null,null,null,"","G-150 Aeronautics Ltd. rg 12/15/17","","","","",{"$error":"#N/A"},"","","","",{"$error":"#N/A"},"","","","",{"$error":"#N/A"},"","",{"$error":"#N/A"},"","","","","","","","","","","","","","","","","","","","","","","","","",""]
["GULFSTREAM","G150",244,"N553CB","N553CB","SJU",null,"Puerto Rico","Certificate Holder","M & N Aviation, Inc.","P.O. Box 38098",null,"San Juan",null,937,"Puerto Rico","Charter Company","charters@mnaviation.com","www.mnaviation.com","787-791-7090",null,"Alicia","Pineda","Controller","apineda@mnaviation.com","787-475-5075",null,"787-475-5075","MN Aviation ","N553CB LLC Dorado PR bought 12/7/18","N553CB LLC","BO SALDINERA","DORADO","PR",{"$error":"#N/A"},"","","M&N Aviation, Inc.","MY5A",{"$error":"#N/A"},"","","","",{"$error":"#N/A"},"","",{"$error":"#N/A"},"M & N Aviation, Inc. ","PO Box 38098","","San Juan","Puerto Rico","00937","+1 787.791.7090","www.mnaviation.com","info@mnaviation.com","","MY5A","M AND N EQUIPMENT LLC","SCHIEK, TODD","Owner","M&N EQUIPMENT, LLC","8551 AVIATOR LANE","Suite B","ENGLEWOOD","CO","80112","US","7209790312","","","catch-all","catch-all"]
["GULFSTREAM","G150",244,"N553CB","N553CB","SJU",null,"Puerto Rico","Owner","N553CB, LLC","120 Carr. 693",null,"Dorado",null,464,"Puerto Rico","End User",null,null,"787-796-5656",null,"Federico","Stubbe",null,null,"787-796-5656",null,null,"MN Aviation ","N553CB LLC Dorado PR bought 12/7/18","N553CB LLC","BO SALDINERA","DORADO","PR",{"$error":"#N/A"},"","","M&N Aviation, Inc.","MY5A",{"$error":"#N/A"},"","","","",{"$error":"#N/A"},"","",{"$error":"#N/A"},"M & N Aviation, Inc. ","PO Box 38098","","San Juan","Puerto Rico","00937","+1 787.791.7090","www.mnaviation.com","info@mnaviation.com","","MY5A","M AND N EQUIPMENT LLC","SCHIEK, TODD","Owner","M&N EQUIPMENT, LLC","8551 AVIATOR LANE","Suite B","ENGLEWOOD","CO","80112","US","7209790312","","","",""]
["GULFSTREAM","G150",245,"PS-CMP","PS-CMP",null,null,"Brazil","Operator","Sociedade de Taxi Aereo Do Nordeste, Ltda.","Rodovia Br 104 S/N,","Aereporoto Zumbi dos Palmares","Rio Largo","AL","57100-000","Brazil","End User","sotan@sotan.com.br",null,"55-82-33221785",null,"Fernando","Lopes de Farias","Managing Director",null,"55-82-33221785",null,null,"SOTAN - SOCIEDADE DE TÁXI AÉREO DO NORDESTE LTDA ","Duty Free Trading Latvija LLC bought 9/3/21","EF INVESTIMENTOS E PARTICIPAÇÕES LTDA","","","",{"$error":"#N/A"},"","","","",{"$error":"#N/A"},"","","","",{"$error":"#N/A"},"","",{"$error":"#N/A"},"","","","","","","","","","","","","","","","","","","","","","","","","valid",""]
["GULFSTREAM","G150",245,"PS-CMP","PS-CMP",null,null,"Brazil","Owner","EF Investimentos e Participacoes, Ltda.",null,null,null,null,null,"Brazil","End User",null,null,null,null,null,null,null,null,null,null,null,"SOTAN - SOCIEDADE DE TÁXI AÉREO DO NORDESTE LTDA ","Duty Free Trading Latvija LLC bought 9/3/21","EF INVESTIMENTOS E PARTICIPAÇÕES LTDA","","","",{"$error":"#N/A"},"","","","",{"$error":"#N/A"},"","","","",{"$error":"#N/A"},"","",{"$error":"#N/A"},"","","","","","","","","","","","","","","","","","","","","","","","","",""]
["GULFSTREAM","G150",246,"N96AD","N96AD","BLI","WA","United States","Owner","Altair Advanced Industries, Inc.","1680 West Bakerfield Road",null,"Bellingham","WA",98226,"United States","End User","alpha@alpha.com","www.alpha.com/altair-advanced-industries","360-671-7703",null,"Grace","Borsari","Chairman & CEO","gborsari@alpha.com","360-671-7703","360-671-7703",null,"","G B Enterprises Inc. Bellingham WA bought 6/24/08. Became Altair Advanced Industries, rg 07/14/10 Altair Advanced Industries Inc. Bellingham WA","ALTAIR ADVANCED INDUSTRIES INC","1680 W BAKERVIEW RD","BELLINGHAM","WA",{"$error":"#N/A"},"","","","",{"$error":"#N/A"},"","","","",{"$error":"#N/A"},"","",{"$error":"#N/A"},"","","","","","","","","","","","","","","","","","","","","","","","","catch-all","catch-all"]
["GULFSTREAM","G150",247,"N650DH","N650DH","SUS","MO","United States","Operator","Drury Development Corporation","13075 Manchester Road #200",null,"Des Peres","MO",63131,"United States","End User",null,null,"314-423-6698",null,"Bob","Schrock","Chief Pilot",null,"314-423-6698",null,null,"","Drury Development rrg 11/8/16","DRURY DEVELOPMENT CORP","13075 MANCHESTER RD STE 200","SAINT LOUIS","MO",{"$error":"#N/A"},"","","","",{"$error":"#N/A"},"","","","",{"$error":"#N/A"},"","",{"$error":"#N/A"},"","","","","","","","","","","","","","","","","","","","","","","","","",""]
["GULFSTREAM","G150",247,"N650DH","N650DH","SUS","MO","United States","Owner","Drury Development Corporation","13075 Manchester Road #200",null,"Des Peres","MO",63131,"United States","End User",null,null,"314-423-6698",null,"Larry","Hasselfeld","Senior Vice President & CFO",null,"314-423-6698",null,null,"","Drury Development rrg 11/8/16","DRURY DEVELOPMENT CORP","13075 MANCHESTER RD STE 200","SAINT LOUIS","MO",{"$error":"#N/A"},"","","","",{"$error":"#N/A"},"","","","",{"$error":"#N/A"},"","",{"$error":"#N/A"},"","","","","","","","","","","","","","","","","","","","","","","","","",""]
["GULFSTREAM","G150",248,"N637SF","N637SF","LUL","MS","United States","Operator","Sanderson Farms, Inc.","P.O. Box 988","127 Flynt Road","Laurel","MS",39441,"United States","End User","lbutts@sandersonfarms.com","www.sandersonfarms.com","601-649-4030",null,"Zane","Lambert","Manager of Aircraft Operations","zane.lambert@sandersonfarms.com","601-649-4030","601-649-4030",null,"","Sanderson Farms, Laurel MS delivered 5/2/08","SANDERSON FARMS INC","127 FLYNT RD","LAUREL","MS",{"$error":"#N/A"},"","","","",{"$error":"#N/A"},"","","","",{"$error":"#N/A"},"","",{"$error":"#N/A"},"Sanderson Farms, Inc. ","PO Box 988 127 Flynt Road","","Laurel","Mississippi","39441-0988","+1 601.649.4030","www.sandersonfarms.com","dgilley@sandersonfarms.com","","","","","","","","","","","","","","","","catch-all","catch-all"]
["GULFSTREAM","G150",248,"N637SF","N637SF","LUL","MS","United States","Owner","Sanderson Farms, Inc.","P.O. Box 988","127 Flynt Road","Laurel","MS",39441,"United States","End User","lbutts@sandersonfarms.com","www.sandersonfarms.com","601-649-4030",null,null,null,null,null,"601-649-4030",null,null,"","Sanderson Farms, Laurel MS delivered 5/2/08","SANDERSON FARMS INC","127 FLYNT RD","LAUREL","MS",{"$error":"#N/A"},"","","","",{"$error":"#N/A"},"","","","",{"$error":"#N/A"},"","",{"$error":"#N/A"},"Sanderson Farms, Inc. ","PO Box 988 127 Flynt Road","","Laurel","Mississippi","39441-0988","+1 601.649.4030","www.sandersonfarms.com","dgilley@sandersonfarms.com","","","","","","","","","","","","","","","","catch-all",""]
["GULFSTREAM","G150",249,"N67KP","N67KP","PTS","KS","United States","Owner","Marivest Support Services, LLC","1500 East 27th Terrace",null,"Pittsburg","KS",66762,"United States","End User",null,null,"620-231-2264",null,"Michael","Marietta","Vice President & Director",null,"620-231-2264",null,null,"","Marivest Holdings Inc, Pittsburg KS bought 12/30/13","MARIVEST SUPPORT SERVICES LLC","1500 E 27TH TER","PITTSBURG","KS",{"$error":"#N/A"},"","","","",{"$error":"#N/A"},"","","","",{"$error":"#N/A"},"","",{"$error":"#N/A"},"","","","","","","","","","","","","","","","","","","","","","","","","",""]
["GULFSTREAM","G150",250,"N581SF","N581SF","STP","MN","United States","Owner","FKM Enterprises, LLC","29 Pine Rd.",null,"St. Paul","MN","55127-6471","United States","End User",null,null,null,null,"Frederick","Martin","Managing Member","fredm@dginv.com","612-396-5634","612-317-4100","612-396-5634","","FKM Enterprises, Minneapolis MN bought 1/9/17, rrg 3/16/17, rg 02/19/20 FKM Enterprises Llc North Oaks MN","FKM ENTERPRISES LLC","29 PINE RD","NORTH OAKS","MN",{"$error":"#N/A"},"","","","",{"$error":"#N/A"},"","","","",{"$error":"#N/A"},"","",{"$error":"#N/A"},"","","","","","","","","","","","","","","","","","","","","","","","","","catch-all"]
["GULFSTREAM","G150",252,"N150GA","N150GA","SAV","GA","United States","Owner","Gulfstream Leasing, LLC","500 Gulfstream Road, Mail B-06",null,"Savannah","GA",31407,"United States","Aviation Related Business",null,null,"912-965-3293",null,"Richard","Chiariello","Member","Richard.Chiariello@gulfstream.com","912-965-3293",null,null,"Gulfstream Aerospace ","Gulfstream rrg 3/25/13. Gulfstream Leasing, Savannah GA bought 5/8/13","GULFSTREAM LEASING LLC","M/S B-16","SAVANNAH","GA",{"$error":"#N/A"},"","","","",{"$error":"#N/A"},"","","","",{"$error":"#N/A"},"","",{"$error":"#N/A"},"","","","","","","","","","","","","","","","","","","","","","","","","","catch-all"]
["GULFSTREAM","G150",253,"C-FWXR","C-FWXR / C-FWXR ","YHM","ON","Canada","Charter Company","Jetport, Inc.","520-9300 Airport Road",null,"Mt. Hope","ON","L0R 1W0","Canada","Charter Company","info@jetport.com","www.jetport.com","905-679-2400",null,"Patrick","Bouvry","President","pbouvry@jetport.com","905-679-2400","905-679-2400",null,"","Hamilton Jetport Ltd, Mt Hope ON bought 8/12/21","Hamilton Jetport Limited (Jetport)","","Mount Hope","Ontario",{"$error":"#N/A"},"","","","",{"$error":"#N/A"},"","","","",{"$error":"#N/A"},"","",{"$error":"#N/A"},"","","","","","","","","","","","","","","","","","","","","","","","","do_not_mail","catch-all"]
["GULFSTREAM","G150",253,"C-FWXR","C-FWXR / C-FWXR ","YHM","ON","Canada","Owner","2828520 Ontario, Inc.","1164 Walker's Line",null,"Burlington","ON","L7M 1V2","Canada","End User",null,null,null,null,null,null,null,null,null,null,null,"","Hamilton Jetport Ltd, Mt Hope ON bought 8/12/21","Hamilton Jetport Limited (Jetport)","","Mount Hope","Ontario",{"$error":"#N/A"},"","","","",{"$error":"#N/A"},"","","","",{"$error":"#N/A"},"","",{"$error":"#N/A"},"","","","","","","","","","","","","","","","","","","","","","","","","",""]
["GULFSTREAM","G150",254,"N901SS","N901SS","OAK","CA","United States","Additional Company/Contact","Ardenbrook, Inc.","4725 Thornton Avenue",null,"Fremont","CA","94536-6408","United States","End User","service@ardenbrook.com","www.ardenbrook.com","510-797-7980",null,"Matt","Brooks","Owner","mbrooks@ardenbrook.com","510-797-7980","510-797-7980",null,"","Two Star Maritime LLC, Hillsboro OR bought 11/21/16","TWO STAR MARITIME LLC","4725 THORNTON AVE","FREMONT","CA",{"$error":"#N/A"},"","","","",{"$error":"#N/A"},"","","","",{"$error":"#N/A"},"","",{"$error":"#N/A"},"","","","","","","","","","","","","","","","","","","","","","","","","valid","valid"]
["GULFSTREAM","G150",254,"N901SS","N901SS","OAK","CA","United States","Owner","Two Star Maritime, LLC","4725 Thornton Avenue",null,"Fremont","CA",94536,"United States","End User",null,null,"510-797-7980",null,"Matt","Brooks","Member",null,"510-797-7980",null,null,"","Two Star Maritime LLC, Hillsboro OR bought 11/21/16","TWO STAR MARITIME LLC","4725 THORNTON AVE","FREMONT","CA",{"$error":"#N/A"},"","","","",{"$error":"#N/A"},"","","","",{"$error":"#N/A"},"","",{"$error":"#N/A"},"","","","","","","","","","","","","","","","","","","","","","","","","",""]
["GULFSTREAM","G150",255,"VH-PFW","VH-PFW ","XSP",null,"Singapore","Operator","Pacific Flight Services, Pty. Ltd.","P.O. Box CP20",null,"Condell Park","NSW",2200,"Australia","Charter Company","enquiries@fly-pfs.com","www.pacificflight.com.au","61-2-9791-0055",null,"Rod","Crane","Managing Director","rodcrane@pacificflight.com.au","61-2-9791-0055","61-2-9791-0055",null,"Pacific Flight Services Ltd ","Pacific Flight Services Condell NSW (ST Aerospace) rg 7/17/17","Pacific Flight Services Pte Ltd","","Singapore","Singapore",{"$error":"#N/A"},"","","","",{"$error":"#N/A"},"","","","",{"$error":"#N/A"},"","",{"$error":"#N/A"},"","","","","","","","","","","","","","","","","","","","","","","","","invalid","catch-all"]
["GULFSTREAM","G150",255,"VH-PFW","VH-PFW ","XSP",null,"Singapore","Owner","ST Aerospace Engineering Pte. Ltd.","600 West Camp Road",null,"Seletar, Singapore",null,797654,"Singapore","End User",null,"www.stengg.com","65-9155-1772",null,"Vincent","Chong","President & CEO",null,"65-9155-1772",null,null,"Pacific Flight Services Ltd ","Pacific Flight Services Condell NSW (ST Aerospace) rg 7/17/17","Pacific Flight Services Pte Ltd","","Singapore","Singapore",{"$error":"#N/A"},"","","","",{"$error":"#N/A"},"","","","",{"$error":"#N/A"},"","",{"$error":"#N/A"},"","","","","","","","","","","","","","","","","","","","","","","","","",""]
["GULFSTREAM","G150",256,"N546MM","N546MM","BTR","LA","United States","Lessee","Excel Group Services, Inc.","8641 United Plaza Boulevard, Suite 102",null,"Baton Rouge","LA",70809,"United States","End User",null,"www.excelusa.com","225-408-1300",null,"David","Roberts","President","droberts@excelusa.com","225-408-1300",null,null,"","Denali Global Aviation LLC, Christiansted USVI delivered 5/26/10, rrg 11/18/10","IES LEASING LLC","8641 UNITED PLAZA BLVD STE 102","BATON ROUGE","LA",{"$error":"#N/A"},"","","","",{"$error":"#N/A"},"","","","",{"$error":"#N/A"},"","",{"$error":"#N/A"},"Excel Group Services, Inc. ","9250 C.E. Woolman Drive","","Baton Rouge","Louisiana","70807","+1 225.354.6594","","","","","","","","","","","","","","","","","","","valid"]
["GULFSTREAM","G150",256,"N546MM","N546MM","BTR","LA","United States","Owner","IES Leasing, LLC","8641 United Plaza Boulevard, Suite 102",null,"Baton Rouge","LA",70809,"United States","End User",null,null,"225-408-1364",null,"David","Roberts","Managing Member",null,"225-408-1364",null,null,"","Denali Global Aviation LLC, Christiansted USVI delivered 5/26/10, rrg 11/18/10","IES LEASING LLC","8641 UNITED PLAZA BLVD STE 102","BATON ROUGE","LA",{"$error":"#N/A"},"","","","",{"$error":"#N/A"},"","","","",{"$error":"#N/A"},"","",{"$error":"#N/A"},"Excel Group Services, Inc. ","9250 C.E. Woolman Drive","","Baton Rouge","Louisiana","70807","+1 225.354.6594","","","","","","","","","","","","","","","","","","",""]
["GULFSTREAM","G150",257,"N469DM","N469DM","8M1","MS","United States","Co-Owner","D&I Transportation, LLC","2694 W. Oxford Loop, Suite 150",null,"Oxford","MS",38655,"United States","End User",null,null,"662-371-4124",null,"Stephen","Miles","Manager","stephen@weareaddicus.com","601-212-6420","662-269-6475","601-212-6420","","D&I Transportation LLC, Tupelo MS bought 5/27/20, rg 06/30/20 NAC Flight Service Llc Tupelo MS","D&I TRANSPORTATION LLC","333 W FRANKLIN ST","TUPELO","MS",{"$error":"#N/A"},"NAC FLIGHT SERVICE LLC","","","",{"$error":"#N/A"},"","","","",{"$error":"#N/A"},"","",{"$error":"#N/A"},"","","","","","","","","","","","","","","","","","","","","","","","","","valid"]
["GULFSTREAM","G150",257,"N469DM","N469DM","8M1","MS","United States","Co-Owner","NAC Flight Service, LLC","P.O. Box 2387",null,"Madison","MS",39130,"United States","End User",null,null,null,null,"Walter","Elliott","Manager",null,null,null,null,"","D&I Transportation LLC, Tupelo MS bought 5/27/20, rg 06/30/20 NAC Flight Service Llc Tupelo MS","D&I TRANSPORTATION LLC","333 W FRANKLIN ST","TUPELO","MS",{"$error":"#N/A"},"NAC FLIGHT SERVICE LLC","","","",{"$error":"#N/A"},"","","","",{"$error":"#N/A"},"","",{"$error":"#N/A"},"","","","","","","","","","","","","","","","","","","","","","","","","",""]
["GULFSTREAM","G150",258,"N10RZ","N10RZ","BOI","ID","United States","Owner","The Peregrine Leasing Trust","7229 South Alton Way",null,"Centennial","CO",80112,"United States","End User",null,null,"303-770-3700",null,"Dan","DeKeyrel",null,null,"303-770-3700",null,null,"Mountain Aviation ","Peregrine Falcon LLC (Trustee) Boise ID bought 8/15/14","PEREGRINE FALCON LLC TRUSTEE","6225 N MEEKER PL STE 100","BOISE","ID",{"$error":"#N/A"},"","","Mountain Aviation, LLC","VQMA",{"$error":"#N/A"},"","","","",{"$error":"#N/A"},"","",{"$error":"#N/A"},"","","","","","","","","","","VQMA","MOUNTAIN AVIATION LLC","Vargo, Michael Stephen","CHIEF OPERATING OFFICER","9656 METRO AIRPORT AVE.","","","BROOMFIELD","CO","80021","US","3034663506","","","",""]
["GULFSTREAM","G150",259,"RP-C5168","RP-C5168 ","MNL",null,"Philippines","Owner","Philippine Airlines, Inc.","PNB Financial Center","Pres. Diosdado Macapagal Avenue, CCP Complex","Pasay City, Metro Manila",null,1307,"Philippines","Airlines","corporate.finance@pal.com.ph","www.philippineairlines.com",null,null,"Lucio","Tan","Chairman & CEO","lucio_tan@pal.com.ph",null,null,null,"Philippine Airlines ","delivered 8/8/08","","","","",{"$error":"#N/A"},"","","","",{"$error":"#N/A"},"","","","",{"$error":"#N/A"},"","",{"$error":"#N/A"},"","","","","","","","","","","","","","","","","","","","","","","","","catch-all","catch-all"]
["GULFSTREAM","G150",260,"N175MG","N175MG","OAK","CA","United States","Owner","Merlone Geier Management, LLC","425 California Street, 11th Floor",null,"San Francisco","CA",94104,"United States","End User",null,"www.merlonegeier.com","415-693-9000",null,"Peter","Merlone","President","peter.merlone@mhrealty.com","415-693-9000",null,null,"","Pdkaa 150 HM Partners LLC San Francisco CA (Hansen Capital Management Inc.) delivered 4/7/10, rrg 4/23/10. Became Merlone Geier Management LLC","MERLONE GEIER MANAGEMENT LLC","425 CALIFORNIA ST FL 11","SAN FRANCISCO","CA",{"$error":"#N/A"},"","","","",{"$error":"#N/A"},"","","","",{"$error":"#N/A"},"","",{"$error":"#N/A"},"","","","","","","","","","","","","","","","","","","","","","","","","","catch-all"]
["GULFSTREAM","G150",261,"N375AB","N375AB",null,null,null,"Owner","Awaiting Documentation",null,null,null,null,null,null,"Unidentified",null,null,null,null,null,null,null,null,null,null,null,"Alpi Jets ","OE-GBA ","ALPHA BRAVO AVIATION LLC","2895 W CAPOVILLA AVE STE 140","LAS VEGAS","NV",{"$error":"#N/A"},"","","Air 7 LLC","GQRA",{"$error":"#N/A"},"","","","",{"$error":"#N/A"},"","",{"$error":"#N/A"},"","","","","","","","","","","GQRA","AIR 7 LLC","Robert Oliver","CEO","575 Aviation Drive","","","Camarillo","CA","93010","US","8053835105","","","",""]
["GULFSTREAM","G150",262,"N101RX","N101RX","INT","NC","United States","Owner","Teall Capital Partners, LLC","1001 West Fourth Street",null,"Winston-Salem","NC","27101-2400","United States","End User",null,null,"336-430-3222",null,"Ben","Sutton","Manager",null,"336-430-3222",null,null,"","Teall Capital Partners, Winston-Salem NC bought 7/20/18","TEALL CAPITAL PARTNERS LLC","PO BOX 21528","WINSTON SALEM","NC",{"$error":"#N/A"},"","","","",{"$error":"#N/A"},"","","","",{"$error":"#N/A"},"","",{"$error":"#N/A"},"","","","","","","","","","","","","","","","","","","","","","","","","",""]
["GULFSTREAM","G150",263,"N802RR","N802RR","FAT","CA","United States","Owner","Sage Air, LLC","215 South State Street, Suite 1200",null,"Salt Lake City","UT",84111,"United States","End User",null,null,"310-490-9028",null,"Brent","Smittcamp","Manager",null,"310-490-9028",null,null,"","Sage Air LLC, Salt Lake City UT bought 12/29/17","SAGE AIR LLC","215 S STATE ST STE 1200","SALT LAKE CITY","UT",{"$error":"#N/A"},"","","","",{"$error":"#N/A"},"","","","",{"$error":"#N/A"},"","",{"$error":"#N/A"},"","","","","","","","","","","","","","","","","","","","","","","","","",""]
["GULFSTREAM","G150",264,"C-GXNW","C-FGFY / C-GXNW ","YYZ","ON","Canada","Aircraft Management Company","Skyservice Business Aviation, Inc.","6120 Midfield Road",null,"Mississauga","ON","L4W 2P7","Canada","Dealer Broker","yyzcsr@skyservice.com","www.skyservice.com","905-677-3300",null,"Benjamin","Murray","President & CEO","ben_murray@skyservice.com","905-677-3300",null,null,"Skyservice Business Aviation ","delivered 10/29/08","John M Bennetto","","Dutton","Ontario",{"$error":"#N/A"},"","","","",{"$error":"#N/A"},"","","","",{"$error":"#N/A"},"","",{"$error":"#N/A"},"","","","","","","","","","","","","","","","","","","","","","","","","catch-all","catch-all"]
["GULFSTREAM","G150",264,"C-GXNW","C-FGFY / C-GXNW ","YYZ","ON","Canada","Owner","NWVP (Gl50) Inc.",null,null,"Toronto","ON",null,"Canada","End User",null,null,null,null,null,null,null,null,null,null,null,"Skyservice Business Aviation ","delivered 10/29/08","John M Bennetto","","Dutton","Ontario",{"$error":"#N/A"},"","","","",{"$error":"#N/A"},"","","","",{"$error":"#N/A"},"","",{"$error":"#N/A"},"","","","","","","","","","","","","","","","","","","","","","","","","",""]
["GULFSTREAM","G150",265,"XA-CHY","XA-CHY ","TLC",null,"Mexico","Aircraft Management Company","Aerolineas Ejecutivas, SA de CV","Calle 2, Hangar 9","Aeropuerto Int'l Lic. Adolfo Lopez Mateos","Toluca, Mexico",null,50200,"Mexico","Dealer Broker","info@ale.mx","www.aerolineasejecutivas.com","52-722-2791600",null,"Eric","Guzman","Charter Dept. Manager","e.guzman@ale.mx","52-722-2791600",null,null,"","Aerolineas Ejecutivas S.A. bought 7/22/14","","","","",{"$error":"#N/A"},"","","","",{"$error":"#N/A"},"","","","",{"$error":"#N/A"},"","",{"$error":"#N/A"},"","","","","","","","","","","","","","","","","","","","","","","","","do_not_mail","valid"]
["GULFSTREAM","G150",265,"XA-CHY","XA-CHY ","TLC",null,"Mexico","Owner","SFG Equipment Leasing Corporation I","100 North Michigan Street, 3rd Floor",null,"South Bend","IN",46624,"United States","Leasing Company",null,null,"574-235-2918",null,"Jeff","Buhr","President","buhrj@1stsource.com","574-235-2918",null,null,"","Aerolineas Ejecutivas S.A. bought 7/22/14","","","","",{"$error":"#N/A"},"","","","",{"$error":"#N/A"},"","","","",{"$error":"#N/A"},"","",{"$error":"#N/A"},"","","","","","","","","","","","","","","","","","","","","","","","","","valid"]
["GULFSTREAM","G150",266,"XA-JCZ","XA-JCZ ","MID",null,"Mexico","Owner","Impulsive Marine Investments, Inc.",null,null,null,null,null,"Mexico","End User",null,null,null,null,null,null,null,null,null,null,null,"","Air Palace SA de CV bought 8/10/16","","","","",{"$error":"#N/A"},"","","","",{"$error":"#N/A"},"","","","",{"$error":"#N/A"},"","",{"$error":"#N/A"},"","","","","","","","","","","","","","","","","","","","","","","","","",""]
["GULFSTREAM","G150",267,"PR-SMG","PR-SMG","PLU","MG","Brazil","Co-Owner","Dos Mares Guia Neto, Walfrido Silvido","Av. Olegario Maciel 1730, Andar 2","Bairro Lourdes","Belo Horizonte",null,"30180-111","Brazil","End User",null,null,"55-31-32910349",null,"Walfrido silvido","Dos Mares Guia Neto",null,null,"55-31-32910349",null,null,"SAMOS PARTICIPACOES LTDA AND OTHER ","KGW Equipment Leasing LLC, Hammond LA delivered 12/2/08","EXTRATIVA MINERAL S.A ","","","",{"$error":"#N/A"},"","","","",{"$error":"#N/A"},"","","","",{"$error":"#N/A"},"","",{"$error":"#N/A"},"","","","","","","","","","","","","","","","","","","","","","","","","","","https://www.controller.com/listings/search?Model=G150&Manufacturer=GULFSTREAM"]
["GULFSTREAM","G150",267,"PR-SMG","PR-SMG","PLU","MG","Brazil","Co-Owner","Samos Participacoes, Ltda.","Av. Olegario Maciel 1730, Andar 2","Bairro Lourdes","Belo Horizonte","MG","30180-111","Brazil","End User",null,null,"55-31-32910349",null,"Walfrido Silvino","dos Mares Guia","Manager",null,"55-31-32910349","55-31-32910349",null,"SAMOS PARTICIPACOES LTDA AND OTHER ","KGW Equipment Leasing LLC, Hammond LA delivered 12/2/08","EXTRATIVA MINERAL S.A ","","","",{"$error":"#N/A"},"","","","",{"$error":"#N/A"},"","","","",{"$error":"#N/A"},"","",{"$error":"#N/A"},"","","","","","","","","","","","","","","","","","","","","","","","","",""]
["GULFSTREAM","G150",267,"PR-SMG","PR-SMG","PLU","MG","Brazil","Operator","Samos Participacoes, Ltda.","Av. Olegario Maciel 1730, Andar 2","Bairro Lourdes","Belo Horizonte","MG","30180-111","Brazil","End User",null,null,"55-31-32910349",null,"Leonardo","de Vasconcelos Vieira","Fixed Wing Chief Pilot","leovvieira@gmail.com","55-31-999812865",null,"55-31-999812865","SAMOS PARTICIPACOES LTDA AND OTHER ","KGW Equipment Leasing LLC, Hammond LA delivered 12/2/08","EXTRATIVA MINERAL S.A ","","","",{"$error":"#N/A"},"","","","",{"$error":"#N/A"},"","","","",{"$error":"#N/A"},"","",{"$error":"#N/A"},"","","","","","","","","","","","","","","","","","","","","","","","","","valid"]
["GULFSTREAM","G150",268,"N365SS","N365SS","DAL","TX","United States","Co-Owner","Anderson, Glenn W.",null,null,null,"TX",null,"United States","End User",null,null,null,null,"Glenn","Anderson",null,null,null,null,null,"","Robert W Stallings (et al), Frisco TX bought 12/31/20","STALLINGS ROBERT W","5242 BUENA VISTA DR","FRISCO","TX",{"$error":"#N/A"},"REIS JAMES R","ANDERSON GLENN W","","",{"$error":"#N/A"},"","","","",{"$error":"#N/A"},"","",{"$error":"#N/A"},"","","","","","","","","","","","","","","","","","","","","","","","","",""]
["GULFSTREAM","G150",268,"N365SS","N365SS","DAL","TX","United States","Co-Owner","Reis, James R.",null,null,null,"TX",null,"United States","End User",null,null,null,null,"James","Reis",null,null,null,null,null,"","Robert W Stallings (et al), Frisco TX bought 12/31/20","STALLINGS ROBERT W","5242 BUENA VISTA DR","FRISCO","TX",{"$error":"#N/A"},"REIS JAMES R","ANDERSON GLENN W","","",{"$error":"#N/A"},"","","","",{"$error":"#N/A"},"","",{"$error":"#N/A"},"","","","","","","","","","","","","","","","","","","","","","","","","",""]
["GULFSTREAM","G150",268,"N365SS","N365SS","DAL","TX","United States","Co-Owner","Stallings, Robert W.","5242 Buena Vista Drive",null,"Frisco","TX",75034,"United States","End User",null,null,null,"214-336-3828","Robert","Stallings",null,null,"214-336-3828",null,"214-336-3828","","Robert W Stallings (et al), Frisco TX bought 12/31/20","STALLINGS ROBERT W","5242 BUENA VISTA DR","FRISCO","TX",{"$error":"#N/A"},"REIS JAMES R","ANDERSON GLENN W","","",{"$error":"#N/A"},"","","","",{"$error":"#N/A"},"","",{"$error":"#N/A"},"","","","","","","","","","","","","","","","","","","","","","","","","",""]
["GULFSTREAM","G150",268,"N365SS","N365SS","DAL","TX","United States","Operator","GAINSCO, Inc.","P.O. Box 199023","3333 Lee Parkway, Suite 1200","Dallas","TX",75219,"United States","End User","manage@gainsco.com",null,null,null,"Roman","Fleysher","Chief Pilot","lear60375@gmail.com","954-655-6004",null,"954-655-6004","","Robert W Stallings (et al), Frisco TX bought 12/31/20","STALLINGS ROBERT W","5242 BUENA VISTA DR","FRISCO","TX",{"$error":"#N/A"},"REIS JAMES R","ANDERSON GLENN W","","",{"$error":"#N/A"},"","","","",{"$error":"#N/A"},"","",{"$error":"#N/A"},"","","","","","","","","","","","","","","","","","","","","","","","","catch-all","valid"]
["GULFSTREAM","G150",269,"XA-CPL","XA-CPL ","TLC",null,"Mexico","Operator","ADRO Servicios Aereos, SA","Aeropuerto Internacional de Toluca","Calle 4 Hangar 14 Lote 35","Toluca, Ciudad de Mexico",null,50200,"Mexico","Charter Company","contacto@adroservicios.com",null,"52-722-2731419",null,"Emilio","Perez de Leon","Director of Maintenance,General Aviation","emilio@adroservicios.com","52-172-25105460","52-722-2731419","52-172-25105460","","ADRO Servicios Aereos S.A. rg 8/27/14","","","","",{"$error":"#N/A"},"","","","",{"$error":"#N/A"},"","","","",{"$error":"#N/A"},"","",{"$error":"#N/A"},"","","","","","","","","","","","","","","","","","","","","","","","","invalid","invalid"]
["GULFSTREAM","G150",269,"XA-CPL","XA-CPL ","TLC",null,"Mexico","Owner","ADRO Servicios Aereos, SA","Aeropuerto Internacional de Toluca","Calle 4 Hangar 14 Lote 35","Toluca, Ciudad de Mexico",null,50200,"Mexico","Charter Company","contacto@adroservicios.com",null,"52-722-2731419",null,"Lorena","Martinez","Administrative Manager","alejandra@adroservicios.com","52-722-2731419",null,null,"","ADRO Servicios Aereos S.A. rg 8/27/14","","","","",{"$error":"#N/A"},"","","","",{"$error":"#N/A"},"","","","",{"$error":"#N/A"},"","",{"$error":"#N/A"},"","","","","","","","","","","","","","","","","","","","","","","","","invalid","invalid"]
["GULFSTREAM","G150",270,"N480JJ","N480JJ","USA","NC","United States","Owner","Jimmie Johnson Racing II, Inc.","4325 Papa Joe Hendrick Boulevard",null,"Charlotte","NC",28262,"United States","End User",null,"www.jimmiejohnson.com","704-453-2587",null,"Jimmie","Johnson","President",null,"704-453-2587",null,null,"Davinci Jets LLC ","Jimmie Johnson Racing II LLC, Birmingham MI bought 12/16/20","JIMMIE JOHNSON RACING II INC","370 E MAPLE RD FL 4","BIRMINGHAM","MI",{"$error":"#N/A"},"","","Davinci Jets LLC","6JPA",{"$error":"#N/A"},"","","","",{"$error":"#N/A"},"","",{"$error":"#N/A"},"Hendrick Motorsports, Inc. ","9500 Aviation Boulevard Hangar H","","Baton Rouge","Concord","Concord North Carolina 28027","+1 704.453.2000","","","","6JPA","DAVINCI JETS LLC","Eric Legvold","CEO","P.O. BOX 19681","","","CHARLOTTE","NC","28219","US","7043594674","","","",""]
["GULFSTREAM","G150",271,"N885TC","N885TC","HOU","TX","United States","Operator","TransCanada USA Pipeline Services, LLC","700 Louisiana Street, Suite 700",null,"Houston","TX",77002,"United States","End User",null,null,"832-320-5522",null,"Stanley","Chapman","Executive Vice President",null,"832-320-5522",null,null,"","TransCanada Pipelines Conroe TX transferred 6/6/18","BANK OF UTAH TRUSTEE","50 S 200 E STE 110","SALT LAKE CITY","UT",{"$error":"#N/A"},"","","","",{"$error":"#N/A"},"","","","",{"$error":"#N/A"},"","",{"$error":"#N/A"},"TransCanada PipeLine Ltd. ","246 Aviation Place NE","","Calgary","Alberta","T2E 7G1","+1 403.216.7990","www.transcanada.com","","","","","","","","","","","","","","","","","",""]
["GULFSTREAM","G150",271,"N885TC","N885TC","HOU","TX","United States","Owner","TransCanada USA Pipeline Services, LLC","700 Louisiana Street, Suite 700",null,"Houston","TX",77002,"United States","End User",null,null,"832-320-5522",null,"Stanley","Chapman","Executive Vice President",null,"832-320-5522",null,null,"","TransCanada Pipelines Conroe TX transferred 6/6/18","BANK OF UTAH TRUSTEE","50 S 200 E STE 110","SALT LAKE CITY","UT",{"$error":"#N/A"},"","","","",{"$error":"#N/A"},"","","","",{"$error":"#N/A"},"","",{"$error":"#N/A"},"TransCanada PipeLine Ltd. ","246 Aviation Place NE","","Calgary","Alberta","T2E 7G1","+1 403.216.7990","www.transcanada.com","","","","","","","","","","","","","","","","","",""]
["GULFSTREAM","G150",272,"N819AM","N819AM","OAK","CA","United States","Aircraft Management Company","Gama Aviation, LLC","Two Corporate Drive, Suite 1050",null,"Shelton","CT",6484,"United States","Charter Company","aircraftmanagement.usa@gamaaviation.com","www.gamasignature.com","203-337-4600",null,"KC","Ihlefeld",null,"kcihlefeld@wheelsup.com","203-337-4608","203-337-4608",null,"Landmark Aviation ","N819AM LLC San Ramon CA bought 4/22/14, rrg 8/8/14","N819AM LLC","2600 CAMINO RAMON STE 201","SAN RAMON","CA",{"$error":"#N/A"},"","","TWC AVIATION, INC.","BZUA",{"$error":"#N/A"},"","","","",{"$error":"#N/A"},"","",{"$error":"#N/A"},"","","","","","","","","","","BZUA","TWC AVIATION INC","Thomas Connelly","PRESIDENT","1162 Aviation Ave","","","SAN JOSE","CA","95110","US","2033374600","","","valid","catch-all"]
["GULFSTREAM","G150",272,"N819AM","N819AM","OAK","CA","United States","Owner","N819AM, LLC","P.O. Box 640","2600 Camino Ramon, Suite 201","San Ramon","CA",94583,"United States","End User",null,null,"925-866-0100",null,"Alexander","Mehran","Sole Member","Amehran@bishopranch.com","925-866-0100",null,null,"Landmark Aviation ","N819AM LLC San Ramon CA bought 4/22/14, rrg 8/8/14","N819AM LLC","2600 CAMINO RAMON STE 201","SAN RAMON","CA",{"$error":"#N/A"},"","","TWC AVIATION, INC.","BZUA",{"$error":"#N/A"},"","","","",{"$error":"#N/A"},"","",{"$error":"#N/A"},"","","","","","","","","","","BZUA","TWC AVIATION INC","Thomas Connelly","PRESIDENT","1162 Aviation Ave","","","SAN JOSE","CA","95110","US","2033374600","","","","catch-all"]
["GULFSTREAM","G150",273,"C-GZCZ","C-FDLY / C-GZCZ ","YYC","AB","Canada","Charter Company","Sunwest Aviation, Ltd.","217 Aero Court NE",null,"Calgary","AB","T2E 7C6","Canada","Dealer Broker","sales@sunwestaviation.ca","www.sunwestaviation.ca","403-275-8121",null,"Ian","Darnley","Director of Business Development","idarnley@sunwestaviation.ca","403-837-2389","403-275-8121","403-837-2389","Sunwest Home Aviation ","rg 2/12/09 Sunwest Aviation Ltd. Calgary Alberta","Commonwealth Air Training Ltd.","","Ottawa","Ontario",{"$error":"#N/A"},"","","","",{"$error":"#N/A"},"","","","",{"$error":"#N/A"},"","",{"$error":"#N/A"},"","","","","","","","","","","","","","","","","","","","","","","","","do_not_mail","valid"]
["GULFSTREAM","G150",273,"C-GZCZ","C-FDLY / C-GZCZ ","YYC","AB","Canada","Owner","Sunwest Aviation, Ltd.","217 Aero Court NE",null,"Calgary","AB","T2E 7C6","Canada","Dealer Broker","sales@sunwestaviation.ca","www.sunwestaviation.ca","403-275-8121",null,"Ian","Darnley","Director of Business Development","idarnley@sunwestaviation.ca","403-837-2389","403-275-8121","403-837-2389","Sunwest Home Aviation ","rg 2/12/09 Sunwest Aviation Ltd. Calgary Alberta","Commonwealth Air Training Ltd.","","Ottawa","Ontario",{"$error":"#N/A"},"","","","",{"$error":"#N/A"},"","","","",{"$error":"#N/A"},"","",{"$error":"#N/A"},"","","","","","","","","","","","","","","","","","","","","","","","","do_not_mail","valid"]
["GULFSTREAM","G150",274,"N3FS","N3FS","PIE","FL","United States","Owner","DDMR, LLC","11201 Corporate Circle North, Suite 120",null,"St Petersburg","FL",33716,"United States","End User",null,null,null,null,"Daniel","Doyle","Member","ddoyle@deximaging.com","727-480-8685",null,"727-480-8685","","DDMR LLC, St Petersburg FL bought 12/22/16","DDMR LLC","11201 CORPORATE CIR N STE 120","SAINT PETERSBURG","FL",{"$error":"#N/A"},"","","","",{"$error":"#N/A"},"","","","",{"$error":"#N/A"},"","",{"$error":"#N/A"},"","","","","","","","","","","","","","","","","","","","","","","","","","catch-all"]
["GULFSTREAM","G150",275,"N719KX","N719KX","SCF","AZ","United States","Co-Owner","GJK, LLC","19054 North 97th Place",null,"Scottsdale","AZ",85255,"United States","End User",null,null,null,"602-421-2345","Gary","Knight","Manager",null,null,null,null,"","Martis Holdings LLC Scottsdale AZ bought 12/9/16 for Knight-Swift Transportation Holdings","MARTIS HOLDINGS LLC","19054 N 97TH PL","SCOTTSDALE","AZ",{"$error":"#N/A"},"GJK LLC","","","",{"$error":"#N/A"},"","","","",{"$error":"#N/A"},"","",{"$error":"#N/A"},"","","","","","","","","","","","","","","","","","","","","","","","","",""]
["GULFSTREAM","G150",275,"N719KX","N719KX","SCF","AZ","United States","Co-Owner","Martis Holdings, LLC","19155 North 107th Street",null,"Scottsdale","AZ",85255,"United States","End User",null,null,null,null,"Kevin","Knight","Manager","kevink@knighttrans.com",null,null,null,"","Martis Holdings LLC Scottsdale AZ bought 12/9/16 for Knight-Swift Transportation Holdings","MARTIS HOLDINGS LLC","19054 N 97TH PL","SCOTTSDALE","AZ",{"$error":"#N/A"},"GJK LLC","","","",{"$error":"#N/A"},"","","","",{"$error":"#N/A"},"","",{"$error":"#N/A"},"","","","","","","","","","","","","","","","","","","","","","","","","","catch-all"]
["GULFSTREAM","G150",276,"N15PV","N15PV","LAS","NV","United States","Owner","Terrible Herbst, Inc.","5195 Las Vegas Boulevard South",null,"Las Vegas","NV","89193-5398","United States","End User",null,"www.terribleherbst.com","702-736-6151",null,"Timothy","Herbst","President",null,"702-736-6151",null,null,"","Golden Sky Aviation Ltd bought 7/14/16","GOLDEN SKY AVIATION LTD","28 OLD RUDNICK LN","DOVER","DE",{"$error":"#N/A"},"","","","",{"$error":"#N/A"},"","","","",{"$error":"#N/A"},"","",{"$error":"#N/A"},"","","","","","","","","","","","","","","","","","","","","","","","","",""]
["GULFSTREAM","G150",277,"N636SF","N636SF","LUL","MS","United States","Operator","Sanderson Farms, Inc.","P.O. Box 988","127 Flynt Road","Laurel","MS",39441,"United States","End User","lbutts@sandersonfarms.com","www.sandersonfarms.com","601-649-4030",null,"Zane","Lambert","Manager of Aircraft Operations","zane.lambert@sandersonfarms.com","601-649-4030","601-649-4030",null,"","Sanderson Farms Inc. Laurel MS bought 12/12/13, rrg 4/24/14","SANDERSON FARMS INC","127 FLYNT RD","LAUREL","MS",{"$error":"#N/A"},"","","","",{"$error":"#N/A"},"","","","",{"$error":"#N/A"},"","",{"$error":"#N/A"},"Sanderson Farms, Inc. ","PO Box 988 127 Flynt Road","","Laurel","Mississippi","39441-0988","+1 601.649.4030","www.sandersonfarms.com","dgilley@sandersonfarms.com","","","","","","","","","","","","","","","","catch-all","catch-all"]
["GULFSTREAM","G150",277,"N636SF","N636SF","LUL","MS","United States","Owner","Sanderson Farms, Inc.","P.O. Box 988","127 Flynt Road","Laurel","MS",39441,"United States","End User","lbutts@sandersonfarms.com","www.sandersonfarms.com","601-649-4030",null,null,null,null,null,"601-649-4030",null,null,"","Sanderson Farms Inc. Laurel MS bought 12/12/13, rrg 4/24/14","SANDERSON FARMS INC","127 FLYNT RD","LAUREL","MS",{"$error":"#N/A"},"","","","",{"$error":"#N/A"},"","","","",{"$error":"#N/A"},"","",{"$error":"#N/A"},"Sanderson Farms, Inc. ","PO Box 988 127 Flynt Road","","Laurel","Mississippi","39441-0988","+1 601.649.4030","www.sandersonfarms.com","dgilley@sandersonfarms.com","","","","","","","","","","","","","","","","catch-all",""]
["GULFSTREAM","G150",278,"N700FA","N700FA","SHV","LA","United States","Flight Department","Frank's Management Company, LLC","6132 Charles Lindberg Drive",null,"Shreveport","LA",71109,"United States","End User",null,null,null,null,"Kevin","Jones","Chief Pilot",null,null,null,null,"","Jet Flight LLC, Shreveport LA delivered 3/20/09","JET FLIGHT LLC","1312 N HEARNE AVE","SHREVEPORT","LA",{"$error":"#N/A"},"","","","",{"$error":"#N/A"},"","","","",{"$error":"#N/A"},"","",{"$error":"#N/A"},"","","","","","","","","","","","","","","","","","","","","","","","","",""]
["GULFSTREAM","G150",278,"N700FA","N700FA","SHV","LA","United States","Owner","Jet Flight, LLC","P.O. Box 7665","1312 North Hearne Avenue","Shreveport","LA","71137-7665","United States","End User",null,null,"318-221-2688",null,"Bobby","Jelks",null,null,"318-221-2688",null,null,"","Jet Flight LLC, Shreveport LA delivered 3/20/09","JET FLIGHT LLC","1312 N HEARNE AVE","SHREVEPORT","LA",{"$error":"#N/A"},"","","","",{"$error":"#N/A"},"","","","",{"$error":"#N/A"},"","",{"$error":"#N/A"},"","","","","","","","","","","","","","","","","","","","","","","","","",""]
["GULFSTREAM","G150",279,"N80WB","N80WB","HIO","OR","United States","Owner","WB ATS LLC","1455 SW Broadway, Suite 1700",null,"Portland","OR",97201,"United States","End User",null,null,null,null,"Walter","Bowen","Manager",null,null,null,null,"","WB ATS LLC Portland OR bought 9/27/18","WB ATS LLC","1455 SW BROADWAY STE 1700","PORTLAND","OR",{"$error":"#N/A"},"","","","",{"$error":"#N/A"},"","","","",{"$error":"#N/A"},"","",{"$error":"#N/A"},"","","","","","","","","","","","","","","","","","","","","","","","","",""]
["GULFSTREAM","G150",280,"VT-GKB","VP-CEP ","AMD",null,"India","Charter Company","K-Air Charters","2nd Floor, Sarathy Enclave","1st Cross, Cheruparambath Road","Kochi, Kerala",null,682020,"India","Dealer Broker","office@k-aircharters.com","www.k-aircharters.com","91-484-4035020",null,"Koshy","Varghese","Director","operations@k-aircharters.com","91-9387-032180","91-484-4035020","91-9387-032180","","B2 Management Ltd delivered 5/15/09","","","","",{"$error":"#N/A"},"","","","",{"$error":"#N/A"},"","","","",{"$error":"#N/A"},"","",{"$error":"#N/A"},"","","","","","","","","","","","","","","","","","","","","","","","","do_not_mail","do_not_mail"]
["GULFSTREAM","G150",280,"VT-GKB","VP-CEP ","AMD",null,"India","Owner","Awaiting Documentation",null,null,null,null,null,null,"Unidentified",null,null,null,null,null,null,null,null,null,null,null,"","B2 Management Ltd delivered 5/15/09","","","","",{"$error":"#N/A"},"","","","",{"$error":"#N/A"},"","","","",{"$error":"#N/A"},"","",{"$error":"#N/A"},"","","","","","","","","","","","","","","","","","","","","","","","","",""]
["GULFSTREAM","G150",281,"N57RG","N57RG","NTR",null,"Mexico","Operator","Soliq, SA de CV","Paseo De La Reforma 1240, Col. Lomas De Chapultepe",null,"Mexico",null,11000,"Mexico","End User","contacto@soliq.mx","www.soliq.mx","52-81-1932-5600",null,"Jorge","Siller","Chief Pilot","sillerjorge@hotmail.com","52-51-28077386",null,"52-51-28077386","","Soliq SA de SV bought 8/27/5, rrg 12/4/15","BANK OF UTAH TRUSTEE","50 SOUTH 200 EAST STE 110","SALT LAKE CITY","UT",{"$error":"#N/A"},"","","","",{"$error":"#N/A"},"","","","",{"$error":"#N/A"},"","",{"$error":"#N/A"},"","","","","","","","","","","","","","","","","","","","","","","","","catch-all","valid"]
["GULFSTREAM","G150",281,"N57RG","N57RG","NTR",null,"Mexico","Owner","Soliq, SA de CV","Paseo De La Reforma 1240, Col. Lomas De Chapultepe",null,"Mexico",null,11000,"Mexico","End User","contacto@soliq.mx","www.soliq.mx","52-81-1932-5600",null,"Roberto","Gonzalez Valdez","Founder & General Partner","robgonval@hotmail.com","52-55-45664710",null,"52-55-45664710","","Soliq SA de SV bought 8/27/5, rrg 12/4/15","BANK OF UTAH TRUSTEE","50 SOUTH 200 EAST STE 110","SALT LAKE CITY","UT",{"$error":"#N/A"},"","","","",{"$error":"#N/A"},"","","","",{"$error":"#N/A"},"","",{"$error":"#N/A"},"","","","","","","","","","","","","","","","","","","","","","","","","catch-all","valid"]
["GULFSTREAM","G150",282,"N22G","N22G","CAK","OH","United States","Operator","Goodyear Flight Department","5400 Lauby Road","Akron-Canton Regional Airport","North Canton","OH",44720,"United States","End User",null,null,null,null,"Chris","Kostiuk","Director","chris_kostiuk@goodyear.com",null,null,null,"","Goodyear rrg 4/10/15","GOODYEAR TIRE & RUBBER CO","200 E INNOVATION WAY","AKRON","OH",{"$error":"#N/A"},"","","","",{"$error":"#N/A"},"","","","",{"$error":"#N/A"},"","",{"$error":"#N/A"},"","","","","","","","","","","","","","","","","","","","","","","","","","valid"]
["GULFSTREAM","G150",282,"N22G","N22G","CAK","OH","United States","Owner","The Goodyear Tire & Rubber Company","200 Innovation Way",null,"Akron","OH",44316,"United States","End User",null,"www.goodyear.com","330-796-2121",null,"Laura","Thompson","Executive Vice President & CFO",null,"330-796-2121",null,null,"","Goodyear rrg 4/10/15","GOODYEAR TIRE & RUBBER CO","200 E INNOVATION WAY","AKRON","OH",{"$error":"#N/A"},"","","","",{"$error":"#N/A"},"","","","",{"$error":"#N/A"},"","",{"$error":"#N/A"},"","","","","","","","","","","","","","","","","","","","","","","","","",""]
["GULFSTREAM","G150",283,"SP-TBF","SP-TBF ","WRO",null,"Poland","Aircraft Management Company","AMC Aviation Sp. z.o.o.","ul. Ruchliwa 15",null,"Warsaw",null,"02-182","Poland","Charter Company","sales@amcaviation.eu","www.amcaviation.eu","48-22-346-5330",null,"Jarek","Pierzchala","CFO","jarek.pierzchala@amcaviation.eu","48-503-077-212",null,"48-503-077-212","","One Sp Zoo SKA rg 3/3/16","","","","",{"$error":"#N/A"},"","","","",{"$error":"#N/A"},"","","","",{"$error":"#N/A"},"","",{"$error":"#N/A"},"","","","","","","","","","","","","","","","","","","","","","","","","do_not_mail","valid"]
["GULFSTREAM","G150",283,"SP-TBF","SP-TBF ","WRO",null,"Poland","Owner","Kaczmarski Group SP z.o.o.","Danuty Siedzikowny 12",null,"Wroclaw",null,"51-214","Poland","End User","kontakt@kaczmarskigroup.pl","https://kaczmarskigroup.pl/","48-71-747-4747",null,"Martin","Kaczmarski","President of the Board",null,"48-71-747-4747",null,null,"","One Sp Zoo SKA rg 3/3/16","","","","",{"$error":"#N/A"},"","","","",{"$error":"#N/A"},"","","","",{"$error":"#N/A"},"","",{"$error":"#N/A"},"","","","","","","","","","","","","","","","","","","","","","","","","valid",""]
["GULFSTREAM","G150",284,"TC-AEH","TC-AEH ","ISL",null,"Turkey","Charter Company","BarAir","Ataturk Airport General Aviation Terminal, Hgr. 10",null,"Istanbul",null,34295,"Turkey","Charter Company","info@tahe.com.tr",null,"90-212-592-0036",null,"Serdar","Ertan","Flight Operations Manager","serdar@tahe.com.tr","90-533-704-4606","90-212-592-0036","90-533-704-4606","Tahe Aviation ","Tahe Air Havacilik rg 4/13/10","","","","",{"$error":"#N/A"},"","","","",{"$error":"#N/A"},"","","","",{"$error":"#N/A"},"","",{"$error":"#N/A"},"","","","","","","","","","","","","","","","","","","","","","","","","do_not_mail","valid"]
["GULFSTREAM","G150",284,"TC-AEH","TC-AEH ","ISL",null,"Turkey","Owner","BarAir","Ataturk Airport General Aviation Terminal, Hgr. 10",null,"Istanbul",null,34295,"Turkey","Charter Company","info@tahe.com.tr",null,"90-212-592-0036",null,"Serdar","Ertan","Flight Operations Manager","serdar@tahe.com.tr","90-533-704-4606","90-212-592-0036","90-533-704-4606","Tahe Aviation ","Tahe Air Havacilik rg 4/13/10","","","","",{"$error":"#N/A"},"","","","",{"$error":"#N/A"},"","","","",{"$error":"#N/A"},"","",{"$error":"#N/A"},"","","","","","","","","","","","","","","","","","","","","","","","","do_not_mail","valid"]
["GULFSTREAM","G150",285,"N285GA","N285GA","MKG","MI","United States","Aircraft Management Company","Northern Jet Management","P.O. Box 888380","5500 44th Street SE, Building 203","Grand Rapids","MI",49588,"United States","Dealer Broker","information@northernjet.net","www.northernjet.net","616-336-4800",null,"Steve","Cok",null,"scok@northernjet.net","616-336-4800",null,null,"Northern Jet Management ","transferred late 2020","PFC HOLDINGS LLC","320 E CIRCLE DR","NORTH MUSKEGON","MI",{"$error":"#N/A"},"","","Northern Jet Management, Inc.","T6FA",{"$error":"#N/A"},"","","","",{"$error":"#N/A"},"","",{"$error":"#N/A"},"","","","","","","","","","","T6FA","NORTHERN JET MANAGEMENT INC","COX, CHARLES R.","CEO","PO BOX 888380","","","GRAND RAPIDS","MI","49588","US","6163364800","","","do_not_mail","valid"]
["GULFSTREAM","G150",285,"N285GA","N285GA","MKG","MI","United States","Owner","PFC Holdings, LLC","320 Ease Circle Drive",null,"North Muskegon","MI",49445,"United States","End User",null,null,"231-578-7866",null,"Aaron","Peterson","Manager",null,"231-578-7866",null,null,"Northern Jet Management ","transferred late 2020","PFC HOLDINGS LLC","320 E CIRCLE DR","NORTH MUSKEGON","MI",{"$error":"#N/A"},"","","Northern Jet Management, Inc.","T6FA",{"$error":"#N/A"},"","","","",{"$error":"#N/A"},"","",{"$error":"#N/A"},"","","","","","","","","","","T6FA","NORTHERN JET MANAGEMENT INC","COX, CHARLES R.","CEO","PO BOX 888380","","","GRAND RAPIDS","MI","49588","US","6163364800","","","",""]
["GULFSTREAM","G150",286,"N1924D","N1924D","ILG","DE","United States","Operator","A. Duie Pyle, Inc.","P.O. Box 564","650 Westtown Road","West Chester","PA","19381-0564","United States","End User","sales@aduiepyle.com","www.pyleco.com","610-696-5800",null,"Kevin","Komisor","Chief Pilot","kkomisor@aduiepyle.com","814-404-2792","814-404-2792",null,"","N995DP LLC delivered 12/22/11, rrg 5/3/12","N995DP LLC","204 QUIGLEY BLVD","NEW CASTLE","DE",{"$error":"#N/A"},"","","","",{"$error":"#N/A"},"","","","",{"$error":"#N/A"},"","",{"$error":"#N/A"},"A. Duie Pyle ","103 Roylene Drive","","Oxford","Pennsylvania","19363","+1 814.404.2792","www.aduiepyle.com","","","","","","","","","","","","","","","","","do_not_mail","catch-all"]
["GULFSTREAM","G150",286,"N1924D","N1924D","ILG","DE","United States","Owner","N995DP, LLC","204 Quigley Boulevard",null,"New Castle","DE","19720-4106","United States","End User",null,null,"610-350-3165",null,"Peter","Latta","Chairman, President & CEO","platta@aduiepyle.com","610-585-5800","610-350-3006","610-585-5800","","N995DP LLC delivered 12/22/11, rrg 5/3/12","N995DP LLC","204 QUIGLEY BLVD","NEW CASTLE","DE",{"$error":"#N/A"},"","","","",{"$error":"#N/A"},"","","","",{"$error":"#N/A"},"","",{"$error":"#N/A"},"A. Duie Pyle ","103 Roylene Drive","","Oxford","Pennsylvania","19363","+1 814.404.2792","www.aduiepyle.com","","","","","","","","","","","","","","","","","","catch-all"]
["GULFSTREAM","G150",287,"N318KS","N318KS ",null,"KS","United States","Owner","MMTH Air, LLC","601 East Wyandotte Street",null,"Meriden","KS",66512,"United States","End User",null,null,"785-400-6136",null,"Jacob","Farrant","Member",null,"785-400-6136",null,null,"","MMTH Air LLC, Meriden KS bought 12/23/21, rg 12/27/21","","","","",{"$error":"#N/A"},"","","","",{"$error":"#N/A"},"","","","",{"$error":"#N/A"},"","",{"$error":"#N/A"},"","","","","","","","","","","","","","","","","","","","","","","","","",""]
["GULFSTREAM","G150",288,"OH-WIL","C-GHAQ / C-GWPK ","HEL",null,"Finland","Charter Company","Jetflite Oy","P.O. Box 86","Siipitie 7","Vantaa-Helsinki",null,1531,"Finland","Charter Company","sales@jetflite.fi","www.jetflite.fi","358-205-101-900",null,"Elina","Karjalainen","Managing Director","elina.karjalainen@jetflite.fi","358-205-102-740","358-205-101-900","358-205-102-740","","Fast Air Ltd. Winnipeg MB rg 12/20/10","Harbour Air Ltd","","Richmond","British Columbia",{"$error":"#N/A"},"","","","",{"$error":"#N/A"},"","","","",{"$error":"#N/A"},"","",{"$error":"#N/A"},"","","","","","","","","","","","","","","","","","","","","","","","","do_not_mail","catch-all"]
["GULFSTREAM","G150",288,"OH-WIL","C-GHAQ / C-GWPK ","HEL",null,"Finland","Owner","Wihuri Oy","P. O. Box 329","Wihurinaukio 2","Helsinki",null,570,"Finland","End User","info@wihuri.fi","www.wihuri.com","358-205-10-10",null,"Juha","Hellgren","CEO","juha.hellgren@wihuri.fi","358-205-10-10",null,null,"","Fast Air Ltd. Winnipeg MB rg 12/20/10","Harbour Air Ltd","","Richmond","British Columbia",{"$error":"#N/A"},"","","","",{"$error":"#N/A"},"","","","",{"$error":"#N/A"},"","",{"$error":"#N/A"},"","","","","","","","","","","","","","","","","","","","","","","","","do_not_mail","catch-all"]
["GULFSTREAM","G150",289,"N24G","N24G","CAK","OH","United States","Operator","Goodyear Flight Department","5400 Lauby Road","Akron-Canton Regional Airport","North Canton","OH",44720,"United States","End User",null,null,null,null,"Chris","Kostiuk","Director","chris_kostiuk@goodyear.com",null,null,null,"","Goodyear Tire & Rubber Co. Akron OH rrg 4/10/15","GOODYEAR TIRE & RUBBER CO","200 INNOVATION WAY","AKRON","OH",{"$error":"#N/A"},"","","","",{"$error":"#N/A"},"","","","",{"$error":"#N/A"},"","",{"$error":"#N/A"},"","","","","","","","","","","","","","","","","","","","","","","","","","valid"]
["GULFSTREAM","G150",289,"N24G","N24G","CAK","OH","United States","Owner","Goodyear Tire & Rubber Company","200 Innovation Way",null,"Akron","OH",44316,"United States","End User",null,"www.goodyear.com","330-796-2121",null,"Richard","Kramer","Chairman, President & CEO","Richard.Kramer@goodyear.com","330-796-2121",null,null,"","Goodyear Tire & Rubber Co. Akron OH rrg 4/10/15","GOODYEAR TIRE & RUBBER CO","200 INNOVATION WAY","AKRON","OH",{"$error":"#N/A"},"","","","",{"$error":"#N/A"},"","","","",{"$error":"#N/A"},"","",{"$error":"#N/A"},"","","","","","","","","","","","","","","","","","","","","","","","","","invalid"]
["GULFSTREAM","G150",290,"C-FMDN","C-FMDN / C-FMDN ","YYC","AB","Canada","Operator","Sunwest Aviation, Ltd.","217 Aero Court NE",null,"Calgary","AB","T2E 7C6","Canada","Dealer Broker","sales@sunwestaviation.ca","www.sunwestaviation.ca","403-275-8121",null,"Charles","Bertrand","Director of Flight Operations","cbertrand@sunwestaviation.ca","403-275-8121",null,null,"","Sunwest Aviation, Calgary AB bought 9/28/20","Sunwest Aviation Ltd.","","Calgary","Alberta",{"$error":"#N/A"},"","","","",{"$error":"#N/A"},"","","","",{"$error":"#N/A"},"","",{"$error":"#N/A"},"","","","","","","","","","","","","","","","","","","","","","","","","do_not_mail","valid"]
["GULFSTREAM","G150",290,"C-FMDN","C-FMDN / C-FMDN ","YYC","AB","Canada","Owner","2269514 Alberta Ltd","47 Pinnacle Ridge Drive",null,"Calgary","AB","T3Z 3N7","Canada","End User",null,null,null,null,"Patrick","Daniel",null,null,null,null,null,"","Sunwest Aviation, Calgary AB bought 9/28/20","Sunwest Aviation Ltd.","","Calgary","Alberta",{"$error":"#N/A"},"","","","",{"$error":"#N/A"},"","","","",{"$error":"#N/A"},"","",{"$error":"#N/A"},"","","","","","","","","","","","","","","","","","","","","","","","","",""]
["GULFSTREAM","G150",291,"N27KB","N27KB","SBY","MD","United States","Owner","3 KB Investments, LLC","P.O. Box 395","730 S. Main","Jacksboro","TX",76458,"United States","End User",null,null,"940-567-3147",null,"Kenneth","Swan","Manager","ken@swanpclp.com","940-567-1080","940-567-3147","940-567-1080","","3KB Investments LLC bought 5/26/21","3KB INVESTMENTS LLC","180 W 13TH ST","WILMINGTON","DE",{"$error":"#N/A"},"","","","",{"$error":"#N/A"},"","","","",{"$error":"#N/A"},"","",{"$error":"#N/A"},"","","","","","","","","","","","","","","","","","","","","","","","","","valid"]
["GULFSTREAM","G150",292,"N557GA","N557GA","JBQ",null,"Dominican Republic","Operator","Gestiones Ambair, Ltd.","Av. John F. Kennedy Esq. Av. Abraham Lincoln 1056","Edificio Ambair Piso 6","Santo Domingo",null,null,"Dominican Republic","End User","ops@ambair.com","www.grupoambar.com","809-373-5208",null,"Robin","Pena","Chief Pilot",null,"809-373-5208",null,null,"","Gestiones Ambair Ltd bought 9/5/17","BANK OF UTAH TRUSTEE","50 SOUTH 200 EAST STE 110","SALT LAKE CITY","UT",{"$error":"#N/A"},"","","","",{"$error":"#N/A"},"","","","",{"$error":"#N/A"},"","",{"$error":"#N/A"},"Gestiones Ambair LTD ","EPS A-121 8260 NW 14th Street","","Baton Rouge","Doral","Doral Florida 33126","+1 829.519.4889","","","","","","","","","","","","","","","","","","valid",""]
["GULFSTREAM","G150",292,"N557GA","N557GA","JBQ",null,"Dominican Republic","Owner","Gestiones Ambair, Ltd.","Av. John F. Kennedy Esq. Av. Abraham Lincoln 1056","Edificio Ambair Piso 6","Santo Domingo",null,null,"Dominican Republic","End User","ops@ambair.com","www.grupoambar.com","809-373-5208",null,"Miguel","Barletta","President",null,"809-540-3800","809-540-3800",null,"","Gestiones Ambair Ltd bought 9/5/17","BANK OF UTAH TRUSTEE","50 SOUTH 200 EAST STE 110","SALT LAKE CITY","UT",{"$error":"#N/A"},"","","","",{"$error":"#N/A"},"","","","",{"$error":"#N/A"},"","",{"$error":"#N/A"},"Gestiones Ambair LTD ","EPS A-121 8260 NW 14th Street","","Baton Rouge","Doral","Doral Florida 33126","+1 829.519.4889","","","","","","","","","","","","","","","","","","valid",""]
["GULFSTREAM","G150",293,"N935GB","N935GB","GRB","WI","United States","Owner","Schneider National, Inc.","3101 South Packerland Drive",null,"Green Bay","WI",54313,"United States","End User",null,"www.schneider.com","920-592-2000",null,"Mark","Rourke","CEO",null,"920-592-2000","920-592-2000",null,"","Schneider National Inc. Green Bay WI bought 7/24/15","SCHNEIDER NATIONAL INC","3101 PACKERLAND DR","GREEN BAY","WI",{"$error":"#N/A"},"","","","",{"$error":"#N/A"},"","","","",{"$error":"#N/A"},"","",{"$error":"#N/A"},"","","","","","","","","","","","","","","","","","","","","","","","","",""]
["GULFSTREAM","G150",294,"C-GPRN","C-FODL / C-FPRN ","YWG","MB","Canada","Operator","Fast Air, Ltd.","80 Hangar Line Road",null,"Winnipeg","MB","R3J 3Y7","Canada","Charter Company","info@flyfastair.com","www.flyfastair.com","204-982-7240",null,"Dylan","Fast","President",null,"204-982-7240",null,null,"Fast Air Ltd ","Princess Aviation Ltd bought 12/3/20","Air Creebec Inc.","","Timmins","Ontario",{"$error":"#N/A"},"","","","",{"$error":"#N/A"},"","","","",{"$error":"#N/A"},"","",{"$error":"#N/A"},"","","","","","","","","","","","","","","","","","","","","","","","","do_not_mail",""]
["GULFSTREAM","G150",294,"C-GPRN","C-FODL / C-FPRN ","YWG","MB","Canada","Owner","Princess Aviation, Ltd.","535 Panet Road",null,"Winnipeg","MB","R2C 2Z1","Canada","End User",null,null,null,null,null,null,null,null,null,null,null,"Fast Air Ltd ","Princess Aviation Ltd bought 12/3/20","Air Creebec Inc.","","Timmins","Ontario",{"$error":"#N/A"},"","","","",{"$error":"#N/A"},"","","","",{"$error":"#N/A"},"","",{"$error":"#N/A"},"","","","","","","","","","","","","","","","","","","","","","","","","",""]
["GULFSTREAM","G150",295,"N20TW","N20TW",null,null,"United States","Fractional Owner","A4 Air, LLC","15506 Hwy 5, Suite J",null,"Cabot","AR",72023,"United States","End User",null,null,"501-628-9111",null,"John","Adams","Member","john.adams@metova.com","501-628-9111",null,null,"Pinnacle Air Charter ","LGE Management Partners LLC, Phoenix AZ bought 12/30/20 (LGE Design Build)","LGE MANAGEMENT PARTNERS LLC","1200 N 52ND ST","PHOENIX","AZ",{"$error":"#N/A"},"","","Pinnacle Air Charter LLC","I8PA",{"$error":"#N/A"},"","","","",{"$error":"#N/A"},"","",{"$error":"#N/A"},"","","","","","","","","","","I8PA","PINNACLE AIR CHARTER L L C","PAVLICEK, CURT","PRESIDENT","14988 NORTH 78TH WAY","SUITE 106","","SCOTTSDALE","AZ","85260","US","4809988989","","","","valid"]
["GULFSTREAM","G150",295,"N20TW","N20TW",null,null,"United States","Fractional Owner","Franklin Transportation Group, LLC","900 Kriner Road, Suite 1",null,"Chambersburg","PA",17202,"United States","End User",null,null,null,null,"Colby","Nitterhouse","Manager",null,null,null,null,"Pinnacle Air Charter ","LGE Management Partners LLC, Phoenix AZ bought 12/30/20 (LGE Design Build)","LGE MANAGEMENT PARTNERS LLC","1200 N 52ND ST","PHOENIX","AZ",{"$error":"#N/A"},"","","Pinnacle Air Charter LLC","I8PA",{"$error":"#N/A"},"","","","",{"$error":"#N/A"},"","",{"$error":"#N/A"},"","","","","","","","","","","I8PA","PINNACLE AIR CHARTER L L C","PAVLICEK, CURT","PRESIDENT","14988 NORTH 78TH WAY","SUITE 106","","SCOTTSDALE","AZ","85260","US","4809988989","","","",""]
["GULFSTREAM","G150",295,"N20TW","N20TW",null,null,"United States","Fractional Owner","GML Development, Inc.","9405 Earpsboro Chamblee Road",null,"Wendell","NC",27591,"United States","End User",null,null,null,null,"Patrick","McKee","President",null,"910-475-7100","910-475-7100",null,"Pinnacle Air Charter ","LGE Management Partners LLC, Phoenix AZ bought 12/30/20 (LGE Design Build)","LGE MANAGEMENT PARTNERS LLC","1200 N 52ND ST","PHOENIX","AZ",{"$error":"#N/A"},"","","Pinnacle Air Charter LLC","I8PA",{"$error":"#N/A"},"","","","",{"$error":"#N/A"},"","",{"$error":"#N/A"},"","","","","","","","","","","I8PA","PINNACLE AIR CHARTER L L C","PAVLICEK, CURT","PRESIDENT","14988 NORTH 78TH WAY","SUITE 106","","SCOTTSDALE","AZ","85260","US","4809988989","","","",""]
["GULFSTREAM","G150",295,"N20TW","N20TW",null,null,"United States","Fractional Owner","JS Aviation, LLC","800 North Wisconsin Street",null,"Elkhorn","WI",53121,"United States","End User",null,null,"262-723-5108",null,"Hans","Schaupp","Manager",null,"262-723-5108",null,null,"Pinnacle Air Charter ","LGE Management Partners LLC, Phoenix AZ bought 12/30/20 (LGE Design Build)","LGE MANAGEMENT PARTNERS LLC","1200 N 52ND ST","PHOENIX","AZ",{"$error":"#N/A"},"","","Pinnacle Air Charter LLC","I8PA",{"$error":"#N/A"},"","","","",{"$error":"#N/A"},"","",{"$error":"#N/A"},"","","","","","","","","","","I8PA","PINNACLE AIR CHARTER L L C","PAVLICEK, CURT","PRESIDENT","14988 NORTH 78TH WAY","SUITE 106","","SCOTTSDALE","AZ","85260","US","4809988989","","","",""]
["GULFSTREAM","G150",295,"N20TW","N20TW",null,null,"United States","Fractional Owner","Knysna Ventures, LLC","2185 Alameda Diablo",null,"Diablo","CA",94528,"United States","End User",null,null,null,null,"Paul","McEwan","Managing Member",null,null,null,null,"Pinnacle Air Charter ","LGE Management Partners LLC, Phoenix AZ bought 12/30/20 (LGE Design Build)","LGE MANAGEMENT PARTNERS LLC","1200 N 52ND ST","PHOENIX","AZ",{"$error":"#N/A"},"","","Pinnacle Air Charter LLC","I8PA",{"$error":"#N/A"},"","","","",{"$error":"#N/A"},"","",{"$error":"#N/A"},"","","","","","","","","","","I8PA","PINNACLE AIR CHARTER L L C","PAVLICEK, CURT","PRESIDENT","14988 NORTH 78TH WAY","SUITE 106","","SCOTTSDALE","AZ","85260","US","4809988989","","","",""]
["GULFSTREAM","G150",295,"N20TW","N20TW",null,null,"United States","Fractional Owner","Lovo Holdings, LLC","712 Fifth Avenue, 14th Floor",null,"New York","NY",10019,"United States","End User",null,null,"212-620-4034",null,"Richard","Vogel","Manager",null,"212-620-4034",null,null,"Pinnacle Air Charter ","LGE Management Partners LLC, Phoenix AZ bought 12/30/20 (LGE Design Build)","LGE MANAGEMENT PARTNERS LLC","1200 N 52ND ST","PHOENIX","AZ",{"$error":"#N/A"},"","","Pinnacle Air Charter LLC","I8PA",{"$error":"#N/A"},"","","","",{"$error":"#N/A"},"","",{"$error":"#N/A"},"","","","","","","","","","","I8PA","PINNACLE AIR CHARTER L L C","PAVLICEK, CURT","PRESIDENT","14988 NORTH 78TH WAY","SUITE 106","","SCOTTSDALE","AZ","85260","US","4809988989","","","",""]
["GULFSTREAM","G150",295,"N20TW","N20TW",null,null,"United States","Fractional Owner","SJ Aviation, LLC","2928 Habersham Rd NW",null,"Atlanta","GA",30305,"United States","End User",null,null,null,null,"Jack","Draughon","Manager",null,null,null,null,"Pinnacle Air Charter ","LGE Management Partners LLC, Phoenix AZ bought 12/30/20 (LGE Design Build)","LGE MANAGEMENT PARTNERS LLC","1200 N 52ND ST","PHOENIX","AZ",{"$error":"#N/A"},"","","Pinnacle Air Charter LLC","I8PA",{"$error":"#N/A"},"","","","",{"$error":"#N/A"},"","",{"$error":"#N/A"},"","","","","","","","","","","I8PA","PINNACLE AIR CHARTER L L C","PAVLICEK, CURT","PRESIDENT","14988 NORTH 78TH WAY","SUITE 106","","SCOTTSDALE","AZ","85260","US","4809988989","","","",""]
["GULFSTREAM","G150",295,"N20TW","N20TW",null,null,"United States","Fractional Owner","Vanny & RP, LLC","P.O. Box 610",null,"Whitefish","MT",59937,"United States","End User",null,null,null,null,"Randy","Perkins","Manager",null,"858-309-2665",null,"858-309-2665","Pinnacle Air Charter ","LGE Management Partners LLC, Phoenix AZ bought 12/30/20 (LGE Design Build)","LGE MANAGEMENT PARTNERS LLC","1200 N 52ND ST","PHOENIX","AZ",{"$error":"#N/A"},"","","Pinnacle Air Charter LLC","I8PA",{"$error":"#N/A"},"","","","",{"$error":"#N/A"},"","",{"$error":"#N/A"},"","","","","","","","","","","I8PA","PINNACLE AIR CHARTER L L C","PAVLICEK, CURT","PRESIDENT","14988 NORTH 78TH WAY","SUITE 106","","SCOTTSDALE","AZ","85260","US","4809988989","","","",""]
["GULFSTREAM","G150",295,"N20TW","N20TW",null,null,"United States","Operator","Jet It LLC","101 South Elm Street, Suite 75",null,"Greensboro","NC",27401,"United States","Program Holder",null,"www.gojetit.com","914-574-7702",null,"Vishal","Hiremath","Founder & President",null,"914-574-7702","914-574-7702",null,"Pinnacle Air Charter ","LGE Management Partners LLC, Phoenix AZ bought 12/30/20 (LGE Design Build)","LGE MANAGEMENT PARTNERS LLC","1200 N 52ND ST","PHOENIX","AZ",{"$error":"#N/A"},"","","Pinnacle Air Charter LLC","I8PA",{"$error":"#N/A"},"","","","",{"$error":"#N/A"},"","",{"$error":"#N/A"},"","","","","","","","","","","I8PA","PINNACLE AIR CHARTER L L C","PAVLICEK, CURT","PRESIDENT","14988 NORTH 78TH WAY","SUITE 106","","SCOTTSDALE","AZ","85260","US","4809988989","","","",""]
["GULFSTREAM","G150",295,"N20TW","N20TW",null,null,"United States","Program Holder","Jet It LLC","101 South Elm Street, Suite 75",null,"Greensboro","NC",27401,"United States","Program Holder",null,"www.gojetit.com","914-574-7702",null,"Glenn","Gonzales","Founder & CEO","glenn.gonzales@gojetit.com","914-574-7702","914-574-7702",null,"Pinnacle Air Charter ","LGE Management Partners LLC, Phoenix AZ bought 12/30/20 (LGE Design Build)","LGE MANAGEMENT PARTNERS LLC","1200 N 52ND ST","PHOENIX","AZ",{"$error":"#N/A"},"","","Pinnacle Air Charter LLC","I8PA",{"$error":"#N/A"},"","","","",{"$error":"#N/A"},"","",{"$error":"#N/A"},"","","","","","","","","","","I8PA","PINNACLE AIR CHARTER L L C","PAVLICEK, CURT","PRESIDENT","14988 NORTH 78TH WAY","SUITE 106","","SCOTTSDALE","AZ","85260","US","4809988989","","","","valid"]
["GULFSTREAM","G150",296,"C-FREE","C-FREE / C-FREE ","YWG","MB","Canada","Operator","Fast Air, Ltd.","80 Hangar Line Road",null,"Winnipeg","MB","R3J 3Y7","Canada","Charter Company","info@flyfastair.com","www.flyfastair.com","204-982-7240",null,"Cecily","Kennedy","Chief Pilot","cecily.kennedy@flyfastair.com","204-982-7240",null,null,"Fast Air Ltd ","rg 11/16/11","Fast Air Ltd.","","Winnipeg","Manitoba",{"$error":"#N/A"},"","","","",{"$error":"#N/A"},"","","","",{"$error":"#N/A"},"","",{"$error":"#N/A"},"","","","","","","","","","","","","","","","","","","","","","","","","do_not_mail","catch-all"]
["GULFSTREAM","G150",296,"C-FREE","C-FREE / C-FREE ","YWG","MB","Canada","Owner","888676 Alberta, Inc.","285031 Wrangler Way",null,"Rocky View County","AB","T1X 0K3","Canada","End User",null,null,"403-236-0912",null,"Rob","Croteau","Manager","rcroteau@overlandwest.ca","403-901-5614",null,"403-901-5614","Fast Air Ltd ","rg 11/16/11","Fast Air Ltd.","","Winnipeg","Manitoba",{"$error":"#N/A"},"","","","",{"$error":"#N/A"},"","","","",{"$error":"#N/A"},"","",{"$error":"#N/A"},"","","","","","","","","","","","","","","","","","","","","","","","","","invalid"]
["GULFSTREAM","G150",297,"N639SF","N639SF","LUL","MS","United States","Operator","Sanderson Farms, Inc.","P.O. Box 988","127 Flynt Road","Laurel","MS",39441,"United States","End User","lbutts@sandersonfarms.com","www.sandersonfarms.com","601-649-4030",null,"Zane","Lambert","Manager of Aircraft Operations","zane.lambert@sandersonfarms.com","601-649-4030","601-649-4030",null,"","Sanderson Farms Inc. Laurel MS delivered 12/21/11","SANDERSON FARMS INC","127 FLYNT RD","LAUREL","MS",{"$error":"#N/A"},"","","","",{"$error":"#N/A"},"","","","",{"$error":"#N/A"},"","",{"$error":"#N/A"},"Sanderson Farms, Inc. ","PO Box 988 127 Flynt Road","","Laurel","Mississippi","39441-0988","+1 601.649.4030","www.sandersonfarms.com","dgilley@sandersonfarms.com","","","","","","","","","","","","","","","","catch-all","catch-all"]
["GULFSTREAM","G150",297,"N639SF","N639SF","LUL","MS","United States","Owner","Sanderson Farms, Inc.","P.O. Box 988","127 Flynt Road","Laurel","MS",39441,"United States","End User","lbutts@sandersonfarms.com","www.sandersonfarms.com","601-649-4030",null,null,null,null,null,"601-649-4030",null,null,"","Sanderson Farms Inc. Laurel MS delivered 12/21/11","SANDERSON FARMS INC","127 FLYNT RD","LAUREL","MS",{"$error":"#N/A"},"","","","",{"$error":"#N/A"},"","","","",{"$error":"#N/A"},"","",{"$error":"#N/A"},"Sanderson Farms, Inc. ","PO Box 988 127 Flynt Road","","Laurel","Mississippi","39441-0988","+1 601.649.4030","www.sandersonfarms.com","dgilley@sandersonfarms.com","","","","","","","","","","","","","","","","catch-all",""]
["GULFSTREAM","G150",298,"N876GH","N876GH","KIN",null,"Jamaica","Operator","Continental Baking Company, Ltd.","43 Half Way Tree Rd.",null,"Kingston",null,5,"Jamaica","End User",null,"www.nationalbakingcompany.com","876-960-1156-8",null,"Lesmore","Samuels","Chief Pilot","lesmore_s@yahoo.com","876-878-0552",null,"876-878-0552","","N685JF ","TVPX ARS INC TRUSTEE","39 E EAGLE RIDGE DR STE 201","NORTH SALT LAKE","UT",{"$error":"#N/A"},"","","","",{"$error":"#N/A"},"","","","",{"$error":"#N/A"},"","",{"$error":"#N/A"},"","","","","","","","","","","","","","","","","","","","","","","","","","valid"]
["GULFSTREAM","G150",298,"N876GH","N876GH","KIN",null,"Jamaica","Owner","Continental Baking Company, Ltd.","43 Half Way Tree Rd.",null,"Kingston",null,5,"Jamaica","End User",null,"www.nationalbakingcompany.com","876-960-1156-8",null,"Gary","Hendrickson","Owner & Director","doughboy@cwjamaica.com","876-960-1156-8",null,null,"","N685JF ","TVPX ARS INC TRUSTEE","39 E EAGLE RIDGE DR STE 201","NORTH SALT LAKE","UT",{"$error":"#N/A"},"","","","",{"$error":"#N/A"},"","","","",{"$error":"#N/A"},"","",{"$error":"#N/A"},"","","","","","","","","","","","","","","","","","","","","","","","","","valid"]
["GULFSTREAM","G150",299,"N922LR","N922LR","PDK","GA","United States","Aircraft Management Company","Jet Linx Aviation, LLC","13030 Pierce Street, Suite 100",null,"Omaha","NE",68144,"United States","Management Company","info@JetLinxOmaha.com","www.jetlinx.com/omaha","402-315-1050",null,"Jay","Vidlak","Senior Vice President","jay.vidlak@jetlinx.com","402-699-6909","402-315-1022","402-699-6909","Jet Linx Aviation Inc. ","Capital Holdings 210 LLC bought 12/22/20","CAPITAL HOLDINGS 210 LLC","117 SALEM CHURCH RD","NEWARK","DE",{"$error":"#N/A"},"","","Jet Linx Aviation, LLC","9JLA",{"$error":"#N/A"},"","","","",{"$error":"#N/A"},"","",{"$error":"#N/A"},"Mirasco, Inc. ","900 Circle 75 Parkway SE Suite 1660","","Baton Rouge","Atlanta","Atlanta Georgia 30339","+1 770.956.1945","","","","9JLA","JET LINX AVIATION LLC","WALKER, JAMIE","PRESIDENT AND CHIEF EXECUTIVE OFFICER","13030 Pierce St","SUITE 100","","OMAHA","NE","68144","US","4029918060","","","do_not_mail","catch-all"]
["GULFSTREAM","G150",299,"N922LR","N922LR","PDK","GA","United States","Owner","Capital Holdings 210, LLC","900 Circle 75 Parkway, Suite 1660",null,"Atlanta","GA","30339-3075","United States","End User",null,null,"770-956-1945",null,"Saher","Rizk","Member","saher.rizk@mirasco.com","770-956-1945",null,null,"Jet Linx Aviation Inc. ","Capital Holdings 210 LLC bought 12/22/20","CAPITAL HOLDINGS 210 LLC","117 SALEM CHURCH RD","NEWARK","DE",{"$error":"#N/A"},"","","Jet Linx Aviation, LLC","9JLA",{"$error":"#N/A"},"","","","",{"$error":"#N/A"},"","",{"$error":"#N/A"},"Mirasco, Inc. ","900 Circle 75 Parkway SE Suite 1660","","Baton Rouge","Atlanta","Atlanta Georgia 30339","+1 770.956.1945","","","","9JLA","JET LINX AVIATION LLC","WALKER, JAMIE","PRESIDENT AND CHIEF EXECUTIVE OFFICER","13030 Pierce St","SUITE 100","","OMAHA","NE","68144","US","4029918060","","","","catch-all"]
["GULFSTREAM","G150",300,"C-FKAI","C-FEPH / C- ","YYC","AB","Canada","Owner","Conrad Point LP","1260 Highfield Crescent SE",null,"Calgary","AB","T2G 5M3","Canada","End User",null,null,"403-243-6200",null,"Scott","Stevenson","Director, Business Development","scott@summittrucks.com","403-243-6200",null,null,"","ES-VSC ","Colin Chester Cumming","","Greely","Ontario",{"$error":"#N/A"},"","","","",{"$error":"#N/A"},"","","","",{"$error":"#N/A"},"","",{"$error":"#N/A"},"","","","","","","","","","","","","","","","","","","","","","","","","","catch-all"]
["GULFSTREAM","G150",301,"PP-ESV","PP-ESV ","POA","RS","Brazil","Operator","Ultrapar Participacoes, SA","Av. Brigadeiro Luis Antonio 1343, Andar 8",null,"Sao Paulo","SP","01317-910","Brazil","End User",null,"www.ultra.com.br","55-11-31773820",null,"Pedro Javier","Sole Jacques","Chief Pilot","pedro.jacques@gmail.com","55-51-992159816","55-51-981181128","55-51-992159816","","delivered 10/11/12 rrg 10/19/12","ULTRAPAR S/A","","","",{"$error":"#N/A"},"","","","",{"$error":"#N/A"},"","","","",{"$error":"#N/A"},"","",{"$error":"#N/A"},"","","","","","","","","","","","","","","","","","","","","","","","","","valid"]
["GULFSTREAM","G150",301,"PP-ESV","PP-ESV ","POA","RS","Brazil","Owner","Ultrapar Participacoes, SA","Av. Brigadeiro Luis Antonio 1343, Andar 8",null,"Sao Paulo","SP","01317-910","Brazil","End User",null,"www.ultra.com.br","55-11-31773820",null,"Lucio","de Castro Andrade Filho","Vice Chairman of the Board",null,"55-11-31773820",null,null,"","delivered 10/11/12 rrg 10/19/12","ULTRAPAR S/A","","","",{"$error":"#N/A"},"","","","",{"$error":"#N/A"},"","","","",{"$error":"#N/A"},"","",{"$error":"#N/A"},"","","","","","","","","","","","","","","","","","","","","","","","","",""]
["GULFSTREAM","G150",302,"N730GA","N730GA","APA","CO","United States","Co-Owner","BTI Aviation, LLC","One South Nevada Avenue, Suite 200",null,"Colorado Springs","CO","80903-1809","United States","End User",null,null,"719-228-1100",null,"Ronald","Johnson","Manager","ron.johnson@centralbancorp.com","719-228-1090","719-228-1090",null,"","BTI Aviation LLC Colorado Springs CO bought 6/4/19","BTI AVIATION LLC","1 S NEVADA AVE STE 200","COLORADO SPRINGS","CO",{"$error":"#N/A"},"SNOWY RANGE AVIATION LLC","","","",{"$error":"#N/A"},"","","","",{"$error":"#N/A"},"","",{"$error":"#N/A"},"","","","","","","","","","","","","","","","","","","","","","","","","","catch-all"]
["GULFSTREAM","G150",302,"N730GA","N730GA","APA","CO","United States","Co-Owner","Snowy Range Aviation, LLC","One South Nevada Avenue, Suite 200",null,"Colorado Springs","CO","80903-1809","United States","End User",null,null,"719-228-1100",null,"Ronald","Johnson","President","ron.johnson@centralbancorp.com","719-228-1090","719-228-1090",null,"","BTI Aviation LLC Colorado Springs CO bought 6/4/19","BTI AVIATION LLC","1 S NEVADA AVE STE 200","COLORADO SPRINGS","CO",{"$error":"#N/A"},"SNOWY RANGE AVIATION LLC","","","",{"$error":"#N/A"},"","","","",{"$error":"#N/A"},"","",{"$error":"#N/A"},"","","","","","","","","","","","","","","","","","","","","","","","","","catch-all"]
["GULFSTREAM","G150",303,"N13WF","N13WF","TVI","GA","United States","Flight Department","Flowers Foods, Inc.","3507 Flowers Hangar Road",null,"Thomasville","GA",31757,"United States","End User",null,"www.flowersfoods.com",null,null,"John","Lohmueller","Director of Maintenance",null,null,null,null,"","Flower Foods Inc. Thomasville GA delivered 1/24/13","TRUIST EQUIPMENT FINANCE CORP","245 PEACHTREE CENTER AVE NE","ATLANTA","GA",{"$error":"#N/A"},"","","","",{"$error":"#N/A"},"","","","",{"$error":"#N/A"},"","",{"$error":"#N/A"},"Flowers Foods, Inc. ","1919 Flowers Circle","","Baton Rouge","Thomasville","Thomasville Georgia 31757-1137","+1 229.221.4604","","","","","","","","","","","","","","","","","","",""]
["GULFSTREAM","G150",303,"N13WF","N13WF","TVI","GA","United States","Owner","Truist Equipment Finance Corp.","245 Peachtree Center Avenue NE, Floor 17",null,"Atlanta","GA",30303,"United States","Financial Institution",null,"www.truist.com","404-813-7159",null,"Lawrence","Cooper","Secretary","lawrence.cooper@truist.com","404-813-7159",null,null,"","Flower Foods Inc. Thomasville GA delivered 1/24/13","TRUIST EQUIPMENT FINANCE CORP","245 PEACHTREE CENTER AVE NE","ATLANTA","GA",{"$error":"#N/A"},"","","","",{"$error":"#N/A"},"","","","",{"$error":"#N/A"},"","",{"$error":"#N/A"},"Flowers Foods, Inc. ","1919 Flowers Circle","","Baton Rouge","Thomasville","Thomasville Georgia 31757-1137","+1 229.221.4604","","","","","","","","","","","","","","","","","","","catch-all"]
["GULFSTREAM","G150",304,"PR-CBA","PR-CBA ","CGH","SP","Brazil","Operator","Ambev, SA","R. Doutor Renato Paes de Barros 1017, 3 Andar","Edificio Corp. Park, Itaim Bibi","Sao Paulo","SP","04530-001","Brazil","End User","opobrigaces@ambev.com.br",null,"55-11-21221414",null,"Eduardo","Eiji Horai","Chief Information Officer",null,"55-11-21221414",null,null,"","Ambev S.A rg 06/20/13","AMBEV S.A ","","","",{"$error":"#N/A"},"","","","",{"$error":"#N/A"},"","","","",{"$error":"#N/A"},"","",{"$error":"#N/A"},"","","","","","","","","","","","","","","","","","","","","","","","","valid",""]
["GULFSTREAM","G150",304,"PR-CBA","PR-CBA ","CGH","SP","Brazil","Owner","Ambev, SA","R. Doutor Renato Paes de Barros 1017, 3 Andar","Edificio Corp. Park, Itaim Bibi","Sao Paulo","SP","04530-001","Brazil","End User","opobrigaces@ambev.com.br",null,"55-11-21221414",null,"Jean","Jerisatti Neto","CEO",null,"55-11-21221414",null,null,"","Ambev S.A rg 06/20/13","AMBEV S.A ","","","",{"$error":"#N/A"},"","","","",{"$error":"#N/A"},"","","","",{"$error":"#N/A"},"","",{"$error":"#N/A"},"","","","","","","","","","","","","","","","","","","","","","","","","valid",""]
["GULFSTREAM","G150",305,"N390KX","N390KX","SCF","AZ","United States","Owner","Knight Air, LLC","20002 North 19th Avenue",null,"Phoenix","AZ",85027,"United States","End User",null,null,"602-606-6684",null,"Todd","Carlson",null,"toddc@knighttrans.com","602-606-6684",null,null,"","Knight Air LLC, Phoenix AZ bought 8/7/19 (Knight-Swift Transportation Holdings)","KNIGHT AIR LLC","20002 NORTH 19TH AVE","PHOENIX","AZ",{"$error":"#N/A"},"","","","",{"$error":"#N/A"},"","","","",{"$error":"#N/A"},"","",{"$error":"#N/A"},"","","","","","","","","","","","","","","","","","","","","","","","","","catch-all"]
["GULFSTREAM","G150",306,"N508RP","N508RP",null,"CT","United States","Operator","Silver Point Capital, LP","2 Greenwich Plaza",null,"Greenwich","CT",6830,"United States","End User","info@silverpointcapital.com","https://www.silverpointcapital.com","203-542-4000",null,"Stacey","Hatch","CFO","shatch@silverpointcapital.com","203-231-7311",null,"203-231-7311","Executive Jet Management ","(Unknown Trust) bought 5/4/21","TVPX AIRCRAFT SOLUTIONS INC TRUSTEE","39 E EAGLE RIDGE DR STE 201","NORTH SALT LAKE","UT",{"$error":"#N/A"},"","","Executive Jet Management, Inc.","CWQA",{"$error":"#N/A"},"","","","",{"$error":"#N/A"},"","",{"$error":"#N/A"},"","","","","","","","","","","CWQA","EXECUTIVE JET MANAGEMENT INC","HIRSH, BRIAN","PRESIDENT","4556 AIRPORT ROAD","","","CINCINNATI","OH","45226","US","5139796601","","","do_not_mail","valid"]
["GULFSTREAM","G150",306,"N508RP","N508RP",null,"CT","United States","Owner","Silver Point Capital, LP","2 Greenwich Plaza",null,"Greenwich","CT",6830,"United States","End User","info@silverpointcapital.com","https://www.silverpointcapital.com","203-542-4000",null,"Stacey","Hatch","CFO","shatch@silverpointcapital.com","203-231-7311",null,"203-231-7311","Executive Jet Management ","(Unknown Trust) bought 5/4/21","TVPX AIRCRAFT SOLUTIONS INC TRUSTEE","39 E EAGLE RIDGE DR STE 201","NORTH SALT LAKE","UT",{"$error":"#N/A"},"","","Executive Jet Management, Inc.","CWQA",{"$error":"#N/A"},"","","","",{"$error":"#N/A"},"","",{"$error":"#N/A"},"","","","","","","","","","","CWQA","EXECUTIVE JET MANAGEMENT INC","HIRSH, BRIAN","PRESIDENT","4556 AIRPORT ROAD","","","CINCINNATI","OH","45226","US","5139796601","","","do_not_mail","valid"]
["GULFSTREAM","G150",307,"N503RP","N503RP","PTK","MI","United States","Flight Department","Penske Jet, Inc.","6340 Highland Road",null,"Waterford","MI",48327,"United States","End User",null,null,"248-666-3910",null,"Ed","Hendricks","Director of Maintenance",null,"248-666-3910",null,null,"","Penske Corp. delivered 3/25/14, rrg 4/28/14. Became PTS AS LLC.","PTS AS LLC","2675 MORGANTOWN RD","READING","PA",{"$error":"#N/A"},"","","","",{"$error":"#N/A"},"","","","",{"$error":"#N/A"},"","",{"$error":"#N/A"},"Penske Jet, Inc. ","6340 Highland Road","","Baton Rouge","Waterford","Waterford Michigan 48327-1835","+1 248.666.3910","","","","","","","","","","","","","","","","","","",""]
["GULFSTREAM","G150",307,"N503RP","N503RP","PTK","MI","United States","Owner","Omicron Transportation, Inc.","P.O. Box 563","2675 Morgantown Raod","Reading","PA","19603-0563","United States","End User",null,null,"610-775-6300",null,"Roger","Penske",null,null,"610-775-6300",null,null,"","Penske Corp. delivered 3/25/14, rrg 4/28/14. Became PTS AS LLC.","PTS AS LLC","2675 MORGANTOWN RD","READING","PA",{"$error":"#N/A"},"","","","",{"$error":"#N/A"},"","","","",{"$error":"#N/A"},"","",{"$error":"#N/A"},"Penske Jet, Inc. ","6340 Highland Road","","Baton Rouge","Waterford","Waterford Michigan 48327-1835","+1 248.666.3910","","","","","","","","","","","","","","","","","","",""]
["GULFSTREAM","G150",308,"N501RP","N501RP","PTK","MI","United States","Owner","The Huntington National Bank","106 South Main Street",null,"Akron","OH",44308,"United States","Financial Institution",null,"www.huntington.com","330-384-7201",null,null,null,null,null,"330-384-7201",null,null,"","Penske Corp. delivered 4/11/14 rrg 5/17/14","HUNTINGTON NATIONAL BANK","525 VINE ST FL 14","CINCINNATI","OH",{"$error":"#N/A"},"","","","",{"$error":"#N/A"},"","","","",{"$error":"#N/A"},"","",{"$error":"#N/A"},"Penske Jet, Inc. ","6340 Highland Road","","Baton Rouge","Waterford","Waterford Michigan 48327-1835","+1 248.666.3910","","","","","","","","","","","","","","","","","","",""]
["GULFSTREAM","G150",309,"N116NC","N116NC",null,"IN","United States","Owner","Benson Legacy, LLC","7120 Pointe Inverness Way",null,"Ft. Wayne","IN",46804,"United States","End User",null,null,"260-432-6622",null,"Michael","Himes","Member/Manager","mhimes@petroleumtraders.com","260-432-6622",null,null,"","Benson Legacy LLC, Ft Wayne IN bought 10/13/21","BENSON LEGACY LLC","7120 POINTE INVERNESS WAY","FORT WAYNE","IN",{"$error":"#N/A"},"","","","",{"$error":"#N/A"},"","","","",{"$error":"#N/A"},"","",{"$error":"#N/A"},"","","","","","","","","","","","","","","","","","","","","","","","","","valid"]
["GULFSTREAM","G150",310,"N151PW","N151PW","SCF","AZ","United States","Owner","Talon Tactical Management, LLC","6929 North Hayden Road C4-503",null,"Scottsdale","AZ",85250,"United States","End User",null,null,"310-990-4541",null,"David","Megdal","Manager",null,"310-990-4541",null,null,"","Talon Tactical Managements LLC bought 5/25/21","TALON TACTICAL MANAGEMENT LLC","9 E LOOCKERMAN ST STE 311","DOVER","DE",{"$error":"#N/A"},"","","MAYO AVIATION INC","CIEA",{"$error":"#N/A"},"","","","",{"$error":"#N/A"},"","",{"$error":"#N/A"},"Mayo Aviation, Inc. ","7735 S. Peoria Street","","Englewood","Colorado","80112-4102","+1 303.810.7844","www.mayoaviation.com","","","CIEA","MAYO AVIATION INC","MAYO, WILLIAM J. III","CEO","7735 SOUTH PEORIA STREET","","","ENGLEWOOD","CO","80112","US","3037924050","","","",""]
["GULFSTREAM","G150",311,"C-GGGT","C-FBBV / C-GGGT ",null,null,"Canada","Aircraft Management Company","The Craig Evan Corporation","2480 Huron Street, #3 Lower Unit",null,"London","ON","N5V 0B1","Canada","Charter Company","info@flightexec.com","www.flightexec.com","519-455-6760",null,"Nickolaus","Erb","President & CEO","nick.erb@flightexec.com","519-455-6760",null,null,"Flightexec Ltd ","bought 11/22/21","Kenn Borek Air Ltd","","Calgary","Alberta",{"$error":"#N/A"},"","","","",{"$error":"#N/A"},"","","","",{"$error":"#N/A"},"","",{"$error":"#N/A"},"","","","","","","","","","","","","","","","","","","","","","","","","do_not_mail","catch-all","https://www.guardianjet.com/userfiles/files/specifications/G150/G150_sn311_2015_Spec.pdf"]
["GULFSTREAM","G150",311,"C-GGGT","C-FBBV / C-GGGT ",null,null,"Canada","Owner","Awaiting Documentation",null,null,null,null,null,"Canada","Unidentified",null,null,null,null,null,null,null,null,null,null,null,"Flightexec Ltd ","bought 11/22/21","Kenn Borek Air Ltd","","Calgary","Alberta",{"$error":"#N/A"},"","","","",{"$error":"#N/A"},"","","","",{"$error":"#N/A"},"","",{"$error":"#N/A"},"","","","","","","","","","","","","","","","","","","","","","","","","",""]
["GULFSTREAM","G150",312,"YV3119","YV3119 ",null,null,"Venezuela","Aircraft Management Company","Aerocentro de Servicios, CA","Av. La Esntancia, CCCT, Nivel C2","Sector Yarey, Ofic. 6","Chiao, Caracas",null,1061,"Venezuela","Dealer Broker","info@aerocentro.com","www.aerocentro.com","58-212-9590401",null,"Miguel","Benatar","President","mbenatar@aerocentro.com","786-375-8147","58-212-9590401","786-375-8147","","Banco de Venwzuela rg 6/19/15","","","","",{"$error":"#N/A"},"","","","",{"$error":"#N/A"},"","","","",{"$error":"#N/A"},"","",{"$error":"#N/A"},"","","","","","","","","","","","","","","","","","","","","","","","","do_not_mail","valid"]
["GULFSTREAM","G150",312,"YV3119","YV3119 ",null,null,"Venezuela","Owner","Awaiting Documentation",null,null,null,null,null,"Venezuela","Unidentified",null,null,null,null,null,null,null,null,null,null,null,"","Banco de Venwzuela rg 6/19/15","","","","",{"$error":"#N/A"},"","","","",{"$error":"#N/A"},"","","","",{"$error":"#N/A"},"","",{"$error":"#N/A"},"","","","","","","","","","","","","","","","","","","","","","","","","",""]
["GULFSTREAM","G150",313,"TP-08","XC-LOH ",null,null,"Mexico","Operator","Gov't of Mexico - Air Force","Miguel de Cervantes Saavedra 596, Col. Irrigacion","Miguel Hidalgo","Mexico, DF",null,11500,"Mexico","End User","atn.ciudadana@sedena.gob.mx","www.gob.mx/sedena","52-55-56265911",null,"Carlos","Rodriguez Munguia","Commander",null,"52-55-56265930","52-55-56265930",null,"Fuerza Aerea Mexicana ","joint reg TP-08","","","","",{"$error":"#N/A"},"","","","",{"$error":"#N/A"},"","","","",{"$error":"#N/A"},"","",{"$error":"#N/A"},"","","","","","","","","","","","","","","","","","","","","","","","","catch-all",""]
["GULFSTREAM","G150",313,"TP-08","XC-LOH ",null,null,"Mexico","Owner","Gov't of Mexico - Air Force","Miguel de Cervantes Saavedra 596, Col. Irrigacion","Miguel Hidalgo","Mexico, DF",null,11500,"Mexico","End User","atn.ciudadana@sedena.gob.mx","www.gob.mx/sedena","52-55-56265911",null,"Carlos","Rodriguez Munguia","Commander",null,"52-55-56265930","52-55-56265930",null,"Fuerza Aerea Mexicana ","joint reg TP-08","","","","",{"$error":"#N/A"},"","","","",{"$error":"#N/A"},"","","","",{"$error":"#N/A"},"","",{"$error":"#N/A"},"","","","","","","","","","","","","","","","","","","","","","","","","catch-all",""]
["GULFSTREAM","G150",314,"XC-LOI","XC-LOI ",null,null,"Mexico","Owner","Gov't of Mexico - Air Force","Miguel de Cervantes Saavedra 596, Col. Irrigacion","Miguel Hidalgo","Mexico, DF",null,11500,"Mexico","End User","atn.ciudadana@sedena.gob.mx","www.gob.mx/sedena","52-55-56265911",null,"Carlos","Rodriguez Munguia","Commander",null,"52-55-56265930","52-55-56265930",null,"Fuerza Aerea Mexicana ","Presidencia de la Republica","","","","",{"$error":"#N/A"},"","","","",{"$error":"#N/A"},"","","","",{"$error":"#N/A"},"","",{"$error":"#N/A"},"","","","","","","","","","","","","","","","","","","","","","","","","catch-all",""]
["GULFSTREAM","G150",315,"RP-C8150","RP-C8150 ","MNL",null,"Philippines","Additional Location/Contact","Asian Aerospace Corporation","Lima Gate Andrews Avenue near NAIA Terminal III",null,"Pasay City",null,1300,"Philippines","Dealer Broker","aircraftsales@asianaerospace.com.ph","www.asianaerospace.com.ph",null,null,"Peter","Rodriguez","President & CEO","ceo@asianaerospace.com.ph",null,null,null,"AirTaxi.PH ","Asian Aerospace Corp. rg 12/28/15","","","","",{"$error":"#N/A"},"","","","",{"$error":"#N/A"},"","","","",{"$error":"#N/A"},"","",{"$error":"#N/A"},"","","","","","","","","","","","","","","","","","","","","","","","","valid","do_not_mail"]
["GULFSTREAM","G150",315,"RP-C8150","RP-C8150 ","MNL",null,"Philippines","Owner","Asian Aerospace Corporation","Gate 8, Civil Aviation Complex","Clark International Airport","Pampanga",null,2009,"Philippines","Dealer Broker","aircraftsales@asianaerospace.com.ph","www.asianaerospace.com.ph",null,null,"Peter","Rodriguez","President & CEO",null,null,null,null,"AirTaxi.PH ","Asian Aerospace Corp. rg 12/28/15","","","","",{"$error":"#N/A"},"","","","",{"$error":"#N/A"},"","","","",{"$error":"#N/A"},"","",{"$error":"#N/A"},"","","","","","","","","","","","","","","","","","","","","","","","","valid",""]
["GULFSTREAM","G150",316,"N963CH","N963CH","BAQ",null,"Colombia","Owner","Golden Gate International Corp., LLC",null,null,"Panama",null,null,"Panama","End User",null,null,null,null,"Jose","Carbonell",null,null,"57-5-3710350","57-5-3710350",null,"","(Trust) delivered 1/27/16","BANK OF UTAH TRUSTEE","50 SOUTH 200 EAST STE 110","SALT LAKE CITY","UT",{"$error":"#N/A"},"","","","",{"$error":"#N/A"},"","","","",{"$error":"#N/A"},"","",{"$error":"#N/A"},"","","","","","","","","","","","","","","","","","","","","","","","","",""]
["GULFSTREAM","G150",317,"N622SF","N622SF","LUL","MS","United States","Operator","Sanderson Farms, Inc.","P.O. Box 988","127 Flynt Road","Laurel","MS",39441,"United States","End User","lbutts@sandersonfarms.com","www.sandersonfarms.com","601-649-4030",null,"Zane","Lambert","Manager of Aircraft Operations","zane.lambert@sandersonfarms.com","601-649-4030","601-649-4030",null,"","Sanderson Farms, Laurel MS delivered 1/29/16","SANDERSON FARMS INC","127 FLYNT RD","LAUREL","MS",{"$error":"#N/A"},"","","","",{"$error":"#N/A"},"","","","",{"$error":"#N/A"},"","",{"$error":"#N/A"},"Sanderson Farms, Inc. ","PO Box 988 127 Flynt Road","","Laurel","Mississippi","39441-0988","+1 601.649.4030","www.sandersonfarms.com","dgilley@sandersonfarms.com","","","","","","","","","","","","","","","","catch-all","catch-all"]
["GULFSTREAM","G150",317,"N622SF","N622SF","LUL","MS","United States","Owner","Sanderson Farms, Inc.","P.O. Box 988","127 Flynt Road","Laurel","MS",39441,"United States","End User","lbutts@sandersonfarms.com","www.sandersonfarms.com","601-649-4030",null,null,null,null,null,"601-649-4030",null,null,"","Sanderson Farms, Laurel MS delivered 1/29/16","SANDERSON FARMS INC","127 FLYNT RD","LAUREL","MS",{"$error":"#N/A"},"","","","",{"$error":"#N/A"},"","","","",{"$error":"#N/A"},"","",{"$error":"#N/A"},"Sanderson Farms, Inc. ","PO Box 988 127 Flynt Road","","Laurel","Mississippi","39441-0988","+1 601.649.4030","www.sandersonfarms.com","dgilley@sandersonfarms.com","","","","","","","","","","","","","","","","catch-all",""]
["GULFSTREAM","G150",318,"VT-KZN","VT-KZN ","MAA",null,"India","Operator","King Jets Pvt. Ltd.","Khazana Square, 48, Whites Road",null,"Royapettah, Chennai",null,600014,"India","Charter Company","am@kingjets.in",null,"91-99-52970810",null,"Ankit","Kumar Jain","Director",null,"91-99-52970810",null,null,"","Kings Jet Pvt Ltd rg 7/12/16","","","","",{"$error":"#N/A"},"","","","",{"$error":"#N/A"},"","","","",{"$error":"#N/A"},"","",{"$error":"#N/A"},"","","","","","","","","","","","","","","","","","","","","","","","","valid",""]
["GULFSTREAM","G150",318,"VT-KZN","VT-KZN ","MAA",null,"India","Owner","King Jets Pvt. Ltd.","Khazana Square, 48, Whites Road",null,"Royapettah, Chennai",null,600014,"India","Charter Company","am@kingjets.in",null,"91-99-52970810",null,"Sunil","Kumar","Director","am@kingjets.in","91-98-40310006","91-44-40097700","91-98-40310006","","Kings Jet Pvt Ltd rg 7/12/16","","","","",{"$error":"#N/A"},"","","","",{"$error":"#N/A"},"","","","",{"$error":"#N/A"},"","",{"$error":"#N/A"},"","","","","","","","","","","","","","","","","","","","","","","","","valid","valid"]
["GULFSTREAM","G150",319,"N651DH","N651DH","SUS","MO","United States","Operator","Drury Development Corporation","13075 Manchester Road #200",null,"Des Peres","MO",63131,"United States","End User",null,null,"314-423-6698",null,"Bob","Schrock","Chief Pilot",null,"314-423-6698",null,null,"","Drury Development Corp. Saint Louis MO delivered 8/11/16","DRURY DEVELOPMENT CORP","721 EMERSON RD STE 200","SAINT LOUIS","MO",{"$error":"#N/A"},"","","","",{"$error":"#N/A"},"","","","",{"$error":"#N/A"},"","",{"$error":"#N/A"},"","","","","","","","","","","","","","","","","","","","","","","","","",""]
["GULFSTREAM","G150",319,"N651DH","N651DH","SUS","MO","United States","Owner","Drury Development Corporation","13075 Manchester Road #200",null,"Des Peres","MO",63131,"United States","End User",null,null,"314-423-6698",null,"Larry","Hasselfeld","Senior Vice President & CFO",null,"314-423-6698",null,null,"","Drury Development Corp. Saint Louis MO delivered 8/11/16","DRURY DEVELOPMENT CORP","721 EMERSON RD STE 200","SAINT LOUIS","MO",{"$error":"#N/A"},"","","","",{"$error":"#N/A"},"","","","",{"$error":"#N/A"},"","",{"$error":"#N/A"},"","","","","","","","","","","","","","","","","","","","","","","","","",""]
["GULFSTREAM","G150",320,"N23EW","N23EW","TKI","TX","United States","Owner","Encore Wire Corporation","P.0. 1149","1329 Millwood Road","McKinney","TX",75069,"United States","End User",null,"www.encorewire.com","972-562-9473",null,"Daniel","Jones","President","Daniel.jones@encorewire.com","972-562-9473","972-562-9473",null,"","Encore Wire Corp. Mckinney TX delivered 9/7/16, rrg 9/30/16","ENCORE WIRE CORP","1329 MILLWOOD RD","MCKINNEY","TX",{"$error":"#N/A"},"","","","",{"$error":"#N/A"},"","","","",{"$error":"#N/A"},"","",{"$error":"#N/A"},"","","","","","","","","","","","","","","","","","","","","","","","","","valid"]
["GULFSTREAM","G150",321,"N123QU","N123QU","SIG",null,"Puerto Rico","Operator","Dorado Aviation, LLC","100 Carretera 165, Suite 508",null,"Guaynabo",null,968,"Puerto Rico","End User",null,null,"787-774-6558",null,"Ricardo","Gonzalez","Vice President & Director of Operations","rgonzalez@mmc-pr.com","787-505-6771","787-774-3753","787-505-6771","","Dorado Aviation LLC, Guaynabo PR delivered 11/18/16","DORADO AVIATION LLC","100 CAR 165 STE 508 CENTRO INTL","GUAYNABO","PR",{"$error":"#N/A"},"","","DORADO AVIATION LLC","1DVA",{"$error":"#N/A"},"","","","",{"$error":"#N/A"},"","",{"$error":"#N/A"},"","","","","","","","","","","1DVA","DORADO AVIATION LLC","","","","","","","","","","","","","","valid"]
["GULFSTREAM","G150",321,"N123QU","N123QU","SIG",null,"Puerto Rico","Owner","Dorado Aviation, LLC","100 Carretera 165, Suite 508",null,"Guaynabo",null,968,"Puerto Rico","End User",null,null,"787-774-6558",null,"Jose","Quiros Jorge","President & CEO",null,"787-774-6558",null,null,"","Dorado Aviation LLC, Guaynabo PR delivered 11/18/16","DORADO AVIATION LLC","100 CAR 165 STE 508 CENTRO INTL","GUAYNABO","PR",{"$error":"#N/A"},"","","DORADO AVIATION LLC","1DVA",{"$error":"#N/A"},"","","","",{"$error":"#N/A"},"","",{"$error":"#N/A"},"","","","","","","","","","","1DVA","DORADO AVIATION LLC","","","","","","","","","","","","","",""]
["GULFSTREAM","G150",322,"N6950C","N6950C","SLC","UT","United States","Aircraft Management Company","Keystone Aviation, LLC","303 North 2370 West","Salt Lake City International Airport","Salt Lake City","UT",84116,"United States","Distributor","info@keystoneaviation.com","www.keystoneaviation.com","801-933-7500",null,"Charlie","Chamberlain","Director of Business Development","cchamberlain@keystoneaviation.com","801-502-9499","801-933-7568","801-502-9499","","Milloaks LLC Salt Lake City UT bought 5/22/18","MILLOAKS LLC","1978 S WEST TEMPLE","SALT LAKE CITY","UT",{"$error":"#N/A"},"","","","",{"$error":"#N/A"},"","","","",{"$error":"#N/A"},"","",{"$error":"#N/A"},"Keystone Aviation ","303 N 2370 W","","Salt Lake City","Utah","84116","+1 801.359.2085","www.keystoneaviation.com","ops@keystoneaviation.com","","","","","","","","","","","","","","","","do_not_mail","valid"]
["GULFSTREAM","G150",322,"N6950C","N6950C","SLC","UT","United States","Owner","Milloaks, LLC","1978 South West Temple",null,"Salt Lake City","UT",84115,"United States","End User",null,null,"801-486-0144",null,"Randy","Okland",null,"randy.okland@okland.com","801-486-0144",null,null,"","Milloaks LLC Salt Lake City UT bought 5/22/18","MILLOAKS LLC","1978 S WEST TEMPLE","SALT LAKE CITY","UT",{"$error":"#N/A"},"","","","",{"$error":"#N/A"},"","","","",{"$error":"#N/A"},"","",{"$error":"#N/A"},"Keystone Aviation ","303 N 2370 W","","Salt Lake City","Utah","84116","+1 801.359.2085","www.keystoneaviation.com","ops@keystoneaviation.com","","","","","","","","","","","","","","","","","valid"]
["GULFSTREAM","G150",323,"N12WF","N12WF","TVI","GA","United States","Flight Department","Flowers Foods, Inc.","3507 Flowers Hangar Road",null,"Thomasville","GA",31757,"United States","End User",null,"www.flowersfoods.com",null,null,"John","Lohmueller","Director of Maintenance",null,null,null,null,"","rg 01/12/17 PNC Equipment Finance Llc Boise ID","PNC EQUIPMENT FINANCE LLC","4355 W EMERALD ST STE 100","BOISE","ID",{"$error":"#N/A"},"","","","",{"$error":"#N/A"},"","","","",{"$error":"#N/A"},"","",{"$error":"#N/A"},"","","","","","","","","","","","","","","","","","","","","","","","","",""]
["GULFSTREAM","G150",323,"N12WF","N12WF","TVI","GA","United States","Owner","PNC Equipment Finance, LLC","4355 Emerald Street, Suite 100",null,"Boise","ID",83706,"United States","Leasing Company",null,"www.pnc.com","208-472-2350",null,"Luci","Johnson","Senior Vice President","luci.johnson@pnc.com","208-472-1519","208-472-1519",null,"","rg 01/12/17 PNC Equipment Finance Llc Boise ID","PNC EQUIPMENT FINANCE LLC","4355 W EMERALD ST STE 100","BOISE","ID",{"$error":"#N/A"},"","","","",{"$error":"#N/A"},"","","","",{"$error":"#N/A"},"","",{"$error":"#N/A"},"","","","","","","","","","","","","","","","","","","","","","","","","","valid"]
["GULFSTREAM","G150",324,"N1ED","N1ED","YNG","OH","United States","Flight Department","DeBartolo Corporation","1453 Youngstown Kingsville Road NE, Hgr.2 North","Youngstown Municipal Airport","Vienna","OH","44473-9790","United States","End User",null,null,null,null,"Chuck","Eaves","Flight Operations Manager","ejdcflight@embarqmail.com","724-456-0748",null,"724-456-0748","","DBCT LLC, Youngstown OH delivered 2/3/17","DBCT LLC","7620 MARKET ST","YOUNGSTOWN","OH",{"$error":"#N/A"},"","","","",{"$error":"#N/A"},"","","","",{"$error":"#N/A"},"","",{"$error":"#N/A"},"","","","","","","","","","","","","","","","","","","","","","","","","","valid"]
["GULFSTREAM","G150",324,"N1ED","N1ED","YNG","OH","United States","Owner","DBCT, LLC","7620 Market Street",null,"Youngstown","OH",44512,"United States","End User",null,null,"330-965-2041",null,"Timon","Kaple","Manager",null,"330-965-2041",null,null,"","DBCT LLC, Youngstown OH delivered 2/3/17","DBCT LLC","7620 MARKET ST","YOUNGSTOWN","OH",{"$error":"#N/A"},"","","","",{"$error":"#N/A"},"","","","",{"$error":"#N/A"},"","",{"$error":"#N/A"},"","","","","","","","","","","","","","","","","","","","","","","","","",""]
["GULFSTREAM","G150",325,"C-GWQM","C-GWQM","YQG","ON","Canada","Aircraft Management Company","2106701 Ontario, Inc.","2450 Derry Road East, Hangar 9",null,"Mississauga","ON","L5S 1B2","Canada","Dealer Broker","info@novajet.ca","www.novajet.com","905-673-0287",null,"Philip","Babbitt","President & CEO","philipbabbitt@novajet.ca","905-626-8358","905-673-0287","905-626-8358","Novajet Aviation Group","2106701 Ontario Inc. Mississauga ON bought 6/22/18","","","","",{"$error":"#N/A"},"","","","",{"$error":"#N/A"},"","","","",{"$error":"#N/A"},"","",{"$error":"#N/A"},"","","","","","","","","","","","","","","","","","","","","","","","","do_not_mail","catch-all"]
["GULFSTREAM","G150",325,"C-GWQM","C-GWQM","YQG","ON","Canada","Owner","QM Holding Corporation","17516 Dix Road",null,"Melvindale","MI",48122,"United States","End User",null,null,"519-727-4255",null,"William","Szekesy","President",null,"519-727-4255",null,null,"Novajet Aviation Group","2106701 Ontario Inc. Mississauga ON bought 6/22/18","","","","",{"$error":"#N/A"},"","","","",{"$error":"#N/A"},"","","","",{"$error":"#N/A"},"","",{"$error":"#N/A"},"","","","","","","","","","","","","","","","","","","","","","","","","",""]
["GULFSTREAM","G150",326,"T7-DSD","T7-DSD","IEV",null,"Ukraine","Charter Company","ICS Aero, Ltd.","26, Yaroslaviv Val, Off. 2",null,"Kiev",null,1054,"Ukraine","Charter Company","sales@ics-aero.com","www.ics-aero.com","380-44-406-6020",null,"Dmitriy","Avanesov","Director",null,"380-44-406-6020",null,null,"","ICS Aero rg 6/12/17 ACTerra International based","","","","",{"$error":"#N/A"},"","","","",{"$error":"#N/A"},"","","","",{"$error":"#N/A"},"","",{"$error":"#N/A"},"","","","","","","","","","","","","","","","","","","","","","","","","do_not_mail",""]
["GULFSTREAM","G150",326,"T7-DSD","T7-DSD","IEV",null,"Ukraine","Owner","AC-Terra International, Ltd.",null,null,null,null,null,"Ukraine","End User",null,"www.ac-terra.com","380-56-732-2459",null,"Zlata","Golovii",null,"golovii@const.dp.ua","372-5-955-9412","380-56-732-2459","372-5-955-9412","","ICS Aero rg 6/12/17 ACTerra International based","","","","",{"$error":"#N/A"},"","","","",{"$error":"#N/A"},"","","","",{"$error":"#N/A"},"","",{"$error":"#N/A"},"","","","","","","","","","","","","","","","","","","","","","","","","","catch-all"]